Workbook

Sheet Anleitung
A1: Anleitung
A3: 1. | B3: Grundsätzliches
B5: Die Datei enthält einen Satz Datenblätter für Recurve-Einzelfinale (blau) und einen Satz Datenblätter für das Compound-Einzelfinale (grün).Die Einzelfinale unterscheiden sich bei den Scorezetteln (Set-System bei Recurve, Match-System bei Compound).
A7: 2. | B7: Vorarbeiten
B9: Eine Datei für Damen und eine Datei für Herren anlegen.
B10: Das jeweilige Kästchen "Auswahl Finale" anklicken, dadurch kommt rechts unten ein Pulldown-Dreieck zum Vorschein; dieses aufklappen und das gewünschte Finale auswählen und anschließend auf den Button "Einblenden" drücken.
B11: Wird nur ein Halbfinale (4 Teilnehmer) benötigt, ist das 1/4-Finale zu verwenden. Durch Eingabe * im Ergebnis steigen die Teilnehmer automatisch ins Halbfinale auf (siehe Abschnitt "Baum").
B12: Je Bogenklasse werden folgende Blätter angelegt:
B13: * _Quali
B14: * _Baum (z.B.: R16_Baum, C8_Baum)
B15: * dazugeörende Scoreblätter (z.B.: R16, C8)
B16: * das dazugehörende Ergebnisblatt (z.B.: R16_Ergebnis, C8_Ergebnis)
B17: Die Grunddaten im Blatt "Select" erfassen, diese werden automatisch auf alle Seiten übertragen.
A19: 3. | B19: Qualifikationsblatt
B21: Dieses Blatt bildet die Basis für die Folgeseiten. Die Werte müssen aus dem Grunddurchgang spaltenberecht übernommen werden (Junioren, Senioren nicht vergessen!!).
B23: Spalte SO (Shoot Off)
B24: Bei einem Stechen um den Einzug in das Finale oder um das Freilos Platz 4 wird das Ergebnis des Stechens in die Spalte SO eingetragen. Anschließend ist der Button "Sortieren" zu drücken.
B25: Bei Ringgleichheit und Messen zum Zentrum, wird der Sieger neben dem Ergebnis zusätzlich mit einem Stern (*) gekennzeichnet. ACHTUNG!!!!!!! Durch den Stern funktioniert aber das Sortieren nicht mehr. LÖSUNG: Statt * das Ergebnis mit ,1 eintragen (z.B. 8,1) - Startnummer oder Name merken!!! Button "Sortieren" drücken Anschließend wieder die ganze Ringzahl mit * dahinter eintragen (z.B. 8*)
A27: 4. | B27: Baum
B29: Die Paarungen werden aus dem Quali-Blatt automatisch übernommen.
B30: Die Scheibeneinteilung ist im Baum vorzunehmen. Die 1. Scheibe ist einzugeben (weisses Feld), die folgenden Scheibennummern werden automatisch vergeben. Wenn 2 Schützen auf einer Scheibe schießen sollen, ist bei der Scheibennummer z.B 5A einzugeben.
B31: Der Button "Ergebnisse löschen" löscht alle eingegebenen Ergebnisse, nur die Grundpaarungen bleiben erhalten (für Versuche recht praktisch).
B32: Die Ergebnisse sind einzutragen, die Sieger werden automatisch in die nächste Runde weitergeschrieben.
B33: Bei einem Stechen ist beim Sieger ein * beim Ergebnis anzuhängen (z.B. 145*). Wird nach dem Setsystem geschossen bekommt der Sieger des Stechens einen Punkt dazu und gewinnt somit 6:5.
B34: Hat ein Schütze keinen Gegner ist im Ergebnis ein * einzutragen, damit die Daten automatisch in die nächste Runde weitergeschrieben werden.
A36: 5. | B36: Scoreblätter
B38: Je Schütze wird ein Scorezettel erstellt. Grunddaten, Name, Verein und Scheibeneinteilung bis zum Halbfinale sind bereits ausgefüllt. Ein Schütze behält den Zettel bis zu seinem Ausscheiden. Der Verlierer des Halbfinales behält den Zettel für das "kleine Finale".
A40: 6. | B40: Ergebnis
B42: Über den Button "Sortieren" gelangen die Ergebnisse aus dem Baum in diese Liste.
B43: Manuelle Korrekturen in der Ergebnisliste sind möglich, die ausgeblendeten Spalten L-Q dürfen auf keinen Fall zerstört werden!!!
A47: Etwaige Fehler bitte per Mail an helmut.poell@gmx.at bekannt geben - Danke.

Sheet Select
B1: Auswahl der Blätter
B3: Klasse | C3: Auswahl Finale | D3: Blätter anzeigen | G3: NEU | H3: ALT | J3: Neue Zeile in C5 und C7 über Daten/Datenüberprüfung einfügen
J4: Kein Finale | K4: 0
B5: Recurve | C5: Kein Finale | G5: =VLOOKUP(C5,$J$4:$K$11,2,FALSE) -> 0 | H5: 0 | J5: 1/24 Elimination (52 Teilnehmer) | K5: 5
J6: 1/16 Elimination (32 Teilnehmer) | K6: 1
B7: Compound | C7: Kein Finale | G7: =VLOOKUP(C7,$J$4:$K$11,2,FALSE) -> 0 | H7: 0 | J7: 1/12 Elimination (28 Teilnehmer) | K7: 2
J8: 1/8 Elimination (16 Teilnehmer) | K8: 3
J9: 1/4 Finale (8 Teilnehmer) | K9: 4
B10: Die hier eingegebenen Daten werden auf alle dahinter liegenden Blätter übernommen.
B12: Veranstaltungstitel | C12: Demoturnier
B13: Datum | C13: 1. April 2019
B14: Bewerb | C14: WA-Outdoor
B17: variables Feld | C17: Inhalt
B18: Recurve | C18: Recurve Herren
B20: Compound | C20: Compound Herren
B22: 10er | C22: 10er
B23: 9er | C23: X

Sheet R_Quali (hidden)
A2: =Select!$C$12 -> Demoturnier
A3: =Select!C13 -> 1. April 2019
N4: Spalte SO (Shoot Off) Bitte dringend die Anleitung dazu lesen!!! (Punkt 3.)
A5: Qualifikationsrunde
A7: =Select!C18 -> Recurve Herren
A9: Pl. | B9: Start-Nr. | C9: Name | D9: Verein | E9: Land | F9: =Select!C22 -> 10er | G9: =Select!C23 -> X | H9: Quali. | I9: SO
A10: =IF(C10>" ",1," ") -> 1 | B10: 22C | C10: Url Günter | D10: BSC-Wolfspfeil Raab-Holzer | E10: ST | F10: 25 | G10: 20 | H10: 532
A11: =IF(C11>" ",A10+1," ") -> 2 | B11: 21C | C11: Berger Hermann | D11: BSV Glemmerhof | E11: S | F11: 16 | G11: 29 | H11: 531
A12: =IF(C12>" ",A11+1," ") -> 3 | B12: 31D | C12: Strohmaier Joachim | D12: BSC Kumberg | E12: ST | F12: 16 | G12: 26 | H12: 530
A13: 4 | B13: 19D | C13: Krempl Werner | D13: BSC Semriach | E13: ST | F13: 15 | G13: 24 | H13: 529
A14: 5 | B14: 30A | C14: Höllwirth Andreas | D14: ASKÖ-Luftenberg | E14: OÖ | F14: 16 | G14: 22 | H14: 528
A15: 6 | B15: 33C | C15: Parschisek Alexander | D15: BC-Oberschützen | E15: B | F15: 13 | G15: 27 | H15: 527
A16: 7 | B16: 30B | C16: Bucher Martin | D16: LH Graz | E16: ST | F16: 16 | G16: 22 | H16: 526
A17: 8 | B17: 29D | C17: Robl Ronald | D17: Austrian Free Archer | E17: NÖ | F17: 14 | G17: 25 | H17: 525
A18: 9 | B18: 15C | C18: Traxler Helmuth | D18: UBC Diana NÖ | E18: NÖ | F18: 16 | G18: 17 | H18: 524
A19: 10 | B19: 29A | C19: Navratil Christoph | D19: BSV Schönbrunn | E19: W | F19: 12 | G19: 22 | H19: 523
A20: 11 | B20: 26A | C20: Reicher Ernst | D20: BSC Wörthersee | E20: K | F20: 17 | G20: 21 | H20: 522
A21: 12 | B21: 19A | C21: Bauer Helfried | D21: Austrian Free Archer | E21: NÖ | F21: 15 | G21: 19 | H21: 521
A22: 13 | B22: 16A | C22: Jandl Ernst | D22: PSV Burgenland - Sektion Bogen | E22: B | F22: 13 | G22: 23 | H22: 520
A23: 14 | B23: 19B | C23: Schramm Wolfgang | D23: LINZ AG Sport - Sektion Bogen | E23: OÖ | F23: 12 | G23: 22 | H23: 519
A24: 15 | B24: 35B | C24: Markl Mario | D24: BSV Dakota | E24: NÖ | F24: 14 | G24: 22 | H24: 518
A25: 16 | B25: 31B | C25: Lackner Uwe | D25: LH Graz | E25: ST | F25: 16 | G25: 25 | H25: 517
A26: 17 | B26: 35D | C26: Schweiger Peter | D26: BSV-Blumental | E26: ST | F26: 14 | G26: 21 | H26: 516
A27: 18 | B27: 15A | C27: Hamedl Wolfgang | D27: PSV Burgenland - Sektion Bogen | E27: B | F27: 11 | G27: 22 | H27: 515
A28: 19 | B28: 23D | C28: Winkler Klaus | D28: BSC Enzenreith | E28: NÖ | F28: 14 | G28: 20 | H28: 514
A29: 20 | B29: 32A | C29: Stiftner Alfred | D29: BC Kronstorf | E29: OÖ | F29: 9 | G29: 23 | H29: 513
A30: 21 | B30: 22A | C30: Pupetschek Manfred | D30: IHG Sektion Bogen | E30: T | F30: 9 | G30: 26 | H30: 512
A31: 22 | B31: 24D | C31: Schütz Raimund | D31: TBs Weinviertel | E31: NÖ | F31: 11 | G31: 20 | H31: 511
A32: 23 | B32: 18C | C32: Kutmon Wilhelm | D32: BS Ligist - Archery Freaks | E32: ST | F32: 14 | G32: 16 | H32: 510
A33: 24 | B33: 14A | C33: Eidenberger Karl | D33: PSV Burgenland - Sektion Bogen | E33: B | F33: 8 | G33: 22 | H33: 509
A34: 25 | B34: 25B | C34: Wallner Ewald | D34: BSC Sölkpass | E34: ST | F34: 13 | G34: 20 | H34: 508
A35: 26 | B35: 25C | C35: Kossek Heinz | D35: BC Wildon Weitendorf | E35: ST | F35: 11 | G35: 22 | H35: 507
A36: 27 | B36: 35C | C36: Radauer Helmuth | D36: BSC Ennstal | E36: ST | F36: 6 | G36: 23 | H36: 506
A37: 28 | B37: 20A | C37: Eberle Roland | D37: Austrian Free Archer | E37: NÖ | F37: 7 | G37: 22 | H37: 505
A38: 29 | B38: 32B | C38: Simmer Gerhard | D38: Union Bogensport Haag | E38: NÖ | F38: 9 | G38: 21 | H38: 504
A39: 30 | B39: 18B | C39: Lein Karl | D39: BSV Mattersburg | E39: B | F39: 7 | G39: 19 | H39: 503
A40: 31 | B40: 17B | C40: Klemke Harald | D40: BSV Mattersburg | E40: B | F40: 9 | G40: 20 | H40: 502
A41: 32 | B41: 34A | C41: Klampfer Markus | D41: Club 3-D Austria Bogensport | E41: S | F41: 5 | G41: 21 | H41: 501
A42: 33 | B42: 23A | C42: Werlitsch Ernst | D42: EAT-Bogensport | E42: ST | F42: 6 | G42: 21 | H42: 500
A43: 34 | B43: 34C | C43: Grünsteidl Klaus | D43: BSV Stoneface - Archery | E43: OÖ | F43: 6 | G43: 20 | H43: 488
A44: 35 | B44: 28D | C44: Hochbaumer Thomas | D44: Austrian Free Archer | E44: NÖ | F44: 13 | G44: 14 | H44: 487
A45: 36 | B45: 21B | C45: Zorgovsky Peter | D45: BSV Schönbrunn | E45: W | F45: 11 | G45: 16 | H45: 487
A46: 37 | B46: 18A | C46: Mühlgassner Wolfgang | D46: UBSC Artemis Wien | E46: W | F46: 9 | G46: 17 | H46: 487
A47: 38 | B47: 28C | C47: Greis Christian | D47: BSV Spannberg | E47: NÖ | F47: 6 | G47: 17 | H47: 484
A48: 39 | B48: 14D | C48: Arfsten Sven | D48: BC Golden Arrows | E48: S | F48: 11 | G48: 17 | H48: 483
A49: 40 | B49: 33B | C49: Kramer Michael | D49: Union Ried in der Riedmark | E49: OÖ | F49: 7 | G49: 16 | H49: 483
A50: 41 | B50: 27D | C50: Thuswald Alfred | D50: ASKÖ Gunskirchen | E50: OÖ | F50: 5 | G50: 19 | H50: 479
A51: 42 | B51: 17A | C51: Hoyer Wolfgang | D51: UBSC Artemis Wien | E51: W | F51: 8 | G51: 12 | H51: 477
A52: 43 | B52: 31C | C52: Galler Joachim | D52: BSV Mattersburg | E52: B | F52: 6 | G52: 20 | H52: 476
A53: 44 | B53: 16B | C53: Schauer Bernhard | D53: SVM Sportverein Magistrat Linz | E53: OÖ | F53: 5 | G53: 15 | H53: 476
A54: 45 | B54: 28A | C54: Bouse Harald | D54: BSV Schönbrunn | E54: W | F54: 9 | G54: 15 | H54: 475
A55: 46 | B55: 16D | C55: Doppler Wolfgang | D55: Union BSC Ried | E55: OÖ | F55: 7 | G55: 17 | H55: 475
A56: 47 | B56: 26B | C56: Feizlmair Andreas | D56: Union Bogensport Haag | E56: NÖ | F56: 7 | G56: 15 | H56: 474
A57: 48 | B57: 22D | C57: Schinko Bernhard | D57: BSV Offenhausen | E57: OÖ | F57: 8 | G57: 16 | H57: 472
A58: 49 | B58: 27A | C58: Linhart Christian | D58: BSV Stöttera | E58: B | F58: 7 | G58: 20 | H58: 472
A59: 50 | B59: 24A | C59: Hahn Gottfried | D59: BSV Spannberg | E59: NÖ | F59: 9 | G59: 14 | H59: 468
A60: 51 | B60: 21D | C60: Vorauer Helmut | D60: HSV Absam Bogensport | E60: T | F60: 6 | G60: 17 | H60: 468
A61: 52 | B61: 13B | C61: Thullner Erik | D61: BSV - Lassee | E61: NÖ | F61: 7 | G61: 16 | H61: 467
A62: 53 | B62: 28B | C62: Aigner Joachim | D62: SVM Sportverein Magistrat Linz | E62: OÖ | F62: 6 | G62: 15 | H62: 466
A63: 54 | B63: 27C | C63: Feizlmair Walter | D63: Union Bogensport Haag | E63: NÖ | F63: 3 | G63: 14 | H63: 466
A64: 55 | B64: 13C | C64: Nadasi Markus | D64: UBSC Artemis Wien | E64: W | F64: 10 | G64: 11 | H64: 462
A65: 56 | B65: 14B | C65: Hackl Franz | D65: SVM Sportverein Magistrat Linz | E65: OÖ | F65: 6 | G65: 13 | H65: 461
A66: 57 | B66: 29C | C66: Reichmann Markus | D66: BSV Spannberg | E66: NÖ | F66: 7 | G66: 13 | H66: 456
A67: 58 | B67: 25D | C67: Kragler Gerhard | D67: BSC ASKÖ Trumau | E67: NÖ | F67: 6 | G67: 11 | H67: 455
A68: 59 | B68: 26C | C68: Grubmüller Georg | D68: Union Maria Schmolln | E68: OÖ | F68: 5 | G68: 8 | H68: 455
A69: 60 | B69: 22B | C69: Sallaberger Ralf | D69: Union Bogensport Haag | E69: NÖ | F69: 6 | G69: 13 | H69: 454
A70: 61 | B70: 32C | C70: Wiesenberger Christian | D70: Union BSC Ried | E70: OÖ | F70: 8 | G70: 14 | H70: 453
A71: 62 | B71: 34B | C71: Dlapka Christian | D71: Union Urfahr - Sektion Bogen | E71: OÖ | F71: 4 | G71: 17 | H71: 453
A72: 63 | B72: 16C | C72: Kuhn Jürgen Hans | D72: UBC Diana NÖ | E72: NÖ | F72: 6 | G72: 14 | H72: 451
A73: 64 | B73: 33D | C73: Pitschmann Martin | D73: Union Bogensport Haag | E73: NÖ | F73: 6 | G73: 9 | H73: 450
A74: 65 | B74: 20C | C74: Peer Erich | D74: Bogenschützen Obervoitsberg | E74: ST | F74: 6 | G74: 15 | H74: 448
A75: 66 | B75: 32D | C75: Pfenicher Markus | D75: Bogenschützen Obervoitsberg | E75: ST | F75: 9 | G75: 10 | H75: 443
A76: =IF(C76>" ",A75+1," ") -> 67 | B76: 15D | C76: Rinner Christian | D76: BC Golden Arrows | E76: S | F76: 5 | G76: 15 | H76: 443
A77: 68 | B77: 15B | C77: Primetzhofer Klaus | D77: SVM Sportverein Magistrat Linz | E77: OÖ | F77: 4 | G77: 14 | H77: 443
A78: 69 | B78: 25A | C78: Drapela Norbert | D78: BSC Stockerau | E78: NÖ | F78: 2 | G78: 11 | H78: 440
A79: 70 | B79: 33A | C79: Hofer Michael | D79: LINZ AG Sport - Sektion Bogen | E79: OÖ | F79: 6 | G79: 14 | H79: 436
A80: 71 | B80: 24B | C80: Panhofer Harald | D80: Union Urfahr - Sektion Bogen | E80: OÖ | F80: 4 | G80: 13 | H80: 433
A81: 72 | B81: 30C | C81: Bohnec Josef | D81: UBSC Artemis Wien | E81: W | F81: 3 | G81: 10 | H81: 430
A82: 73 | B82: 23B | C82: Lanik Martin | D82: UBC Diana NÖ | E82: NÖ | F82: 7 | G82: 7 | H82: 426
A83: 74 | B83: 30D | C83: Fuchs Günther | D83: Bogensport Waldviertel | E83: NÖ | F83: 2 | G83: 12 | H83: 420
A84: 75 | B84: 24C | C84: Hrabovsky Manfred | D84: BSC Ennstal | E84: ST | F84: 3 | G84: 10 | H84: 413
A85: 76 | B85: 29B | C85: Ilchmann Peter | D85: SVM Sportverein Magistrat Linz | E85: OÖ | F85: 8 | G85: 9 | H85: 411
A86: 77 | B86: 35A | C86: Nawratil Oskar | D86: Union SHSV | E86: NÖ | F86: 6 | G86: 7 | H86: 407
A87: 78 | B87: 17C | C87: Haas Adolf | D87: BS Ligist - Archery Freaks | E87: ST | F87: 3 | G87: 12 | H87: 405
A88: 79 | B88: 26D | C88: Riesenhuber Viktor | D88: Union SHSV | E88: NÖ | F88: 2 | G88: 8 | H88: 384
A89: 80 | B89: 20B | C89: Weißenegger Albert | D89: Bogen Club Kufstein | E89: T | F89: 7 | G89: 6 | H89: 374
A90: 81 | B90: 17D | C90: Fruhwirth Konrad | D90: Union BSC Ried | E90: OÖ | F90: 6 | G90: 3 | H90: 351
A91: 82 | B91: 27B | C91: Kapp Rudolf | D91: LINZ AG Sport - Sektion Bogen | E91: OÖ | F91: 3 | G91: 10 | H91: 344
A92: 83 | B92: 14C | C92: Hessl Richard | D92: BSC Wörthersee | E92: K | F92: 2 | G92: 4 | H92: 343
A100: =IF(C100>" ",A99+1," ") -> 

Sheet R32_Baum (hidden)
B2: Schb. | C2: Qual. | D2: Name | E2: Land | F2: Verein | G2: Erg. | N2: =Select!C12 -> Demoturnier
A3: 1 | B3: =E72 -> 1A | C3: =R_Quali!H10 -> 532 | D3: =R_Quali!C10 -> Url Günter | E3: =R_Quali!E10 -> ST | F3: =R_Quali!D10 -> BSC-Wolfspfeil Raab-Holzer
A4: 32 | B4: =E73 -> 1B | C4: =R_Quali!H41 -> 501 | D4: =R_Quali!C41 -> Klampfer Markus | E4: =R_Quali!E41 -> S | F4: =R_Quali!D41 -> Club 3-D Austria Bogensport | H4: Schb | I4: Name | J4: Land | K4: Erg. | N4: =Select!C13 -> 1. April 2019
H5: =J72 -> 1A | I5: =IF($G3>$G4,$D3,IF($G4>$G3,$D4,IF(RIGHT($G3,1)="*",$D3,IF(RIGHT($G4,1)="*",$D4,"")))) ->  | J5: =IF($G3>$G4,$E3,IF($G4>$G3,$E4,IF(RIGHT($G3,1)="*",$E3,IF(RIGHT($G4,1)="*",$E4,"")))) -> 
H6: =J73 -> 1B | I6: =IF($G7>$G8,$D7,IF($G8>$G7,$D8,IF(RIGHT($G7,1)="*",$D7,IF(RIGHT($G8,1)="*",$D8,"")))) ->  | J6: =IF($G7>$G8,$E7,IF($G8>$G7,$E8,IF(RIGHT($G7,1)="*",$E7,IF(RIGHT($G8,1)="*",$E8,"")))) -> 
A7: 17 | B7: =E74 -> 2A | C7: =R_Quali!H26 -> 516 | D7: =R_Quali!C26 -> Schweiger Peter | E7: =R_Quali!E26 -> ST | F7: =R_Quali!D26 -> BSV-Blumental | T7: 1. | U7: =IF($W$24>$W$25,$U$24,IF($W$25>$W$24,$U$25,IF(RIGHT($W$24,1)="*",$U$24,IF(RIGHT($W$25,1)="*",$U$25,"")))) ->  | W7: =IF($W$24>$W$25,$V$24,IF($W$25>$W$24,$V$25,IF(RIGHT($W$24,1)="*",$V$24,IF(RIGHT($W$25,1)="*",$V$25,"")))) -> 
A8: 16 | B8: =E75 -> 2B | C8: =R_Quali!H25 -> 517 | D8: =R_Quali!C25 -> Lackner Uwe | E8: =R_Quali!E25 -> ST | F8: =R_Quali!D25 -> LH Graz | L8: Schb | M8: Name | N8: Land | O8: Erg.
L9: =N72 -> 1A | M9: =IF($K5>$K6,$I5,IF($K6>$K5,$I6,IF(RIGHT($K5,1)="*",$I5,IF(RIGHT($K6,1)="*",$I6,"")))) ->  | N9: =IF($K5>$K6,$J5,IF($K6>$K5,$J6,IF(RIGHT($K5,1)="*",$J5,IF(RIGHT($K6,1)="*",$J6,"")))) ->  | T9: 2. | U9: =IF($W$24<$W$25,$U$24,IF($W$25<$W$24,$U$25,IF(RIGHT($W$25,1)="*",$U$24,IF(RIGHT($W$24,1)="*",$U$25,"")))) ->  | W9: =IF($W$24<$W$25,$V$24,IF($W$25<$W$24,$V$25,IF(RIGHT($W$25,1)="*",$V$24,IF(RIGHT($W$24,1)="*",$V$25,"")))) -> 
L10: =N73 -> 1B | M10: =IF($K13>$K14,$I13,IF($K14>$K13,$I14,IF(RIGHT($K13,1)="*",$I13,IF(RIGHT($K14,1)="*",$I14,"")))) ->  | N10: =IF($K13>$K14,$J13,IF($K14>$K13,$J14,IF(RIGHT($K13,1)="*",$J13,IF(RIGHT($K14,1)="*",$J14,"")))) -> 
A11: 9 | B11: =E76 -> 3A | C11: =R_Quali!H18 -> 524 | D11: =R_Quali!C18 -> Traxler Helmuth | E11: =R_Quali!E18 -> NÖ | F11: =R_Quali!D18 -> UBC Diana NÖ | T11: 3. | U11: =IF($W$41>$W$42,$U$41,IF($W$42>$W$41,$U$42,IF(RIGHT($W$41,1)="*",$U$41,IF(RIGHT($W$42,1)="*",$U$42,"")))) ->  | W11: =IF($W$41>$W$42,$V$41,IF($W$42>$W$41,$V$42,IF(RIGHT($W$41,1)="*",$V$41,IF(RIGHT($W$42,1)="*",$V$42,"")))) -> 
A12: 24 | B12: =E77 -> 3B | C12: =R_Quali!H33 -> 509 | D12: =R_Quali!C33 -> Eidenberger Karl | E12: =R_Quali!E33 -> B | F12: =R_Quali!D33 -> PSV Burgenland - Sektion Bogen
H13: =J74 -> 2A | I13: =IF($G11>$G12,$D11,IF($G12>$G11,$D12,IF(RIGHT($G11,1)="*",$D11,IF(RIGHT($G12,1)="*",$D12,"")))) ->  | J13: =IF($G11>$G12,$E11,IF($G12>$G11,$E12,IF(RIGHT($G11,1)="*",$E11,IF(RIGHT($G12,1)="*",$E12,"")))) -> 
H14: =J75 -> 2B | I14: =IF($G15>$G16,$D15,IF($G16>$G15,$D16,IF(RIGHT($G15,1)="*",$D15,IF(RIGHT($G16,1)="*",$D16,"")))) ->  | J14: =IF($G15>$G16,$E15,IF($G16>$G15,$E16,IF(RIGHT($G15,1)="*",$E15,IF(RIGHT($G16,1)="*",$E16,"")))) -> 
A15: 25 | B15: =E78 -> 4A | C15: =R_Quali!H34 -> 508 | D15: =R_Quali!C34 -> Wallner Ewald | E15: =R_Quali!E34 -> ST | F15: =R_Quali!D34 -> BSC Sölkpass
A16: 8 | B16: =E79 -> 4B | C16: =R_Quali!H17 -> 525 | D16: =R_Quali!C17 -> Robl Ronald | E16: =R_Quali!E17 -> NÖ | F16: =R_Quali!D17 -> Austrian Free Archer | P16: Schb | Q16: Name | R16: Land | S16: Erg.
P17: =R72 -> 1 | Q17: =IF($O9>$O10,$M9,IF($O10>$O9,$M10,IF(RIGHT($O9,1)="*",$M9,IF(RIGHT($O10,1)="*",$M10,"")))) ->  | R17: =IF($O9>$O10,$N9,IF($O10>$O9,$N10,IF(RIGHT($O9,1)="*",$N9,IF(RIGHT($O10,1)="*",$N10,"")))) -> 
P18: =R73 -> 2 | Q18: =IF($O25>$O26,$M25,IF($O26>$O25,$M26,IF(RIGHT($O25,1)="*",$M25,IF(RIGHT($O26,1)="*",$M26,"")))) ->  | R18: =IF($O25>$O26,$N25,IF($O26>$O25,$N26,IF(RIGHT($O25,1)="*",$N25,IF(RIGHT($O26,1)="*",$N26,"")))) -> 
A19: 5 | B19: =E80 -> 5A | C19: =R_Quali!H14 -> 528 | D19: =R_Quali!C14 -> Höllwirth Andreas | E19: =R_Quali!E14 -> OÖ | F19: =R_Quali!D14 -> ASKÖ-Luftenberg
A20: 28 | B20: =E81 -> 5B | C20: =R_Quali!H37 -> 505 | D20: =R_Quali!C37 -> Eberle Roland | E20: =R_Quali!E37 -> NÖ | F20: =R_Quali!D37 -> Austrian Free Archer
H21: =J76 -> 3A | I21: =IF($G19>$G20,$D19,IF($G20>$G19,$D20,IF(RIGHT($G19,1)="*",$D19,IF(RIGHT($G20,1)="*",$D20,"")))) ->  | J21: =IF($G19>$G20,$E19,IF($G20>$G19,$E20,IF(RIGHT($G19,1)="*",$E19,IF(RIGHT($G20,1)="*",$E20,"")))) -> 
H22: =J77 -> 3B | I22: =IF($G23>$G24,$D23,IF($G24>$G23,$D24,IF(RIGHT($G23,1)="*",$D23,IF(RIGHT($G24,1)="*",$D24,"")))) ->  | J22: =IF($G23>$G24,$E23,IF($G24>$G23,$E24,IF(RIGHT($G23,1)="*",$E23,IF(RIGHT($G24,1)="*",$E24,"")))) -> 
A23: 21 | B23: =E82 -> 6A | C23: =R_Quali!H30 -> 512 | D23: =R_Quali!C30 -> Pupetschek Manfred | E23: =R_Quali!E30 -> T | F23: =R_Quali!D30 -> IHG Sektion Bogen | Q23: Finale | T23: Schb | U23: Name | V23: Land | W23: Erg.
A24: 12 | B24: =E83 -> 6B | C24: =R_Quali!H21 -> 521 | D24: =R_Quali!C21 -> Bauer Helfried | E24: =R_Quali!E21 -> NÖ | F24: =R_Quali!D21 -> Austrian Free Archer | T24: =V72 -> 13 | U24: =IF($S17>$S18,$Q17,IF($S18>$S17,$Q18,IF(RIGHT($S17,1)="*",$Q17,IF(RIGHT($S18,1)="*",$Q18,"")))) ->  | V24: =IF($S17>$S18,$R17,IF($S18>$S17,$R18,IF(RIGHT($S17,1)="*",$R17,IF(RIGHT($S18,1)="*",$R18,"")))) ->  | AA24: =IF($S17>$S18,$Q17,IF($S18>$S17,$Q18,IF(RIGHT($S17,1)="*",$Q17,IF(RIGHT($S18,1)="*",$Q18,"")))) ->  | AB24: =IF($S17>$S18,$R17,IF($S18>$S17,$R18,IF(RIGHT($S17,1)="*",$R17,IF(RIGHT($S18,1)="*",$R18,"")))) -> 
L25: =N74 -> 2A | M25: =IF($K21>$K22,$I21,IF($K22>$K21,$I22,IF(RIGHT($K21,1)="*",$I21,IF(RIGHT($K22,1)="*",$I22,"")))) ->  | N25: =IF($K21>$K22,$J21,IF($K22>$K21,$J22,IF(RIGHT($K21,1)="*",$J21,IF(RIGHT($K22,1)="*",$J22,"")))) ->  | Q25: 1. und 2. Platz | T25: =V73 -> 14 | U25: =IF($S49>$S50,$Q49,IF($S50>$S49,$Q50,IF(RIGHT($S49,1)="*",$Q49,IF(RIGHT($S50,1)="*",$Q50,"")))) ->  | V25: =IF($S49>$S50,$R49,IF($S50>$S49,$R50,IF(RIGHT($S49,1)="*",$R49,IF(RIGHT($S50,1)="*",$R50,"")))) ->  | AA25: =IF($S49>$S50,$Q49,IF($S50>$S49,$Q50,IF(RIGHT($S49,1)="*",$Q49,IF(RIGHT($S50,1)="*",$Q50,"")))) ->  | AB25: =IF($S49>$S50,$R49,IF($S50>$S49,$R50,IF(RIGHT($S49,1)="*",$R49,IF(RIGHT($S50,1)="*",$R50,"")))) -> 
L26: =N75 -> 2B | M26: =IF($K29>$K30,$I29,IF($K30>$K29,$I30,IF(RIGHT($K29,1)="*",$I29,IF(RIGHT($K30,1)="*",$I30,"")))) ->  | N26: =IF($K29>$K30,$J29,IF($K30>$K29,$J30,IF(RIGHT($K29,1)="*",$J29,IF(RIGHT($K30,1)="*",$J30,"")))) -> 
A27: 13 | B27: =E84 -> 7A | C27: =R_Quali!H22 -> 520 | D27: =R_Quali!C22 -> Jandl Ernst | E27: =R_Quali!E22 -> B | F27: =R_Quali!D22 -> PSV Burgenland - Sektion Bogen
A28: 20 | B28: =E85 -> 7B | C28: =R_Quali!H29 -> 513 | D28: =R_Quali!C29 -> Stiftner Alfred | E28: =R_Quali!E29 -> OÖ | F28: =R_Quali!D29 -> BC Kronstorf
H29: =J78 -> 4A | I29: =IF($G27>$G28,$D27,IF($G28>$G27,$D28,IF(RIGHT($G27,1)="*",$D27,IF(RIGHT($G28,1)="*",$D28,"")))) ->  | J29: =IF($G27>$G28,$E27,IF($G28>$G27,$E28,IF(RIGHT($G27,1)="*",$E27,IF(RIGHT($G28,1)="*",$E28,"")))) -> 
H30: =J79 -> 4B | I30: =IF($G31>$G32,$D31,IF($G32>$G31,$D32,IF(RIGHT($G31,1)="*",$D31,IF(RIGHT($G32,1)="*",$D32,"")))) ->  | J30: =IF($G31>$G32,$E31,IF($G32>$G31,$E32,IF(RIGHT($G31,1)="*",$E31,IF(RIGHT($G32,1)="*",$E32,"")))) -> 
A31: 29 | B31: =E86 -> 8A | C31: =R_Quali!H38 -> 504 | D31: =R_Quali!C38 -> Simmer Gerhard | E31: =R_Quali!E38 -> NÖ | F31: =R_Quali!D38 -> Union Bogensport Haag
A32: 4 | B32: =E87 -> 8B | C32: =R_Quali!H13 -> 529 | D32: =R_Quali!C13 -> Krempl Werner | E32: =R_Quali!E13 -> ST | F32: =R_Quali!D13 -> BSC Semriach
A35: 3 | B35: =E88 -> 9A | C35: =R_Quali!H12 -> 530 | D35: =R_Quali!C12 -> Strohmaier Joachim | E35: =R_Quali!E12 -> ST | F35: =R_Quali!D12 -> BSC Kumberg
A36: 30 | B36: =E89 -> 9B | C36: =R_Quali!H39 -> 503 | D36: =R_Quali!C39 -> Lein Karl | E36: =R_Quali!E39 -> B | F36: =R_Quali!D39 -> BSV Mattersburg
H37: =J80 -> 5A | I37: =IF($G35>$G36,$D35,IF($G36>$G35,$D36,IF(RIGHT($G35,1)="*",$D35,IF(RIGHT($G36,1)="*",$D36,"")))) ->  | J37: =IF($G35>$G36,$E35,IF($G36>$G35,$E36,IF(RIGHT($G35,1)="*",$E35,IF(RIGHT($G36,1)="*",$E36,"")))) -> 
H38: =J81 -> 5B | I38: =IF($G39>$G40,$D39,IF($G40>$G39,$D40,IF(RIGHT($G39,1)="*",$D39,IF(RIGHT($G40,1)="*",$D40,"")))) ->  | J38: =IF($G39>$G40,$E39,IF($G40>$G39,$E40,IF(RIGHT($G39,1)="*",$E39,IF(RIGHT($G40,1)="*",$E40,"")))) -> 
A39: 19 | B39: =E90 -> 10A | C39: =R_Quali!H28 -> 514 | D39: =R_Quali!C28 -> Winkler Klaus | E39: =R_Quali!E28 -> NÖ | F39: =R_Quali!D28 -> BSC Enzenreith
A40: 14 | B40: =E91 -> 10B | C40: =R_Quali!H23 -> 519 | D40: =R_Quali!C23 -> Schramm Wolfgang | E40: =R_Quali!E23 -> OÖ | F40: =R_Quali!D23 -> LINZ AG Sport - Sektion Bogen | Q40: Finale
L41: =N76 -> 3A | M41: =IF($K37>$K38,$I37,IF($K38>$K37,$I38,IF(RIGHT($K37,1)="*",$I37,IF(RIGHT($K38,1)="*",$I38,"")))) ->  | N41: =IF($K37>$K38,$J37,IF($K38>$K37,$J38,IF(RIGHT($K37,1)="*",$J37,IF(RIGHT($K38,1)="*",$J38,"")))) ->  | T41: =V74 -> 15 | U41: =IF($S17>$S18,$Q18,IF($S18>$S17,$Q17,IF(RIGHT($S17,1)="*",$Q18,IF(RIGHT($S18,1)="*",$Q17,"")))) ->  | V41: =IF($S17>$S18,$R18,IF($S18>$S17,$R17,IF(RIGHT($S17,1)="*",$R18,IF(RIGHT($S18,1)="*",$R17,"")))) ->  | AA41: =IF($S17>$S18,$Q18,IF($S18>$S17,$Q17,IF(RIGHT($S17,1)="*",$Q18,IF(RIGHT($S18,1)="*",$Q17,"")))) ->  | AB41: =IF($S17>$S18,$R18,IF($S18>$S17,$R17,IF(RIGHT($S17,1)="*",$R18,IF(RIGHT($S18,1)="*",$R17,"")))) -> 
L42: =N77 -> 3B | M42: =IF($K45>$K46,$I45,IF($K46>$K45,$I46,IF(RIGHT($K45,1)="*",$I45,IF(RIGHT($K46,1)="*",$I46,"")))) ->  | N42: =IF($K45>$K46,$J45,IF($K46>$K45,$J46,IF(RIGHT($K45,1)="*",$J45,IF(RIGHT($K46,1)="*",$J46,"")))) ->  | Q42: 3. und 4. Platz | T42: =V75 -> 16 | U42: =IF($S49>$S50,$Q50,IF($S50>$S49,$Q49,IF(RIGHT($S49,1)="*",$Q50,IF(RIGHT($S50,1)="*",$Q49,"")))) ->  | V42: =IF($S49>$S50,$R50,IF($S50>$S49,$R49,IF(RIGHT($S49,1)="*",$R50,IF(RIGHT($S50,1)="*",$R49,"")))) ->  | AA42: =IF($S49>$S50,$Q50,IF($S50>$S49,$Q49,IF(RIGHT($S49,1)="*",$Q50,IF(RIGHT($S50,1)="*",$Q49,"")))) ->  | AB42: =IF($S49>$S50,$R50,IF($S50>$S49,$R49,IF(RIGHT($S49,1)="*",$R50,IF(RIGHT($S50,1)="*",$R49,"")))) -> 
A43: 11 | B43: =E92 -> 11A | C43: =R_Quali!H20 -> 522 | D43: =R_Quali!C20 -> Reicher Ernst | E43: =R_Quali!E20 -> K | F43: =R_Quali!D20 -> BSC Wörthersee
A44: 22 | B44: =E93 -> 11B | C44: =R_Quali!H31 -> 511 | D44: =R_Quali!C31 -> Schütz Raimund | E44: =R_Quali!E31 -> NÖ | F44: =R_Quali!D31 -> TBs Weinviertel
H45: =J82 -> 6A | I45: =IF($G43>$G44,$D43,IF($G44>$G43,$D44,IF(RIGHT($G43,1)="*",$D43,IF(RIGHT($G44,1)="*",$D44,"")))) ->  | J45: =IF($G43>$G44,$E43,IF($G44>$G43,$E44,IF(RIGHT($G43,1)="*",$E43,IF(RIGHT($G44,1)="*",$E44,"")))) -> 
H46: =J83 -> 6B | I46: =IF($G47>$G48,$D47,IF($G48>$G47,$D48,IF(RIGHT($G47,1)="*",$D47,IF(RIGHT($G48,1)="*",$D48,"")))) ->  | J46: =IF($G47>$G48,$E47,IF($G48>$G47,$E48,IF(RIGHT($G47,1)="*",$E47,IF(RIGHT($G48,1)="*",$E48,"")))) -> 
A47: 27 | B47: =E94 -> 12A | C47: =R_Quali!H36 -> 506 | D47: =R_Quali!C36 -> Radauer Helmuth | E47: =R_Quali!E36 -> ST | F47: =R_Quali!D36 -> BSC Ennstal
A48: 6 | B48: =E95 -> 12B | C48: =R_Quali!H15 -> 527 | D48: =R_Quali!C15 -> Parschisek Alexander | E48: =R_Quali!E15 -> B | F48: =R_Quali!D15 -> BC-Oberschützen
P49: =R74 -> 3 | Q49: =IF($O41>$O42,$M41,IF($O42>$O41,$M42,IF(RIGHT($O41,1)="*",$M41,IF(RIGHT($O42,1)="*",$M42,"")))) ->  | R49: =IF($O41>$O42,$N41,IF($O42>$O41,$N42,IF(RIGHT($O41,1)="*",$N41,IF(RIGHT($O42,1)="*",$N42,"")))) -> 
P50: =R75 -> 4 | Q50: =IF($O57>$O58,$M57,IF($O58>$O57,$M58,IF(RIGHT($O57,1)="*",$M57,IF(RIGHT($O58,1)="*",$M58,"")))) ->  | R50: =IF($O57>$O58,$N57,IF($O58>$O57,$N58,IF(RIGHT($O57,1)="*",$N57,IF(RIGHT($O58,1)="*",$N58,"")))) -> 
A51: 7 | B51: =E96 -> 13A | C51: =R_Quali!H16 -> 526 | D51: =R_Quali!C16 -> Bucher Martin | E51: =R_Quali!E16 -> ST | F51: =R_Quali!D16 -> LH Graz
A52: 26 | B52: =E97 -> 13B | C52: =R_Quali!H35 -> 507 | D52: =R_Quali!C35 -> Kossek Heinz | E52: =R_Quali!E35 -> ST | F52: =R_Quali!D35 -> BC Wildon Weitendorf
H53: =J84 -> 7A | I53: =IF($G51>$G52,$D51,IF($G52>$G51,$D52,IF(RIGHT($G51,1)="*",$D51,IF(RIGHT($G52,1)="*",$D52,"")))) ->  | J53: =IF($G51>$G52,$E51,IF($G52>$G51,$E52,IF(RIGHT($G51,1)="*",$E51,IF(RIGHT($G52,1)="*",$E52,"")))) ->  | U53: Finale
H54: =J85 -> 7B | I54: =IF($G55>$G56,$D55,IF($G56>$G55,$D56,IF(RIGHT($G55,1)="*",$D55,IF(RIGHT($G56,1)="*",$D56,"")))) ->  | J54: =IF($G55>$G56,$E55,IF($G56>$G55,$E56,IF(RIGHT($G55,1)="*",$E55,IF(RIGHT($G56,1)="*",$E56,"")))) ->  | Q54: 1/2 Finale
A55: 23 | B55: =E98 -> 14A | C55: =R_Quali!H32 -> 510 | D55: =R_Quali!C32 -> Kutmon Wilhelm | E55: =R_Quali!E32 -> ST | F55: =R_Quali!D32 -> BS Ligist - Archery Freaks
A56: 10 | B56: =E99 -> 14B | C56: =R_Quali!H19 -> 523 | D56: =R_Quali!C19 -> Navratil Christoph | E56: =R_Quali!E19 -> W | F56: =R_Quali!D19 -> BSV Schönbrunn
L57: =N78 -> 4A | M57: =IF($K53>$K54,$I53,IF($K54>$K53,$I54,IF(RIGHT($K53,1)="*",$I53,IF(RIGHT($K54,1)="*",$I54,"")))) ->  | N57: =IF($K53>$K54,$J53,IF($K54>$K53,$J54,IF(RIGHT($K53,1)="*",$J53,IF(RIGHT($K54,1)="*",$J54,"")))) -> 
L58: =N79 -> 4B | M58: =IF($K61>$K62,$I61,IF($K62>$K61,$I62,IF(RIGHT($K61,1)="*",$I61,IF(RIGHT($K62,1)="*",$I62,"")))) ->  | N58: =IF($K61>$K62,$J61,IF($K62>$K61,$J62,IF(RIGHT($K61,1)="*",$J61,IF(RIGHT($K62,1)="*",$J62,"")))) -> 
A59: 15 | B59: =E100 -> 15A | C59: =R_Quali!H24 -> 518 | D59: =R_Quali!C24 -> Markl Mario | E59: =R_Quali!E24 -> NÖ | F59: =R_Quali!D24 -> BSV Dakota
A60: 18 | B60: =E101 -> 15B | C60: =R_Quali!H27 -> 515 | D60: =R_Quali!C27 -> Hamedl Wolfgang | E60: =R_Quali!E27 -> B | F60: =R_Quali!D27 -> PSV Burgenland - Sektion Bogen
H61: =J86 -> 8A | I61: =IF($G59>$G60,$D59,IF($G60>$G59,$D60,IF(RIGHT($G59,1)="*",$D59,IF(RIGHT($G60,1)="*",$D60,"")))) ->  | J61: =IF($G59>$G60,$E59,IF($G60>$G59,$E60,IF(RIGHT($G59,1)="*",$E59,IF(RIGHT($G60,1)="*",$E60,"")))) ->  | M61: 1/4 Finale
H62: =J87 -> 8B | I62: =IF($G63>$G64,$D63,IF($G64>$G63,$D64,IF(RIGHT($G63,1)="*",$D63,IF(RIGHT($G64,1)="*",$D64,"")))) ->  | J62: =IF($G63>$G64,$E63,IF($G64>$G63,$E64,IF(RIGHT($G63,1)="*",$E63,IF(RIGHT($G64,1)="*",$E64,"")))) -> 
A63: 31 | B63: =E102 -> 16A | C63: =R_Quali!H40 -> 502 | D63: =R_Quali!C40 -> Klemke Harald | E63: =R_Quali!E40 -> B | F63: =R_Quali!D40 -> BSV Mattersburg
A64: 2 | B64: =E103 -> 16B | C64: =R_Quali!H11 -> 531 | D64: =R_Quali!C11 -> Berger Hermann | E64: =R_Quali!E11 -> S | F64: =R_Quali!D11 -> BSV Glemmerhof
H65: 1/8 Elimination
C66: 1/16 Elimination | K66: =Select!C18 -> Recurve Herren
D71: Scheibe:
C72: 1 | D72: =CONCATENATE($D$71," ",E72) -> Scheibe: 1A | E72: 1A | H72: 1 | I72: =CONCATENATE($D$71," ",J72) -> Scheibe: 1A | J72: 1A | L72: 1 | M72: =CONCATENATE($D$71," ",N72) -> Scheibe: 1A | N72: 1A | P72: 1 | Q72: =CONCATENATE($D$71," ",R72) -> Scheibe: 1 | R72: 1 | T72: 1 | U72: =CONCATENATE($D$71," ",V72) -> Scheibe: 13 | V72: 13
D73: Scheibe: 1B | E73: =IF(RIGHT(E72,1)="A",CONCATENATE(LEFT(E72,LEN(E72)-1),"B"),E72+1) -> 1B | I73: Scheibe: 1B | J73: =IF(RIGHT(J72,1)="A",CONCATENATE(LEFT(J72,LEN(J72)-1),"B"),J72+1) -> 1B | M73: Scheibe: 1B | N73: =IF(RIGHT(N72,1)="A",CONCATENATE(LEFT(N72,LEN(N72)-1),"B"),N72+1) -> 1B | Q73: =CONCATENATE($D$71," ",R73) -> Scheibe: 2 | R73: =IF(RIGHT(R72,1)="A",CONCATENATE(LEFT(R72,LEN(R72)-1),"B"),R72+1) -> 2 | U73: =CONCATENATE($D$71," ",V73) -> Scheibe: 14 | V73: =IF(RIGHT(V72,1)="A",CONCATENATE(LEFT(V72,LEN(V72)-1),"B"),V72+1) -> 14
C74: =C72+1 -> 2 | D74: Scheibe: 2A | E74: =IF(RIGHT(E73,1)="B",CONCATENATE(LEFT(E73,LEN(E73)-1)+1,"A"),E73+1) -> 2A | H74: =H72+1 -> 2 | I74: Scheibe: 2A | J74: =IF(RIGHT(J73,1)="B",CONCATENATE(LEFT(J73,LEN(J73)-1)+1,"A"),J73+1) -> 2A | L74: =L72+1 -> 2 | M74: Scheibe: 2A | N74: =IF(RIGHT(N73,1)="B",CONCATENATE(LEFT(N73,LEN(N73)-1)+1,"A"),N73+1) -> 2A | P74: =P72+1 -> 2 | Q74: =CONCATENATE($D$71," ",R74) -> Scheibe: 3 | R74: =IF(RIGHT(R73,1)="B",CONCATENATE(LEFT(R73,LEN(R73)-1)+1,"A"),R73+1) -> 3 | T74: =T72+1 -> 2 | U74: =CONCATENATE($D$71," ",V74) -> Scheibe: 15 | V74: 15
D75: Scheibe: 2B | E75: =IF(RIGHT(E74,1)="A",CONCATENATE(LEFT(E74,LEN(E74)-1),"B"),E74+1) -> 2B | I75: Scheibe: 2B | J75: =IF(RIGHT(J74,1)="A",CONCATENATE(LEFT(J74,LEN(J74)-1),"B"),J74+1) -> 2B | M75: Scheibe: 2B | N75: =IF(RIGHT(N74,1)="A",CONCATENATE(LEFT(N74,LEN(N74)-1),"B"),N74+1) -> 2B | Q75: =CONCATENATE($D$71," ",R75) -> Scheibe: 4 | R75: =IF(RIGHT(R74,1)="A",CONCATENATE(LEFT(R74,LEN(R74)-1),"B"),R74+1) -> 4 | U75: =CONCATENATE($D$71," ",V75) -> Scheibe: 16 | V75: =IF(RIGHT(V74,1)="A",CONCATENATE(LEFT(V74,LEN(V74)-1),"B"),V74+1) -> 16
C76: =C74+1 -> 3 | D76: Scheibe: 3A | E76: =IF(RIGHT(E75,1)="B",CONCATENATE(LEFT(E75,LEN(E75)-1)+1,"A"),E75+1) -> 3A | H76: =H74+1 -> 3 | I76: Scheibe: 3A | J76: =IF(RIGHT(J75,1)="B",CONCATENATE(LEFT(J75,LEN(J75)-1)+1,"A"),J75+1) -> 3A | L76: =L74+1 -> 3 | M76: Scheibe: 3A | N76: =IF(RIGHT(N75,1)="B",CONCATENATE(LEFT(N75,LEN(N75)-1)+1,"A"),N75+1) -> 3A
D77: Scheibe: 3B | E77: =IF(RIGHT(E76,1)="A",CONCATENATE(LEFT(E76,LEN(E76)-1),"B"),E76+1) -> 3B | I77: Scheibe: 3B | J77: =IF(RIGHT(J76,1)="A",CONCATENATE(LEFT(J76,LEN(J76)-1),"B"),J76+1) -> 3B | M77: Scheibe: 3B | N77: =IF(RIGHT(N76,1)="A",CONCATENATE(LEFT(N76,LEN(N76)-1),"B"),N76+1) -> 3B
C78: =C76+1 -> 4 | D78: Scheibe: 4A | E78: =IF(RIGHT(E77,1)="B",CONCATENATE(LEFT(E77,LEN(E77)-1)+1,"A"),E77+1) -> 4A | H78: =H76+1 -> 4 | I78: Scheibe: 4A | J78: =IF(RIGHT(J77,1)="B",CONCATENATE(LEFT(J77,LEN(J77)-1)+1,"A"),J77+1) -> 4A | L78: =L76+1 -> 4 | M78: Scheibe: 4A | N78: =IF(RIGHT(N77,1)="B",CONCATENATE(LEFT(N77,LEN(N77)-1)+1,"A"),N77+1) -> 4A
D79: Scheibe: 4B | E79: =IF(RIGHT(E78,1)="A",CONCATENATE(LEFT(E78,LEN(E78)-1),"B"),E78+1) -> 4B | I79: Scheibe: 4B | J79: =IF(RIGHT(J78,1)="A",CONCATENATE(LEFT(J78,LEN(J78)-1),"B"),J78+1) -> 4B | M79: Scheibe: 4B | N79: =IF(RIGHT(N78,1)="A",CONCATENATE(LEFT(N78,LEN(N78)-1),"B"),N78+1) -> 4B
C80: =C78+1 -> 5 | D80: Scheibe: 5A | E80: =IF(RIGHT(E79,1)="B",CONCATENATE(LEFT(E79,LEN(E79)-1)+1,"A"),E79+1) -> 5A | H80: =H78+1 -> 5 | I80: Scheibe: 5A | J80: =IF(RIGHT(J79,1)="B",CONCATENATE(LEFT(J79,LEN(J79)-1)+1,"A"),J79+1) -> 5A
D81: Scheibe: 5B | E81: =IF(RIGHT(E80,1)="A",CONCATENATE(LEFT(E80,LEN(E80)-1),"B"),E80+1) -> 5B | I81: Scheibe: 5B | J81: =IF(RIGHT(J80,1)="A",CONCATENATE(LEFT(J80,LEN(J80)-1),"B"),J80+1) -> 5B
C82: =C80+1 -> 6 | D82: Scheibe: 6A | E82: =IF(RIGHT(E81,1)="B",CONCATENATE(LEFT(E81,LEN(E81)-1)+1,"A"),E81+1) -> 6A | H82: =H80+1 -> 6 | I82: Scheibe: 6A | J82: =IF(RIGHT(J81,1)="B",CONCATENATE(LEFT(J81,LEN(J81)-1)+1,"A"),J81+1) -> 6A
D83: Scheibe: 6B | E83: =IF(RIGHT(E82,1)="A",CONCATENATE(LEFT(E82,LEN(E82)-1),"B"),E82+1) -> 6B | I83: Scheibe: 6B | J83: =IF(RIGHT(J82,1)="A",CONCATENATE(LEFT(J82,LEN(J82)-1),"B"),J82+1) -> 6B
C84: =C82+1 -> 7 | D84: Scheibe: 7A | E84: =IF(RIGHT(E83,1)="B",CONCATENATE(LEFT(E83,LEN(E83)-1)+1,"A"),E83+1) -> 7A | H84: =H82+1 -> 7 | I84: Scheibe: 7A | J84: =IF(RIGHT(J83,1)="B",CONCATENATE(LEFT(J83,LEN(J83)-1)+1,"A"),J83+1) -> 7A
D85: Scheibe: 7B | E85: =IF(RIGHT(E84,1)="A",CONCATENATE(LEFT(E84,LEN(E84)-1),"B"),E84+1) -> 7B | I85: Scheibe: 7B | J85: =IF(RIGHT(J84,1)="A",CONCATENATE(LEFT(J84,LEN(J84)-1),"B"),J84+1) -> 7B
C86: =C84+1 -> 8 | D86: Scheibe: 8A | E86: =IF(RIGHT(E85,1)="B",CONCATENATE(LEFT(E85,LEN(E85)-1)+1,"A"),E85+1) -> 8A | H86: =H84+1 -> 8 | I86: Scheibe: 8A | J86: =IF(RIGHT(J85,1)="B",CONCATENATE(LEFT(J85,LEN(J85)-1)+1,"A"),J85+1) -> 8A
D87: Scheibe: 8B | E87: =IF(RIGHT(E86,1)="A",CONCATENATE(LEFT(E86,LEN(E86)-1),"B"),E86+1) -> 8B | I87: Scheibe: 8B | J87: =IF(RIGHT(J86,1)="A",CONCATENATE(LEFT(J86,LEN(J86)-1),"B"),J86+1) -> 8B
C88: =C86+1 -> 9 | D88: Scheibe: 9A | E88: =IF(RIGHT(E87,1)="B",CONCATENATE(LEFT(E87,LEN(E87)-1)+1,"A"),E87+1) -> 9A
D89: Scheibe: 9B | E89: =IF(RIGHT(E88,1)="A",CONCATENATE(LEFT(E88,LEN(E88)-1),"B"),E88+1) -> 9B
C90: =C88+1 -> 10 | D90: Scheibe: 10A | E90: =IF(RIGHT(E89,1)="B",CONCATENATE(LEFT(E89,LEN(E89)-1)+1,"A"),E89+1) -> 10A
D91: Scheibe: 10B | E91: =IF(RIGHT(E90,1)="A",CONCATENATE(LEFT(E90,LEN(E90)-1),"B"),E90+1) -> 10B
C92: =C90+1 -> 11 | D92: Scheibe: 11A | E92: =IF(RIGHT(E91,1)="B",CONCATENATE(LEFT(E91,LEN(E91)-1)+1,"A"),E91+1) -> 11A
D93: Scheibe: 11B | E93: =IF(RIGHT(E92,1)="A",CONCATENATE(LEFT(E92,LEN(E92)-1),"B"),E92+1) -> 11B
C94: =C92+1 -> 12 | D94: Scheibe: 12A | E94: =IF(RIGHT(E93,1)="B",CONCATENATE(LEFT(E93,LEN(E93)-1)+1,"A"),E93+1) -> 12A
D95: Scheibe: 12B | E95: =IF(RIGHT(E94,1)="A",CONCATENATE(LEFT(E94,LEN(E94)-1),"B"),E94+1) -> 12B
C96: =C94+1 -> 13 | D96: Scheibe: 13A | E96: =IF(RIGHT(E95,1)="B",CONCATENATE(LEFT(E95,LEN(E95)-1)+1,"A"),E95+1) -> 13A
D97: Scheibe: 13B | E97: =IF(RIGHT(E96,1)="A",CONCATENATE(LEFT(E96,LEN(E96)-1),"B"),E96+1) -> 13B
C98: =C96+1 -> 14 | D98: Scheibe: 14A | E98: =IF(RIGHT(E97,1)="B",CONCATENATE(LEFT(E97,LEN(E97)-1)+1,"A"),E97+1) -> 14A
D99: Scheibe: 14B | E99: =IF(RIGHT(E98,1)="A",CONCATENATE(LEFT(E98,LEN(E98)-1),"B"),E98+1) -> 14B
C100: =C98+1 -> 15 | D100: Scheibe: 15A | E100: =IF(RIGHT(E99,1)="B",CONCATENATE(LEFT(E99,LEN(E99)-1)+1,"A"),E99+1) -> 15A
D101: Scheibe: 15B | E101: =IF(RIGHT(E100,1)="A",CONCATENATE(LEFT(E100,LEN(E100)-1),"B"),E100+1) -> 15B
C102: =C100+1 -> 16 | D102: Scheibe: 16A | E102: =IF(RIGHT(E101,1)="B",CONCATENATE(LEFT(E101,LEN(E101)-1)+1,"A"),E101+1) -> 16A
D103: Scheibe: 16B | E103: =IF(RIGHT(E102,1)="A",CONCATENATE(LEFT(E102,LEN(E102)-1),"B"),E102+1) -> 16B

Sheet R32 (hidden)
J2: 1/16 Elimination | N2: ='R32_Baum'!$D$72 -> Scheibe: 1A | S2: 1/8 Elimination | W2: ='R32_Baum'!$I$72 -> Scheibe: 1A
K3: 1 | L3: 2 | M3: 3 | N3: Summe | O3: Punkte | P3: Ges. | T3: 1 | U3: 2 | V3: 3 | W3: Summe | X3: Punkte | Y3: Ges.
A4: =Select!$C$12 -> Demoturnier | J4: Satz 1 | S4: Satz 1
A5: Veranstaltung | J5: Satz 2 | S5: Satz 2
A6: =Select!$C$13 -> 1. April 2019 | J6: Satz 3 | S6: Satz 3
A7: Datum | J7: wenn erforderlich | S7: wenn erforderlich
J8: Satz 4 | S8: Satz 4
J9: wenn erforderlich | S9: wenn erforderlich
A10: ='R32_Baum'!$D$3 -> Url Günter | J10: Satz 5 | S10: Satz 5
A11: Name | J11: wenn erforderlich | S11: wenn erforderlich
A12: ='R32_Baum'!$F$3 -> BSC-Wolfspfeil Raab-Holzer | J12: Stechen | S12: Stechen
A13: Verein | O13: gewonnen | X13: gewonnen
A14: =Select!$C$18 -> Recurve Herren | J14: Schütze: | O14: verloren | S14: Schütze: | X14: verloren
A15: Bogenklasse
J16: Gegner: | L16: Name: | M16: ='R32_Baum'!D4 -> Klampfer Markus | S16: Gegner: | U16: Name:
L17: Unterschrift: | U17: Unterschrift:
A20: 1/4 Finale | E20: ='R32_Baum'!$M$72 -> Scheibe: 1A | J20: 1/2 Finale | N20: ='R32_Baum'!$Q$72 -> Scheibe: 1 | S20: 1./2. od. 3./4. Platz | W20: Scheibe:
B21: 1 | C21: 2 | D21: 3 | E21: Summe | F21: Punkte | G21: Ges. | K21: 1 | L21: 2 | M21: 3 | N21: Summe | O21: Punkte | P21: Ges. | T21: 1 | U21: 2 | V21: 3 | W21: Summe | X21: Punkte | Y21: Ges.
A22: Satz 1 | J22: Satz 1 | S22: Satz 1
A23: Satz 2 | J23: Satz 2 | S23: Satz 2
A24: Satz 3 | J24: Satz 3 | S24: Satz 3
A25: wenn erforderlich | J25: wenn erforderlich | S25: wenn erforderlich
A26: Satz 4 | J26: Satz 4 | S26: Satz 4
A27: wenn erforderlich | J27: wenn erforderlich | S27: wenn erforderlich
A28: Satz 5 | J28: Satz 5 | S28: Satz 5
A29: wenn erforderlich | J29: wenn erforderlich | S29: wenn erforderlich
A30: Stechen | J30: Stechen | S30: Stechen
F31: gewonnen | O31: gewonnen | X31: gewonnen
A32: Schütze: | F32: verloren | J32: Schütze: | O32: verloren | S32: Schütze: | X32: verloren
A34: Gegner: | C34: Name: | J34: Gegner: | L34: Name: | S34: Gegner: | U34: Name:
C35: Unterschrift: | L35: Unterschrift: | U35: Unterschrift:
J38: 1/16 Elimination | N38: ='R32_Baum'!$D$73 -> Scheibe: 1B | S38: 1/8 Elimination | W38: ='R32_Baum'!$I$72 -> Scheibe: 1A
K39: 1 | L39: 2 | M39: 3 | N39: Summe | O39: Punkte | P39: Ges. | T39: 1 | U39: 2 | V39: 3 | W39: Summe | X39: Punkte | Y39: Ges.
A40: =Select!$C$12 -> Demoturnier | J40: Satz 1 | S40: Satz 1
A41: Veranstaltung | J41: Satz 2 | S41: Satz 2
A42: =Select!$C$13 -> 1. April 2019 | J42: Satz 3 | S42: Satz 3
A43: Datum | J43: wenn erforderlich | S43: wenn erforderlich
J44: Satz 4 | S44: Satz 4
J45: wenn erforderlich | S45: wenn erforderlich
A46: ='R32_Baum'!$D$4 -> Klampfer Markus | J46: Satz 5 | S46: Satz 5
A47: Name | J47: wenn erforderlich | S47: wenn erforderlich
A48: ='R32_Baum'!$F$4 -> Club 3-D Austria Bogensport | J48: Stechen | S48: Stechen
A49: Verein | O49: gewonnen | X49: gewonnen
A50: =Select!$C$18 -> Recurve Herren | J50: Schütze: | O50: verloren | S50: Schütze: | X50: verloren
A51: Bogenklasse
J52: Gegner: | L52: Name: | M52: ='R32_Baum'!D3 -> Url Günter | S52: Gegner: | U52: Name:
L53: Unterschrift: | U53: Unterschrift:
A56: 1/4 Finale | E56: ='R32_Baum'!$M$72 -> Scheibe: 1A | J56: 1/2 Finale | N56: ='R32_Baum'!$Q$72 -> Scheibe: 1 | S56: 1./2. od. 3./4. Platz | W56: Scheibe:
B57: 1 | C57: 2 | D57: 3 | E57: Summe | F57: Punkte | G57: Ges. | K57: 1 | L57: 2 | M57: 3 | N57: Summe | O57: Punkte | P57: Ges. | T57: 1 | U57: 2 | V57: 3 | W57: Summe | X57: Punkte | Y57: Ges.
A58: Satz 1 | J58: Satz 1 | S58: Satz 1
A59: Satz 2 | J59: Satz 2 | S59: Satz 2
A60: Satz 3 | J60: Satz 3 | S60: Satz 3
A61: wenn erforderlich | J61: wenn erforderlich | S61: wenn erforderlich
A62: Satz 4 | J62: Satz 4 | S62: Satz 4
A63: wenn erforderlich | J63: wenn erforderlich | S63: wenn erforderlich
A64: Satz 5 | J64: Satz 5 | S64: Satz 5
A65: wenn erforderlich | J65: wenn erforderlich | S65: wenn erforderlich
A66: Stechen | J66: Stechen | S66: Stechen
F67: gewonnen | O67: gewonnen | X67: gewonnen
A68: Schütze: | F68: verloren | J68: Schütze: | O68: verloren | S68: Schütze: | X68: verloren
A70: Gegner: | C70: Name: | J70: Gegner: | L70: Name: | S70: Gegner: | U70: Name:
C71: Unterschrift: | L71: Unterschrift: | U71: Unterschrift:
J74: 1/16 Elimination | N74: ='R32_Baum'!$D$74 -> Scheibe: 2A | S74: 1/8 Elimination | W74: ='R32_Baum'!$I$73 -> Scheibe: 1B
K75: 1 | L75: 2 | M75: 3 | N75: Summe | O75: Punkte | P75: Ges. | T75: 1 | U75: 2 | V75: 3 | W75: Summe | X75: Punkte | Y75: Ges.
A76: =Select!$C$12 -> Demoturnier | J76: Satz 1 | S76: Satz 1
A77: Veranstaltung | J77: Satz 2 | S77: Satz 2
A78: =Select!$C$13 -> 1. April 2019 | J78: Satz 3 | S78: Satz 3
A79: Datum | J79: wenn erforderlich | S79: wenn erforderlich
J80: Satz 4 | S80: Satz 4
J81: wenn erforderlich | S81: wenn erforderlich
A82: ='R32_Baum'!$D$7 -> Schweiger Peter | J82: Satz 5 | S82: Satz 5
A83: Name | J83: wenn erforderlich | S83: wenn erforderlich
A84: ='R32_Baum'!$F$7 -> BSV-Blumental | J84: Stechen | S84: Stechen
A85: Verein | O85: gewonnen | X85: gewonnen
A86: =Select!$C$18 -> Recurve Herren | J86: Schütze: | O86: verloren | S86: Schütze: | X86: verloren
A87: Bogenklasse
J88: Gegner: | L88: Name: | M88: ='R32_Baum'!D8 -> Lackner Uwe | S88: Gegner: | U88: Name:
L89: Unterschrift: | U89: Unterschrift:
A92: 1/4 Finale | E92: ='R32_Baum'!$M$72 -> Scheibe: 1A | J92: 1/2 Finale | N92: ='R32_Baum'!$Q$72 -> Scheibe: 1 | S92: 1./2. od. 3./4. Platz | W92: Scheibe:
B93: 1 | C93: 2 | D93: 3 | E93: Summe | F93: Punkte | G93: Ges. | K93: 1 | L93: 2 | M93: 3 | N93: Summe | O93: Punkte | P93: Ges. | T93: 1 | U93: 2 | V93: 3 | W93: Summe | X93: Punkte | Y93: Ges.
A94: Satz 1 | J94: Satz 1 | S94: Satz 1
A95: Satz 2 | J95: Satz 2 | S95: Satz 2
A96: Satz 3 | J96: Satz 3 | S96: Satz 3
A97: wenn erforderlich | J97: wenn erforderlich | S97: wenn erforderlich
A98: Satz 4 | J98: Satz 4 | S98: Satz 4
A99: wenn erforderlich | J99: wenn erforderlich | S99: wenn erforderlich
A100: Satz 5 | J100: Satz 5 | S100: Satz 5
A101: wenn erforderlich | J101: wenn erforderlich | S101: wenn erforderlich
A102: Stechen | J102: Stechen | S102: Stechen
F103: gewonnen | O103: gewonnen | X103: gewonnen
A104: Schütze: | F104: verloren | J104: Schütze: | O104: verloren | S104: Schütze: | X104: verloren
A106: Gegner: | C106: Name: | J106: Gegner: | L106: Name: | S106: Gegner: | U106: Name:
C107: Unterschrift: | L107: Unterschrift: | U107: Unterschrift:
J110: 1/16 Elimination | N110: ='R32_Baum'!$D$75 -> Scheibe: 2B | S110: 1/8 Elimination | W110: ='R32_Baum'!$I$73 -> Scheibe: 1B
K111: 1 | L111: 2 | M111: 3 | N111: Summe | O111: Punkte | P111: Ges. | T111: 1 | U111: 2 | V111: 3 | W111: Summe | X111: Punkte | Y111: Ges.
A112: =Select!$C$12 -> Demoturnier | J112: Satz 1 | S112: Satz 1
A113: Veranstaltung | J113: Satz 2 | S113: Satz 2
A114: =Select!$C$13 -> 1. April 2019 | J114: Satz 3 | S114: Satz 3
A115: Datum | J115: wenn erforderlich | S115: wenn erforderlich
J116: Satz 4 | S116: Satz 4
J117: wenn erforderlich | S117: wenn erforderlich
A118: ='R32_Baum'!$D$8 -> Lackner Uwe | J118: Satz 5 | S118: Satz 5
A119: Name | J119: wenn erforderlich | S119: wenn erforderlich
A120: ='R32_Baum'!$F$8 -> LH Graz | J120: Stechen | S120: Stechen
A121: Verein | O121: gewonnen | X121: gewonnen
A122: =Select!$C$18 -> Recurve Herren | J122: Schütze: | O122: verloren | S122: Schütze: | X122: verloren
A123: Bogenklasse
J124: Gegner: | L124: Name: | M124: ='R32_Baum'!D7 -> Schweiger Peter | S124: Gegner: | U124: Name:
L125: Unterschrift: | U125: Unterschrift:
A128: 1/4 Finale | E128: ='R32_Baum'!$M$72 -> Scheibe: 1A | J128: 1/2 Finale | N128: ='R32_Baum'!$Q$72 -> Scheibe: 1 | S128: 1./2. od. 3./4. Platz | W128: Scheibe:
B129: 1 | C129: 2 | D129: 3 | E129: Summe | F129: Punkte | G129: Ges. | K129: 1 | L129: 2 | M129: 3 | N129: Summe | O129: Punkte | P129: Ges. | T129: 1 | U129: 2 | V129: 3 | W129: Summe | X129: Punkte | Y129: Ges.
A130: Satz 1 | J130: Satz 1 | S130: Satz 1
A131: Satz 2 | J131: Satz 2 | S131: Satz 2
A132: Satz 3 | J132: Satz 3 | S132: Satz 3
A133: wenn erforderlich | J133: wenn erforderlich | S133: wenn erforderlich
A134: Satz 4 | J134: Satz 4 | S134: Satz 4
A135: wenn erforderlich | J135: wenn erforderlich | S135: wenn erforderlich
A136: Satz 5 | J136: Satz 5 | S136: Satz 5
A137: wenn erforderlich | J137: wenn erforderlich | S137: wenn erforderlich
A138: Stechen | J138: Stechen | S138: Stechen
F139: gewonnen | O139: gewonnen | X139: gewonnen
A140: Schütze: | F140: verloren | J140: Schütze: | O140: verloren | S140: Schütze: | X140: verloren
A142: Gegner: | C142: Name: | J142: Gegner: | L142: Name: | S142: Gegner: | U142: Name:
C143: Unterschrift: | L143: Unterschrift: | U143: Unterschrift:
J146: 1/16 Elimination | N146: ='R32_Baum'!$D$76 -> Scheibe: 3A | S146: 1/8 Elimination | W146: ='R32_Baum'!$I$74 -> Scheibe: 2A
K147: 1 | L147: 2 | M147: 3 | N147: Summe | O147: Punkte | P147: Ges. | T147: 1 | U147: 2 | V147: 3 | W147: Summe | X147: Punkte | Y147: Ges.
A148: =Select!$C$12 -> Demoturnier | J148: Satz 1 | S148: Satz 1
A149: Veranstaltung | J149: Satz 2 | S149: Satz 2
A150: =Select!$C$13 -> 1. April 2019 | J150: Satz 3 | S150: Satz 3
A151: Datum | J151: wenn erforderlich | S151: wenn erforderlich
J152: Satz 4 | S152: Satz 4
J153: wenn erforderlich | S153: wenn erforderlich
A154: ='R32_Baum'!$D$11 -> Traxler Helmuth | J154: Satz 5 | S154: Satz 5
A155: Name | J155: wenn erforderlich | S155: wenn erforderlich
A156: ='R32_Baum'!$F$11 -> UBC Diana NÖ | J156: Stechen | S156: Stechen
A157: Verein | O157: gewonnen | X157: gewonnen
A158: =Select!$C$18 -> Recurve Herren | J158: Schütze: | O158: verloren | S158: Schütze: | X158: verloren
A159: Bogenklasse
J160: Gegner: | L160: Name: | M160: ='R32_Baum'!D12 -> Eidenberger Karl | S160: Gegner: | U160: Name:
L161: Unterschrift: | U161: Unterschrift:
A164: 1/4 Finale | E164: ='R32_Baum'!$M$73 -> Scheibe: 1B | J164: 1/2 Finale | N164: ='R32_Baum'!$Q$72 -> Scheibe: 1 | S164: 1./2. od. 3./4. Platz | W164: Scheibe:
B165: 1 | C165: 2 | D165: 3 | E165: Summe | F165: Punkte | G165: Ges. | K165: 1 | L165: 2 | M165: 3 | N165: Summe | O165: Punkte | P165: Ges. | T165: 1 | U165: 2 | V165: 3 | W165: Summe | X165: Punkte | Y165: Ges.
A166: Satz 1 | J166: Satz 1 | S166: Satz 1
A167: Satz 2 | J167: Satz 2 | S167: Satz 2
A168: Satz 3 | J168: Satz 3 | S168: Satz 3
A169: wenn erforderlich | J169: wenn erforderlich | S169: wenn erforderlich
A170: Satz 4 | J170: Satz 4 | S170: Satz 4
A171: wenn erforderlich | J171: wenn erforderlich | S171: wenn erforderlich
A172: Satz 5 | J172: Satz 5 | S172: Satz 5
A173: wenn erforderlich | J173: wenn erforderlich | S173: wenn erforderlich
A174: Stechen | J174: Stechen | S174: Stechen
F175: gewonnen | O175: gewonnen | X175: gewonnen
A176: Schütze: | F176: verloren | J176: Schütze: | O176: verloren | S176: Schütze: | X176: verloren
A178: Gegner: | C178: Name: | J178: Gegner: | L178: Name: | S178: Gegner: | U178: Name:
C179: Unterschrift: | L179: Unterschrift: | U179: Unterschrift:
J182: 1/16 Elimination | N182: ='R32_Baum'!$D$77 -> Scheibe: 3B | S182: 1/8 Elimination | W182: ='R32_Baum'!$I$74 -> Scheibe: 2A
K183: 1 | L183: 2 | M183: 3 | N183: Summe | O183: Punkte | P183: Ges. | T183: 1 | U183: 2 | V183: 3 | W183: Summe | X183: Punkte | Y183: Ges.
A184: =Select!$C$12 -> Demoturnier | J184: Satz 1 | S184: Satz 1
A185: Veranstaltung | J185: Satz 2 | S185: Satz 2
A186: =Select!$C$13 -> 1. April 2019 | J186: Satz 3 | S186: Satz 3
A187: Datum | J187: wenn erforderlich | S187: wenn erforderlich
J188: Satz 4 | S188: Satz 4
J189: wenn erforderlich | S189: wenn erforderlich
A190: ='R32_Baum'!$D$12 -> Eidenberger Karl | J190: Satz 5 | S190: Satz 5
A191: Name | J191: wenn erforderlich | S191: wenn erforderlich
A192: ='R32_Baum'!$F$12 -> PSV Burgenland - Sektion Bogen | J192: Stechen | S192: Stechen
A193: Verein | O193: gewonnen | X193: gewonnen
A194: =Select!$C$18 -> Recurve Herren | J194: Schütze: | O194: verloren | S194: Schütze: | X194: verloren
A195: Bogenklasse
J196: Gegner: | L196: Name: | M196: ='R32_Baum'!D11 -> Traxler Helmuth | S196: Gegner: | U196: Name:
L197: Unterschrift: | U197: Unterschrift:
A200: 1/4 Finale | E200: ='R32_Baum'!$M$73 -> Scheibe: 1B | J200: 1/2 Finale | N200: ='R32_Baum'!$Q$72 -> Scheibe: 1 | S200: 1./2. od. 3./4. Platz | W200: Scheibe:
B201: 1 | C201: 2 | D201: 3 | E201: Summe | F201: Punkte | G201: Ges. | K201: 1 | L201: 2 | M201: 3 | N201: Summe | O201: Punkte | P201: Ges. | T201: 1 | U201: 2 | V201: 3 | W201: Summe | X201: Punkte | Y201: Ges.
A202: Satz 1 | J202: Satz 1 | S202: Satz 1
A203: Satz 2 | J203: Satz 2 | S203: Satz 2
A204: Satz 3 | J204: Satz 3 | S204: Satz 3
A205: wenn erforderlich | J205: wenn erforderlich | S205: wenn erforderlich
A206: Satz 4 | J206: Satz 4 | S206: Satz 4
A207: wenn erforderlich | J207: wenn erforderlich | S207: wenn erforderlich
A208: Satz 5 | J208: Satz 5 | S208: Satz 5
A209: wenn erforderlich | J209: wenn erforderlich | S209: wenn erforderlich
A210: Stechen | J210: Stechen | S210: Stechen
F211: gewonnen | O211: gewonnen | X211: gewonnen
A212: Schütze: | F212: verloren | J212: Schütze: | O212: verloren | S212: Schütze: | X212: verloren
A214: Gegner: | C214: Name: | J214: Gegner: | L214: Name: | S214: Gegner: | U214: Name:
C215: Unterschrift: | L215: Unterschrift: | U215: Unterschrift:
J218: 1/16 Elimination | N218: ='R32_Baum'!$D$78 -> Scheibe: 4A | S218: 1/8 Elimination | W218: ='R32_Baum'!$I$75 -> Scheibe: 2B
K219: 1 | L219: 2 | M219: 3 | N219: Summe | O219: Punkte | P219: Ges. | T219: 1 | U219: 2 | V219: 3 | W219: Summe | X219: Punkte | Y219: Ges.
A220: =Select!$C$12 -> Demoturnier | J220: Satz 1 | S220: Satz 1
A221: Veranstaltung | J221: Satz 2 | S221: Satz 2
A222: =Select!$C$13 -> 1. April 2019 | J222: Satz 3 | S222: Satz 3
A223: Datum | J223: wenn erforderlich | S223: wenn erforderlich
J224: Satz 4 | S224: Satz 4
J225: wenn erforderlich | S225: wenn erforderlich
A226: ='R32_Baum'!$D$15 -> Wallner Ewald | J226: Satz 5 | S226: Satz 5
A227: Name | J227: wenn erforderlich | S227: wenn erforderlich
A228: ='R32_Baum'!$F$15 -> BSC Sölkpass | J228: Stechen | S228: Stechen
A229: Verein | O229: gewonnen | X229: gewonnen
A230: =Select!$C$18 -> Recurve Herren | J230: Schütze: | O230: verloren | S230: Schütze: | X230: verloren
A231: Bogenklasse
... 792 more rows

Sheet R32_Ergebnis (hidden)
A2: =Select!$C$12 -> Demoturnier | E2: =Select!C14 -> WA-Outdoor
A3: =Select!C13 -> 1. April 2019
A5: Ergebnisliste
A7: =Select!C18 -> Recurve Herren | L7: !!!!!!!!!!!!!!!!!!!!!!!!!! SORTIERBEREICH - NICHT ENTFERNEN !!!!!!!!!!!!!!!!!!!!!!!!!!
A9: Pl. | C9: Name | D9: Verein | E9: Quali. | F9: 1/16 | G9: 1/8 | H9: 1/4 | I9: 1/2 | J9: Finale | L9: SortName | M9: SortVerein | N9: SortQuali | O9: Sort 1/16 | P9: Sort1/8 | Q9: Sort1/4 | R9: Sort1/2 | S9: SortFinale
A10: =IF(C10<>"",1,"") ->  | L10: ='R32_Baum'!U7 ->  | M10: =VLOOKUP(L10,R_Quali!$C$10:$H$100,2,FALSE) ->  | N10: =VLOOKUP(L10,R_Quali!$C$10:$H$100,6,FALSE) ->  | O10: =VLOOKUP(L10,'R32_Baum'!$D$3:$G$64,4,FALSE) ->  | P10: =VLOOKUP(L10,'R32_Baum'!$I$5:$K$62,3,FALSE) -> 0 | Q10: =VLOOKUP(L10,'R32_Baum'!$M$9:$O$58,3,FALSE) -> 0 | R10: =VLOOKUP(L10,'R32_Baum'!$Q$17:$S$50,3,FALSE) -> 0 | S10: =VLOOKUP(L10,'R32_Baum'!$U$24:$W$42,3,FALSE) -> 0
A11: =IF(C11<>"",A10+1,"") ->  | L11: ='R32_Baum'!U9 ->  | M11: =VLOOKUP(L11,R_Quali!$C$10:$H$100,2,FALSE) ->  | N11: =VLOOKUP(L11,R_Quali!$C$10:$H$100,6,FALSE) ->  | O11: =VLOOKUP(L11,'R32_Baum'!$D$3:$G$64,4,FALSE) ->  | P11: =VLOOKUP(L11,'R32_Baum'!$I$5:$K$62,3,FALSE) -> 0 | Q11: =VLOOKUP(L11,'R32_Baum'!$M$9:$O$58,3,FALSE) -> 0 | R11: =VLOOKUP(L11,'R32_Baum'!$Q$17:$S$50,3,FALSE) -> 0 | S11: =VLOOKUP(L11,'R32_Baum'!$U$24:$W$42,3,FALSE) -> 0
L12: ='R32_Baum'!U11 ->  | M12: =VLOOKUP(L12,R_Quali!$C$10:$H$100,2,FALSE) ->  | N12: =VLOOKUP(L12,R_Quali!$C$10:$H$100,6,FALSE) ->  | O12: =VLOOKUP(L12,'R32_Baum'!$D$3:$G$64,4,FALSE) ->  | P12: =VLOOKUP(L12,'R32_Baum'!$I$5:$K$62,3,FALSE) -> 0 | Q12: =VLOOKUP(L12,'R32_Baum'!$M$9:$O$58,3,FALSE) -> 0 | R12: =VLOOKUP(L12,'R32_Baum'!$Q$17:$S$50,3,FALSE) -> 0 | S12: =VLOOKUP(L12,'R32_Baum'!$U$24:$W$42,3,FALSE) -> 0
L13: =IF('R32_Baum'!U11='R32_Baum'!U41,'R32_Baum'!U42,'R32_Baum'!U41) ->  | M13: =VLOOKUP(L13,R_Quali!$C$10:$H$100,2,FALSE) ->  | N13: =VLOOKUP(L13,R_Quali!$C$10:$H$100,6,FALSE) ->  | O13: =VLOOKUP(L13,'R32_Baum'!$D$3:$G$64,4,FALSE) ->  | P13: =VLOOKUP(L13,'R32_Baum'!$I$5:$K$62,3,FALSE) -> 0 | Q13: =VLOOKUP(L13,'R32_Baum'!$M$9:$O$58,3,FALSE) -> 0 | R13: =VLOOKUP(L13,'R32_Baum'!$Q$17:$S$50,3,FALSE) -> 0 | S13: =VLOOKUP(L13,'R32_Baum'!$U$24:$W$42,3,FALSE) -> 0
L14: =IF('R32_Baum'!Q17='R32_Baum'!M9,'R32_Baum'!M10,'R32_Baum'!M9) ->  | M14: =VLOOKUP(L14,R_Quali!$C$10:$H$100,2,FALSE) ->  | N14: =VLOOKUP(L14,R_Quali!$C$10:$H$100,6,FALSE) ->  | O14: =VLOOKUP(L14,'R32_Baum'!$D$3:$G$64,4,FALSE) ->  | P14: =VLOOKUP(L14,'R32_Baum'!$I$5:$K$62,3,FALSE) -> 0 | Q14: =VLOOKUP(L14,'R32_Baum'!$M$9:$O$58,3,FALSE) -> 0
L15: =IF('R32_Baum'!Q18='R32_Baum'!M25,'R32_Baum'!M26,'R32_Baum'!M25) ->  | M15: =VLOOKUP(L15,R_Quali!$C$10:$H$100,2,FALSE) ->  | N15: =VLOOKUP(L15,R_Quali!$C$10:$H$100,6,FALSE) ->  | O15: =VLOOKUP(L15,'R32_Baum'!$D$3:$G$64,4,FALSE) ->  | P15: =VLOOKUP(L15,'R32_Baum'!$I$5:$K$62,3,FALSE) -> 0 | Q15: =VLOOKUP(L15,'R32_Baum'!$M$9:$O$58,3,FALSE) -> 0
L16: =IF('R32_Baum'!Q49='R32_Baum'!M41,'R32_Baum'!M42,'R32_Baum'!M41) ->  | M16: =VLOOKUP(L16,R_Quali!$C$10:$H$100,2,FALSE) ->  | N16: =VLOOKUP(L16,R_Quali!$C$10:$H$100,6,FALSE) ->  | O16: =VLOOKUP(L16,'R32_Baum'!$D$3:$G$64,4,FALSE) ->  | P16: =VLOOKUP(L16,'R32_Baum'!$I$5:$K$62,3,FALSE) -> 0 | Q16: =VLOOKUP(L16,'R32_Baum'!$M$9:$O$58,3,FALSE) -> 0
L17: =IF('R32_Baum'!Q50='R32_Baum'!M57,'R32_Baum'!M58,'R32_Baum'!M57) ->  | M17: =VLOOKUP(L17,R_Quali!$C$10:$H$100,2,FALSE) ->  | N17: =VLOOKUP(L17,R_Quali!$C$10:$H$100,6,FALSE) ->  | O17: =VLOOKUP(L17,'R32_Baum'!$D$3:$G$64,4,FALSE) ->  | P17: =VLOOKUP(L17,'R32_Baum'!$I$5:$K$62,3,FALSE) -> 0 | Q17: =VLOOKUP(L17,'R32_Baum'!$M$9:$O$58,3,FALSE) -> 0
L18: =IF('R32_Baum'!M9='R32_Baum'!I5,'R32_Baum'!I6,'R32_Baum'!I5) ->  | M18: =VLOOKUP(L18,R_Quali!$C$10:$H$100,2,FALSE) ->  | N18: =VLOOKUP(L18,R_Quali!$C$10:$H$100,6,FALSE) ->  | O18: =VLOOKUP(L18,'R32_Baum'!$D$3:$G$64,4,FALSE) ->  | P18: =VLOOKUP(L18,'R32_Baum'!$I$5:$K$62,3,FALSE) -> 0
L19: =IF('R32_Baum'!M10='R32_Baum'!I13,'R32_Baum'!I14,'R32_Baum'!I13) ->  | M19: =VLOOKUP(L19,R_Quali!$C$10:$H$100,2,FALSE) ->  | N19: =VLOOKUP(L19,R_Quali!$C$10:$H$100,6,FALSE) ->  | O19: =VLOOKUP(L19,'R32_Baum'!$D$3:$G$64,4,FALSE) ->  | P19: =VLOOKUP(L19,'R32_Baum'!$I$5:$K$62,3,FALSE) -> 0
L20: =IF('R32_Baum'!M25='R32_Baum'!I21,'R32_Baum'!I22,'R32_Baum'!I21) ->  | M20: =VLOOKUP(L20,R_Quali!$C$10:$H$100,2,FALSE) ->  | N20: =VLOOKUP(L20,R_Quali!$C$10:$H$100,6,FALSE) ->  | O20: =VLOOKUP(L20,'R32_Baum'!$D$3:$G$64,4,FALSE) ->  | P20: =VLOOKUP(L20,'R32_Baum'!$I$5:$K$62,3,FALSE) -> 0
L21: =IF('R32_Baum'!M26='R32_Baum'!I29,'R32_Baum'!I30,'R32_Baum'!I29) ->  | M21: =VLOOKUP(L21,R_Quali!$C$10:$H$100,2,FALSE) ->  | N21: =VLOOKUP(L21,R_Quali!$C$10:$H$100,6,FALSE) ->  | O21: =VLOOKUP(L21,'R32_Baum'!$D$3:$G$64,4,FALSE) ->  | P21: =VLOOKUP(L21,'R32_Baum'!$I$5:$K$62,3,FALSE) -> 0
L22: =IF('R32_Baum'!M41='R32_Baum'!I37,'R32_Baum'!I38,'R32_Baum'!I37) ->  | M22: =VLOOKUP(L22,R_Quali!$C$10:$H$100,2,FALSE) ->  | N22: =VLOOKUP(L22,R_Quali!$C$10:$H$100,6,FALSE) ->  | O22: =VLOOKUP(L22,'R32_Baum'!$D$3:$G$64,4,FALSE) ->  | P22: =VLOOKUP(L22,'R32_Baum'!$I$5:$K$62,3,FALSE) -> 0
L23: =IF('R32_Baum'!M42='R32_Baum'!I45,'R32_Baum'!I46,'R32_Baum'!I45) ->  | M23: =VLOOKUP(L23,R_Quali!$C$10:$H$100,2,FALSE) ->  | N23: =VLOOKUP(L23,R_Quali!$C$10:$H$100,6,FALSE) ->  | O23: =VLOOKUP(L23,'R32_Baum'!$D$3:$G$64,4,FALSE) ->  | P23: =VLOOKUP(L23,'R32_Baum'!$I$5:$K$62,3,FALSE) -> 0
L24: =IF('R32_Baum'!M57='R32_Baum'!I53,'R32_Baum'!I54,'R32_Baum'!I53) ->  | M24: =VLOOKUP(L24,R_Quali!$C$10:$H$100,2,FALSE) ->  | N24: =VLOOKUP(L24,R_Quali!$C$10:$H$100,6,FALSE) ->  | O24: =VLOOKUP(L24,'R32_Baum'!$D$3:$G$64,4,FALSE) ->  | P24: =VLOOKUP(L24,'R32_Baum'!$I$5:$K$62,3,FALSE) -> 0
L25: =IF('R32_Baum'!M58='R32_Baum'!I61,'R32_Baum'!I62,'R32_Baum'!I61) ->  | M25: =VLOOKUP(L25,R_Quali!$C$10:$H$100,2,FALSE) ->  | N25: =VLOOKUP(L25,R_Quali!$C$10:$H$100,6,FALSE) ->  | O25: =VLOOKUP(L25,'R32_Baum'!$D$3:$G$64,4,FALSE) ->  | P25: =VLOOKUP(L25,'R32_Baum'!$I$5:$K$62,3,FALSE) -> 0
L26: =IF('R32_Baum'!I6='R32_Baum'!D7,'R32_Baum'!D8,'R32_Baum'!D7) -> Schweiger Peter | M26: =VLOOKUP(L26,R_Quali!$C$10:$H$100,2,FALSE) -> BSV-Blumental | N26: =VLOOKUP(L26,R_Quali!$C$10:$H$100,6,FALSE) -> 516 | O26: =VLOOKUP(L26,'R32_Baum'!$D$3:$G$64,4,FALSE) -> 0
L27: =IF('R32_Baum'!I13='R32_Baum'!D11,'R32_Baum'!D12,'R32_Baum'!D11) -> Traxler Helmuth | M27: =VLOOKUP(L27,R_Quali!$C$10:$H$100,2,FALSE) -> UBC Diana NÖ | N27: =VLOOKUP(L27,R_Quali!$C$10:$H$100,6,FALSE) -> 524 | O27: =VLOOKUP(L27,'R32_Baum'!$D$3:$G$64,4,FALSE) -> 0
L28: =IF('R32_Baum'!I14='R32_Baum'!D15,'R32_Baum'!D16,'R32_Baum'!D15) -> Wallner Ewald | M28: =VLOOKUP(L28,R_Quali!$C$10:$H$100,2,FALSE) -> BSC Sölkpass | N28: =VLOOKUP(L28,R_Quali!$C$10:$H$100,6,FALSE) -> 508 | O28: =VLOOKUP(L28,'R32_Baum'!$D$3:$G$64,4,FALSE) -> 0
L29: =IF('R32_Baum'!I21='R32_Baum'!D19,'R32_Baum'!D20,'R32_Baum'!D19) -> Höllwirth Andreas | M29: =VLOOKUP(L29,R_Quali!$C$10:$H$100,2,FALSE) -> ASKÖ-Luftenberg | N29: =VLOOKUP(L29,R_Quali!$C$10:$H$100,6,FALSE) -> 528 | O29: =VLOOKUP(L29,'R32_Baum'!$D$3:$G$64,4,FALSE) -> 0
L30: =IF('R32_Baum'!I22='R32_Baum'!D23,'R32_Baum'!D24,'R32_Baum'!D23) -> Pupetschek Manfred | M30: =VLOOKUP(L30,R_Quali!$C$10:$H$100,2,FALSE) -> IHG Sektion Bogen | N30: =VLOOKUP(L30,R_Quali!$C$10:$H$100,6,FALSE) -> 512 | O30: =VLOOKUP(L30,'R32_Baum'!$D$3:$G$64,4,FALSE) -> 0
L31: =IF('R32_Baum'!I29='R32_Baum'!D27,'R32_Baum'!D28,'R32_Baum'!D27) -> Jandl Ernst | M31: =VLOOKUP(L31,R_Quali!$C$10:$H$100,2,FALSE) -> PSV Burgenland - Sektion Bogen | N31: =VLOOKUP(L31,R_Quali!$C$10:$H$100,6,FALSE) -> 520 | O31: =VLOOKUP(L31,'R32_Baum'!$D$3:$G$64,4,FALSE) -> 0
L32: =IF('R32_Baum'!I38='R32_Baum'!D39,'R32_Baum'!D40,'R32_Baum'!D39) -> Winkler Klaus | M32: =VLOOKUP(L32,R_Quali!$C$10:$H$100,2,FALSE) -> BSC Enzenreith | N32: =VLOOKUP(L32,R_Quali!$C$10:$H$100,6,FALSE) -> 514 | O32: =VLOOKUP(L32,'R32_Baum'!$D$3:$G$64,4,FALSE) -> 0
L33: =IF('R32_Baum'!I45='R32_Baum'!D43,'R32_Baum'!D44,'R32_Baum'!D43) -> Reicher Ernst | M33: =VLOOKUP(L33,R_Quali!$C$10:$H$100,2,FALSE) -> BSC Wörthersee | N33: =VLOOKUP(L33,R_Quali!$C$10:$H$100,6,FALSE) -> 522 | O33: =VLOOKUP(L33,'R32_Baum'!$D$3:$G$64,4,FALSE) -> 0
A34: =IF(C34<>"",A33+1,"") ->  | L34: =IF('R32_Baum'!I46='R32_Baum'!D47,'R32_Baum'!D48,'R32_Baum'!D47) -> Radauer Helmuth | M34: =VLOOKUP(L34,R_Quali!$C$10:$H$100,2,FALSE) -> BSC Ennstal | N34: =VLOOKUP(L34,R_Quali!$C$10:$H$100,6,FALSE) -> 506 | O34: =VLOOKUP(L34,'R32_Baum'!$D$3:$G$64,4,FALSE) -> 0
A35: =IF(C35<>"",A34+1,"") ->  | L35: =IF('R32_Baum'!I53='R32_Baum'!D51,'R32_Baum'!D52,'R32_Baum'!D51) -> Bucher Martin | M35: =VLOOKUP(L35,R_Quali!$C$10:$H$100,2,FALSE) -> LH Graz | N35: =VLOOKUP(L35,R_Quali!$C$10:$H$100,6,FALSE) -> 526 | O35: =VLOOKUP(L35,'R32_Baum'!$D$3:$G$64,4,FALSE) -> 0
A36: =IF(C36<>"",A35+1,"") ->  | L36: =IF('R32_Baum'!I54='R32_Baum'!D55,'R32_Baum'!D56,'R32_Baum'!D55) -> Kutmon Wilhelm | M36: =VLOOKUP(L36,R_Quali!$C$10:$H$100,2,FALSE) -> BS Ligist - Archery Freaks | N36: =VLOOKUP(L36,R_Quali!$C$10:$H$100,6,FALSE) -> 510 | O36: =VLOOKUP(L36,'R32_Baum'!$D$3:$G$64,4,FALSE) -> 0
A37: =IF(C37<>"",A36+1,"") ->  | L37: =IF('R32_Baum'!I61='R32_Baum'!D59,'R32_Baum'!D60,'R32_Baum'!D59) -> Markl Mario | M37: =VLOOKUP(L37,R_Quali!$C$10:$H$100,2,FALSE) -> BSV Dakota | N37: =VLOOKUP(L37,R_Quali!$C$10:$H$100,6,FALSE) -> 518 | O37: =VLOOKUP(L37,'R32_Baum'!$D$3:$G$64,4,FALSE) -> 0
A38: =IF(C38<>"",A37+1,"") ->  | L38: =IF('R32_Baum'!I5='R32_Baum'!D3,'R32_Baum'!D4,'R32_Baum'!D3) -> Url Günter | M38: =VLOOKUP(L38,R_Quali!$C$10:$H$100,2,FALSE) -> BSC-Wolfspfeil Raab-Holzer | N38: =VLOOKUP(L38,R_Quali!$C$10:$H$100,6,FALSE) -> 532 | O38: =VLOOKUP(L38,'R32_Baum'!$D$3:$G$64,4,FALSE) -> 0
L39: =IF('R32_Baum'!I30='R32_Baum'!D31,'R32_Baum'!D32,'R32_Baum'!D31) -> Simmer Gerhard | M39: =VLOOKUP(L39,R_Quali!$C$10:$H$100,2,FALSE) -> Union Bogensport Haag | N39: =VLOOKUP(L39,R_Quali!$C$10:$H$100,6,FALSE) -> 504 | O39: =VLOOKUP(L39,'R32_Baum'!$D$3:$G$64,4,FALSE) -> 0
L40: =IF('R32_Baum'!I37='R32_Baum'!D35,'R32_Baum'!D36,'R32_Baum'!D35) -> Strohmaier Joachim | M40: =VLOOKUP(L40,R_Quali!$C$10:$H$100,2,FALSE) -> BSC Kumberg | N40: =VLOOKUP(L40,R_Quali!$C$10:$H$100,6,FALSE) -> 530 | O40: =VLOOKUP(L40,'R32_Baum'!$D$3:$G$64,4,FALSE) -> 0
L41: =IF('R32_Baum'!I62='R32_Baum'!D63,'R32_Baum'!D64,'R32_Baum'!D63) -> Klemke Harald | M41: =VLOOKUP(L41,R_Quali!$C$10:$H$100,2,FALSE) -> BSV Mattersburg | N41: =VLOOKUP(L41,R_Quali!$C$10:$H$100,6,FALSE) -> 502 | O41: =VLOOKUP(L41,'R32_Baum'!$D$3:$G$64,4,FALSE) -> 0

Sheet R28_Baum (hidden)
B2: Schb. | C2: Qual. | D2: Name | E2: Land | F2: Verein | G2: Erg. | N2: =Select!C12 -> Demoturnier
A3: 1 | C3: =R_Quali!H10 -> 532 | D3: =R_Quali!C10 -> Url Günter | E3: =R_Quali!E10 -> ST | F3: =R_Quali!D10 -> BSC-Wolfspfeil Raab-Holzer | G3: *
H4: Schb | I4: Name | J4: Land | K4: Erg. | N4: =Select!C13 -> 1. April 2019
H5: =J72 -> 1A | I5: =IF($G3>$G4,$D3,IF($G4>$G3,$D4,IF(RIGHT($G3,1)="*",$D3,IF(RIGHT($G4,1)="*",$D4,"")))) -> Url Günter | J5: =IF($G3>$G4,$E3,IF($G4>$G3,$E4,IF(RIGHT($G3,1)="*",$E3,IF(RIGHT($G4,1)="*",$E4,"")))) -> ST
H6: =J73 -> 1B | I6: =IF($G7>$G8,$D7,IF($G8>$G7,$D8,IF(RIGHT($G7,1)="*",$D7,IF(RIGHT($G8,1)="*",$D8,"")))) ->  | J6: =IF($G7>$G8,$E7,IF($G8>$G7,$E8,IF(RIGHT($G7,1)="*",$E7,IF(RIGHT($G8,1)="*",$E8,"")))) -> 
A7: 17 | B7: =E72 -> 1A | C7: =R_Quali!H26 -> 516 | D7: =R_Quali!C26 -> Schweiger Peter | E7: =R_Quali!E26 -> ST | F7: =R_Quali!D26 -> BSV-Blumental | T7: 1. | U7: =IF($W$24>$W$25,$U$24,IF($W$25>$W$24,$U$25,IF(RIGHT($W$24,1)="*",$U$24,IF(RIGHT($W$25,1)="*",$U$25,"")))) ->  | W7: =IF($W$24>$W$25,$V$24,IF($W$25>$W$24,$V$25,IF(RIGHT($W$24,1)="*",$V$24,IF(RIGHT($W$25,1)="*",$V$25,"")))) -> 
A8: 16 | B8: =E73 -> 1B | C8: =R_Quali!H25 -> 517 | D8: =R_Quali!C25 -> Lackner Uwe | E8: =R_Quali!E25 -> ST | F8: =R_Quali!D25 -> LH Graz | L8: Schb | M8: Name | N8: Land | O8: Erg.
L9: =N72 -> 1 | M9: =IF($K5>$K6,$I5,IF($K6>$K5,$I6,IF(RIGHT($K5,1)="*",$I5,IF(RIGHT($K6,1)="*",$I6,"")))) ->  | N9: =IF($K5>$K6,$J5,IF($K6>$K5,$J6,IF(RIGHT($K5,1)="*",$J5,IF(RIGHT($K6,1)="*",$J6,"")))) ->  | T9: 2. | U9: =IF($W$24<$W$25,$U$24,IF($W$25<$W$24,$U$25,IF(RIGHT($W$25,1)="*",$U$24,IF(RIGHT($W$24,1)="*",$U$25,"")))) ->  | W9: =IF($W$24<$W$25,$V$24,IF($W$25<$W$24,$V$25,IF(RIGHT($W$25,1)="*",$V$24,IF(RIGHT($W$24,1)="*",$V$25,"")))) -> 
L10: =N73 -> 2 | M10: =IF($K13>$K14,$I13,IF($K14>$K13,$I14,IF(RIGHT($K13,1)="*",$I13,IF(RIGHT($K14,1)="*",$I14,"")))) ->  | N10: =IF($K13>$K14,$J13,IF($K14>$K13,$J14,IF(RIGHT($K13,1)="*",$J13,IF(RIGHT($K14,1)="*",$J14,"")))) -> 
A11: 9 | B11: =E74 -> 2A | C11: =R_Quali!H18 -> 524 | D11: =R_Quali!C18 -> Traxler Helmuth | E11: =R_Quali!E18 -> NÖ | F11: =R_Quali!D18 -> UBC Diana NÖ | T11: 3. | U11: =IF($W$41>$W$42,$U$41,IF($W$42>$W$41,$U$42,IF(RIGHT($W$41,1)="*",$U$41,IF(RIGHT($W$42,1)="*",$U$42,"")))) ->  | W11: =IF($W$41>$W$42,$V$41,IF($W$42>$W$41,$V$42,IF(RIGHT($W$41,1)="*",$V$41,IF(RIGHT($W$42,1)="*",$V$42,"")))) -> 
A12: 24 | B12: =E75 -> 2B | C12: =R_Quali!H33 -> 509 | D12: =R_Quali!C33 -> Eidenberger Karl | E12: =R_Quali!E33 -> B | F12: =R_Quali!D33 -> PSV Burgenland - Sektion Bogen
H13: =J74 -> 2A | I13: =IF($G11>$G12,$D11,IF($G12>$G11,$D12,IF(RIGHT($G11,1)="*",$D11,IF(RIGHT($G12,1)="*",$D12,"")))) ->  | J13: =IF($G11>$G12,$E11,IF($G12>$G11,$E12,IF(RIGHT($G11,1)="*",$E11,IF(RIGHT($G12,1)="*",$E12,"")))) -> 
H14: =J75 -> 2B | I14: =IF($G15>$G16,$D15,IF($G16>$G15,$D16,IF(RIGHT($G15,1)="*",$D15,IF(RIGHT($G16,1)="*",$D16,"")))) ->  | J14: =IF($G15>$G16,$E15,IF($G16>$G15,$E16,IF(RIGHT($G15,1)="*",$E15,IF(RIGHT($G16,1)="*",$E16,"")))) -> 
A15: 25 | B15: =E76 -> 3A | C15: =R_Quali!H34 -> 508 | D15: =R_Quali!C34 -> Wallner Ewald | E15: =R_Quali!E34 -> ST | F15: =R_Quali!D34 -> BSC Sölkpass
A16: 8 | B16: =E77 -> 3B | C16: =R_Quali!H17 -> 525 | D16: =R_Quali!C17 -> Robl Ronald | E16: =R_Quali!E17 -> NÖ | F16: =R_Quali!D17 -> Austrian Free Archer | P16: Schb | Q16: Name | R16: Land | S16: Erg.
P17: =R72 -> 1 | Q17: =IF($O9>$O10,$M9,IF($O10>$O9,$M10,IF(RIGHT($O9,1)="*",$M9,IF(RIGHT($O10,1)="*",$M10,"")))) ->  | R17: =IF($O9>$O10,$N9,IF($O10>$O9,$N10,IF(RIGHT($O9,1)="*",$N9,IF(RIGHT($O10,1)="*",$N10,"")))) -> 
P18: =R73 -> 2 | Q18: =IF($O25>$O26,$M25,IF($O26>$O25,$M26,IF(RIGHT($O25,1)="*",$M25,IF(RIGHT($O26,1)="*",$M26,"")))) ->  | R18: =IF($O25>$O26,$N25,IF($O26>$O25,$N26,IF(RIGHT($O25,1)="*",$N25,IF(RIGHT($O26,1)="*",$N26,"")))) -> 
A19: 5 | B19: =E78 -> 4A | C19: =R_Quali!H14 -> 528 | D19: =R_Quali!C14 -> Höllwirth Andreas | E19: =R_Quali!E14 -> OÖ | F19: =R_Quali!D14 -> ASKÖ-Luftenberg
A20: 28 | B20: =E79 -> 4B | C20: =R_Quali!H37 -> 505 | D20: =R_Quali!C37 -> Eberle Roland | E20: =R_Quali!E37 -> NÖ | F20: =R_Quali!D37 -> Austrian Free Archer
H21: =J76 -> 3A | I21: =IF($G19>$G20,$D19,IF($G20>$G19,$D20,IF(RIGHT($G19,1)="*",$D19,IF(RIGHT($G20,1)="*",$D20,"")))) ->  | J21: =IF($G19>$G20,$E19,IF($G20>$G19,$E20,IF(RIGHT($G19,1)="*",$E19,IF(RIGHT($G20,1)="*",$E20,"")))) -> 
H22: =J77 -> 3B | I22: =IF($G23>$G24,$D23,IF($G24>$G23,$D24,IF(RIGHT($G23,1)="*",$D23,IF(RIGHT($G24,1)="*",$D24,"")))) ->  | J22: =IF($G23>$G24,$E23,IF($G24>$G23,$E24,IF(RIGHT($G23,1)="*",$E23,IF(RIGHT($G24,1)="*",$E24,"")))) -> 
A23: 21 | B23: =E80 -> 5A | C23: =R_Quali!H30 -> 512 | D23: =R_Quali!C30 -> Pupetschek Manfred | E23: =R_Quali!E30 -> T | F23: =R_Quali!D30 -> IHG Sektion Bogen | Q23: Finale | T23: Schb | U23: Name | V23: Land | W23: Erg.
A24: 12 | B24: =E81 -> 5B | C24: =R_Quali!H21 -> 521 | D24: =R_Quali!C21 -> Bauer Helfried | E24: =R_Quali!E21 -> NÖ | F24: =R_Quali!D21 -> Austrian Free Archer | T24: =V72 -> 1 | U24: =IF($S17>$S18,$Q17,IF($S18>$S17,$Q18,IF(RIGHT($S17,1)="*",$Q17,IF(RIGHT($S18,1)="*",$Q18,"")))) ->  | V24: =IF($S17>$S18,$R17,IF($S18>$S17,$R18,IF(RIGHT($S17,1)="*",$R17,IF(RIGHT($S18,1)="*",$R18,"")))) ->  | AA24: =IF($S17>$S18,$Q17,IF($S18>$S17,$Q18,IF(RIGHT($S17,1)="*",$Q17,IF(RIGHT($S18,1)="*",$Q18,"")))) ->  | AB24: =IF($S17>$S18,$R17,IF($S18>$S17,$R18,IF(RIGHT($S17,1)="*",$R17,IF(RIGHT($S18,1)="*",$R18,"")))) -> 
L25: =N74 -> 3 | M25: =IF($K21>$K22,$I21,IF($K22>$K21,$I22,IF(RIGHT($K21,1)="*",$I21,IF(RIGHT($K22,1)="*",$I22,"")))) ->  | N25: =IF($K21>$K22,$J21,IF($K22>$K21,$J22,IF(RIGHT($K21,1)="*",$J21,IF(RIGHT($K22,1)="*",$J22,"")))) ->  | Q25: 1. und 2. Platz | T25: =V73 -> 2 | U25: =IF($S49>$S50,$Q49,IF($S50>$S49,$Q50,IF(RIGHT($S49,1)="*",$Q49,IF(RIGHT($S50,1)="*",$Q50,"")))) ->  | V25: =IF($S49>$S50,$R49,IF($S50>$S49,$R50,IF(RIGHT($S49,1)="*",$R49,IF(RIGHT($S50,1)="*",$R50,"")))) ->  | AA25: =IF($S49>$S50,$Q49,IF($S50>$S49,$Q50,IF(RIGHT($S49,1)="*",$Q49,IF(RIGHT($S50,1)="*",$Q50,"")))) ->  | AB25: =IF($S49>$S50,$R49,IF($S50>$S49,$R50,IF(RIGHT($S49,1)="*",$R49,IF(RIGHT($S50,1)="*",$R50,"")))) -> 
L26: =N75 -> 4 | M26: =IF($K29>$K30,$I29,IF($K30>$K29,$I30,IF(RIGHT($K29,1)="*",$I29,IF(RIGHT($K30,1)="*",$I30,"")))) ->  | N26: =IF($K29>$K30,$J29,IF($K30>$K29,$J30,IF(RIGHT($K29,1)="*",$J29,IF(RIGHT($K30,1)="*",$J30,"")))) -> 
A27: 13 | B27: =E82 -> 6A | C27: =R_Quali!H22 -> 520 | D27: =R_Quali!C22 -> Jandl Ernst | E27: =R_Quali!E22 -> B | F27: =R_Quali!D22 -> PSV Burgenland - Sektion Bogen
A28: 20 | B28: =E83 -> 6B | C28: =R_Quali!H29 -> 513 | D28: =R_Quali!C29 -> Stiftner Alfred | E28: =R_Quali!E29 -> OÖ | F28: =R_Quali!D29 -> BC Kronstorf
H29: =J78 -> 4A | I29: =IF($G27>$G28,$D27,IF($G28>$G27,$D28,IF(RIGHT($G27,1)="*",$D27,IF(RIGHT($G28,1)="*",$D28,"")))) ->  | J29: =IF($G27>$G28,$E27,IF($G28>$G27,$E28,IF(RIGHT($G27,1)="*",$E27,IF(RIGHT($G28,1)="*",$E28,"")))) -> 
H30: =J79 -> 4B | I30: =IF($G31>$G32,$D31,IF($G32>$G31,$D32,IF(RIGHT($G31,1)="*",$D31,IF(RIGHT($G32,1)="*",$D32,"")))) -> Krempl Werner | J30: =IF($G31>$G32,$E31,IF($G32>$G31,$E32,IF(RIGHT($G31,1)="*",$E31,IF(RIGHT($G32,1)="*",$E32,"")))) -> ST
A32: 4 | C32: =R_Quali!H13 -> 529 | D32: =R_Quali!C13 -> Krempl Werner | E32: =R_Quali!E13 -> ST | F32: =R_Quali!D13 -> BSC Semriach | G32: *
A35: 3 | C35: =R_Quali!H12 -> 530 | D35: =R_Quali!C12 -> Strohmaier Joachim | E35: =R_Quali!E12 -> ST | F35: =R_Quali!D12 -> BSC Kumberg | G35: *
H37: =J80 -> 5A | I37: =IF($G35>$G36,$D35,IF($G36>$G35,$D36,IF(RIGHT($G35,1)="*",$D35,IF(RIGHT($G36,1)="*",$D36,"")))) -> Strohmaier Joachim | J37: =IF($G35>$G36,$E35,IF($G36>$G35,$E36,IF(RIGHT($G35,1)="*",$E35,IF(RIGHT($G36,1)="*",$E36,"")))) -> ST
H38: =J81 -> 5B | I38: =IF($G39>$G40,$D39,IF($G40>$G39,$D40,IF(RIGHT($G39,1)="*",$D39,IF(RIGHT($G40,1)="*",$D40,"")))) ->  | J38: =IF($G39>$G40,$E39,IF($G40>$G39,$E40,IF(RIGHT($G39,1)="*",$E39,IF(RIGHT($G40,1)="*",$E40,"")))) -> 
A39: 19 | B39: =E84 -> 7A | C39: =R_Quali!H28 -> 514 | D39: =R_Quali!C28 -> Winkler Klaus | E39: =R_Quali!E28 -> NÖ | F39: =R_Quali!D28 -> BSC Enzenreith
A40: 14 | B40: =E85 -> 7B | C40: =R_Quali!H23 -> 519 | D40: =R_Quali!C23 -> Schramm Wolfgang | E40: =R_Quali!E23 -> OÖ | F40: =R_Quali!D23 -> LINZ AG Sport - Sektion Bogen | Q40: Finale
L41: =N76 -> 5 | M41: =IF($K37>$K38,$I37,IF($K38>$K37,$I38,IF(RIGHT($K37,1)="*",$I37,IF(RIGHT($K38,1)="*",$I38,"")))) ->  | N41: =IF($K37>$K38,$J37,IF($K38>$K37,$J38,IF(RIGHT($K37,1)="*",$J37,IF(RIGHT($K38,1)="*",$J38,"")))) ->  | T41: =V74 -> 5 | U41: =IF($S17>$S18,$Q18,IF($S18>$S17,$Q17,IF(RIGHT($S17,1)="*",$Q18,IF(RIGHT($S18,1)="*",$Q17,"")))) ->  | V41: =IF($S17>$S18,$R18,IF($S18>$S17,$R17,IF(RIGHT($S17,1)="*",$R18,IF(RIGHT($S18,1)="*",$R17,"")))) ->  | AA41: =IF($S17>$S18,$Q18,IF($S18>$S17,$Q17,IF(RIGHT($S17,1)="*",$Q18,IF(RIGHT($S18,1)="*",$Q17,"")))) ->  | AB41: =IF($S17>$S18,$R18,IF($S18>$S17,$R17,IF(RIGHT($S17,1)="*",$R18,IF(RIGHT($S18,1)="*",$R17,"")))) -> 
L42: =N77 -> 6 | M42: =IF($K45>$K46,$I45,IF($K46>$K45,$I46,IF(RIGHT($K45,1)="*",$I45,IF(RIGHT($K46,1)="*",$I46,"")))) ->  | N42: =IF($K45>$K46,$J45,IF($K46>$K45,$J46,IF(RIGHT($K45,1)="*",$J45,IF(RIGHT($K46,1)="*",$J46,"")))) ->  | Q42: 3. und 4. Platz | T42: =V75 -> 6 | U42: =IF($S49>$S50,$Q50,IF($S50>$S49,$Q49,IF(RIGHT($S49,1)="*",$Q50,IF(RIGHT($S50,1)="*",$Q49,"")))) ->  | V42: =IF($S49>$S50,$R50,IF($S50>$S49,$R49,IF(RIGHT($S49,1)="*",$R50,IF(RIGHT($S50,1)="*",$R49,"")))) ->  | AA42: =IF($S49>$S50,$Q50,IF($S50>$S49,$Q49,IF(RIGHT($S49,1)="*",$Q50,IF(RIGHT($S50,1)="*",$Q49,"")))) ->  | AB42: =IF($S49>$S50,$R50,IF($S50>$S49,$R49,IF(RIGHT($S49,1)="*",$R50,IF(RIGHT($S50,1)="*",$R49,"")))) -> 
A43: 11 | B43: =E86 -> 8A | C43: =R_Quali!H20 -> 522 | D43: =R_Quali!C20 -> Reicher Ernst | E43: =R_Quali!E20 -> K | F43: =R_Quali!D20 -> BSC Wörthersee
A44: 22 | B44: =E87 -> 8B | C44: =R_Quali!H31 -> 511 | D44: =R_Quali!C31 -> Schütz Raimund | E44: =R_Quali!E31 -> NÖ | F44: =R_Quali!D31 -> TBs Weinviertel
H45: =J82 -> 6A | I45: =IF($G43>$G44,$D43,IF($G44>$G43,$D44,IF(RIGHT($G43,1)="*",$D43,IF(RIGHT($G44,1)="*",$D44,"")))) ->  | J45: =IF($G43>$G44,$E43,IF($G44>$G43,$E44,IF(RIGHT($G43,1)="*",$E43,IF(RIGHT($G44,1)="*",$E44,"")))) -> 
H46: =J83 -> 6B | I46: =IF($G47>$G48,$D47,IF($G48>$G47,$D48,IF(RIGHT($G47,1)="*",$D47,IF(RIGHT($G48,1)="*",$D48,"")))) ->  | J46: =IF($G47>$G48,$E47,IF($G48>$G47,$E48,IF(RIGHT($G47,1)="*",$E47,IF(RIGHT($G48,1)="*",$E48,"")))) -> 
A47: 27 | B47: =E88 -> 9A | C47: =R_Quali!H36 -> 506 | D47: =R_Quali!C36 -> Radauer Helmuth | E47: =R_Quali!E36 -> ST | F47: =R_Quali!D36 -> BSC Ennstal
A48: 6 | B48: =E89 -> 9B | C48: =R_Quali!H15 -> 527 | D48: =R_Quali!C15 -> Parschisek Alexander | E48: =R_Quali!E15 -> B | F48: =R_Quali!D15 -> BC-Oberschützen
P49: =R74 -> 3 | Q49: =IF($O41>$O42,$M41,IF($O42>$O41,$M42,IF(RIGHT($O41,1)="*",$M41,IF(RIGHT($O42,1)="*",$M42,"")))) ->  | R49: =IF($O41>$O42,$N41,IF($O42>$O41,$N42,IF(RIGHT($O41,1)="*",$N41,IF(RIGHT($O42,1)="*",$N42,"")))) -> 
P50: =R75 -> 4 | Q50: =IF($O57>$O58,$M57,IF($O58>$O57,$M58,IF(RIGHT($O57,1)="*",$M57,IF(RIGHT($O58,1)="*",$M58,"")))) ->  | R50: =IF($O57>$O58,$N57,IF($O58>$O57,$N58,IF(RIGHT($O57,1)="*",$N57,IF(RIGHT($O58,1)="*",$N58,"")))) -> 
A51: 7 | B51: =E90 -> 10A | C51: =R_Quali!H16 -> 526 | D51: =R_Quali!C16 -> Bucher Martin | E51: =R_Quali!E16 -> ST | F51: =R_Quali!D16 -> LH Graz
A52: 26 | B52: =E91 -> 10B | C52: =R_Quali!H35 -> 507 | D52: =R_Quali!C35 -> Kossek Heinz | E52: =R_Quali!E35 -> ST | F52: =R_Quali!D35 -> BC Wildon Weitendorf
H53: =J84 -> 7A | I53: =IF($G51>$G52,$D51,IF($G52>$G51,$D52,IF(RIGHT($G51,1)="*",$D51,IF(RIGHT($G52,1)="*",$D52,"")))) ->  | J53: =IF($G51>$G52,$E51,IF($G52>$G51,$E52,IF(RIGHT($G51,1)="*",$E51,IF(RIGHT($G52,1)="*",$E52,"")))) ->  | U53: Finale
H54: =J85 -> 7B | I54: =IF($G55>$G56,$D55,IF($G56>$G55,$D56,IF(RIGHT($G55,1)="*",$D55,IF(RIGHT($G56,1)="*",$D56,"")))) ->  | J54: =IF($G55>$G56,$E55,IF($G56>$G55,$E56,IF(RIGHT($G55,1)="*",$E55,IF(RIGHT($G56,1)="*",$E56,"")))) ->  | Q54: 1/2 Finale
A55: 23 | B55: =E92 -> 11A | C55: =R_Quali!H32 -> 510 | D55: =R_Quali!C32 -> Kutmon Wilhelm | E55: =R_Quali!E32 -> ST | F55: =R_Quali!D32 -> BS Ligist - Archery Freaks
A56: 10 | B56: =E93 -> 11B | C56: =R_Quali!H19 -> 523 | D56: =R_Quali!C19 -> Navratil Christoph | E56: =R_Quali!E19 -> W | F56: =R_Quali!D19 -> BSV Schönbrunn
L57: =N78 -> 7 | M57: =IF($K53>$K54,$I53,IF($K54>$K53,$I54,IF(RIGHT($K53,1)="*",$I53,IF(RIGHT($K54,1)="*",$I54,"")))) ->  | N57: =IF($K53>$K54,$J53,IF($K54>$K53,$J54,IF(RIGHT($K53,1)="*",$J53,IF(RIGHT($K54,1)="*",$J54,"")))) -> 
L58: =N79 -> 8 | M58: =IF($K61>$K62,$I61,IF($K62>$K61,$I62,IF(RIGHT($K61,1)="*",$I61,IF(RIGHT($K62,1)="*",$I62,"")))) ->  | N58: =IF($K61>$K62,$J61,IF($K62>$K61,$J62,IF(RIGHT($K61,1)="*",$J61,IF(RIGHT($K62,1)="*",$J62,"")))) -> 
A59: 15 | B59: =E94 -> 12A | C59: =R_Quali!H24 -> 518 | D59: =R_Quali!C24 -> Markl Mario | E59: =R_Quali!E24 -> NÖ | F59: =R_Quali!D24 -> BSV Dakota
A60: 18 | B60: =E95 -> 12B | C60: =R_Quali!H27 -> 515 | D60: =R_Quali!C27 -> Hamedl Wolfgang | E60: =R_Quali!E27 -> B | F60: =R_Quali!D27 -> PSV Burgenland - Sektion Bogen
H61: =J86 -> 8A | I61: =IF($G59>$G60,$D59,IF($G60>$G59,$D60,IF(RIGHT($G59,1)="*",$D59,IF(RIGHT($G60,1)="*",$D60,"")))) ->  | J61: =IF($G59>$G60,$E59,IF($G60>$G59,$E60,IF(RIGHT($G59,1)="*",$E59,IF(RIGHT($G60,1)="*",$E60,"")))) ->  | M61: 1/4 Finale
H62: =J87 -> 8B | I62: =IF($G63>$G64,$D63,IF($G64>$G63,$D64,IF(RIGHT($G63,1)="*",$D63,IF(RIGHT($G64,1)="*",$D64,"")))) -> Berger Hermann | J62: =IF($G63>$G64,$E63,IF($G64>$G63,$E64,IF(RIGHT($G63,1)="*",$E63,IF(RIGHT($G64,1)="*",$E64,"")))) -> S
A64: 2 | C64: =R_Quali!H11 -> 531 | D64: =R_Quali!C11 -> Berger Hermann | E64: =R_Quali!E11 -> S | F64: =R_Quali!D11 -> BSV Glemmerhof | G64: *
H65: 1/8 Elimination
C66: 1/12 Elimination | K66: =Select!C18 -> Recurve Herren
D71: Scheibe:
C72: 1 | D72: =CONCATENATE($D$71," ",E72) -> Scheibe: 1A | E72: 1A | H72: 1 | I72: =CONCATENATE($D$71," ",J72) -> Scheibe: 1A | J72: 1A | L72: 1 | M72: =CONCATENATE($D$71," ",N72) -> Scheibe: 1 | N72: 1 | P72: 1 | Q72: =CONCATENATE($D$71," ",R72) -> Scheibe: 1 | R72: 1 | T72: 1 | U72: =CONCATENATE($D$71," ",V72) -> Scheibe: 1 | V72: 1
D73: Scheibe: 1B | E73: =IF(RIGHT(E72,1)="A",CONCATENATE(LEFT(E72,LEN(E72)-1),"B"),E72+1) -> 1B | I73: Scheibe: 1B | J73: =IF(RIGHT(J72,1)="A",CONCATENATE(LEFT(J72,LEN(J72)-1),"B"),J72+1) -> 1B | M73: Scheibe: 2 | N73: =IF(RIGHT(N72,1)="A",CONCATENATE(LEFT(N72,LEN(N72)-1),"B"),N72+1) -> 2 | Q73: =CONCATENATE($D$71," ",R73) -> Scheibe: 2 | R73: =IF(RIGHT(R72,1)="A",CONCATENATE(LEFT(R72,LEN(R72)-1),"B"),R72+1) -> 2 | U73: =CONCATENATE($D$71," ",V73) -> Scheibe: 2 | V73: =IF(RIGHT(V72,1)="A",CONCATENATE(LEFT(V72,LEN(V72)-1),"B"),V72+1) -> 2
C74: =C72+1 -> 2 | D74: Scheibe: 2A | E74: =IF(RIGHT(E73,1)="B",CONCATENATE(LEFT(E73,LEN(E73)-1)+1,"A"),E73+1) -> 2A | H74: =H72+1 -> 2 | I74: Scheibe: 2A | J74: =IF(RIGHT(J73,1)="B",CONCATENATE(LEFT(J73,LEN(J73)-1)+1,"A"),J73+1) -> 2A | L74: =L72+1 -> 2 | M74: Scheibe: 3 | N74: =IF(RIGHT(N73,1)="B",CONCATENATE(LEFT(N73,LEN(N73)-1)+1,"A"),N73+1) -> 3 | P74: =P72+1 -> 2 | Q74: =CONCATENATE($D$71," ",R74) -> Scheibe: 3 | R74: =IF(RIGHT(R73,1)="B",CONCATENATE(LEFT(R73,LEN(R73)-1)+1,"A"),R73+1) -> 3 | T74: =T72+1 -> 2 | U74: =CONCATENATE($D$71," ",V74) -> Scheibe: 5 | V74: 5
D75: Scheibe: 2B | E75: =IF(RIGHT(E74,1)="A",CONCATENATE(LEFT(E74,LEN(E74)-1),"B"),E74+1) -> 2B | I75: Scheibe: 2B | J75: =IF(RIGHT(J74,1)="A",CONCATENATE(LEFT(J74,LEN(J74)-1),"B"),J74+1) -> 2B | M75: Scheibe: 4 | N75: =IF(RIGHT(N74,1)="A",CONCATENATE(LEFT(N74,LEN(N74)-1),"B"),N74+1) -> 4 | Q75: =CONCATENATE($D$71," ",R75) -> Scheibe: 4 | R75: =IF(RIGHT(R74,1)="A",CONCATENATE(LEFT(R74,LEN(R74)-1),"B"),R74+1) -> 4 | U75: =CONCATENATE($D$71," ",V75) -> Scheibe: 6 | V75: =IF(RIGHT(V74,1)="A",CONCATENATE(LEFT(V74,LEN(V74)-1),"B"),V74+1) -> 6
C76: =C74+1 -> 3 | D76: Scheibe: 3A | E76: =IF(RIGHT(E75,1)="B",CONCATENATE(LEFT(E75,LEN(E75)-1)+1,"A"),E75+1) -> 3A | H76: =H74+1 -> 3 | I76: Scheibe: 3A | J76: =IF(RIGHT(J75,1)="B",CONCATENATE(LEFT(J75,LEN(J75)-1)+1,"A"),J75+1) -> 3A | L76: =L74+1 -> 3 | M76: Scheibe: 5 | N76: =IF(RIGHT(N75,1)="B",CONCATENATE(LEFT(N75,LEN(N75)-1)+1,"A"),N75+1) -> 5
D77: Scheibe: 3B | E77: =IF(RIGHT(E76,1)="A",CONCATENATE(LEFT(E76,LEN(E76)-1),"B"),E76+1) -> 3B | I77: Scheibe: 3B | J77: =IF(RIGHT(J76,1)="A",CONCATENATE(LEFT(J76,LEN(J76)-1),"B"),J76+1) -> 3B | M77: Scheibe: 6 | N77: =IF(RIGHT(N76,1)="A",CONCATENATE(LEFT(N76,LEN(N76)-1),"B"),N76+1) -> 6
C78: =C76+1 -> 4 | D78: Scheibe: 4A | E78: =IF(RIGHT(E77,1)="B",CONCATENATE(LEFT(E77,LEN(E77)-1)+1,"A"),E77+1) -> 4A | H78: =H76+1 -> 4 | I78: Scheibe: 4A | J78: =IF(RIGHT(J77,1)="B",CONCATENATE(LEFT(J77,LEN(J77)-1)+1,"A"),J77+1) -> 4A | L78: =L76+1 -> 4 | M78: Scheibe: 7 | N78: =IF(RIGHT(N77,1)="B",CONCATENATE(LEFT(N77,LEN(N77)-1)+1,"A"),N77+1) -> 7
D79: Scheibe: 4B | E79: =IF(RIGHT(E78,1)="A",CONCATENATE(LEFT(E78,LEN(E78)-1),"B"),E78+1) -> 4B | I79: Scheibe: 4B | J79: =IF(RIGHT(J78,1)="A",CONCATENATE(LEFT(J78,LEN(J78)-1),"B"),J78+1) -> 4B | M79: Scheibe: 8 | N79: =IF(RIGHT(N78,1)="A",CONCATENATE(LEFT(N78,LEN(N78)-1),"B"),N78+1) -> 8
C80: =C78+1 -> 5 | D80: Scheibe: 5A | E80: =IF(RIGHT(E79,1)="B",CONCATENATE(LEFT(E79,LEN(E79)-1)+1,"A"),E79+1) -> 5A | H80: =H78+1 -> 5 | I80: Scheibe: 5A | J80: =IF(RIGHT(J79,1)="B",CONCATENATE(LEFT(J79,LEN(J79)-1)+1,"A"),J79+1) -> 5A
D81: Scheibe: 5B | E81: =IF(RIGHT(E80,1)="A",CONCATENATE(LEFT(E80,LEN(E80)-1),"B"),E80+1) -> 5B | I81: Scheibe: 5B | J81: =IF(RIGHT(J80,1)="A",CONCATENATE(LEFT(J80,LEN(J80)-1),"B"),J80+1) -> 5B
C82: =C80+1 -> 6 | D82: Scheibe: 6A | E82: =IF(RIGHT(E81,1)="B",CONCATENATE(LEFT(E81,LEN(E81)-1)+1,"A"),E81+1) -> 6A | H82: =H80+1 -> 6 | I82: Scheibe: 6A | J82: =IF(RIGHT(J81,1)="B",CONCATENATE(LEFT(J81,LEN(J81)-1)+1,"A"),J81+1) -> 6A
D83: Scheibe: 6B | E83: =IF(RIGHT(E82,1)="A",CONCATENATE(LEFT(E82,LEN(E82)-1),"B"),E82+1) -> 6B | I83: Scheibe: 6B | J83: =IF(RIGHT(J82,1)="A",CONCATENATE(LEFT(J82,LEN(J82)-1),"B"),J82+1) -> 6B
C84: =C82+1 -> 7 | D84: Scheibe: 7A | E84: =IF(RIGHT(E83,1)="B",CONCATENATE(LEFT(E83,LEN(E83)-1)+1,"A"),E83+1) -> 7A | H84: =H82+1 -> 7 | I84: Scheibe: 7A | J84: =IF(RIGHT(J83,1)="B",CONCATENATE(LEFT(J83,LEN(J83)-1)+1,"A"),J83+1) -> 7A
D85: Scheibe: 7B | E85: =IF(RIGHT(E84,1)="A",CONCATENATE(LEFT(E84,LEN(E84)-1),"B"),E84+1) -> 7B | I85: Scheibe: 7B | J85: =IF(RIGHT(J84,1)="A",CONCATENATE(LEFT(J84,LEN(J84)-1),"B"),J84+1) -> 7B
C86: =C84+1 -> 8 | D86: Scheibe: 8A | E86: =IF(RIGHT(E85,1)="B",CONCATENATE(LEFT(E85,LEN(E85)-1)+1,"A"),E85+1) -> 8A | H86: =H84+1 -> 8 | I86: Scheibe: 8A | J86: =IF(RIGHT(J85,1)="B",CONCATENATE(LEFT(J85,LEN(J85)-1)+1,"A"),J85+1) -> 8A
D87: Scheibe: 8B | E87: =IF(RIGHT(E86,1)="A",CONCATENATE(LEFT(E86,LEN(E86)-1),"B"),E86+1) -> 8B | I87: Scheibe: 8B | J87: =IF(RIGHT(J86,1)="A",CONCATENATE(LEFT(J86,LEN(J86)-1),"B"),J86+1) -> 8B
C88: =C86+1 -> 9 | D88: Scheibe: 9A | E88: =IF(RIGHT(E87,1)="B",CONCATENATE(LEFT(E87,LEN(E87)-1)+1,"A"),E87+1) -> 9A
D89: Scheibe: 9B | E89: =IF(RIGHT(E88,1)="A",CONCATENATE(LEFT(E88,LEN(E88)-1),"B"),E88+1) -> 9B
C90: =C88+1 -> 10 | D90: Scheibe: 10A | E90: =IF(RIGHT(E89,1)="B",CONCATENATE(LEFT(E89,LEN(E89)-1)+1,"A"),E89+1) -> 10A
D91: Scheibe: 10B | E91: =IF(RIGHT(E90,1)="A",CONCATENATE(LEFT(E90,LEN(E90)-1),"B"),E90+1) -> 10B
C92: =C90+1 -> 11 | D92: Scheibe: 11A | E92: =IF(RIGHT(E91,1)="B",CONCATENATE(LEFT(E91,LEN(E91)-1)+1,"A"),E91+1) -> 11A
D93: Scheibe: 11B | E93: =IF(RIGHT(E92,1)="A",CONCATENATE(LEFT(E92,LEN(E92)-1),"B"),E92+1) -> 11B
C94: =C92+1 -> 12 | D94: Scheibe: 12A | E94: =IF(RIGHT(E93,1)="B",CONCATENATE(LEFT(E93,LEN(E93)-1)+1,"A"),E93+1) -> 12A
D95: Scheibe: 12B | E95: =IF(RIGHT(E94,1)="A",CONCATENATE(LEFT(E94,LEN(E94)-1),"B"),E94+1) -> 12B
C96: =C94+1 -> 13 | D96: Scheibe: 13A | E96: =IF(RIGHT(E95,1)="B",CONCATENATE(LEFT(E95,LEN(E95)-1)+1,"A"),E95+1) -> 13A
D97: Scheibe: 13B | E97: =IF(RIGHT(E96,1)="A",CONCATENATE(LEFT(E96,LEN(E96)-1),"B"),E96+1) -> 13B
C98: =C96+1 -> 14 | D98: Scheibe: 14A | E98: =IF(RIGHT(E97,1)="B",CONCATENATE(LEFT(E97,LEN(E97)-1)+1,"A"),E97+1) -> 14A
D99: Scheibe: 14B | E99: =IF(RIGHT(E98,1)="A",CONCATENATE(LEFT(E98,LEN(E98)-1),"B"),E98+1) -> 14B
C100: =C98+1 -> 15 | D100: Scheibe: 15A | E100: =IF(RIGHT(E99,1)="B",CONCATENATE(LEFT(E99,LEN(E99)-1)+1,"A"),E99+1) -> 15A
D101: Scheibe: 15B | E101: =IF(RIGHT(E100,1)="A",CONCATENATE(LEFT(E100,LEN(E100)-1),"B"),E100+1) -> 15B
C102: =C100+1 -> 16 | D102: Scheibe: 16A | E102: =IF(RIGHT(E101,1)="B",CONCATENATE(LEFT(E101,LEN(E101)-1)+1,"A"),E101+1) -> 16A
D103: Scheibe: 16B | E103: =IF(RIGHT(E102,1)="A",CONCATENATE(LEFT(E102,LEN(E102)-1),"B"),E102+1) -> 16B

Sheet R28 (hidden)
J2: 1/12 Elimination | N2: Freilos | S2: 1/8 Elimination | W2: ='R28_Baum'!$I$72 -> Scheibe: 1A
K3: 1 | L3: 2 | M3: 3 | N3: Summe | O3: Punkte | P3: Ges. | T3: 1 | U3: 2 | V3: 3 | W3: Summe | X3: Punkte | Y3: Ges.
A4: =Select!$C$12 -> Demoturnier | J4: Satz 1 | S4: Satz 1
A5: Veranstaltung | J5: Satz 2 | S5: Satz 2
A6: =Select!$C$13 -> 1. April 2019 | J6: Satz 3 | S6: Satz 3
A7: Datum | J7: wenn erforderlich | S7: wenn erforderlich
J8: Satz 4 | S8: Satz 4
J9: wenn erforderlich | S9: wenn erforderlich
A10: ='R28_Baum'!$D$3 -> Url Günter | J10: Satz 5 | S10: Satz 5
A11: Name | J11: wenn erforderlich | S11: wenn erforderlich
A12: ='R28_Baum'!$F$3 -> BSC-Wolfspfeil Raab-Holzer | J12: Stechen | S12: Stechen
A13: Verein | O13: gewonnen | X13: gewonnen
A14: =Select!$C$18 -> Recurve Herren | J14: Schütze: | O14: verloren | S14: Schütze: | X14: verloren
A15: Bogenklasse
J16: Gegner: | L16: Name: | S16: Gegner: | U16: Name:
L17: Unterschrift: | U17: Unterschrift:
A20: 1/4 Finale | E20: ='R28_Baum'!$M$72 -> Scheibe: 1 | J20: 1/2 Finale | N20: ='R28_Baum'!$Q$72 -> Scheibe: 1 | S20: 1./2. od. 3./4. Platz | W20: Scheibe:
B21: 1 | C21: 2 | D21: 3 | E21: Summe | F21: Punkte | G21: Ges. | K21: 1 | L21: 2 | M21: 3 | N21: Summe | O21: Punkte | P21: Ges. | T21: 1 | U21: 2 | V21: 3 | W21: Summe | X21: Punkte | Y21: Ges.
A22: Satz 1 | J22: Satz 1 | S22: Satz 1
A23: Satz 2 | J23: Satz 2 | S23: Satz 2
A24: Satz 3 | J24: Satz 3 | S24: Satz 3
A25: wenn erforderlich | J25: wenn erforderlich | S25: wenn erforderlich
A26: Satz 4 | J26: Satz 4 | S26: Satz 4
A27: wenn erforderlich | J27: wenn erforderlich | S27: wenn erforderlich
A28: Satz 5 | J28: Satz 5 | S28: Satz 5
A29: wenn erforderlich | J29: wenn erforderlich | S29: wenn erforderlich
A30: Stechen | J30: Stechen | S30: Stechen
F31: gewonnen | O31: gewonnen | X31: gewonnen
A32: Schütze: | F32: verloren | J32: Schütze: | O32: verloren | S32: Schütze: | X32: verloren
A34: Gegner: | C34: Name: | J34: Gegner: | L34: Name: | S34: Gegner: | U34: Name:
C35: Unterschrift: | L35: Unterschrift: | U35: Unterschrift:
J38: 1/12 Elimination | N38: ='R28_Baum'!$D$72 -> Scheibe: 1A | S38: 1/8 Elimination | W38: ='R28_Baum'!$I$73 -> Scheibe: 1B
K39: 1 | L39: 2 | M39: 3 | N39: Summe | O39: Punkte | P39: Ges. | T39: 1 | U39: 2 | V39: 3 | W39: Summe | X39: Punkte | Y39: Ges.
A40: =Select!$C$12 -> Demoturnier | J40: Satz 1 | S40: Satz 1
A41: Veranstaltung | J41: Satz 2 | S41: Satz 2
A42: =Select!$C$13 -> 1. April 2019 | J42: Satz 3 | S42: Satz 3
A43: Datum | J43: wenn erforderlich | S43: wenn erforderlich
J44: Satz 4 | S44: Satz 4
J45: wenn erforderlich | S45: wenn erforderlich
A46: ='R28_Baum'!$D$7 -> Schweiger Peter | J46: Satz 5 | S46: Satz 5
A47: Name | J47: wenn erforderlich | S47: wenn erforderlich
A48: ='R28_Baum'!$F$7 -> BSV-Blumental | J48: Stechen | S48: Stechen
A49: Verein | O49: gewonnen | X49: gewonnen
A50: =Select!$C$18 -> Recurve Herren | J50: Schütze: | O50: verloren | S50: Schütze: | X50: verloren
A51: Bogenklasse
J52: Gegner: | L52: Name: | M52: ='R28_Baum'!D8 -> Lackner Uwe | S52: Gegner: | U52: Name:
L53: Unterschrift: | U53: Unterschrift:
A56: 1/4 Finale | E56: ='R28_Baum'!$M$72 -> Scheibe: 1 | J56: 1/2 Finale | N56: ='R28_Baum'!$Q$72 -> Scheibe: 1 | S56: 1./2. od. 3./4. Platz | W56: Scheibe:
B57: 1 | C57: 2 | D57: 3 | E57: Summe | F57: Punkte | G57: Ges. | K57: 1 | L57: 2 | M57: 3 | N57: Summe | O57: Punkte | P57: Ges. | T57: 1 | U57: 2 | V57: 3 | W57: Summe | X57: Punkte | Y57: Ges.
A58: Satz 1 | J58: Satz 1 | S58: Satz 1
A59: Satz 2 | J59: Satz 2 | S59: Satz 2
A60: Satz 3 | J60: Satz 3 | S60: Satz 3
A61: wenn erforderlich | J61: wenn erforderlich | S61: wenn erforderlich
A62: Satz 4 | J62: Satz 4 | S62: Satz 4
A63: wenn erforderlich | J63: wenn erforderlich | S63: wenn erforderlich
A64: Satz 5 | J64: Satz 5 | S64: Satz 5
A65: wenn erforderlich | J65: wenn erforderlich | S65: wenn erforderlich
A66: Stechen | J66: Stechen | S66: Stechen
F67: gewonnen | O67: gewonnen | X67: gewonnen
A68: Schütze: | F68: verloren | J68: Schütze: | O68: verloren | S68: Schütze: | X68: verloren
A70: Gegner: | C70: Name: | J70: Gegner: | L70: Name: | S70: Gegner: | U70: Name:
C71: Unterschrift: | L71: Unterschrift: | U71: Unterschrift:
J74: 1/12 Elimination | N74: ='R28_Baum'!$D$73 -> Scheibe: 1B | S74: 1/8 Elimination | W74: ='R28_Baum'!$I$73 -> Scheibe: 1B
K75: 1 | L75: 2 | M75: 3 | N75: Summe | O75: Punkte | P75: Ges. | T75: 1 | U75: 2 | V75: 3 | W75: Summe | X75: Punkte | Y75: Ges.
A76: =Select!$C$12 -> Demoturnier | J76: Satz 1 | S76: Satz 1
A77: Veranstaltung | J77: Satz 2 | S77: Satz 2
A78: =Select!$C$13 -> 1. April 2019 | J78: Satz 3 | S78: Satz 3
A79: Datum | J79: wenn erforderlich | S79: wenn erforderlich
J80: Satz 4 | S80: Satz 4
J81: wenn erforderlich | S81: wenn erforderlich
A82: ='R28_Baum'!$D$8 -> Lackner Uwe | J82: Satz 5 | S82: Satz 5
A83: Name | J83: wenn erforderlich | S83: wenn erforderlich
A84: ='R28_Baum'!$F$8 -> LH Graz | J84: Stechen | S84: Stechen
A85: Verein | O85: gewonnen | X85: gewonnen
A86: =Select!$C$18 -> Recurve Herren | J86: Schütze: | O86: verloren | S86: Schütze: | X86: verloren
A87: Bogenklasse
J88: Gegner: | L88: Name: | M88: ='R28_Baum'!D7 -> Schweiger Peter | S88: Gegner: | U88: Name:
L89: Unterschrift: | U89: Unterschrift:
A92: 1/4 Finale | E92: ='R28_Baum'!$M$72 -> Scheibe: 1 | J92: 1/2 Finale | N92: ='R28_Baum'!$Q$72 -> Scheibe: 1 | S92: 1./2. od. 3./4. Platz | W92: Scheibe:
B93: 1 | C93: 2 | D93: 3 | E93: Summe | F93: Punkte | G93: Ges. | K93: 1 | L93: 2 | M93: 3 | N93: Summe | O93: Punkte | P93: Ges. | T93: 1 | U93: 2 | V93: 3 | W93: Summe | X93: Punkte | Y93: Ges.
A94: Satz 1 | J94: Satz 1 | S94: Satz 1
A95: Satz 2 | J95: Satz 2 | S95: Satz 2
A96: Satz 3 | J96: Satz 3 | S96: Satz 3
A97: wenn erforderlich | J97: wenn erforderlich | S97: wenn erforderlich
A98: Satz 4 | J98: Satz 4 | S98: Satz 4
A99: wenn erforderlich | J99: wenn erforderlich | S99: wenn erforderlich
A100: Satz 5 | J100: Satz 5 | S100: Satz 5
A101: wenn erforderlich | J101: wenn erforderlich | S101: wenn erforderlich
A102: Stechen | J102: Stechen | S102: Stechen
F103: gewonnen | O103: gewonnen | X103: gewonnen
A104: Schütze: | F104: verloren | J104: Schütze: | O104: verloren | S104: Schütze: | X104: verloren
A106: Gegner: | C106: Name: | J106: Gegner: | L106: Name: | S106: Gegner: | U106: Name:
C107: Unterschrift: | L107: Unterschrift: | U107: Unterschrift:
J110: 1/12 Elimination | N110: ='R28_Baum'!$D$74 -> Scheibe: 2A | S110: 1/8 Elimination | W110: ='R28_Baum'!$I$74 -> Scheibe: 2A
K111: 1 | L111: 2 | M111: 3 | N111: Summe | O111: Punkte | P111: Ges. | T111: 1 | U111: 2 | V111: 3 | W111: Summe | X111: Punkte | Y111: Ges.
A112: =Select!$C$12 -> Demoturnier | J112: Satz 1 | S112: Satz 1
A113: Veranstaltung | J113: Satz 2 | S113: Satz 2
A114: =Select!$C$13 -> 1. April 2019 | J114: Satz 3 | S114: Satz 3
A115: Datum | J115: wenn erforderlich | S115: wenn erforderlich
J116: Satz 4 | S116: Satz 4
J117: wenn erforderlich | S117: wenn erforderlich
A118: ='R28_Baum'!$D$11 -> Traxler Helmuth | J118: Satz 5 | S118: Satz 5
A119: Name | J119: wenn erforderlich | S119: wenn erforderlich
A120: ='R28_Baum'!$F$11 -> UBC Diana NÖ | J120: Stechen | S120: Stechen
A121: Verein | O121: gewonnen | X121: gewonnen
A122: =Select!$C$18 -> Recurve Herren | J122: Schütze: | O122: verloren | S122: Schütze: | X122: verloren
A123: Bogenklasse
J124: Gegner: | L124: Name: | M124: ='R28_Baum'!D12 -> Eidenberger Karl | S124: Gegner: | U124: Name:
L125: Unterschrift: | U125: Unterschrift:
A128: 1/4 Finale | E128: ='R28_Baum'!$M$73 -> Scheibe: 2 | J128: 1/2 Finale | N128: ='R28_Baum'!$Q$72 -> Scheibe: 1 | S128: 1./2. od. 3./4. Platz | W128: Scheibe:
B129: 1 | C129: 2 | D129: 3 | E129: Summe | F129: Punkte | G129: Ges. | K129: 1 | L129: 2 | M129: 3 | N129: Summe | O129: Punkte | P129: Ges. | T129: 1 | U129: 2 | V129: 3 | W129: Summe | X129: Punkte | Y129: Ges.
A130: Satz 1 | J130: Satz 1 | S130: Satz 1
A131: Satz 2 | J131: Satz 2 | S131: Satz 2
A132: Satz 3 | J132: Satz 3 | S132: Satz 3
A133: wenn erforderlich | J133: wenn erforderlich | S133: wenn erforderlich
A134: Satz 4 | J134: Satz 4 | S134: Satz 4
A135: wenn erforderlich | J135: wenn erforderlich | S135: wenn erforderlich
A136: Satz 5 | J136: Satz 5 | S136: Satz 5
A137: wenn erforderlich | J137: wenn erforderlich | S137: wenn erforderlich
A138: Stechen | J138: Stechen | S138: Stechen
F139: gewonnen | O139: gewonnen | X139: gewonnen
A140: Schütze: | F140: verloren | J140: Schütze: | O140: verloren | S140: Schütze: | X140: verloren
A142: Gegner: | C142: Name: | J142: Gegner: | L142: Name: | S142: Gegner: | U142: Name:
C143: Unterschrift: | L143: Unterschrift: | U143: Unterschrift:
J146: 1/12 Elimination | N146: ='R28_Baum'!$D$75 -> Scheibe: 2B | S146: 1/8 Elimination | W146: ='R28_Baum'!$I$74 -> Scheibe: 2A
K147: 1 | L147: 2 | M147: 3 | N147: Summe | O147: Punkte | P147: Ges. | T147: 1 | U147: 2 | V147: 3 | W147: Summe | X147: Punkte | Y147: Ges.
A148: =Select!$C$12 -> Demoturnier | J148: Satz 1 | S148: Satz 1
A149: Veranstaltung | J149: Satz 2 | S149: Satz 2
A150: =Select!$C$13 -> 1. April 2019 | J150: Satz 3 | S150: Satz 3
A151: Datum | J151: wenn erforderlich | S151: wenn erforderlich
J152: Satz 4 | S152: Satz 4
J153: wenn erforderlich | S153: wenn erforderlich
A154: ='R28_Baum'!$D$12 -> Eidenberger Karl | J154: Satz 5 | S154: Satz 5
A155: Name | J155: wenn erforderlich | S155: wenn erforderlich
A156: ='R28_Baum'!$F$12 -> PSV Burgenland - Sektion Bogen | J156: Stechen | S156: Stechen
A157: Verein | O157: gewonnen | X157: gewonnen
A158: =Select!$C$18 -> Recurve Herren | J158: Schütze: | O158: verloren | S158: Schütze: | X158: verloren
A159: Bogenklasse
J160: Gegner: | L160: Name: | M160: ='R28_Baum'!D11 -> Traxler Helmuth | S160: Gegner: | U160: Name:
L161: Unterschrift: | U161: Unterschrift:
A164: 1/4 Finale | E164: ='R28_Baum'!$M$73 -> Scheibe: 2 | J164: 1/2 Finale | N164: ='R28_Baum'!$Q$72 -> Scheibe: 1 | S164: 1./2. od. 3./4. Platz | W164: Scheibe:
B165: 1 | C165: 2 | D165: 3 | E165: Summe | F165: Punkte | G165: Ges. | K165: 1 | L165: 2 | M165: 3 | N165: Summe | O165: Punkte | P165: Ges. | T165: 1 | U165: 2 | V165: 3 | W165: Summe | X165: Punkte | Y165: Ges.
A166: Satz 1 | J166: Satz 1 | S166: Satz 1
A167: Satz 2 | J167: Satz 2 | S167: Satz 2
A168: Satz 3 | J168: Satz 3 | S168: Satz 3
A169: wenn erforderlich | J169: wenn erforderlich | S169: wenn erforderlich
A170: Satz 4 | J170: Satz 4 | S170: Satz 4
A171: wenn erforderlich | J171: wenn erforderlich | S171: wenn erforderlich
A172: Satz 5 | J172: Satz 5 | S172: Satz 5
A173: wenn erforderlich | J173: wenn erforderlich | S173: wenn erforderlich
A174: Stechen | J174: Stechen | S174: Stechen
F175: gewonnen | O175: gewonnen | X175: gewonnen
A176: Schütze: | F176: verloren | J176: Schütze: | O176: verloren | S176: Schütze: | X176: verloren
A178: Gegner: | C178: Name: | J178: Gegner: | L178: Name: | S178: Gegner: | U178: Name:
C179: Unterschrift: | L179: Unterschrift: | U179: Unterschrift:
J182: 1/12 Elimination | N182: ='R28_Baum'!$D$76 -> Scheibe: 3A | S182: 1/8 Elimination | W182: ='R28_Baum'!$I$75 -> Scheibe: 2B
K183: 1 | L183: 2 | M183: 3 | N183: Summe | O183: Punkte | P183: Ges. | T183: 1 | U183: 2 | V183: 3 | W183: Summe | X183: Punkte | Y183: Ges.
A184: =Select!$C$12 -> Demoturnier | J184: Satz 1 | S184: Satz 1
A185: Veranstaltung | J185: Satz 2 | S185: Satz 2
A186: =Select!$C$13 -> 1. April 2019 | J186: Satz 3 | S186: Satz 3
A187: Datum | J187: wenn erforderlich | S187: wenn erforderlich
J188: Satz 4 | S188: Satz 4
J189: wenn erforderlich | S189: wenn erforderlich
A190: ='R28_Baum'!$D$15 -> Wallner Ewald | J190: Satz 5 | S190: Satz 5
A191: Name | J191: wenn erforderlich | S191: wenn erforderlich
A192: ='R28_Baum'!$F$15 -> BSC Sölkpass | J192: Stechen | S192: Stechen
A193: Verein | O193: gewonnen | X193: gewonnen
A194: =Select!$C$18 -> Recurve Herren | J194: Schütze: | O194: verloren | S194: Schütze: | X194: verloren
A195: Bogenklasse
J196: Gegner: | L196: Name: | M196: ='R28_Baum'!D16 -> Robl Ronald | S196: Gegner: | U196: Name:
L197: Unterschrift: | U197: Unterschrift:
A200: 1/4 Finale | E200: ='R28_Baum'!$M$73 -> Scheibe: 2 | J200: 1/2 Finale | N200: ='R28_Baum'!$Q$72 -> Scheibe: 1 | S200: 1./2. od. 3./4. Platz | W200: Scheibe:
B201: 1 | C201: 2 | D201: 3 | E201: Summe | F201: Punkte | G201: Ges. | K201: 1 | L201: 2 | M201: 3 | N201: Summe | O201: Punkte | P201: Ges. | T201: 1 | U201: 2 | V201: 3 | W201: Summe | X201: Punkte | Y201: Ges.
A202: Satz 1 | J202: Satz 1 | S202: Satz 1
A203: Satz 2 | J203: Satz 2 | S203: Satz 2
A204: Satz 3 | J204: Satz 3 | S204: Satz 3
A205: wenn erforderlich | J205: wenn erforderlich | S205: wenn erforderlich
A206: Satz 4 | J206: Satz 4 | S206: Satz 4
A207: wenn erforderlich | J207: wenn erforderlich | S207: wenn erforderlich
A208: Satz 5 | J208: Satz 5 | S208: Satz 5
A209: wenn erforderlich | J209: wenn erforderlich | S209: wenn erforderlich
A210: Stechen | J210: Stechen | S210: Stechen
F211: gewonnen | O211: gewonnen | X211: gewonnen
A212: Schütze: | F212: verloren | J212: Schütze: | O212: verloren | S212: Schütze: | X212: verloren
A214: Gegner: | C214: Name: | J214: Gegner: | L214: Name: | S214: Gegner: | U214: Name:
C215: Unterschrift: | L215: Unterschrift: | U215: Unterschrift:
J218: 1/12 Elimination | N218: ='R28_Baum'!$D$77 -> Scheibe: 3B | S218: 1/8 Elimination | W218: ='R28_Baum'!$I$75 -> Scheibe: 2B
K219: 1 | L219: 2 | M219: 3 | N219: Summe | O219: Punkte | P219: Ges. | T219: 1 | U219: 2 | V219: 3 | W219: Summe | X219: Punkte | Y219: Ges.
A220: =Select!$C$12 -> Demoturnier | J220: Satz 1 | S220: Satz 1
A221: Veranstaltung | J221: Satz 2 | S221: Satz 2
A222: =Select!$C$13 -> 1. April 2019 | J222: Satz 3 | S222: Satz 3
A223: Datum | J223: wenn erforderlich | S223: wenn erforderlich
J224: Satz 4 | S224: Satz 4
J225: wenn erforderlich | S225: wenn erforderlich
A226: ='R28_Baum'!$D$16 -> Robl Ronald | J226: Satz 5 | S226: Satz 5
A227: Name | J227: wenn erforderlich | S227: wenn erforderlich
A228: ='R28_Baum'!$F$16 -> Austrian Free Archer | J228: Stechen | S228: Stechen
A229: Verein | O229: gewonnen | X229: gewonnen
A230: =Select!$C$18 -> Recurve Herren | J230: Schütze: | O230: verloren | S230: Schütze: | X230: verloren
A231: Bogenklasse
... 668 more rows

Sheet R28_Ergebnis (hidden)
A2: =Select!$C$12 -> Demoturnier | E2: =Select!C14 -> WA-Outdoor
A3: =Select!C13 -> 1. April 2019
A5: Ergebnisliste
A7: =Select!C18 -> Recurve Herren | L7: !!!!!!!!!!!!!!!!!!!!!!!!!! SORTIERBEREICH - NICHT ENTFERNEN !!!!!!!!!!!!!!!!!!!!!!!!!!
A9: Pl. | C9: Name | D9: Verein | E9: Quali. | F9: 1/12 | G9: 1/8 | H9: 1/4 | I9: 1/2 | J9: Finale | L9: SortName | M9: SortVerein | N9: SortQuali | O9: Sort 1/12 | P9: Sort1/8 | Q9: Sort1/4 | R9: Sort1/2 | S9: SortFinale
A10: =IF(C10<>"",1,"") ->  | L10: ='R28_Baum'!U7 ->  | M10: =VLOOKUP(L10,R_Quali!$C$10:$H$100,2,FALSE) ->  | N10: =VLOOKUP(L10,R_Quali!$C$10:$H$100,6,FALSE) ->  | O10: =VLOOKUP(L10,'R28_Baum'!$D$3:$G$64,4,FALSE) ->  | P10: =VLOOKUP(L10,'R28_Baum'!$I$5:$K$62,3,FALSE) -> 0 | Q10: =VLOOKUP(L10,'R28_Baum'!$M$9:$O$58,3,FALSE) -> 0 | R10: =VLOOKUP(L10,'R28_Baum'!$Q$17:$S$50,3,FALSE) -> 0 | S10: =VLOOKUP(L10,'R28_Baum'!$U$24:$W$42,3,FALSE) -> 0
A11: =IF(C11<>"",A10+1,"") ->  | L11: ='R28_Baum'!U9 ->  | M11: =VLOOKUP(L11,R_Quali!$C$10:$H$100,2,FALSE) ->  | N11: =VLOOKUP(L11,R_Quali!$C$10:$H$100,6,FALSE) ->  | O11: =VLOOKUP(L11,'R28_Baum'!$D$3:$G$64,4,FALSE) ->  | P11: =VLOOKUP(L11,'R28_Baum'!$I$5:$K$62,3,FALSE) -> 0 | Q11: =VLOOKUP(L11,'R28_Baum'!$M$9:$O$58,3,FALSE) -> 0 | R11: =VLOOKUP(L11,'R28_Baum'!$Q$17:$S$50,3,FALSE) -> 0 | S11: =VLOOKUP(L11,'R28_Baum'!$U$24:$W$42,3,FALSE) -> 0
L12: ='R28_Baum'!U11 ->  | M12: =VLOOKUP(L12,R_Quali!$C$10:$H$100,2,FALSE) ->  | N12: =VLOOKUP(L12,R_Quali!$C$10:$H$100,6,FALSE) ->  | O12: =VLOOKUP(L12,'R28_Baum'!$D$3:$G$64,4,FALSE) ->  | P12: =VLOOKUP(L12,'R28_Baum'!$I$5:$K$62,3,FALSE) -> 0 | Q12: =VLOOKUP(L12,'R28_Baum'!$M$9:$O$58,3,FALSE) -> 0 | R12: =VLOOKUP(L12,'R28_Baum'!$Q$17:$S$50,3,FALSE) -> 0 | S12: =VLOOKUP(L12,'R28_Baum'!$U$24:$W$42,3,FALSE) -> 0
L13: =IF('R28_Baum'!U11='R28_Baum'!U41,'R28_Baum'!U42,'R28_Baum'!U41) ->  | M13: =VLOOKUP(L13,R_Quali!$C$10:$H$100,2,FALSE) ->  | N13: =VLOOKUP(L13,R_Quali!$C$10:$H$100,6,FALSE) ->  | O13: =VLOOKUP(L13,'R28_Baum'!$D$3:$G$64,4,FALSE) ->  | P13: =VLOOKUP(L13,'R28_Baum'!$I$5:$K$62,3,FALSE) -> 0 | Q13: =VLOOKUP(L13,'R28_Baum'!$M$9:$O$58,3,FALSE) -> 0 | R13: =VLOOKUP(L13,'R28_Baum'!$Q$17:$S$50,3,FALSE) -> 0 | S13: =VLOOKUP(L13,'R28_Baum'!$U$24:$W$42,3,FALSE) -> 0
L14: =IF('R28_Baum'!Q17='R28_Baum'!M9,'R28_Baum'!M10,'R28_Baum'!M9) ->  | M14: =VLOOKUP(L14,R_Quali!$C$10:$H$100,2,FALSE) ->  | N14: =VLOOKUP(L14,R_Quali!$C$10:$H$100,6,FALSE) ->  | O14: =VLOOKUP(L14,'R28_Baum'!$D$3:$G$64,4,FALSE) ->  | P14: =VLOOKUP(L14,'R28_Baum'!$I$5:$K$62,3,FALSE) -> 0 | Q14: =VLOOKUP(L14,'R28_Baum'!$M$9:$O$58,3,FALSE) -> 0
L15: =IF('R28_Baum'!Q18='R28_Baum'!M25,'R28_Baum'!M26,'R28_Baum'!M25) ->  | M15: =VLOOKUP(L15,R_Quali!$C$10:$H$100,2,FALSE) ->  | N15: =VLOOKUP(L15,R_Quali!$C$10:$H$100,6,FALSE) ->  | O15: =VLOOKUP(L15,'R28_Baum'!$D$3:$G$64,4,FALSE) ->  | P15: =VLOOKUP(L15,'R28_Baum'!$I$5:$K$62,3,FALSE) -> 0 | Q15: =VLOOKUP(L15,'R28_Baum'!$M$9:$O$58,3,FALSE) -> 0
L16: =IF('R28_Baum'!Q49='R28_Baum'!M41,'R28_Baum'!M42,'R28_Baum'!M41) ->  | M16: =VLOOKUP(L16,R_Quali!$C$10:$H$100,2,FALSE) ->  | N16: =VLOOKUP(L16,R_Quali!$C$10:$H$100,6,FALSE) ->  | O16: =VLOOKUP(L16,'R28_Baum'!$D$3:$G$64,4,FALSE) ->  | P16: =VLOOKUP(L16,'R28_Baum'!$I$5:$K$62,3,FALSE) -> 0 | Q16: =VLOOKUP(L16,'R28_Baum'!$M$9:$O$58,3,FALSE) -> 0
L17: =IF('R28_Baum'!Q50='R28_Baum'!M57,'R28_Baum'!M58,'R28_Baum'!M57) ->  | M17: =VLOOKUP(L17,R_Quali!$C$10:$H$100,2,FALSE) ->  | N17: =VLOOKUP(L17,R_Quali!$C$10:$H$100,6,FALSE) ->  | O17: =VLOOKUP(L17,'R28_Baum'!$D$3:$G$64,4,FALSE) ->  | P17: =VLOOKUP(L17,'R28_Baum'!$I$5:$K$62,3,FALSE) -> 0 | Q17: =VLOOKUP(L17,'R28_Baum'!$M$9:$O$58,3,FALSE) -> 0
L18: =IF('R28_Baum'!M9='R28_Baum'!I5,'R28_Baum'!I6,'R28_Baum'!I5) -> Url Günter | M18: =VLOOKUP(L18,R_Quali!$C$10:$H$100,2,FALSE) -> BSC-Wolfspfeil Raab-Holzer | N18: =VLOOKUP(L18,R_Quali!$C$10:$H$100,6,FALSE) -> 532 | O18: =VLOOKUP(L18,'R28_Baum'!$D$3:$G$64,4,FALSE) -> * | P18: =VLOOKUP(L18,'R28_Baum'!$I$5:$K$62,3,FALSE) -> 0
L19: =IF('R28_Baum'!M10='R28_Baum'!I13,'R28_Baum'!I14,'R28_Baum'!I13) ->  | M19: =VLOOKUP(L19,R_Quali!$C$10:$H$100,2,FALSE) ->  | N19: =VLOOKUP(L19,R_Quali!$C$10:$H$100,6,FALSE) ->  | O19: =VLOOKUP(L19,'R28_Baum'!$D$3:$G$64,4,FALSE) ->  | P19: =VLOOKUP(L19,'R28_Baum'!$I$5:$K$62,3,FALSE) -> 0
L20: =IF('R28_Baum'!M25='R28_Baum'!I21,'R28_Baum'!I22,'R28_Baum'!I21) ->  | M20: =VLOOKUP(L20,R_Quali!$C$10:$H$100,2,FALSE) ->  | N20: =VLOOKUP(L20,R_Quali!$C$10:$H$100,6,FALSE) ->  | O20: =VLOOKUP(L20,'R28_Baum'!$D$3:$G$64,4,FALSE) ->  | P20: =VLOOKUP(L20,'R28_Baum'!$I$5:$K$62,3,FALSE) -> 0
L21: =IF('R28_Baum'!M26='R28_Baum'!I29,'R28_Baum'!I30,'R28_Baum'!I29) -> Krempl Werner | M21: =VLOOKUP(L21,R_Quali!$C$10:$H$100,2,FALSE) -> BSC Semriach | N21: =VLOOKUP(L21,R_Quali!$C$10:$H$100,6,FALSE) -> 529 | O21: =VLOOKUP(L21,'R28_Baum'!$D$3:$G$64,4,FALSE) -> * | P21: =VLOOKUP(L21,'R28_Baum'!$I$5:$K$62,3,FALSE) -> 0
L22: =IF('R28_Baum'!M41='R28_Baum'!I37,'R28_Baum'!I38,'R28_Baum'!I37) -> Strohmaier Joachim | M22: =VLOOKUP(L22,R_Quali!$C$10:$H$100,2,FALSE) -> BSC Kumberg | N22: =VLOOKUP(L22,R_Quali!$C$10:$H$100,6,FALSE) -> 530 | O22: =VLOOKUP(L22,'R28_Baum'!$D$3:$G$64,4,FALSE) -> * | P22: =VLOOKUP(L22,'R28_Baum'!$I$5:$K$62,3,FALSE) -> 0
L23: =IF('R28_Baum'!M42='R28_Baum'!I45,'R28_Baum'!I46,'R28_Baum'!I45) ->  | M23: =VLOOKUP(L23,R_Quali!$C$10:$H$100,2,FALSE) ->  | N23: =VLOOKUP(L23,R_Quali!$C$10:$H$100,6,FALSE) ->  | O23: =VLOOKUP(L23,'R28_Baum'!$D$3:$G$64,4,FALSE) ->  | P23: =VLOOKUP(L23,'R28_Baum'!$I$5:$K$62,3,FALSE) -> 0
L24: =IF('R28_Baum'!M57='R28_Baum'!I53,'R28_Baum'!I54,'R28_Baum'!I53) ->  | M24: =VLOOKUP(L24,R_Quali!$C$10:$H$100,2,FALSE) ->  | N24: =VLOOKUP(L24,R_Quali!$C$10:$H$100,6,FALSE) ->  | O24: =VLOOKUP(L24,'R28_Baum'!$D$3:$G$64,4,FALSE) ->  | P24: =VLOOKUP(L24,'R28_Baum'!$I$5:$K$62,3,FALSE) -> 0
L25: =IF('R28_Baum'!M58='R28_Baum'!I61,'R28_Baum'!I62,'R28_Baum'!I61) -> Berger Hermann | M25: =VLOOKUP(L25,R_Quali!$C$10:$H$100,2,FALSE) -> BSV Glemmerhof | N25: =VLOOKUP(L25,R_Quali!$C$10:$H$100,6,FALSE) -> 531 | O25: =VLOOKUP(L25,'R28_Baum'!$D$3:$G$64,4,FALSE) -> * | P25: =VLOOKUP(L25,'R28_Baum'!$I$5:$K$62,3,FALSE) -> 0
A26: =IF(C26<>"",A25+1,"") ->  | L26: =IF('R28_Baum'!I6='R28_Baum'!D7,'R28_Baum'!D8,'R28_Baum'!D7) -> Schweiger Peter | M26: =VLOOKUP(L26,R_Quali!$C$10:$H$100,2,FALSE) -> BSV-Blumental | N26: =VLOOKUP(L26,R_Quali!$C$10:$H$100,6,FALSE) -> 516 | O26: =VLOOKUP(L26,'R28_Baum'!$D$3:$G$64,4,FALSE) -> 0
L27: =IF('R28_Baum'!I13='R28_Baum'!D11,'R28_Baum'!D12,'R28_Baum'!D11) -> Traxler Helmuth | M27: =VLOOKUP(L27,R_Quali!$C$10:$H$100,2,FALSE) -> UBC Diana NÖ | N27: =VLOOKUP(L27,R_Quali!$C$10:$H$100,6,FALSE) -> 524 | O27: =VLOOKUP(L27,'R28_Baum'!$D$3:$G$64,4,FALSE) -> 0
L28: =IF('R28_Baum'!I14='R28_Baum'!D15,'R28_Baum'!D16,'R28_Baum'!D15) -> Wallner Ewald | M28: =VLOOKUP(L28,R_Quali!$C$10:$H$100,2,FALSE) -> BSC Sölkpass | N28: =VLOOKUP(L28,R_Quali!$C$10:$H$100,6,FALSE) -> 508 | O28: =VLOOKUP(L28,'R28_Baum'!$D$3:$G$64,4,FALSE) -> 0
L29: =IF('R28_Baum'!I21='R28_Baum'!D19,'R28_Baum'!D20,'R28_Baum'!D19) -> Höllwirth Andreas | M29: =VLOOKUP(L29,R_Quali!$C$10:$H$100,2,FALSE) -> ASKÖ-Luftenberg | N29: =VLOOKUP(L29,R_Quali!$C$10:$H$100,6,FALSE) -> 528 | O29: =VLOOKUP(L29,'R28_Baum'!$D$3:$G$64,4,FALSE) -> 0
L30: =IF('R28_Baum'!I22='R28_Baum'!D23,'R28_Baum'!D24,'R28_Baum'!D23) -> Pupetschek Manfred | M30: =VLOOKUP(L30,R_Quali!$C$10:$H$100,2,FALSE) -> IHG Sektion Bogen | N30: =VLOOKUP(L30,R_Quali!$C$10:$H$100,6,FALSE) -> 512 | O30: =VLOOKUP(L30,'R28_Baum'!$D$3:$G$64,4,FALSE) -> 0
L31: =IF('R28_Baum'!I29='R28_Baum'!D27,'R28_Baum'!D28,'R28_Baum'!D27) -> Jandl Ernst | M31: =VLOOKUP(L31,R_Quali!$C$10:$H$100,2,FALSE) -> PSV Burgenland - Sektion Bogen | N31: =VLOOKUP(L31,R_Quali!$C$10:$H$100,6,FALSE) -> 520 | O31: =VLOOKUP(L31,'R28_Baum'!$D$3:$G$64,4,FALSE) -> 0
L32: =IF('R28_Baum'!I38='R28_Baum'!D39,'R28_Baum'!D40,'R28_Baum'!D39) -> Winkler Klaus | M32: =VLOOKUP(L32,R_Quali!$C$10:$H$100,2,FALSE) -> BSC Enzenreith | N32: =VLOOKUP(L32,R_Quali!$C$10:$H$100,6,FALSE) -> 514 | O32: =VLOOKUP(L32,'R28_Baum'!$D$3:$G$64,4,FALSE) -> 0
L33: =IF('R28_Baum'!I45='R28_Baum'!D43,'R28_Baum'!D44,'R28_Baum'!D43) -> Reicher Ernst | M33: =VLOOKUP(L33,R_Quali!$C$10:$H$100,2,FALSE) -> BSC Wörthersee | N33: =VLOOKUP(L33,R_Quali!$C$10:$H$100,6,FALSE) -> 522 | O33: =VLOOKUP(L33,'R28_Baum'!$D$3:$G$64,4,FALSE) -> 0
A34: =IF(C34<>"",A33+1,"") ->  | L34: =IF('R28_Baum'!I46='R28_Baum'!D47,'R28_Baum'!D48,'R28_Baum'!D47) -> Radauer Helmuth | M34: =VLOOKUP(L34,R_Quali!$C$10:$H$100,2,FALSE) -> BSC Ennstal | N34: =VLOOKUP(L34,R_Quali!$C$10:$H$100,6,FALSE) -> 506 | O34: =VLOOKUP(L34,'R28_Baum'!$D$3:$G$64,4,FALSE) -> 0
A35: =IF(C35<>"",A34+1,"") ->  | L35: =IF('R28_Baum'!I53='R28_Baum'!D51,'R28_Baum'!D52,'R28_Baum'!D51) -> Bucher Martin | M35: =VLOOKUP(L35,R_Quali!$C$10:$H$100,2,FALSE) -> LH Graz | N35: =VLOOKUP(L35,R_Quali!$C$10:$H$100,6,FALSE) -> 526 | O35: =VLOOKUP(L35,'R28_Baum'!$D$3:$G$64,4,FALSE) -> 0
A36: =IF(C36<>"",A35+1,"") ->  | L36: =IF('R28_Baum'!I54='R28_Baum'!D55,'R28_Baum'!D56,'R28_Baum'!D55) -> Kutmon Wilhelm | M36: =VLOOKUP(L36,R_Quali!$C$10:$H$100,2,FALSE) -> BS Ligist - Archery Freaks | N36: =VLOOKUP(L36,R_Quali!$C$10:$H$100,6,FALSE) -> 510 | O36: =VLOOKUP(L36,'R28_Baum'!$D$3:$G$64,4,FALSE) -> 0
A37: =IF(C37<>"",A36+1,"") ->  | L37: =IF('R28_Baum'!I61='R28_Baum'!D59,'R28_Baum'!D60,'R28_Baum'!D59) -> Markl Mario | M37: =VLOOKUP(L37,R_Quali!$C$10:$H$100,2,FALSE) -> BSV Dakota | N37: =VLOOKUP(L37,R_Quali!$C$10:$H$100,6,FALSE) -> 518 | O37: =VLOOKUP(L37,'R28_Baum'!$D$3:$G$64,4,FALSE) -> 0

Sheet R52_Baum (hidden)
B2: Schb. | C2: Qual. | D2: Name | E2: Land | F2: Verein | G2: Erg. | R2: =Select!C12 -> Demoturnier
A3: 1 | C3: =R_Quali!H10 -> 532 | D3: =R_Quali!C10 -> Url Günter | E3: =R_Quali!E10 -> ST | F3: =R_Quali!D10 -> BSC-Wolfspfeil Raab-Holzer | H3: Schb. | I3: Name | J3: Land | K3: Erg.
I4: =D3 -> Url Günter | J4: =E3 -> ST
L5: Schb | M5: Name | N5: Land | O5: Erg. | R5: =Select!C13 -> 1. April 2019
A6: 17 | B6: =E116 -> 3A | C6: =R_Quali!H26 -> 516 | D6: =R_Quali!C26 -> Schweiger Peter | E6: =R_Quali!E26 -> ST | F6: =R_Quali!D26 -> BSV-Blumental | L6: =N116 -> 3A | M6: =I4 -> Url Günter | N6: =J4 -> ST
A7: 40 | B7: =E117 -> 3B | C7: =R_Quali!H49 -> 483 | D7: =R_Quali!C49 -> Kramer Michael | E7: =R_Quali!E49 -> OÖ | F7: =R_Quali!D49 -> Union Ried in der Riedmark | L7: =N117 -> 3B | M7: =IF($K8>$K9,$I8,IF($K9>$K8,$I9,IF(RIGHT($K8,1)="*",$I8,IF(RIGHT($K9,1)="*",$I9,"")))) ->  | N7: =IF($K8>$K9,$J8,IF($K9>$K8,$J9,IF(RIGHT($K8,1)="*",$J8,IF(RIGHT($K9,1)="*",$J9,"")))) -> 
H8: =J116 -> 3A | I8: =IF($G6>$G7,$D6,IF($G7>$G6,$D7,IF(RIGHT($G6,1)="*",$D6,IF(RIGHT($G7,1)="*",$D7,"")))) ->  | J8: =IF($G6>$G7,$E6,IF($G7>$G6,$E7,IF(RIGHT($G6,1)="*",$E6,IF(RIGHT($G7,1)="*",$E7,"")))) ->  | X8: 1. | Y8: =IF($AA$44>$AA$45,$Y$44,IF($AA$45>$AA$44,$Y$45,IF(RIGHT($AA$44,1)="*",$Y$44,IF(RIGHT($AA$45,1)="*",$Y$45,"")))) ->  | AA8: =IF($AA$44>$AA$45,$Z$44,IF($AA$45>$AA$44,$Z$45,IF(RIGHT($AA$44,1)="*",$Z$44,IF(RIGHT($AA$45,1)="*",$Z$45,"")))) -> 
H9: =J117 -> 3B | I9: =IF($G10>$G11,$D10,IF($G11>$G10,$D11,IF(RIGHT($G10,1)="*",$D10,IF(RIGHT($G11,1)="*",$D11,"")))) ->  | J9: =IF($G10>$G11,$E10,IF($G11>$G10,$E11,IF(RIGHT($G10,1)="*",$E10,IF(RIGHT($G11,1)="*",$E11,"")))) -> 
A10: 41 | B10: =E118 -> 4A | C10: =R_Quali!H50 -> 479 | D10: =R_Quali!C50 -> Thuswald Alfred | E10: =R_Quali!E50 -> OÖ | F10: =R_Quali!D50 -> ASKÖ Gunskirchen | X10: 2. | Y10: =IF($AA$44<$AA$45,$Y$44,IF($AA$45<$AA$44,$Y$45,IF(RIGHT($AA$45,1)="*",$Y$44,IF(RIGHT($AA$44,1)="*",$Y$45,"")))) ->  | AA10: =IF($AA$44<$AA$45,$Z$44,IF($AA$45<$AA$44,$Z$45,IF(RIGHT($AA$45,1)="*",$Z$44,IF(RIGHT($AA$44,1)="*",$Z$45,"")))) -> 
A11: 16 | B11: =E119 -> 4B | C11: =R_Quali!H25 -> 517 | D11: =R_Quali!C25 -> Lackner Uwe | E11: =R_Quali!E25 -> ST | F11: =R_Quali!D25 -> LH Graz | P11: Schb | Q11: Name | R11: Land | S11: Erg.
P12: =R116 -> 5 | Q12: =IF($O6>$O7,$M6,IF($O7>$O6,$M7,IF(RIGHT($O6,1)="*",$M6,IF(RIGHT($O7,1)="*",$M7,"")))) ->  | R12: =IF($O6>$O7,$N6,IF($O7>$O6,$N7,IF(RIGHT($O6,1)="*",$N6,IF(RIGHT($O7,1)="*",$N7,"")))) ->  | X12: 3. | Y12: =IF($AA$66>$AA$67,$Y$66,IF($AA$67>$AA$66,$Y$67,IF(RIGHT($AA$66,1)="*",$Y$66,IF(RIGHT($AA$67,1)="*",$Y$67,"")))) ->  | AA12: =IF($AA$66>$AA$67,$Z$66,IF($AA$67>$AA$66,$Z$67,IF(RIGHT($AA$66,1)="*",$Z$66,IF(RIGHT($AA$67,1)="*",$Z$67,"")))) -> 
P13: =R117 -> 6 | Q13: =IF($O20>$O21,$M20,IF($O21>$O20,$M21,IF(RIGHT($O20,1)="*",$M20,IF(RIGHT($O21,1)="*",$M21,"")))) ->  | R13: =IF($O20>$O21,$N20,IF($O21>$O20,$N21,IF(RIGHT($O20,1)="*",$N20,IF(RIGHT($O21,1)="*",$N21,"")))) -> 
A14: 9 | B14: =E120 -> 5A | C14: =R_Quali!H18 -> 524 | D14: =R_Quali!C18 -> Traxler Helmuth | E14: =R_Quali!E18 -> NÖ | F14: =R_Quali!D18 -> UBC Diana NÖ
A15: 48 | B15: =E121 -> 5B | C15: =R_Quali!H57 -> 472 | D15: =R_Quali!C57 -> Schinko Bernhard | E15: =R_Quali!E57 -> OÖ | F15: =R_Quali!D57 -> BSV Offenhausen
H16: =J118 -> 4A | I16: =IF($G14>$G15,$D14,IF($G15>$G14,$D15,IF(RIGHT($G14,1)="*",$D14,IF(RIGHT($G15,1)="*",$D15,"")))) ->  | J16: =IF($G14>$G15,$E14,IF($G15>$G14,$E15,IF(RIGHT($G14,1)="*",$E14,IF(RIGHT($G15,1)="*",$E15,"")))) -> 
H17: =J119 -> 4B | I17: =IF($G18>$G19,$D18,IF($G19>$G18,$D19,IF(RIGHT($G18,1)="*",$D18,IF(RIGHT($G19,1)="*",$D19,"")))) ->  | J17: =IF($G18>$G19,$E18,IF($G19>$G18,$E19,IF(RIGHT($G18,1)="*",$E18,IF(RIGHT($G19,1)="*",$E19,"")))) -> 
A18: 33 | B18: =E122 -> 6A | C18: =R_Quali!H42 -> 500 | D18: =R_Quali!C42 -> Werlitsch Ernst | E18: =R_Quali!E42 -> ST | F18: =R_Quali!D42 -> EAT-Bogensport
A19: 24 | B19: =E123 -> 6B | C19: =R_Quali!H33 -> 509 | D19: =R_Quali!C33 -> Eidenberger Karl | E19: =R_Quali!E33 -> B | F19: =R_Quali!D33 -> PSV Burgenland - Sektion Bogen
L20: =N118 -> 4A | M20: =IF($K16>$K17,$I16,IF($K17>$K16,$I17,IF(RIGHT($K16,1)="*",$I16,IF(RIGHT($K17,1)="*",$I17,"")))) ->  | N20: =IF($K16>$K17,$J16,IF($K17>$K16,$J17,IF(RIGHT($K16,1)="*",$J16,IF(RIGHT($K17,1)="*",$J17,"")))) -> 
L21: =N119 -> 4B | M21: =IF($K24>$K25,$I24,IF($K25>$K24,$I25,IF(RIGHT($K24,1)="*",$I24,IF(RIGHT($K25,1)="*",$I25,"")))) ->  | N21: =IF($K24>$K25,$J24,IF($K25>$K24,$J25,IF(RIGHT($K24,1)="*",$J24,IF(RIGHT($K25,1)="*",$J25,"")))) -> 
A22: 25 | B22: =E124 -> 7A | C22: =R_Quali!H34 -> 508 | D22: =R_Quali!C34 -> Wallner Ewald | E22: =R_Quali!E34 -> ST | F22: =R_Quali!D34 -> BSC Sölkpass
A23: 32 | B23: =E125 -> 7B | C23: =R_Quali!H41 -> 501 | D23: =R_Quali!C41 -> Klampfer Markus | E23: =R_Quali!E41 -> S | F23: =R_Quali!D41 -> Club 3-D Austria Bogensport
H24: =J120 -> 5A | I24: =IF($G22>$G23,$D22,IF($G23>$G22,$D23,IF(RIGHT($G22,1)="*",$D22,IF(RIGHT($G23,1)="*",$D23,"")))) ->  | J24: =IF($G22>$G23,$E22,IF($G23>$G22,$E23,IF(RIGHT($G22,1)="*",$E22,IF(RIGHT($G23,1)="*",$E23,"")))) -> 
H25: =J121 -> 5B | I25: =IF($G26>$G27,$D26,IF($G27>$G26,$D27,IF(RIGHT($G26,1)="*",$D26,IF(RIGHT($G27,1)="*",$D27,"")))) ->  | J25: =IF($G26>$G27,$E26,IF($G27>$G26,$E27,IF(RIGHT($G26,1)="*",$E26,IF(RIGHT($G27,1)="*",$E27,"")))) -> 
A26: 49 | B26: =E126 -> 8A | C26: =R_Quali!H58 -> 472 | D26: =R_Quali!C58 -> Linhart Christian | E26: =R_Quali!E58 -> B | F26: =R_Quali!D58 -> BSV Stöttera
A27: 8 | B27: =E127 -> 8B | C27: =R_Quali!H17 -> 525 | D27: =R_Quali!C17 -> Robl Ronald | E27: =R_Quali!E17 -> NÖ | F27: =R_Quali!D17 -> Austrian Free Archer
T29: Schb | U29: Name | V29: Land | W29: Erg.
A30: 5 | B30: =E128 -> 9A | C30: =R_Quali!H14 -> 528 | D30: =R_Quali!C14 -> Höllwirth Andreas | E30: =R_Quali!E14 -> OÖ | F30: =R_Quali!D14 -> ASKÖ-Luftenberg | T30: =V116 -> 5 | U30: =IF($S12>$S13,$Q12,IF($S13>$S12,$Q13,IF(RIGHT($S12,1)="*",$Q12,IF(RIGHT($S13,1)="*",$Q13,"")))) ->  | V30: =IF($S12>$S13,$R12,IF($S13>$S12,$R13,IF(RIGHT($S12,1)="*",$R12,IF(RIGHT($S13,1)="*",$R13,"")))) -> 
A31: 52 | B31: =E129 -> 9B | C31: =R_Quali!H61 -> 467 | D31: =R_Quali!C61 -> Thullner Erik | E31: =R_Quali!E61 -> NÖ | F31: =R_Quali!D61 -> BSV - Lassee | T31: =V117 -> 6 | U31: =IF($S44>$S45,$Q44,IF($S45>$S44,$Q45,IF(RIGHT($S44,1)="*",$Q44,IF(RIGHT($S45,1)="*",$Q45,"")))) ->  | V31: =IF($S44>$S45,$R44,IF($S45>$S44,$R45,IF(RIGHT($S44,1)="*",$R44,IF(RIGHT($S45,1)="*",$R45,"")))) -> 
H32: =J122 -> 6A | I32: =IF($G30>$G31,$D30,IF($G31>$G30,$D31,IF(RIGHT($G30,1)="*",$D30,IF(RIGHT($G31,1)="*",$D31,"")))) ->  | J32: =IF($G30>$G31,$E30,IF($G31>$G30,$E31,IF(RIGHT($G30,1)="*",$E30,IF(RIGHT($G31,1)="*",$E31,"")))) -> 
H33: =J123 -> 6B | I33: =IF($G34>$G35,$D34,IF($G35>$G34,$D35,IF(RIGHT($G34,1)="*",$D34,IF(RIGHT($G35,1)="*",$D35,"")))) ->  | J33: =IF($G34>$G35,$E34,IF($G35>$G34,$E35,IF(RIGHT($G34,1)="*",$E34,IF(RIGHT($G35,1)="*",$E35,"")))) -> 
A34: 29 | B34: =E130 -> 10A | C34: =R_Quali!H38 -> 504 | D34: =R_Quali!C38 -> Simmer Gerhard | E34: =R_Quali!E38 -> NÖ | F34: =R_Quali!D38 -> Union Bogensport Haag
A35: 28 | B35: =E131 -> 10B | C35: =R_Quali!H37 -> 505 | D35: =R_Quali!C37 -> Eberle Roland | E35: =R_Quali!E37 -> NÖ | F35: =R_Quali!D37 -> Austrian Free Archer
L36: =N120 -> 5A | M36: =IF($K32>$K33,$I32,IF($K33>$K32,$I33,IF(RIGHT($K32,1)="*",$I32,IF(RIGHT($K33,1)="*",$I33,"")))) ->  | N36: =IF($K32>$K33,$J32,IF($K33>$K32,$J33,IF(RIGHT($K32,1)="*",$J32,IF(RIGHT($K33,1)="*",$J33,"")))) -> 
L37: =N121 -> 5B | M37: =IF($K40>$K41,$I40,IF($K41>$K40,$I41,IF(RIGHT($K40,1)="*",$I40,IF(RIGHT($K41,1)="*",$I41,"")))) ->  | N37: =IF($K40>$K41,$J40,IF($K41>$K40,$J41,IF(RIGHT($K40,1)="*",$J40,IF(RIGHT($K41,1)="*",$J41,"")))) -> 
A38: 21 | B38: =E132 -> 11A | C38: =R_Quali!H30 -> 512 | D38: =R_Quali!C30 -> Pupetschek Manfred | E38: =R_Quali!E30 -> T | F38: =R_Quali!D30 -> IHG Sektion Bogen
A39: 36 | B39: =E133 -> 11B | C39: =R_Quali!H45 -> 487 | D39: =R_Quali!C45 -> Zorgovsky Peter | E39: =R_Quali!E45 -> W | F39: =R_Quali!D45 -> BSV Schönbrunn
H40: =J124 -> 7A | I40: =IF($G38>$G39,$D38,IF($G39>$G38,$D39,IF(RIGHT($G38,1)="*",$D38,IF(RIGHT($G39,1)="*",$D39,"")))) ->  | J40: =IF($G38>$G39,$E38,IF($G39>$G38,$E39,IF(RIGHT($G38,1)="*",$E38,IF(RIGHT($G39,1)="*",$E39,"")))) -> 
H41: =J125 -> 7B | I41: =IF($G42>$G43,$D42,IF($G43>$G42,$D43,IF(RIGHT($G42,1)="*",$D42,IF(RIGHT($G43,1)="*",$D43,"")))) ->  | J41: =IF($G42>$G43,$E42,IF($G43>$G42,$E43,IF(RIGHT($G42,1)="*",$E42,IF(RIGHT($G43,1)="*",$E43,"")))) ->  | AE41: =IF($W30>$W31,$U30,IF($W31>$W30,$U31,IF(RIGHT($W30,1)="*",$U30,IF(RIGHT($W31,1)="*",$U31,"")))) ->  | AF41: =IF($W30>$W31,$V30,IF($W31>$W30,$V31,IF(RIGHT($W30,1)="*",$V30,IF(RIGHT($W31,1)="*",$V31,"")))) -> 
A42: 45 | B42: =E134 -> 12A | C42: =R_Quali!H54 -> 475 | D42: =R_Quali!C54 -> Bouse Harald | E42: =R_Quali!E54 -> W | F42: =R_Quali!D54 -> BSV Schönbrunn
A43: 12 | B43: =E135 -> 12B | C43: =R_Quali!H21 -> 521 | D43: =R_Quali!C21 -> Bauer Helfried | E43: =R_Quali!E21 -> NÖ | F43: =R_Quali!D21 -> Austrian Free Archer | U43: Finale | X43: Schb | Y43: Name | Z43: Land | AA43: Erg.
P44: =R118 -> 7 | Q44: =IF($O36>$O37,$M36,IF($O37>$O36,$M37,IF(RIGHT($O36,1)="*",$M36,IF(RIGHT($O37,1)="*",$M37,"")))) ->  | R44: =IF($O36>$O37,$N36,IF($O37>$O36,$N37,IF(RIGHT($O36,1)="*",$N36,IF(RIGHT($O37,1)="*",$N37,"")))) ->  | X44: =Z116 -> 5 | Y44: =IF($W30>$W31,$U30,IF($W31>$W30,$U31,IF(RIGHT($W30,1)="*",$U30,IF(RIGHT($W31,1)="*",$U31,"")))) ->  | Z44: =IF($W30>$W31,$V30,IF($W31>$W30,$V31,IF(RIGHT($W30,1)="*",$V30,IF(RIGHT($W31,1)="*",$V31,"")))) ->  | AE44: =IF($W82>$W83,$U82,IF($W83>$W82,$U83,IF(RIGHT($W82,1)="*",$U82,IF(RIGHT($W83,1)="*",$U83,"")))) ->  | AF44: =IF($W82>$W83,$V82,IF($W83>$W82,$V83,IF(RIGHT($W82,1)="*",$V82,IF(RIGHT($W83,1)="*",$V83,"")))) -> 
P45: =R119 -> 8 | Q45: =IF($O50>$O51,$M50,IF($O51>$O50,$M51,IF(RIGHT($O50,1)="*",$M50,IF(RIGHT($O51,1)="*",$M51,"")))) ->  | R45: =IF($O50>$O51,$N50,IF($O51>$O50,$N51,IF(RIGHT($O50,1)="*",$N50,IF(RIGHT($O51,1)="*",$N51,"")))) ->  | U45: 1. und 2. Platz | X45: =Z117 -> 6 | Y45: =IF($W82>$W83,$U82,IF($W83>$W82,$U83,IF(RIGHT($W82,1)="*",$U82,IF(RIGHT($W83,1)="*",$U83,"")))) ->  | Z45: =IF($W82>$W83,$V82,IF($W83>$W82,$V83,IF(RIGHT($W82,1)="*",$V82,IF(RIGHT($W83,1)="*",$V83,"")))) -> 
A46: 13 | B46: =E136 -> 13A | C46: =R_Quali!H22 -> 520 | D46: =R_Quali!C22 -> Jandl Ernst | E46: =R_Quali!E22 -> B | F46: =R_Quali!D22 -> PSV Burgenland - Sektion Bogen
A47: 44 | B47: =E137 -> 13B | C47: =R_Quali!H53 -> 476 | D47: =R_Quali!C53 -> Schauer Bernhard | E47: =R_Quali!E53 -> OÖ | F47: =R_Quali!D53 -> SVM Sportverein Magistrat Linz
H48: =J126 -> 8A | I48: =IF($G46>$G47,$D46,IF($G47>$G46,$D47,IF(RIGHT($G46,1)="*",$D46,IF(RIGHT($G47,1)="*",$D47,"")))) ->  | J48: =IF($G46>$G47,$E46,IF($G47>$G46,$E47,IF(RIGHT($G46,1)="*",$E46,IF(RIGHT($G47,1)="*",$E47,"")))) -> 
H49: =J127 -> 8B | I49: =IF($G50>$G51,$D50,IF($G51>$G50,$D51,IF(RIGHT($G50,1)="*",$D50,IF(RIGHT($G51,1)="*",$D51,"")))) ->  | J49: =IF($G50>$G51,$E50,IF($G51>$G50,$E51,IF(RIGHT($G50,1)="*",$E50,IF(RIGHT($G51,1)="*",$E51,"")))) -> 
A50: 37 | B50: =E138 -> 14A | C50: =R_Quali!H46 -> 487 | D50: =R_Quali!C46 -> Mühlgassner Wolfgang | E50: =R_Quali!E46 -> W | F50: =R_Quali!D46 -> UBSC Artemis Wien | L50: =N122 -> 6A | M50: =IF($K48>$K49,$I48,IF($K49>$K48,$I49,IF(RIGHT($K48,1)="*",$I48,IF(RIGHT($K49,1)="*",$I49,"")))) ->  | N50: =IF($K48>$K49,$J48,IF($K49>$K48,$J49,IF(RIGHT($K48,1)="*",$J48,IF(RIGHT($K49,1)="*",$J49,"")))) -> 
A51: 20 | B51: =E139 -> 14B | C51: =R_Quali!H29 -> 513 | D51: =R_Quali!C29 -> Stiftner Alfred | E51: =R_Quali!E29 -> OÖ | F51: =R_Quali!D29 -> BC Kronstorf | L51: =N123 -> 6B | M51: =I53 -> Krempl Werner | N51: =J53 -> ST
I53: =D54 -> Krempl Werner | J53: =E54 -> ST
A54: 4 | C54: =R_Quali!H13 -> 529 | D54: =R_Quali!C13 -> Krempl Werner | E54: =R_Quali!E13 -> ST | F54: =R_Quali!D13 -> BSC Semriach
A57: 3 | C57: =R_Quali!H12 -> 530 | D57: =R_Quali!C12 -> Strohmaier Joachim | E57: =R_Quali!E12 -> ST | F57: =R_Quali!D12 -> BSC Kumberg
I58: =D57 -> Strohmaier Joachim | J58: =E57 -> ST
A60: 19 | B60: =E140 -> 15A | C60: =R_Quali!H28 -> 514 | D60: =R_Quali!C28 -> Winkler Klaus | E60: =R_Quali!E28 -> NÖ | F60: =R_Quali!D28 -> BSC Enzenreith | L60: =N124 -> 7A | M60: =I58 -> Strohmaier Joachim | N60: =J58 -> ST
A61: 38 | B61: =E141 -> 15B | C61: =R_Quali!H47 -> 484 | D61: =R_Quali!C47 -> Greis Christian | E61: =R_Quali!E47 -> NÖ | F61: =R_Quali!D47 -> BSV Spannberg | L61: =N125 -> 7B | M61: =IF($K62>$K63,$I62,IF($K63>$K62,$I63,IF(RIGHT($K62,1)="*",$I62,IF(RIGHT($K63,1)="*",$I63,"")))) ->  | N61: =IF($K62>$K63,$J62,IF($K63>$K62,$J63,IF(RIGHT($K62,1)="*",$J62,IF(RIGHT($K63,1)="*",$J63,"")))) -> 
H62: =J128 -> 9A | I62: =IF($G60>$G61,$D60,IF($G61>$G60,$D61,IF(RIGHT($G60,1)="*",$D60,IF(RIGHT($G61,1)="*",$D61,"")))) ->  | J62: =IF($G60>$G61,$E60,IF($G61>$G60,$E61,IF(RIGHT($G60,1)="*",$E60,IF(RIGHT($G61,1)="*",$E61,"")))) -> 
H63: =J129 -> 9B | I63: =IF($G64>$G65,$D64,IF($G65>$G64,$D65,IF(RIGHT($G64,1)="*",$D64,IF(RIGHT($G65,1)="*",$D65,"")))) ->  | J63: =IF($G64>$G65,$E64,IF($G65>$G64,$E65,IF(RIGHT($G64,1)="*",$E64,IF(RIGHT($G65,1)="*",$E65,"")))) -> 
A64: 43 | B64: =E142 -> 16A | C64: =R_Quali!H52 -> 476 | D64: =R_Quali!C52 -> Galler Joachim | E64: =R_Quali!E52 -> B | F64: =R_Quali!D52 -> BSV Mattersburg
A65: 14 | B65: =E143 -> 16B | C65: =R_Quali!H23 -> 519 | D65: =R_Quali!C23 -> Schramm Wolfgang | E65: =R_Quali!E23 -> OÖ | F65: =R_Quali!D23 -> LINZ AG Sport - Sektion Bogen | U65: Finale
P66: =R120 -> 9 | Q66: =IF($O60>$O61,$M60,IF($O61>$O60,$M61,IF(RIGHT($O60,1)="*",$M60,IF(RIGHT($O61,1)="*",$M61,"")))) ->  | R66: =IF($O60>$O61,$N60,IF($O61>$O60,$N61,IF(RIGHT($O60,1)="*",$N60,IF(RIGHT($O61,1)="*",$N61,"")))) ->  | X66: =Z118 -> 5 | Y66: =IF($W30>$W31,$U31,IF($W31>$W30,$U30,IF(RIGHT($W30,1)="*",$U31,IF(RIGHT($W31,1)="*",$U30,"")))) ->  | Z66: =IF($W30>$W31,$V31,IF($W31>$W30,$V30,IF(RIGHT($W30,1)="*",$V31,IF(RIGHT($W31,1)="*",$V30,"")))) ->  | AE66: =IF($W30>$W31,$U31,IF($W31>$W30,$U30,IF(RIGHT($W30,1)="*",$U31,IF(RIGHT($W31,1)="*",$U30,"")))) ->  | AF66: =IF($W30>$W31,$V31,IF($W31>$W30,$V30,IF(RIGHT($W30,1)="*",$V31,IF(RIGHT($W31,1)="*",$V30,"")))) -> 
P67: =R121 -> 10 | Q67: =IF($O74>$O75,$M74,IF($O75>$O74,$M75,IF(RIGHT($O74,1)="*",$M74,IF(RIGHT($O75,1)="*",$M75,"")))) ->  | R67: =IF($O74>$O75,$N74,IF($O75>$O74,$N75,IF(RIGHT($O74,1)="*",$N74,IF(RIGHT($O75,1)="*",$N75,"")))) ->  | U67: 3. und 4. Platz | X67: =Z119 -> 6 | Y67: =IF($W82>$W83,$U83,IF($W83>$W82,$U82,IF(RIGHT($W82,1)="*",$U83,IF(RIGHT($W83,1)="*",$U82,"")))) ->  | Z67: =IF($W82>$W83,$V83,IF($W83>$W82,$V82,IF(RIGHT($W82,1)="*",$V83,IF(RIGHT($W83,1)="*",$V82,"")))) ->  | AE67: =IF($W82>$W83,$U83,IF($W83>$W82,$U82,IF(RIGHT($W82,1)="*",$U83,IF(RIGHT($W83,1)="*",$U82,"")))) ->  | AF67: =IF($W82>$W83,$V83,IF($W83>$W82,$V82,IF(RIGHT($W82,1)="*",$V83,IF(RIGHT($W83,1)="*",$V82,"")))) -> 
A68: 11 | B68: =E144 -> 17A | C68: =R_Quali!H20 -> 522 | D68: =R_Quali!C20 -> Reicher Ernst | E68: =R_Quali!E20 -> K | F68: =R_Quali!D20 -> BSC Wörthersee
A69: 46 | B69: =E145 -> 17B | C69: =R_Quali!H55 -> 475 | D69: =R_Quali!C55 -> Doppler Wolfgang | E69: =R_Quali!E55 -> OÖ | F69: =R_Quali!D55 -> Union BSC Ried
H70: =J130 -> 10A | I70: =IF($G68>$G69,$D68,IF($G69>$G68,$D69,IF(RIGHT($G68,1)="*",$D68,IF(RIGHT($G69,1)="*",$D69,"")))) ->  | J70: =IF($G68>$G69,$E68,IF($G69>$G68,$E69,IF(RIGHT($G68,1)="*",$E68,IF(RIGHT($G69,1)="*",$E69,"")))) -> 
H71: =J131 -> 10B | I71: =IF($G72>$G73,$D72,IF($G73>$G72,$D73,IF(RIGHT($G72,1)="*",$D72,IF(RIGHT($G73,1)="*",$D73,"")))) ->  | J71: =IF($G72>$G73,$E72,IF($G73>$G72,$E73,IF(RIGHT($G72,1)="*",$E72,IF(RIGHT($G73,1)="*",$E73,"")))) -> 
A72: 35 | B72: =E146 -> 18A | C72: =R_Quali!H44 -> 487 | D72: =R_Quali!C44 -> Hochbaumer Thomas | E72: =R_Quali!E44 -> NÖ | F72: =R_Quali!D44 -> Austrian Free Archer
A73: 22 | B73: =E147 -> 18B | C73: =R_Quali!H31 -> 511 | D73: =R_Quali!C31 -> Schütz Raimund | E73: =R_Quali!E31 -> NÖ | F73: =R_Quali!D31 -> TBs Weinviertel
L74: =N126 -> 8A | M74: =IF($K70>$K71,$I70,IF($K71>$K70,$I71,IF(RIGHT($K70,1)="*",$I70,IF(RIGHT($K71,1)="*",$I71,"")))) ->  | N74: =IF($K70>$K71,$J70,IF($K71>$K70,$J71,IF(RIGHT($K70,1)="*",$J70,IF(RIGHT($K71,1)="*",$J71,"")))) -> 
L75: =N127 -> 8B | M75: =IF($K78>$K79,$I78,IF($K79>$K78,$I79,IF(RIGHT($K78,1)="*",$I78,IF(RIGHT($K79,1)="*",$I79,"")))) ->  | N75: =IF($K78>$K79,$J78,IF($K79>$K78,$J79,IF(RIGHT($K78,1)="*",$J78,IF(RIGHT($K79,1)="*",$J79,"")))) -> 
A76: 27 | B76: =E148 -> 19A | C76: =R_Quali!H36 -> 506 | D76: =R_Quali!C36 -> Radauer Helmuth | E76: =R_Quali!E36 -> ST | F76: =R_Quali!D36 -> BSC Ennstal
A77: 30 | B77: =E149 -> 19B | C77: =R_Quali!H39 -> 503 | D77: =R_Quali!C39 -> Lein Karl | E77: =R_Quali!E39 -> B | F77: =R_Quali!D39 -> BSV Mattersburg
H78: =J132 -> 11A | I78: =IF($G76>$G77,$D76,IF($G77>$G76,$D77,IF(RIGHT($G76,1)="*",$D76,IF(RIGHT($G77,1)="*",$D77,"")))) ->  | J78: =IF($G76>$G77,$E76,IF($G77>$G76,$E77,IF(RIGHT($G76,1)="*",$E76,IF(RIGHT($G77,1)="*",$E77,"")))) -> 
H79: =J133 -> 11B | I79: =IF($G80>$G81,$D80,IF($G81>$G80,$D81,IF(RIGHT($G80,1)="*",$D80,IF(RIGHT($G81,1)="*",$D81,"")))) ->  | J79: =IF($G80>$G81,$E80,IF($G81>$G80,$E81,IF(RIGHT($G80,1)="*",$E80,IF(RIGHT($G81,1)="*",$E81,"")))) -> 
A80: 51 | B80: =E150 -> 20A | C80: =R_Quali!H60 -> 468 | D80: =R_Quali!C60 -> Vorauer Helmut | E80: =R_Quali!E60 -> T | F80: =R_Quali!D60 -> HSV Absam Bogensport
A81: 6 | B81: =E151 -> 20B | C81: =R_Quali!H15 -> 527 | D81: =R_Quali!C15 -> Parschisek Alexander | E81: =R_Quali!E15 -> B | F81: =R_Quali!D15 -> BC-Oberschützen
T82: =V118 -> 7 | U82: =IF($S66>$S67,$Q66,IF($S67>$S66,$Q67,IF(RIGHT($S66,1)="*",$Q66,IF(RIGHT($S67,1)="*",$Q67,"")))) ->  | V82: =IF($S66>$S67,$R66,IF($S67>$S66,$R67,IF(RIGHT($S66,1)="*",$R66,IF(RIGHT($S67,1)="*",$R67,"")))) -> 
T83: =V119 -> 8 | U83: =IF($S98>$S99,$Q98,IF($S99>$S98,$Q99,IF(RIGHT($S98,1)="*",$Q98,IF(RIGHT($S99,1)="*",$Q99,"")))) ->  | V83: =IF($S98>$S99,$R98,IF($S99>$S98,$R99,IF(RIGHT($S98,1)="*",$R98,IF(RIGHT($S99,1)="*",$R99,"")))) -> 
A84: 7 | B84: =E152 -> 21A | C84: =R_Quali!H16 -> 526 | D84: =R_Quali!C16 -> Bucher Martin | E84: =R_Quali!E16 -> ST | F84: =R_Quali!D16 -> LH Graz
A85: 50 | B85: =E153 -> 21B | C85: =R_Quali!H59 -> 468 | D85: =R_Quali!C59 -> Hahn Gottfried | E85: =R_Quali!E59 -> NÖ | F85: =R_Quali!D59 -> BSV Spannberg
H86: =J134 -> 12A | I86: =IF($G84>$G85,$D84,IF($G85>$G84,$D85,IF(RIGHT($G84,1)="*",$D84,IF(RIGHT($G85,1)="*",$D85,"")))) ->  | J86: =IF($G84>$G85,$E84,IF($G85>$G84,$E85,IF(RIGHT($G84,1)="*",$E84,IF(RIGHT($G85,1)="*",$E85,"")))) -> 
H87: =J135 -> 12B | I87: =IF($G88>$G89,$D88,IF($G89>$G88,$D89,IF(RIGHT($G88,1)="*",$D88,IF(RIGHT($G89,1)="*",$D89,"")))) ->  | J87: =IF($G88>$G89,$E88,IF($G89>$G88,$E89,IF(RIGHT($G88,1)="*",$E88,IF(RIGHT($G89,1)="*",$E89,"")))) -> 
A88: 31 | B88: =E154 -> 22A | C88: =R_Quali!H40 -> 502 | D88: =R_Quali!C40 -> Klemke Harald | E88: =R_Quali!E40 -> B | F88: =R_Quali!D40 -> BSV Mattersburg
A89: 26 | B89: =E155 -> 22B | C89: =R_Quali!H35 -> 507 | D89: =R_Quali!C35 -> Kossek Heinz | E89: =R_Quali!E35 -> ST | F89: =R_Quali!D35 -> BC Wildon Weitendorf
L90: =N128 -> 9A | M90: =IF($K86>$K87,$I86,IF($K87>$K86,$I87,IF(RIGHT($K86,1)="*",$I86,IF(RIGHT($K87,1)="*",$I87,"")))) ->  | N90: =IF($K86>$K87,$J86,IF($K87>$K86,$J87,IF(RIGHT($K86,1)="*",$J86,IF(RIGHT($K87,1)="*",$J87,"")))) ->  | Y90: Finale
L91: =N129 -> 9B | M91: =IF($K94>$K95,$I94,IF($K95>$K94,$I95,IF(RIGHT($K94,1)="*",$I94,IF(RIGHT($K95,1)="*",$I95,"")))) ->  | N91: =IF($K94>$K95,$J94,IF($K95>$K94,$J95,IF(RIGHT($K94,1)="*",$J94,IF(RIGHT($K95,1)="*",$J95,"")))) ->  | U91: 1/2 Finale
A92: 23 | B92: =E156 -> 23A | C92: =R_Quali!H32 -> 510 | D92: =R_Quali!C32 -> Kutmon Wilhelm | E92: =R_Quali!E32 -> ST | F92: =R_Quali!D32 -> BS Ligist - Archery Freaks
A93: 34 | B93: =E157 -> 23B | C93: =R_Quali!H43 -> 488 | D93: =R_Quali!C43 -> Grünsteidl Klaus | E93: =R_Quali!E43 -> OÖ | F93: =R_Quali!D43 -> BSV Stoneface - Archery
H94: =J136 -> 13A | I94: =IF($G92>$G93,$D92,IF($G93>$G92,$D93,IF(RIGHT($G92,1)="*",$D92,IF(RIGHT($G93,1)="*",$D93,"")))) ->  | J94: =IF($G92>$G93,$E92,IF($G93>$G92,$E93,IF(RIGHT($G92,1)="*",$E92,IF(RIGHT($G93,1)="*",$E93,"")))) -> 
H95: =J137 -> 13B | I95: =IF($G96>$G97,$D96,IF($G97>$G96,$D97,IF(RIGHT($G96,1)="*",$D96,IF(RIGHT($G97,1)="*",$D97,"")))) ->  | J95: =IF($G96>$G97,$E96,IF($G97>$G96,$E97,IF(RIGHT($G96,1)="*",$E96,IF(RIGHT($G97,1)="*",$E97,"")))) -> 
A96: 47 | B96: =E158 -> 24A | C96: =R_Quali!H56 -> 474 | D96: =R_Quali!C56 -> Feizlmair Andreas | E96: =R_Quali!E56 -> NÖ | F96: =R_Quali!D56 -> Union Bogensport Haag
A97: 10 | B97: =E159 -> 24B | C97: =R_Quali!H19 -> 523 | D97: =R_Quali!C19 -> Navratil Christoph | E97: =R_Quali!E19 -> W | F97: =R_Quali!D19 -> BSV Schönbrunn
P98: =R122 -> 11 | Q98: =IF($O90>$O91,$M90,IF($O91>$O90,$M91,IF(RIGHT($O90,1)="*",$M90,IF(RIGHT($O91,1)="*",$M91,"")))) ->  | R98: =IF($O90>$O91,$N90,IF($O91>$O90,$N91,IF(RIGHT($O90,1)="*",$N90,IF(RIGHT($O91,1)="*",$N91,"")))) -> 
P99: =R123 -> 12 | Q99: =IF($O104>$O105,$M104,IF($O105>$O104,$M105,IF(RIGHT($O104,1)="*",$M104,IF(RIGHT($O105,1)="*",$M105,"")))) ->  | R99: =IF($O104>$O105,$N104,IF($O105>$O104,$N105,IF(RIGHT($O104,1)="*",$N104,IF(RIGHT($O105,1)="*",$N105,"")))) -> 
A100: 15 | B100: =E160 -> 25A | C100: =R_Quali!H24 -> 518 | D100: =R_Quali!C24 -> Markl Mario | E100: =R_Quali!E24 -> NÖ | F100: =R_Quali!D24 -> BSV Dakota
A101: 42 | B101: =E161 -> 25B | C101: =R_Quali!H51 -> 477 | D101: =R_Quali!C51 -> Hoyer Wolfgang | E101: =R_Quali!E51 -> W | F101: =R_Quali!D51 -> UBSC Artemis Wien
H102: =J138 -> 14A | I102: =IF($G100>$G101,$D100,IF($G101>$G100,$D101,IF(RIGHT($G100,1)="*",$D100,IF(RIGHT($G101,1)="*",$D101,"")))) ->  | J102: =IF($G100>$G101,$E100,IF($G101>$G100,$E101,IF(RIGHT($G100,1)="*",$E100,IF(RIGHT($G101,1)="*",$E101,"")))) -> 
H103: =J139 -> 14B | I103: =IF($G104>$G105,$D104,IF($G105>$G104,$D105,IF(RIGHT($G104,1)="*",$D104,IF(RIGHT($G105,1)="*",$D105,"")))) ->  | J103: =IF($G104>$G105,$E104,IF($G105>$G104,$E105,IF(RIGHT($G104,1)="*",$E104,IF(RIGHT($G105,1)="*",$E105,"")))) -> 
A104: 39 | B104: =E162 -> 26A | C104: =R_Quali!H48 -> 483 | D104: =R_Quali!C48 -> Arfsten Sven | E104: =R_Quali!E48 -> S | F104: =R_Quali!D48 -> BC Golden Arrows | L104: =N130 -> 10A | M104: =IF($K102>$K103,$I102,IF($K103>$K102,$I103,IF(RIGHT($K102,1)="*",$I102,IF(RIGHT($K103,1)="*",$I103,"")))) ->  | N104: =IF($K102>$K103,$J102,IF($K103>$K102,$J103,IF(RIGHT($K102,1)="*",$J102,IF(RIGHT($K103,1)="*",$J103,"")))) ->  | Q104: 1/4 Finale
A105: 18 | B105: =E163 -> 26B | C105: =R_Quali!H27 -> 515 | D105: =R_Quali!C27 -> Hamedl Wolfgang | E105: =R_Quali!E27 -> B | F105: =R_Quali!D27 -> PSV Burgenland - Sektion Bogen | L105: =N131 -> 10B | M105: =I107 -> Berger Hermann | N105: =J107 -> S
I107: =D108 -> Berger Hermann | J107: =E108 -> S
A108: 2 | C108: =R_Quali!H11 -> 531 | D108: =R_Quali!C11 -> Berger Hermann | E108: =R_Quali!E11 -> S | F108: =R_Quali!D11 -> BSV Glemmerhof
M109: 1/8 Elimination | Q109: =Select!C18 -> Recurve Herren
C110: 1/24 Elimination | I110: 1/12 Elimination
D115: Scheibe: | I115: Scheibe:
C116: 1 | D116: =CONCATENATE($I$115," ",E116) -> Scheibe: 3A | E116: 3A | H116: 1 | I116: =CONCATENATE($I$115," ",J116) -> Scheibe: 3A | J116: 3A | L116: 1 | M116: =CONCATENATE($I$115," ",N116) -> Scheibe: 3A | N116: 3A | P116: 1 | Q116: =CONCATENATE($I$115," ",R116) -> Scheibe: 5 | R116: 5 | T116: 1 | U116: =CONCATENATE($I$115," ",V116) -> Scheibe: 5 | V116: 5 | X116: 1 | Y116: =CONCATENATE($I$115," ",Z116) -> Scheibe: 5 | Z116: 5
D117: Scheibe: 3B | E117: =IF(RIGHT(E116,1)="A",CONCATENATE(LEFT(E116,LEN(E116)-1),"B"),E116+1) -> 3B | I117: Scheibe: 3B | J117: =IF(RIGHT(J116,1)="A",CONCATENATE(LEFT(J116,LEN(J116)-1),"B"),J116+1) -> 3B | M117: Scheibe: 3B | N117: =IF(RIGHT(N116,1)="A",CONCATENATE(LEFT(N116,LEN(N116)-1),"B"),N116+1) -> 3B | Q117: Scheibe: 6 | R117: =IF(RIGHT(R116,1)="A",CONCATENATE(LEFT(R116,LEN(R116)-1),"B"),R116+1) -> 6 | U117: =CONCATENATE($I$115," ",V117) -> Scheibe: 6 | V117: =IF(RIGHT(V116,1)="A",CONCATENATE(LEFT(V116,LEN(V116)-1),"B"),V116+1) -> 6 | Y117: =CONCATENATE($I$115," ",Z117) -> Scheibe: 6 | Z117: =IF(RIGHT(Z116,1)="A",CONCATENATE(LEFT(Z116,LEN(Z116)-1),"B"),Z116+1) -> 6
C118: =C116+1 -> 2 | D118: Scheibe: 4A | E118: =IF(RIGHT(E117,1)="B",CONCATENATE(LEFT(E117,LEN(E117)-1)+1,"A"),E117+1) -> 4A | H118: =H116+1 -> 2 | I118: Scheibe: 4A | J118: =IF(RIGHT(J117,1)="B",CONCATENATE(LEFT(J117,LEN(J117)-1)+1,"A"),J117+1) -> 4A | L118: =L116+1 -> 2 | M118: Scheibe: 4A | N118: =IF(RIGHT(N117,1)="B",CONCATENATE(LEFT(N117,LEN(N117)-1)+1,"A"),N117+1) -> 4A | P118: =P116+1 -> 2 | Q118: Scheibe: 7 | R118: =IF(RIGHT(R117,1)="B",CONCATENATE(LEFT(R117,LEN(R117)-1)+1,"A"),R117+1) -> 7 | T118: =T116+1 -> 2 | U118: =CONCATENATE($I$115," ",V118) -> Scheibe: 7 | V118: =IF(RIGHT(V117,1)="B",CONCATENATE(LEFT(V117,LEN(V117)-1)+1,"A"),V117+1) -> 7 | X118: =X116+1 -> 2 | Y118: =CONCATENATE($I$115," ",Z118) -> Scheibe: 5 | Z118: 5
D119: Scheibe: 4B | E119: =IF(RIGHT(E118,1)="A",CONCATENATE(LEFT(E118,LEN(E118)-1),"B"),E118+1) -> 4B | I119: Scheibe: 4B | J119: =IF(RIGHT(J118,1)="A",CONCATENATE(LEFT(J118,LEN(J118)-1),"B"),J118+1) -> 4B | M119: Scheibe: 4B | N119: =IF(RIGHT(N118,1)="A",CONCATENATE(LEFT(N118,LEN(N118)-1),"B"),N118+1) -> 4B | Q119: Scheibe: 8 | R119: =IF(RIGHT(R118,1)="A",CONCATENATE(LEFT(R118,LEN(R118)-1),"B"),R118+1) -> 8 | U119: =CONCATENATE($I$115," ",V119) -> Scheibe: 8 | V119: =IF(RIGHT(V118,1)="A",CONCATENATE(LEFT(V118,LEN(V118)-1),"B"),V118+1) -> 8 | Y119: =CONCATENATE($I$115," ",Z119) -> Scheibe: 6 | Z119: =IF(RIGHT(Z118,1)="A",CONCATENATE(LEFT(Z118,LEN(Z118)-1),"B"),Z118+1) -> 6
C120: =C118+1 -> 3 | D120: Scheibe: 5A | E120: =IF(RIGHT(E119,1)="B",CONCATENATE(LEFT(E119,LEN(E119)-1)+1,"A"),E119+1) -> 5A | H120: =H118+1 -> 3 | I120: Scheibe: 5A | J120: =IF(RIGHT(J119,1)="B",CONCATENATE(LEFT(J119,LEN(J119)-1)+1,"A"),J119+1) -> 5A | L120: =L118+1 -> 3 | M120: Scheibe: 5A | N120: =IF(RIGHT(N119,1)="B",CONCATENATE(LEFT(N119,LEN(N119)-1)+1,"A"),N119+1) -> 5A | P120: =P118+1 -> 3 | Q120: Scheibe: 9 | R120: =IF(RIGHT(R119,1)="B",CONCATENATE(LEFT(R119,LEN(R119)-1)+1,"A"),R119+1) -> 9
D121: Scheibe: 5B | E121: =IF(RIGHT(E120,1)="A",CONCATENATE(LEFT(E120,LEN(E120)-1),"B"),E120+1) -> 5B | I121: Scheibe: 5B | J121: =IF(RIGHT(J120,1)="A",CONCATENATE(LEFT(J120,LEN(J120)-1),"B"),J120+1) -> 5B | M121: Scheibe: 5B | N121: =IF(RIGHT(N120,1)="A",CONCATENATE(LEFT(N120,LEN(N120)-1),"B"),N120+1) -> 5B | Q121: Scheibe: 10 | R121: =IF(RIGHT(R120,1)="A",CONCATENATE(LEFT(R120,LEN(R120)-1),"B"),R120+1) -> 10
C122: =C120+1 -> 4 | D122: Scheibe: 6A | E122: =IF(RIGHT(E121,1)="B",CONCATENATE(LEFT(E121,LEN(E121)-1)+1,"A"),E121+1) -> 6A | H122: =H120+1 -> 4 | I122: Scheibe: 6A | J122: =IF(RIGHT(J121,1)="B",CONCATENATE(LEFT(J121,LEN(J121)-1)+1,"A"),J121+1) -> 6A | L122: =L120+1 -> 4 | M122: Scheibe: 6A | N122: =IF(RIGHT(N121,1)="B",CONCATENATE(LEFT(N121,LEN(N121)-1)+1,"A"),N121+1) -> 6A | P122: =P120+1 -> 4 | Q122: Scheibe: 11 | R122: =IF(RIGHT(R121,1)="B",CONCATENATE(LEFT(R121,LEN(R121)-1)+1,"A"),R121+1) -> 11
D123: Scheibe: 6B | E123: =IF(RIGHT(E122,1)="A",CONCATENATE(LEFT(E122,LEN(E122)-1),"B"),E122+1) -> 6B | I123: Scheibe: 6B | J123: =IF(RIGHT(J122,1)="A",CONCATENATE(LEFT(J122,LEN(J122)-1),"B"),J122+1) -> 6B | M123: Scheibe: 6B | N123: =IF(RIGHT(N122,1)="A",CONCATENATE(LEFT(N122,LEN(N122)-1),"B"),N122+1) -> 6B | Q123: Scheibe: 12 | R123: =IF(RIGHT(R122,1)="A",CONCATENATE(LEFT(R122,LEN(R122)-1),"B"),R122+1) -> 12
C124: =C122+1 -> 5 | D124: Scheibe: 7A | E124: =IF(RIGHT(E123,1)="B",CONCATENATE(LEFT(E123,LEN(E123)-1)+1,"A"),E123+1) -> 7A | H124: =H122+1 -> 5 | I124: Scheibe: 7A | J124: =IF(RIGHT(J123,1)="B",CONCATENATE(LEFT(J123,LEN(J123)-1)+1,"A"),J123+1) -> 7A | L124: =L122+1 -> 5 | M124: Scheibe: 7A | N124: =IF(RIGHT(N123,1)="B",CONCATENATE(LEFT(N123,LEN(N123)-1)+1,"A"),N123+1) -> 7A
D125: Scheibe: 7B | E125: =IF(RIGHT(E124,1)="A",CONCATENATE(LEFT(E124,LEN(E124)-1),"B"),E124+1) -> 7B | I125: Scheibe: 7B | J125: =IF(RIGHT(J124,1)="A",CONCATENATE(LEFT(J124,LEN(J124)-1),"B"),J124+1) -> 7B | M125: Scheibe: 7B | N125: =IF(RIGHT(N124,1)="A",CONCATENATE(LEFT(N124,LEN(N124)-1),"B"),N124+1) -> 7B
C126: =C124+1 -> 6 | D126: Scheibe: 8A | E126: =IF(RIGHT(E125,1)="B",CONCATENATE(LEFT(E125,LEN(E125)-1)+1,"A"),E125+1) -> 8A | H126: =H124+1 -> 6 | I126: Scheibe: 8A | J126: =IF(RIGHT(J125,1)="B",CONCATENATE(LEFT(J125,LEN(J125)-1)+1,"A"),J125+1) -> 8A | L126: =L124+1 -> 6 | M126: Scheibe: 8A | N126: =IF(RIGHT(N125,1)="B",CONCATENATE(LEFT(N125,LEN(N125)-1)+1,"A"),N125+1) -> 8A
D127: Scheibe: 8B | E127: =IF(RIGHT(E126,1)="A",CONCATENATE(LEFT(E126,LEN(E126)-1),"B"),E126+1) -> 8B | I127: Scheibe: 8B | J127: =IF(RIGHT(J126,1)="A",CONCATENATE(LEFT(J126,LEN(J126)-1),"B"),J126+1) -> 8B | M127: Scheibe: 8B | N127: =IF(RIGHT(N126,1)="A",CONCATENATE(LEFT(N126,LEN(N126)-1),"B"),N126+1) -> 8B
C128: =C126+1 -> 7 | D128: Scheibe: 9A | E128: =IF(RIGHT(E127,1)="B",CONCATENATE(LEFT(E127,LEN(E127)-1)+1,"A"),E127+1) -> 9A | H128: =H126+1 -> 7 | I128: Scheibe: 9A | J128: =IF(RIGHT(J127,1)="B",CONCATENATE(LEFT(J127,LEN(J127)-1)+1,"A"),J127+1) -> 9A | L128: =L126+1 -> 7 | M128: Scheibe: 9A | N128: =IF(RIGHT(N127,1)="B",CONCATENATE(LEFT(N127,LEN(N127)-1)+1,"A"),N127+1) -> 9A
D129: Scheibe: 9B | E129: =IF(RIGHT(E128,1)="A",CONCATENATE(LEFT(E128,LEN(E128)-1),"B"),E128+1) -> 9B | I129: Scheibe: 9B | J129: =IF(RIGHT(J128,1)="A",CONCATENATE(LEFT(J128,LEN(J128)-1),"B"),J128+1) -> 9B | M129: Scheibe: 9B | N129: =IF(RIGHT(N128,1)="A",CONCATENATE(LEFT(N128,LEN(N128)-1),"B"),N128+1) -> 9B
C130: =C128+1 -> 8 | D130: Scheibe: 10A | E130: =IF(RIGHT(E129,1)="B",CONCATENATE(LEFT(E129,LEN(E129)-1)+1,"A"),E129+1) -> 10A | H130: =H128+1 -> 8 | I130: Scheibe: 10A | J130: =IF(RIGHT(J129,1)="B",CONCATENATE(LEFT(J129,LEN(J129)-1)+1,"A"),J129+1) -> 10A | L130: =L128+1 -> 8 | M130: Scheibe: 10A | N130: =IF(RIGHT(N129,1)="B",CONCATENATE(LEFT(N129,LEN(N129)-1)+1,"A"),N129+1) -> 10A
D131: Scheibe: 10B | E131: =IF(RIGHT(E130,1)="A",CONCATENATE(LEFT(E130,LEN(E130)-1),"B"),E130+1) -> 10B | I131: Scheibe: 10B | J131: =IF(RIGHT(J130,1)="A",CONCATENATE(LEFT(J130,LEN(J130)-1),"B"),J130+1) -> 10B | M131: Scheibe: 10B | N131: =IF(RIGHT(N130,1)="A",CONCATENATE(LEFT(N130,LEN(N130)-1),"B"),N130+1) -> 10B
C132: =C130+1 -> 9 | D132: Scheibe: 11A | E132: =IF(RIGHT(E131,1)="B",CONCATENATE(LEFT(E131,LEN(E131)-1)+1,"A"),E131+1) -> 11A | H132: =H130+1 -> 9 | I132: Scheibe: 11A | J132: =IF(RIGHT(J131,1)="B",CONCATENATE(LEFT(J131,LEN(J131)-1)+1,"A"),J131+1) -> 11A
D133: Scheibe: 11B | E133: =IF(RIGHT(E132,1)="A",CONCATENATE(LEFT(E132,LEN(E132)-1),"B"),E132+1) -> 11B | I133: Scheibe: 11B | J133: =IF(RIGHT(J132,1)="A",CONCATENATE(LEFT(J132,LEN(J132)-1),"B"),J132+1) -> 11B
C134: =C132+1 -> 10 | D134: Scheibe: 12A | E134: =IF(RIGHT(E133,1)="B",CONCATENATE(LEFT(E133,LEN(E133)-1)+1,"A"),E133+1) -> 12A | H134: =H132+1 -> 10 | I134: Scheibe: 12A | J134: =IF(RIGHT(J133,1)="B",CONCATENATE(LEFT(J133,LEN(J133)-1)+1,"A"),J133+1) -> 12A
D135: Scheibe: 12B | E135: =IF(RIGHT(E134,1)="A",CONCATENATE(LEFT(E134,LEN(E134)-1),"B"),E134+1) -> 12B | I135: Scheibe: 12B | J135: =IF(RIGHT(J134,1)="A",CONCATENATE(LEFT(J134,LEN(J134)-1),"B"),J134+1) -> 12B
C136: =C134+1 -> 11 | D136: Scheibe: 13A | E136: =IF(RIGHT(E135,1)="B",CONCATENATE(LEFT(E135,LEN(E135)-1)+1,"A"),E135+1) -> 13A | H136: =H134+1 -> 11 | I136: Scheibe: 13A | J136: =IF(RIGHT(J135,1)="B",CONCATENATE(LEFT(J135,LEN(J135)-1)+1,"A"),J135+1) -> 13A
D137: Scheibe: 13B | E137: =IF(RIGHT(E136,1)="A",CONCATENATE(LEFT(E136,LEN(E136)-1),"B"),E136+1) -> 13B | I137: Scheibe: 13B | J137: =IF(RIGHT(J136,1)="A",CONCATENATE(LEFT(J136,LEN(J136)-1),"B"),J136+1) -> 13B
C138: =C136+1 -> 12 | D138: Scheibe: 14A | E138: =IF(RIGHT(E137,1)="B",CONCATENATE(LEFT(E137,LEN(E137)-1)+1,"A"),E137+1) -> 14A | H138: =H136+1 -> 12 | I138: Scheibe: 14A | J138: =IF(RIGHT(J137,1)="B",CONCATENATE(LEFT(J137,LEN(J137)-1)+1,"A"),J137+1) -> 14A
D139: Scheibe: 14B | E139: =IF(RIGHT(E138,1)="A",CONCATENATE(LEFT(E138,LEN(E138)-1),"B"),E138+1) -> 14B | I139: Scheibe: 14B | J139: =IF(RIGHT(J138,1)="A",CONCATENATE(LEFT(J138,LEN(J138)-1),"B"),J138+1) -> 14B
C140: =C138+1 -> 13 | D140: =CONCATENATE($I$115," ",E140) -> Scheibe: 15A | E140: =IF(RIGHT(E139,1)="B",CONCATENATE(LEFT(E139,LEN(E139)-1)+1,"A"),E139+1) -> 15A | H140: =H138+1 -> 13 | I140: Scheibe: 15A | J140: =IF(RIGHT(J139,1)="B",CONCATENATE(LEFT(J139,LEN(J139)-1)+1,"A"),J139+1) -> 15A
D141: Scheibe: 15B | E141: =IF(RIGHT(E140,1)="A",CONCATENATE(LEFT(E140,LEN(E140)-1),"B"),E140+1) -> 15B | I141: Scheibe: 15B | J141: =IF(RIGHT(J140,1)="A",CONCATENATE(LEFT(J140,LEN(J140)-1),"B"),J140+1) -> 15B
C142: =C140+1 -> 14 | D142: Scheibe: 16A | E142: =IF(RIGHT(E141,1)="B",CONCATENATE(LEFT(E141,LEN(E141)-1)+1,"A"),E141+1) -> 16A | H142: =H140+1 -> 14 | I142: Scheibe: 16A | J142: =IF(RIGHT(J141,1)="B",CONCATENATE(LEFT(J141,LEN(J141)-1)+1,"A"),J141+1) -> 16A
D143: Scheibe: 16B | E143: =IF(RIGHT(E142,1)="A",CONCATENATE(LEFT(E142,LEN(E142)-1),"B"),E142+1) -> 16B | I143: Scheibe: 16B | J143: =IF(RIGHT(J142,1)="A",CONCATENATE(LEFT(J142,LEN(J142)-1),"B"),J142+1) -> 16B
C144: =C142+1 -> 15 | D144: Scheibe: 17A | E144: =IF(RIGHT(E143,1)="B",CONCATENATE(LEFT(E143,LEN(E143)-1)+1,"A"),E143+1) -> 17A | H144: =H142+1 -> 15 | I144: Scheibe: 17A | J144: =IF(RIGHT(J143,1)="B",CONCATENATE(LEFT(J143,LEN(J143)-1)+1,"A"),J143+1) -> 17A
D145: Scheibe: 17B | E145: =IF(RIGHT(E144,1)="A",CONCATENATE(LEFT(E144,LEN(E144)-1),"B"),E144+1) -> 17B | I145: Scheibe: 17B | J145: =IF(RIGHT(J144,1)="A",CONCATENATE(LEFT(J144,LEN(J144)-1),"B"),J144+1) -> 17B
C146: =C144+1 -> 16 | D146: Scheibe: 18A | E146: =IF(RIGHT(E145,1)="B",CONCATENATE(LEFT(E145,LEN(E145)-1)+1,"A"),E145+1) -> 18A | H146: =H144+1 -> 16 | I146: Scheibe: 18A | J146: =IF(RIGHT(J145,1)="B",CONCATENATE(LEFT(J145,LEN(J145)-1)+1,"A"),J145+1) -> 18A
D147: Scheibe: 18B | E147: =IF(RIGHT(E146,1)="A",CONCATENATE(LEFT(E146,LEN(E146)-1),"B"),E146+1) -> 18B | I147: Scheibe: 18B | J147: =IF(RIGHT(J146,1)="A",CONCATENATE(LEFT(J146,LEN(J146)-1),"B"),J146+1) -> 18B
C148: =C146+1 -> 17 | D148: Scheibe: 19A | E148: =IF(RIGHT(E147,1)="B",CONCATENATE(LEFT(E147,LEN(E147)-1)+1,"A"),E147+1) -> 19A
D149: Scheibe: 19B | E149: =IF(RIGHT(E148,1)="A",CONCATENATE(LEFT(E148,LEN(E148)-1),"B"),E148+1) -> 19B
C150: =C148+1 -> 18 | D150: Scheibe: 20A | E150: =IF(RIGHT(E149,1)="B",CONCATENATE(LEFT(E149,LEN(E149)-1)+1,"A"),E149+1) -> 20A
D151: Scheibe: 20B | E151: =IF(RIGHT(E150,1)="A",CONCATENATE(LEFT(E150,LEN(E150)-1),"B"),E150+1) -> 20B
C152: =C150+1 -> 19 | D152: =CONCATENATE($I$115," ",E152) -> Scheibe: 21A | E152: =IF(RIGHT(E151,1)="B",CONCATENATE(LEFT(E151,LEN(E151)-1)+1,"A"),E151+1) -> 21A
D153: Scheibe: 21B | E153: =IF(RIGHT(E152,1)="A",CONCATENATE(LEFT(E152,LEN(E152)-1),"B"),E152+1) -> 21B
C154: =C152+1 -> 20 | D154: Scheibe: 22A | E154: =IF(RIGHT(E153,1)="B",CONCATENATE(LEFT(E153,LEN(E153)-1)+1,"A"),E153+1) -> 22A
D155: Scheibe: 22B | E155: =IF(RIGHT(E154,1)="A",CONCATENATE(LEFT(E154,LEN(E154)-1),"B"),E154+1) -> 22B
C156: =C154+1 -> 21 | D156: Scheibe: 23A | E156: =IF(RIGHT(E155,1)="B",CONCATENATE(LEFT(E155,LEN(E155)-1)+1,"A"),E155+1) -> 23A
D157: Scheibe: 23B | E157: =IF(RIGHT(E156,1)="A",CONCATENATE(LEFT(E156,LEN(E156)-1),"B"),E156+1) -> 23B
C158: =C156+1 -> 22 | D158: Scheibe: 24A | E158: =IF(RIGHT(E157,1)="B",CONCATENATE(LEFT(E157,LEN(E157)-1)+1,"A"),E157+1) -> 24A
D159: Scheibe: 24B | E159: =IF(RIGHT(E158,1)="A",CONCATENATE(LEFT(E158,LEN(E158)-1),"B"),E158+1) -> 24B
C160: =C158+1 -> 23 | D160: Scheibe: 25A | E160: =IF(RIGHT(E159,1)="B",CONCATENATE(LEFT(E159,LEN(E159)-1)+1,"A"),E159+1) -> 25A
D161: Scheibe: 25B | E161: =IF(RIGHT(E160,1)="A",CONCATENATE(LEFT(E160,LEN(E160)-1),"B"),E160+1) -> 25B
C162: =C160+1 -> 24 | D162: Scheibe: 26A | E162: =IF(RIGHT(E161,1)="B",CONCATENATE(LEFT(E161,LEN(E161)-1)+1,"A"),E161+1) -> 26A
D163: Scheibe: 26B | E163: =IF(RIGHT(E162,1)="A",CONCATENATE(LEFT(E162,LEN(E162)-1),"B"),E162+1) -> 26B

Sheet R52 (hidden)
J2: 1/24 Elimination | N2: Freilos | S2: 1/12 Elimination | W2: Freilos
K3: 1 | L3: 2 | M3: 3 | N3: Summe | O3: Punkte | P3: Ges. | T3: 1 | U3: 2 | V3: 3 | W3: Summe | X3: Punkte | Y3: Ges.
A4: =Select!$C$12 -> Demoturnier | J4: Satz 1 | S4: Satz 1
A5: Veranstaltung | J5: Satz 2 | S5: Satz 2
A6: =Select!$C$13 -> 1. April 2019 | J6: Satz 3 | S6: Satz 3
A7: Datum | J7: wenn erforderlich | S7: wenn erforderlich
J8: Satz 4 | S8: Satz 4
J9: wenn erforderlich | S9: wenn erforderlich
A10: ='R52_Baum'!$D$3 -> Url Günter | J10: Satz 5 | S10: Satz 5
A11: Name | J11: wenn erforderlich | S11: wenn erforderlich
A12: ='R52_Baum'!$F$3 -> BSC-Wolfspfeil Raab-Holzer | J12: Stechen | S12: Stechen
A13: Verein | O13: gewonnen | X13: gewonnen
A14: =Select!$C$18 -> Recurve Herren | J14: Schütze: | O14: verloren | S14: Schütze: | X14: verloren
A15: Bogenklasse
J16: Gegner: | L16: Name: | S16: Gegner: | U16: Name:
L17: Unterschrift: | U17: Unterschrift:
A20: 1/8 Elimination | E20: ='R52_Baum'!$M$116 -> Scheibe: 3A | J20: 1/4 Finale | N20: ='R52_Baum'!$Q$116 -> Scheibe: 5 | S20: 1/2 Finale | W20: ='R52_Baum'!$U$116 -> Scheibe: 5
B21: 1 | C21: 2 | D21: 3 | E21: Summe | F21: Punkte | G21: Ges. | K21: 1 | L21: 2 | M21: 3 | N21: Summe | O21: Punkte | P21: Ges. | T21: 1 | U21: 2 | V21: 3 | W21: Summe | X21: Punkte | Y21: Ges.
A22: Satz 1 | J22: Satz 1 | S22: Satz 1
A23: Satz 2 | J23: Satz 2 | S23: Satz 2
A24: Satz 3 | J24: Satz 3 | S24: Satz 3
A25: wenn erforderlich | J25: wenn erforderlich | S25: wenn erforderlich
A26: Satz 4 | J26: Satz 4 | S26: Satz 4
A27: wenn erforderlich | J27: wenn erforderlich | S27: wenn erforderlich
A28: Satz 5 | J28: Satz 5 | S28: Satz 5
A29: wenn erforderlich | J29: wenn erforderlich | S29: wenn erforderlich
A30: Stechen | J30: Stechen | S30: Stechen
F31: gewonnen | O31: gewonnen | X31: gewonnen
A32: Schütze: | F32: verloren | J32: Schütze: | O32: verloren | S32: Schütze: | X32: verloren
A34: Gegner: | C34: Name: | J34: Gegner: | L34: Name: | S34: Gegner: | U34: Name:
C35: Unterschrift: | L35: Unterschrift: | U35: Unterschrift:
J38: 1/24 Elimination | N38: ='R52_Baum'!$D$116 -> Scheibe: 3A | S38: 1/12 Elimination | W38: ='R52_Baum'!$I$116 -> Scheibe: 3A
K39: 1 | L39: 2 | M39: 3 | N39: Summe | O39: Punkte | P39: Ges. | T39: 1 | U39: 2 | V39: 3 | W39: Summe | X39: Punkte | Y39: Ges.
A40: =Select!$C$12 -> Demoturnier | J40: Satz 1 | S40: Satz 1
A41: Veranstaltung | J41: Satz 2 | S41: Satz 2
A42: =Select!$C$13 -> 1. April 2019 | J42: Satz 3 | S42: Satz 3
A43: Datum | J43: wenn erforderlich | S43: wenn erforderlich
J44: Satz 4 | S44: Satz 4
J45: wenn erforderlich | S45: wenn erforderlich
A46: ='R52_Baum'!$D$6 -> Schweiger Peter | J46: Satz 5 | S46: Satz 5
A47: Name | J47: wenn erforderlich | S47: wenn erforderlich
A48: ='R52_Baum'!$F$6 -> BSV-Blumental | J48: Stechen | S48: Stechen
A49: Verein | O49: gewonnen | X49: gewonnen
A50: =Select!$C$18 -> Recurve Herren | J50: Schütze: | O50: verloren | S50: Schütze: | X50: verloren
A51: Bogenklasse
J52: Gegner: | L52: Name: | S52: Gegner: | U52: Name:
L53: Unterschrift: | U53: Unterschrift:
A56: 1/8 Elimination | E56: ='R52_Baum'!$M$117 -> Scheibe: 3B | J56: 1/4 Finale | N56: ='R52_Baum'!$Q$116 -> Scheibe: 5 | S56: 1/2 Finale | W56: ='R52_Baum'!$U$116 -> Scheibe: 5
B57: 1 | C57: 2 | D57: 3 | E57: Summe | F57: Punkte | G57: Ges. | K57: 1 | L57: 2 | M57: 3 | N57: Summe | O57: Punkte | P57: Ges. | T57: 1 | U57: 2 | V57: 3 | W57: Summe | X57: Punkte | Y57: Ges.
A58: Satz 1 | J58: Satz 1 | S58: Satz 1
A59: Satz 2 | J59: Satz 2 | S59: Satz 2
A60: Satz 3 | J60: Satz 3 | S60: Satz 3
A61: wenn erforderlich | J61: wenn erforderlich | S61: wenn erforderlich
A62: Satz 4 | J62: Satz 4 | S62: Satz 4
A63: wenn erforderlich | J63: wenn erforderlich | S63: wenn erforderlich
A64: Satz 5 | J64: Satz 5 | S64: Satz 5
A65: wenn erforderlich | J65: wenn erforderlich | S65: wenn erforderlich
A66: Stechen | J66: Stechen | S66: Stechen
F67: gewonnen | O67: gewonnen | X67: gewonnen
A68: Schütze: | F68: verloren | J68: Schütze: | O68: verloren | S68: Schütze: | X68: verloren
A70: Gegner: | C70: Name: | J70: Gegner: | L70: Name: | S70: Gegner: | U70: Name:
C71: Unterschrift: | L71: Unterschrift: | U71: Unterschrift:
J74: 1/24 Elimination | N74: ='R52_Baum'!$D$117 -> Scheibe: 3B | S74: 1/12 Elimination | W74: ='R52_Baum'!$I$116 -> Scheibe: 3A
K75: 1 | L75: 2 | M75: 3 | N75: Summe | O75: Punkte | P75: Ges. | T75: 1 | U75: 2 | V75: 3 | W75: Summe | X75: Punkte | Y75: Ges.
A76: =Select!$C$12 -> Demoturnier | J76: Satz 1 | S76: Satz 1
A77: Veranstaltung | J77: Satz 2 | S77: Satz 2
A78: =Select!$C$13 -> 1. April 2019 | J78: Satz 3 | S78: Satz 3
A79: Datum | J79: wenn erforderlich | S79: wenn erforderlich
J80: Satz 4 | S80: Satz 4
J81: wenn erforderlich | S81: wenn erforderlich
A82: ='R52_Baum'!$D$7 -> Kramer Michael | J82: Satz 5 | S82: Satz 5
A83: Name | J83: wenn erforderlich | S83: wenn erforderlich
A84: ='R52_Baum'!$F$7 -> Union Ried in der Riedmark | J84: Stechen | S84: Stechen
A85: Verein | O85: gewonnen | X85: gewonnen
A86: =Select!$C$18 -> Recurve Herren | J86: Schütze: | O86: verloren | S86: Schütze: | X86: verloren
A87: Bogenklasse
J88: Gegner: | L88: Name: | S88: Gegner: | U88: Name:
L89: Unterschrift: | U89: Unterschrift:
A92: 1/8 Elimination | E92: ='R52_Baum'!$M$117 -> Scheibe: 3B | J92: 1/4 Finale | N92: ='R52_Baum'!$Q$116 -> Scheibe: 5 | S92: 1/2 Finale | W92: ='R52_Baum'!$U$116 -> Scheibe: 5
B93: 1 | C93: 2 | D93: 3 | E93: Summe | F93: Punkte | G93: Ges. | K93: 1 | L93: 2 | M93: 3 | N93: Summe | O93: Punkte | P93: Ges. | T93: 1 | U93: 2 | V93: 3 | W93: Summe | X93: Punkte | Y93: Ges.
A94: Satz 1 | J94: Satz 1 | S94: Satz 1
A95: Satz 2 | J95: Satz 2 | S95: Satz 2
A96: Satz 3 | J96: Satz 3 | S96: Satz 3
A97: wenn erforderlich | J97: wenn erforderlich | S97: wenn erforderlich
A98: Satz 4 | J98: Satz 4 | S98: Satz 4
A99: wenn erforderlich | J99: wenn erforderlich | S99: wenn erforderlich
A100: Satz 5 | J100: Satz 5 | S100: Satz 5
A101: wenn erforderlich | J101: wenn erforderlich | S101: wenn erforderlich
A102: Stechen | J102: Stechen | S102: Stechen
F103: gewonnen | O103: gewonnen | X103: gewonnen
A104: Schütze: | F104: verloren | J104: Schütze: | O104: verloren | S104: Schütze: | X104: verloren
A106: Gegner: | C106: Name: | J106: Gegner: | L106: Name: | S106: Gegner: | U106: Name:
C107: Unterschrift: | L107: Unterschrift: | U107: Unterschrift:
J110: 1/24 Elimination | N110: ='R52_Baum'!$D$118 -> Scheibe: 4A | S110: 1/12 Elimination | W110: ='R52_Baum'!$I$117 -> Scheibe: 3B
K111: 1 | L111: 2 | M111: 3 | N111: Summe | O111: Punkte | P111: Ges. | T111: 1 | U111: 2 | V111: 3 | W111: Summe | X111: Punkte | Y111: Ges.
A112: =Select!$C$12 -> Demoturnier | J112: Satz 1 | S112: Satz 1
A113: Veranstaltung | J113: Satz 2 | S113: Satz 2
A114: =Select!$C$13 -> 1. April 2019 | J114: Satz 3 | S114: Satz 3
A115: Datum | J115: wenn erforderlich | S115: wenn erforderlich
J116: Satz 4 | S116: Satz 4
J117: wenn erforderlich | S117: wenn erforderlich
A118: ='R52_Baum'!$D$10 -> Thuswald Alfred | J118: Satz 5 | S118: Satz 5
A119: Name | J119: wenn erforderlich | S119: wenn erforderlich
A120: ='R52_Baum'!$F$10 -> ASKÖ Gunskirchen | J120: Stechen | S120: Stechen
A121: Verein | O121: gewonnen | X121: gewonnen
A122: =Select!$C$18 -> Recurve Herren | J122: Schütze: | O122: verloren | S122: Schütze: | X122: verloren
A123: Bogenklasse
J124: Gegner: | L124: Name: | S124: Gegner: | U124: Name:
L125: Unterschrift: | U125: Unterschrift:
A128: 1/8 Elimination | E128: ='R52_Baum'!$M$117 -> Scheibe: 3B | J128: 1/4 Finale | N128: ='R52_Baum'!$Q$116 -> Scheibe: 5 | S128: 1/2 Finale | W128: ='R52_Baum'!$U$116 -> Scheibe: 5
B129: 1 | C129: 2 | D129: 3 | E129: Summe | F129: Punkte | G129: Ges. | K129: 1 | L129: 2 | M129: 3 | N129: Summe | O129: Punkte | P129: Ges. | T129: 1 | U129: 2 | V129: 3 | W129: Summe | X129: Punkte | Y129: Ges.
A130: Satz 1 | J130: Satz 1 | S130: Satz 1
A131: Satz 2 | J131: Satz 2 | S131: Satz 2
A132: Satz 3 | J132: Satz 3 | S132: Satz 3
A133: wenn erforderlich | J133: wenn erforderlich | S133: wenn erforderlich
A134: Satz 4 | J134: Satz 4 | S134: Satz 4
A135: wenn erforderlich | J135: wenn erforderlich | S135: wenn erforderlich
A136: Satz 5 | J136: Satz 5 | S136: Satz 5
A137: wenn erforderlich | J137: wenn erforderlich | S137: wenn erforderlich
A138: Stechen | J138: Stechen | S138: Stechen
F139: gewonnen | O139: gewonnen | X139: gewonnen
A140: Schütze: | F140: verloren | J140: Schütze: | O140: verloren | S140: Schütze: | X140: verloren
A142: Gegner: | C142: Name: | J142: Gegner: | L142: Name: | S142: Gegner: | U142: Name:
C143: Unterschrift: | L143: Unterschrift: | U143: Unterschrift:
J146: 1/24 Elimination | N146: ='R52_Baum'!$D$119 -> Scheibe: 4B | S146: 1/12 Elimination | W146: ='R52_Baum'!$I$117 -> Scheibe: 3B
K147: 1 | L147: 2 | M147: 3 | N147: Summe | O147: Punkte | P147: Ges. | T147: 1 | U147: 2 | V147: 3 | W147: Summe | X147: Punkte | Y147: Ges.
A148: =Select!$C$12 -> Demoturnier | J148: Satz 1 | S148: Satz 1
A149: Veranstaltung | J149: Satz 2 | S149: Satz 2
A150: =Select!$C$13 -> 1. April 2019 | J150: Satz 3 | S150: Satz 3
A151: Datum | J151: wenn erforderlich | S151: wenn erforderlich
J152: Satz 4 | S152: Satz 4
J153: wenn erforderlich | S153: wenn erforderlich
A154: ='R52_Baum'!$D$11 -> Lackner Uwe | J154: Satz 5 | S154: Satz 5
A155: Name | J155: wenn erforderlich | S155: wenn erforderlich
A156: ='R52_Baum'!$F$11 -> LH Graz | J156: Stechen | S156: Stechen
A157: Verein | O157: gewonnen | X157: gewonnen
A158: =Select!$C$18 -> Recurve Herren | J158: Schütze: | O158: verloren | S158: Schütze: | X158: verloren
A159: Bogenklasse
J160: Gegner: | L160: Name: | S160: Gegner: | U160: Name:
L161: Unterschrift: | U161: Unterschrift:
A164: 1/8 Elimination | E164: ='R52_Baum'!$M$117 -> Scheibe: 3B | J164: 1/4 Finale | N164: ='R52_Baum'!$Q$116 -> Scheibe: 5 | S164: 1/2 Finale | W164: ='R52_Baum'!$U$116 -> Scheibe: 5
B165: 1 | C165: 2 | D165: 3 | E165: Summe | F165: Punkte | G165: Ges. | K165: 1 | L165: 2 | M165: 3 | N165: Summe | O165: Punkte | P165: Ges. | T165: 1 | U165: 2 | V165: 3 | W165: Summe | X165: Punkte | Y165: Ges.
A166: Satz 1 | J166: Satz 1 | S166: Satz 1
A167: Satz 2 | J167: Satz 2 | S167: Satz 2
A168: Satz 3 | J168: Satz 3 | S168: Satz 3
A169: wenn erforderlich | J169: wenn erforderlich | S169: wenn erforderlich
A170: Satz 4 | J170: Satz 4 | S170: Satz 4
A171: wenn erforderlich | J171: wenn erforderlich | S171: wenn erforderlich
A172: Satz 5 | J172: Satz 5 | S172: Satz 5
A173: wenn erforderlich | J173: wenn erforderlich | S173: wenn erforderlich
A174: Stechen | J174: Stechen | S174: Stechen
F175: gewonnen | O175: gewonnen | X175: gewonnen
A176: Schütze: | F176: verloren | J176: Schütze: | O176: verloren | S176: Schütze: | X176: verloren
A178: Gegner: | C178: Name: | J178: Gegner: | L178: Name: | S178: Gegner: | U178: Name:
C179: Unterschrift: | L179: Unterschrift: | U179: Unterschrift:
J182: 1/24 Elimination | N182: ='R52_Baum'!$D$120 -> Scheibe: 5A | S182: 1/12 Elimination | W182: ='R52_Baum'!$I$118 -> Scheibe: 4A
K183: 1 | L183: 2 | M183: 3 | N183: Summe | O183: Punkte | P183: Ges. | T183: 1 | U183: 2 | V183: 3 | W183: Summe | X183: Punkte | Y183: Ges.
A184: =Select!$C$12 -> Demoturnier | J184: Satz 1 | S184: Satz 1
A185: Veranstaltung | J185: Satz 2 | S185: Satz 2
A186: =Select!$C$13 -> 1. April 2019 | J186: Satz 3 | S186: Satz 3
A187: Datum | J187: wenn erforderlich | S187: wenn erforderlich
J188: Satz 4 | S188: Satz 4
J189: wenn erforderlich | S189: wenn erforderlich
A190: ='R52_Baum'!$D$14 -> Traxler Helmuth | J190: Satz 5 | S190: Satz 5
A191: Name | J191: wenn erforderlich | S191: wenn erforderlich
A192: ='R52_Baum'!$F$14 -> UBC Diana NÖ | J192: Stechen | S192: Stechen
A193: Verein | O193: gewonnen | X193: gewonnen
A194: =Select!$C$18 -> Recurve Herren | J194: Schütze: | O194: verloren | S194: Schütze: | X194: verloren
A195: Bogenklasse
J196: Gegner: | L196: Name: | S196: Gegner: | U196: Name:
L197: Unterschrift: | U197: Unterschrift:
A200: 1/8 Elimination | E200: ='R52_Baum'!$M$118 -> Scheibe: 4A | J200: 1/4 Finale | N200: ='R52_Baum'!$Q$117 -> Scheibe: 6 | S200: 1/2 Finale | W200: ='R52_Baum'!$U$116 -> Scheibe: 5
B201: 1 | C201: 2 | D201: 3 | E201: Summe | F201: Punkte | G201: Ges. | K201: 1 | L201: 2 | M201: 3 | N201: Summe | O201: Punkte | P201: Ges. | T201: 1 | U201: 2 | V201: 3 | W201: Summe | X201: Punkte | Y201: Ges.
A202: Satz 1 | J202: Satz 1 | S202: Satz 1
A203: Satz 2 | J203: Satz 2 | S203: Satz 2
A204: Satz 3 | J204: Satz 3 | S204: Satz 3
A205: wenn erforderlich | J205: wenn erforderlich | S205: wenn erforderlich
A206: Satz 4 | J206: Satz 4 | S206: Satz 4
A207: wenn erforderlich | J207: wenn erforderlich | S207: wenn erforderlich
A208: Satz 5 | J208: Satz 5 | S208: Satz 5
A209: wenn erforderlich | J209: wenn erforderlich | S209: wenn erforderlich
A210: Stechen | J210: Stechen | S210: Stechen
F211: gewonnen | O211: gewonnen | X211: gewonnen
A212: Schütze: | F212: verloren | J212: Schütze: | O212: verloren | S212: Schütze: | X212: verloren
A214: Gegner: | C214: Name: | J214: Gegner: | L214: Name: | S214: Gegner: | U214: Name:
C215: Unterschrift: | L215: Unterschrift: | U215: Unterschrift:
J218: 1/24 Elimination | N218: ='R52_Baum'!$D$121 -> Scheibe: 5B | S218: 1/12 Elimination | W218: ='R52_Baum'!$I$118 -> Scheibe: 4A
K219: 1 | L219: 2 | M219: 3 | N219: Summe | O219: Punkte | P219: Ges. | T219: 1 | U219: 2 | V219: 3 | W219: Summe | X219: Punkte | Y219: Ges.
A220: =Select!$C$12 -> Demoturnier | J220: Satz 1 | S220: Satz 1
A221: Veranstaltung | J221: Satz 2 | S221: Satz 2
A222: =Select!$C$13 -> 1. April 2019 | J222: Satz 3 | S222: Satz 3
A223: Datum | J223: wenn erforderlich | S223: wenn erforderlich
J224: Satz 4 | S224: Satz 4
J225: wenn erforderlich | S225: wenn erforderlich
A226: ='R52_Baum'!$D$15 -> Schinko Bernhard | J226: Satz 5 | S226: Satz 5
A227: Name | J227: wenn erforderlich | S227: wenn erforderlich
A228: ='R52_Baum'!$F$15 -> BSV Offenhausen | J228: Stechen | S228: Stechen
A229: Verein | O229: gewonnen | X229: gewonnen
A230: =Select!$C$18 -> Recurve Herren | J230: Schütze: | O230: verloren | S230: Schütze: | X230: verloren
A231: Bogenklasse
... 1412 more rows

Sheet R52_Ergebnis (hidden)
A2: =Select!$C$12 -> Demoturnier | E2: =Select!C14 -> WA-Outdoor
A3: =Select!C13 -> 1. April 2019
A5: Ergebnisliste
A7: =Select!C18 -> Recurve Herren | M7: !!!!!!!!!!!!!!!!!!!!!!!!!! SORTIERBEREICH - NICHT ENTFERNEN !!!!!!!!!!!!!!!!!!!!!!!!!!
A9: Pl. | C9: Name | D9: Verein | E9: Quali. | F9: 1/24 | G9: 1/12 | H9: 1/8 | I9: 1/4 | J9: 1/2 | K9: Finale | M9: SortName | N9: SortVerein | O9: SortQuali | P9: Sort 1/24 | Q9: Sort 1/12 | R9: Sort1/8 | S9: Sort1/4 | T9: Sort1/2 | U9: SortFinale
A10: =IF(C10<>"",1,"") ->  | M10: ='R52_Baum'!Y8 ->  | N10: =VLOOKUP(M10,R_Quali!$C$10:$H$100,2,FALSE) ->  | O10: =VLOOKUP(M10,R_Quali!$C$10:$H$100,6,FALSE) ->  | P10: =VLOOKUP(M10,'R52_Baum'!$D$3:$G$108,4,FALSE) ->  | Q10: =VLOOKUP(M10,'R52_Baum'!$I$3:$K$108,3,FALSE) -> 0 | R10: =VLOOKUP(M10,'R52_Baum'!$M$3:$O$108,3,FALSE) -> 0 | S10: =VLOOKUP(M10,'R52_Baum'!$Q$9:$S$100,3,FALSE) -> 0 | T10: =VLOOKUP(M10,'R52_Baum'!$U$17:$W$84,3,FALSE) -> 0 | U10: =VLOOKUP(M10,'R52_Baum'!$Y$24:$AA$68,3,FALSE) -> 0
A11: =IF(C11<>"",A10+1,"") ->  | M11: ='R52_Baum'!Y10 ->  | N11: =VLOOKUP(M11,R_Quali!$C$10:$H$100,2,FALSE) ->  | O11: =VLOOKUP(M11,R_Quali!$C$10:$H$100,6,FALSE) ->  | P11: =VLOOKUP(M11,'R52_Baum'!$D$3:$G$108,4,FALSE) ->  | Q11: =VLOOKUP(M11,'R52_Baum'!$I$3:$K$108,3,FALSE) -> 0 | R11: =VLOOKUP(M11,'R52_Baum'!$M$3:$O$108,3,FALSE) -> 0 | S11: =VLOOKUP(M11,'R52_Baum'!$Q$9:$S$100,3,FALSE) -> 0 | T11: =VLOOKUP(M11,'R52_Baum'!$U$17:$W$84,3,FALSE) -> 0 | U11: =VLOOKUP(M11,'R52_Baum'!$Y$24:$AA$68,3,FALSE) -> 0
M12: ='R52_Baum'!Y12 ->  | N12: =VLOOKUP(M12,R_Quali!$C$10:$H$100,2,FALSE) ->  | O12: =VLOOKUP(M12,R_Quali!$C$10:$H$100,6,FALSE) ->  | P12: =VLOOKUP(M12,'R52_Baum'!$D$3:$G$108,4,FALSE) ->  | Q12: =VLOOKUP(M12,'R52_Baum'!$I$3:$K$108,3,FALSE) -> 0 | R12: =VLOOKUP(M12,'R52_Baum'!$M$3:$O$108,3,FALSE) -> 0 | S12: =VLOOKUP(M12,'R52_Baum'!$Q$9:$S$100,3,FALSE) -> 0 | T12: =VLOOKUP(M12,'R52_Baum'!$U$17:$W$84,3,FALSE) -> 0 | U12: =VLOOKUP(M12,'R52_Baum'!$Y$24:$AA$68,3,FALSE) -> 0
M13: =IF('R52_Baum'!Y12='R52_Baum'!Y66,'R28_Baum'!Y67,'R52_Baum'!Y66) -> 0 | N13: =VLOOKUP(M13,R_Quali!$C$10:$H$100,2,FALSE) ->  | O13: =VLOOKUP(M13,R_Quali!$C$10:$H$100,6,FALSE) ->  | P13: =VLOOKUP(M13,'R52_Baum'!$D$3:$G$108,4,FALSE) ->  | Q13: =VLOOKUP(M13,'R52_Baum'!$I$3:$K$108,3,FALSE) ->  | R13: =VLOOKUP(M13,'R52_Baum'!$M$3:$O$108,3,FALSE) ->  | S13: =VLOOKUP(M13,'R52_Baum'!$Q$9:$S$100,3,FALSE) ->  | T13: =VLOOKUP(M13,'R52_Baum'!$U$17:$W$84,3,FALSE) ->  | U13: =VLOOKUP(M13,'R52_Baum'!$Y$24:$AA$68,3,FALSE) -> 
M14: =IF('R52_Baum'!U30='R52_Baum'!Q12,'R52_Baum'!Q13,'R52_Baum'!Q12) ->  | N14: =VLOOKUP(M14,R_Quali!$C$10:$H$100,2,FALSE) ->  | O14: =VLOOKUP(M14,R_Quali!$C$10:$H$100,6,FALSE) ->  | P14: =VLOOKUP(M14,'R52_Baum'!$D$3:$G$108,4,FALSE) ->  | Q14: =VLOOKUP(M14,'R52_Baum'!$I$3:$K$108,3,FALSE) -> 0 | R14: =VLOOKUP(M14,'R52_Baum'!$M$3:$O$108,3,FALSE) -> 0 | S14: =VLOOKUP(M14,'R52_Baum'!$Q$9:$S$100,3,FALSE) -> 0
M15: =IF('R52_Baum'!U31='R52_Baum'!Q44,'R52_Baum'!Q45,'R52_Baum'!Q44) ->  | N15: =VLOOKUP(M15,R_Quali!$C$10:$H$100,2,FALSE) ->  | O15: =VLOOKUP(M15,R_Quali!$C$10:$H$100,6,FALSE) ->  | P15: =VLOOKUP(M15,'R52_Baum'!$D$3:$G$108,4,FALSE) ->  | Q15: =VLOOKUP(M15,'R52_Baum'!$I$3:$K$108,3,FALSE) -> 0 | R15: =VLOOKUP(M15,'R52_Baum'!$M$3:$O$108,3,FALSE) -> 0 | S15: =VLOOKUP(M15,'R52_Baum'!$Q$9:$S$100,3,FALSE) -> 0
M16: =IF('R52_Baum'!U82='R52_Baum'!Q66,'R52_Baum'!Q67,'R52_Baum'!Q66) ->  | N16: =VLOOKUP(M16,R_Quali!$C$10:$H$100,2,FALSE) ->  | O16: =VLOOKUP(M16,R_Quali!$C$10:$H$100,6,FALSE) ->  | P16: =VLOOKUP(M16,'R52_Baum'!$D$3:$G$108,4,FALSE) ->  | Q16: =VLOOKUP(M16,'R52_Baum'!$I$3:$K$108,3,FALSE) -> 0 | R16: =VLOOKUP(M16,'R52_Baum'!$M$3:$O$108,3,FALSE) -> 0 | S16: =VLOOKUP(M16,'R52_Baum'!$Q$9:$S$100,3,FALSE) -> 0
M17: =IF('R52_Baum'!U83='R52_Baum'!Q98,'R52_Baum'!Q99,'R52_Baum'!Q98) ->  | N17: =VLOOKUP(M17,R_Quali!$C$10:$H$100,2,FALSE) ->  | O17: =VLOOKUP(M17,R_Quali!$C$10:$H$100,6,FALSE) ->  | P17: =VLOOKUP(M17,'R52_Baum'!$D$3:$G$108,4,FALSE) ->  | Q17: =VLOOKUP(M17,'R52_Baum'!$I$3:$K$108,3,FALSE) -> 0 | R17: =VLOOKUP(M17,'R52_Baum'!$M$3:$O$108,3,FALSE) -> 0 | S17: =VLOOKUP(M17,'R52_Baum'!$Q$9:$S$100,3,FALSE) -> 0
M18: =IF('R52_Baum'!Q12='R52_Baum'!M6,'R52_Baum'!M7,'R52_Baum'!M6) -> Url Günter | N18: =VLOOKUP(M18,R_Quali!$C$10:$H$100,2,FALSE) -> BSC-Wolfspfeil Raab-Holzer | O18: =VLOOKUP(M18,R_Quali!$C$10:$H$100,6,FALSE) -> 532 | P18: =VLOOKUP(M18,'R52_Baum'!$D$3:$G$108,4,FALSE) -> 0 | Q18: =VLOOKUP(M18,'R52_Baum'!$I$3:$K$108,3,FALSE) -> 0 | R18: =VLOOKUP(M18,'R52_Baum'!$M$3:$O$108,3,FALSE) -> 0
M19: =IF('R52_Baum'!Q13='R52_Baum'!M20,'R52_Baum'!M21,'R52_Baum'!M20) ->  | N19: =VLOOKUP(M19,R_Quali!$C$10:$H$100,2,FALSE) ->  | O19: =VLOOKUP(M19,R_Quali!$C$10:$H$100,6,FALSE) ->  | P19: =VLOOKUP(M19,'R52_Baum'!$D$3:$G$108,4,FALSE) ->  | Q19: =VLOOKUP(M19,'R52_Baum'!$I$3:$K$108,3,FALSE) -> 0 | R19: =VLOOKUP(M19,'R52_Baum'!$M$3:$O$108,3,FALSE) -> 0
M20: =IF('R52_Baum'!Q44='R52_Baum'!M36,'R52_Baum'!M37,'R52_Baum'!M36) ->  | N20: =VLOOKUP(M20,R_Quali!$C$10:$H$100,2,FALSE) ->  | O20: =VLOOKUP(M20,R_Quali!$C$10:$H$100,6,FALSE) ->  | P20: =VLOOKUP(M20,'R52_Baum'!$D$3:$G$108,4,FALSE) ->  | Q20: =VLOOKUP(M20,'R52_Baum'!$I$3:$K$108,3,FALSE) -> 0 | R20: =VLOOKUP(M20,'R52_Baum'!$M$3:$O$108,3,FALSE) -> 0
M21: =IF('R52_Baum'!Q45='R52_Baum'!M50,'R52_Baum'!M51,'R52_Baum'!M50) -> Krempl Werner | N21: =VLOOKUP(M21,R_Quali!$C$10:$H$100,2,FALSE) -> BSC Semriach | O21: =VLOOKUP(M21,R_Quali!$C$10:$H$100,6,FALSE) -> 529 | P21: =VLOOKUP(M21,'R52_Baum'!$D$3:$G$108,4,FALSE) -> 0 | Q21: =VLOOKUP(M21,'R52_Baum'!$I$3:$K$108,3,FALSE) -> 0 | R21: =VLOOKUP(M21,'R52_Baum'!$M$3:$O$108,3,FALSE) -> 0
M22: =IF('R52_Baum'!Q66='R52_Baum'!M60,'R52_Baum'!M61,'R52_Baum'!M60) -> Strohmaier Joachim | N22: =VLOOKUP(M22,R_Quali!$C$10:$H$100,2,FALSE) -> BSC Kumberg | O22: =VLOOKUP(M22,R_Quali!$C$10:$H$100,6,FALSE) -> 530 | P22: =VLOOKUP(M22,'R52_Baum'!$D$3:$G$108,4,FALSE) -> 0 | Q22: =VLOOKUP(M22,'R52_Baum'!$I$3:$K$108,3,FALSE) -> 0 | R22: =VLOOKUP(M22,'R52_Baum'!$M$3:$O$108,3,FALSE) -> 0
M23: =IF('R52_Baum'!Q67='R52_Baum'!M74,'R52_Baum'!M75,'R52_Baum'!M74) ->  | N23: =VLOOKUP(M23,R_Quali!$C$10:$H$100,2,FALSE) ->  | O23: =VLOOKUP(M23,R_Quali!$C$10:$H$100,6,FALSE) ->  | P23: =VLOOKUP(M23,'R52_Baum'!$D$3:$G$108,4,FALSE) ->  | Q23: =VLOOKUP(M23,'R52_Baum'!$I$3:$K$108,3,FALSE) -> 0 | R23: =VLOOKUP(M23,'R52_Baum'!$M$3:$O$108,3,FALSE) -> 0
M24: =IF('R52_Baum'!Q98='R52_Baum'!M90,'R52_Baum'!M91,'R52_Baum'!M90) ->  | N24: =VLOOKUP(M24,R_Quali!$C$10:$H$100,2,FALSE) ->  | O24: =VLOOKUP(M24,R_Quali!$C$10:$H$100,6,FALSE) ->  | P24: =VLOOKUP(M24,'R52_Baum'!$D$3:$G$108,4,FALSE) ->  | Q24: =VLOOKUP(M24,'R52_Baum'!$I$3:$K$108,3,FALSE) -> 0 | R24: =VLOOKUP(M24,'R52_Baum'!$M$3:$O$108,3,FALSE) -> 0
M25: =IF('R52_Baum'!Q99='R52_Baum'!M104,'R52_Baum'!M105,'R52_Baum'!M104) -> Berger Hermann | N25: =VLOOKUP(M25,R_Quali!$C$10:$H$100,2,FALSE) -> BSV Glemmerhof | O25: =VLOOKUP(M25,R_Quali!$C$10:$H$100,6,FALSE) -> 531 | P25: =VLOOKUP(M25,'R52_Baum'!$D$3:$G$108,4,FALSE) -> 0 | Q25: =VLOOKUP(M25,'R52_Baum'!$I$3:$K$108,3,FALSE) -> 0 | R25: =VLOOKUP(M25,'R52_Baum'!$M$3:$O$108,3,FALSE) -> 0
M26: =IF('R52_Baum'!M7='R52_Baum'!I8,'R52_Baum'!I9,'R52_Baum'!I8) ->  | N26: =VLOOKUP(M26,R_Quali!$C$10:$H$100,2,FALSE) ->  | O26: =VLOOKUP(M26,R_Quali!$C$10:$H$100,6,FALSE) ->  | P26: =VLOOKUP(M26,'R52_Baum'!$D$3:$G$108,4,FALSE) ->  | Q26: =VLOOKUP(M26,'R52_Baum'!$I$3:$K$108,3,FALSE) -> 0
M27: =IF('R52_Baum'!M20='R52_Baum'!I16,'R52_Baum'!I17,'R52_Baum'!I16) ->  | N27: =VLOOKUP(M27,R_Quali!$C$10:$H$100,2,FALSE) ->  | O27: =VLOOKUP(M27,R_Quali!$C$10:$H$100,6,FALSE) ->  | P27: =VLOOKUP(M27,'R52_Baum'!$D$3:$G$108,4,FALSE) ->  | Q27: =VLOOKUP(M27,'R52_Baum'!$I$3:$K$108,3,FALSE) -> 0
M28: =IF('R52_Baum'!M21='R52_Baum'!I24,'R52_Baum'!I25,'R52_Baum'!I24) ->  | N28: =VLOOKUP(M28,R_Quali!$C$10:$H$100,2,FALSE) ->  | O28: =VLOOKUP(M28,R_Quali!$C$10:$H$100,6,FALSE) ->  | P28: =VLOOKUP(M28,'R52_Baum'!$D$3:$G$108,4,FALSE) ->  | Q28: =VLOOKUP(M28,'R52_Baum'!$I$3:$K$108,3,FALSE) -> 0
M29: =IF('R52_Baum'!M36='R52_Baum'!I32,'R52_Baum'!I33,'R52_Baum'!I32) ->  | N29: =VLOOKUP(M29,R_Quali!$C$10:$H$100,2,FALSE) ->  | O29: =VLOOKUP(M29,R_Quali!$C$10:$H$100,6,FALSE) ->  | P29: =VLOOKUP(M29,'R52_Baum'!$D$3:$G$108,4,FALSE) ->  | Q29: =VLOOKUP(M29,'R52_Baum'!$I$3:$K$108,3,FALSE) -> 0
M30: =IF('R52_Baum'!M37='R52_Baum'!I40,'R52_Baum'!I41,'R52_Baum'!I40) ->  | N30: =VLOOKUP(M30,R_Quali!$C$10:$H$100,2,FALSE) ->  | O30: =VLOOKUP(M30,R_Quali!$C$10:$H$100,6,FALSE) ->  | P30: =VLOOKUP(M30,'R52_Baum'!$D$3:$G$108,4,FALSE) ->  | Q30: =VLOOKUP(M30,'R52_Baum'!$I$3:$K$108,3,FALSE) -> 0
M31: =IF('R52_Baum'!M50='R52_Baum'!I48,'R52_Baum'!I49,'R52_Baum'!I48) ->  | N31: =VLOOKUP(M31,R_Quali!$C$10:$H$100,2,FALSE) ->  | O31: =VLOOKUP(M31,R_Quali!$C$10:$H$100,6,FALSE) ->  | P31: =VLOOKUP(M31,'R52_Baum'!$D$3:$G$108,4,FALSE) ->  | Q31: =VLOOKUP(M31,'R52_Baum'!$I$3:$K$108,3,FALSE) -> 0
M32: =IF('R52_Baum'!M61='R52_Baum'!I62,'R52_Baum'!I63,'R52_Baum'!I62) ->  | N32: =VLOOKUP(M32,R_Quali!$C$10:$H$100,2,FALSE) ->  | O32: =VLOOKUP(M32,R_Quali!$C$10:$H$100,6,FALSE) ->  | P32: =VLOOKUP(M32,'R52_Baum'!$D$3:$G$108,4,FALSE) ->  | Q32: =VLOOKUP(M32,'R52_Baum'!$I$3:$K$108,3,FALSE) -> 0
M33: =IF('R52_Baum'!M74='R52_Baum'!I70,'R52_Baum'!I71,'R52_Baum'!I70) ->  | N33: =VLOOKUP(M33,R_Quali!$C$10:$H$100,2,FALSE) ->  | O33: =VLOOKUP(M33,R_Quali!$C$10:$H$100,6,FALSE) ->  | P33: =VLOOKUP(M33,'R52_Baum'!$D$3:$G$108,4,FALSE) ->  | Q33: =VLOOKUP(M33,'R52_Baum'!$I$3:$K$108,3,FALSE) -> 0
A34: =IF(C34<>"",A33+1,"") ->  | M34: =IF('R52_Baum'!M75='R52_Baum'!I78,'R52_Baum'!I79,'R52_Baum'!I78) ->  | N34: =VLOOKUP(M34,R_Quali!$C$10:$H$100,2,FALSE) ->  | O34: =VLOOKUP(M34,R_Quali!$C$10:$H$100,6,FALSE) ->  | P34: =VLOOKUP(M34,'R52_Baum'!$D$3:$G$108,4,FALSE) ->  | Q34: =VLOOKUP(M34,'R52_Baum'!$I$3:$K$108,3,FALSE) -> 0
M35: =IF('R52_Baum'!M90='R52_Baum'!I86,'R52_Baum'!I87,'R52_Baum'!I86) ->  | N35: =VLOOKUP(M35,R_Quali!$C$10:$H$100,2,FALSE) ->  | O35: =VLOOKUP(M35,R_Quali!$C$10:$H$100,6,FALSE) ->  | P35: =VLOOKUP(M35,'R52_Baum'!$D$3:$G$108,4,FALSE) ->  | Q35: =VLOOKUP(M35,'R52_Baum'!$I$3:$K$108,3,FALSE) -> 0
M36: =IF('R52_Baum'!M91='R52_Baum'!I94,'R52_Baum'!I95,'R52_Baum'!I94) ->  | N36: =VLOOKUP(M36,R_Quali!$C$10:$H$100,2,FALSE) ->  | O36: =VLOOKUP(M36,R_Quali!$C$10:$H$100,6,FALSE) ->  | P36: =VLOOKUP(M36,'R52_Baum'!$D$3:$G$108,4,FALSE) ->  | Q36: =VLOOKUP(M36,'R52_Baum'!$I$3:$K$108,3,FALSE) -> 0
M37: =IF('R52_Baum'!M104='R52_Baum'!I102,'R52_Baum'!I103,'R52_Baum'!I102) ->  | N37: =VLOOKUP(M37,R_Quali!$C$10:$H$100,2,FALSE) ->  | O37: =VLOOKUP(M37,R_Quali!$C$10:$H$100,6,FALSE) ->  | P37: =VLOOKUP(M37,'R52_Baum'!$D$3:$G$108,4,FALSE) ->  | Q37: =VLOOKUP(M37,'R52_Baum'!$I$3:$K$108,3,FALSE) -> 0
M38: =IF('R52_Baum'!I8='R52_Baum'!D6,'R52_Baum'!D7,'R52_Baum'!D6) -> Schweiger Peter | N38: =VLOOKUP(M38,R_Quali!$C$10:$H$100,2,FALSE) -> BSV-Blumental | O38: =VLOOKUP(M38,R_Quali!$C$10:$H$100,6,FALSE) -> 516 | P38: =VLOOKUP(M38,'R52_Baum'!$D$3:$G$108,4,FALSE) -> 0
M39: =IF('R52_Baum'!I9='R52_Baum'!D10,'R52_Baum'!D11,'R52_Baum'!D10) -> Thuswald Alfred | N39: =VLOOKUP(M39,R_Quali!$C$10:$H$100,2,FALSE) -> ASKÖ Gunskirchen | O39: =VLOOKUP(M39,R_Quali!$C$10:$H$100,6,FALSE) -> 479 | P39: =VLOOKUP(M39,'R52_Baum'!$D$3:$G$108,4,FALSE) -> 0
M40: =IF('R52_Baum'!I16='R52_Baum'!D14,'R52_Baum'!D15,'R52_Baum'!D14) -> Traxler Helmuth | N40: =VLOOKUP(M40,R_Quali!$C$10:$H$100,2,FALSE) -> UBC Diana NÖ | O40: =VLOOKUP(M40,R_Quali!$C$10:$H$100,6,FALSE) -> 524 | P40: =VLOOKUP(M40,'R52_Baum'!$D$3:$G$108,4,FALSE) -> 0
M41: =IF('R52_Baum'!I17='R52_Baum'!D18,'R52_Baum'!D19,'R52_Baum'!D18) -> Werlitsch Ernst | N41: =VLOOKUP(M41,R_Quali!$C$10:$H$100,2,FALSE) -> EAT-Bogensport | O41: =VLOOKUP(M41,R_Quali!$C$10:$H$100,6,FALSE) -> 500 | P41: =VLOOKUP(M41,'R52_Baum'!$D$3:$G$108,4,FALSE) -> 0
M42: =IF('R52_Baum'!I24='R52_Baum'!D22,'R52_Baum'!D23,'R52_Baum'!D22) -> Wallner Ewald | N42: =VLOOKUP(M42,R_Quali!$C$10:$H$100,2,FALSE) -> BSC Sölkpass | O42: =VLOOKUP(M42,R_Quali!$C$10:$H$100,6,FALSE) -> 508 | P42: =VLOOKUP(M42,'R52_Baum'!$D$3:$G$108,4,FALSE) -> 0
M43: =IF('R52_Baum'!I25='R52_Baum'!D26,'R52_Baum'!D27,'R52_Baum'!D26) -> Linhart Christian | N43: =VLOOKUP(M43,R_Quali!$C$10:$H$100,2,FALSE) -> BSV Stöttera | O43: =VLOOKUP(M43,R_Quali!$C$10:$H$100,6,FALSE) -> 472 | P43: =VLOOKUP(M43,'R52_Baum'!$D$3:$G$108,4,FALSE) -> 0
M44: =IF('R52_Baum'!I32='R52_Baum'!D30,'R52_Baum'!D31,'R52_Baum'!D30) -> Höllwirth Andreas | N44: =VLOOKUP(M44,R_Quali!$C$10:$H$100,2,FALSE) -> ASKÖ-Luftenberg | O44: =VLOOKUP(M44,R_Quali!$C$10:$H$100,6,FALSE) -> 528 | P44: =VLOOKUP(M44,'R52_Baum'!$D$3:$G$108,4,FALSE) -> 0
M45: =IF('R52_Baum'!I33='R52_Baum'!D34,'R52_Baum'!D35,'R52_Baum'!D34) -> Simmer Gerhard | N45: =VLOOKUP(M45,R_Quali!$C$10:$H$100,2,FALSE) -> Union Bogensport Haag | O45: =VLOOKUP(M45,R_Quali!$C$10:$H$100,6,FALSE) -> 504 | P45: =VLOOKUP(M45,'R52_Baum'!$D$3:$G$108,4,FALSE) -> 0
M46: =IF('R52_Baum'!I40='R52_Baum'!D38,'R52_Baum'!D39,'R52_Baum'!D38) -> Pupetschek Manfred | N46: =VLOOKUP(M46,R_Quali!$C$10:$H$100,2,FALSE) -> IHG Sektion Bogen | O46: =VLOOKUP(M46,R_Quali!$C$10:$H$100,6,FALSE) -> 512 | P46: =VLOOKUP(M46,'R52_Baum'!$D$3:$G$108,4,FALSE) -> 0
M47: =IF('R52_Baum'!I41='R52_Baum'!D42,'R52_Baum'!D43,'R52_Baum'!D42) -> Bouse Harald | N47: =VLOOKUP(M47,R_Quali!$C$10:$H$100,2,FALSE) -> BSV Schönbrunn | O47: =VLOOKUP(M47,R_Quali!$C$10:$H$100,6,FALSE) -> 475 | P47: =VLOOKUP(M47,'R52_Baum'!$D$3:$G$108,4,FALSE) -> 0
M48: =IF('R52_Baum'!I48='R52_Baum'!D46,'R52_Baum'!D47,'R52_Baum'!D46) -> Jandl Ernst | N48: =VLOOKUP(M48,R_Quali!$C$10:$H$100,2,FALSE) -> PSV Burgenland - Sektion Bogen | O48: =VLOOKUP(M48,R_Quali!$C$10:$H$100,6,FALSE) -> 520 | P48: =VLOOKUP(M48,'R52_Baum'!$D$3:$G$108,4,FALSE) -> 0
M49: =IF('R52_Baum'!I49='R52_Baum'!D50,'R52_Baum'!D51,'R52_Baum'!D50) -> Mühlgassner Wolfgang | N49: =VLOOKUP(M49,R_Quali!$C$10:$H$100,2,FALSE) -> UBSC Artemis Wien | O49: =VLOOKUP(M49,R_Quali!$C$10:$H$100,6,FALSE) -> 487 | P49: =VLOOKUP(M49,'R52_Baum'!$D$3:$G$108,4,FALSE) -> 0
M50: =IF('R52_Baum'!I62='R52_Baum'!D60,'R52_Baum'!D61,'R52_Baum'!D60) -> Winkler Klaus | N50: =VLOOKUP(M50,R_Quali!$C$10:$H$100,2,FALSE) -> BSC Enzenreith | O50: =VLOOKUP(M50,R_Quali!$C$10:$H$100,6,FALSE) -> 514 | P50: =VLOOKUP(M50,'R52_Baum'!$D$3:$G$108,4,FALSE) -> 0
M51: =IF('R52_Baum'!I63='R52_Baum'!D64,'R52_Baum'!D65,'R52_Baum'!D64) -> Galler Joachim | N51: =VLOOKUP(M51,R_Quali!$C$10:$H$100,2,FALSE) -> BSV Mattersburg | O51: =VLOOKUP(M51,R_Quali!$C$10:$H$100,6,FALSE) -> 476 | P51: =VLOOKUP(M51,'R52_Baum'!$D$3:$G$108,4,FALSE) -> 0
M52: =IF('R52_Baum'!I70='R52_Baum'!D68,'R52_Baum'!D69,'R52_Baum'!D68) -> Reicher Ernst | N52: =VLOOKUP(M52,R_Quali!$C$10:$H$100,2,FALSE) -> BSC Wörthersee | O52: =VLOOKUP(M52,R_Quali!$C$10:$H$100,6,FALSE) -> 522 | P52: =VLOOKUP(M52,'R52_Baum'!$D$3:$G$108,4,FALSE) -> 0
M53: =IF('R52_Baum'!I71='R52_Baum'!D72,'R52_Baum'!D73,'R52_Baum'!D72) -> Hochbaumer Thomas | N53: =VLOOKUP(M53,R_Quali!$C$10:$H$100,2,FALSE) -> Austrian Free Archer | O53: =VLOOKUP(M53,R_Quali!$C$10:$H$100,6,FALSE) -> 487 | P53: =VLOOKUP(M53,'R52_Baum'!$D$3:$G$108,4,FALSE) -> 0
M54: =IF('R52_Baum'!I78='R52_Baum'!D76,'R52_Baum'!D77,'R52_Baum'!D76) -> Radauer Helmuth | N54: =VLOOKUP(M54,R_Quali!$C$10:$H$100,2,FALSE) -> BSC Ennstal | O54: =VLOOKUP(M54,R_Quali!$C$10:$H$100,6,FALSE) -> 506 | P54: =VLOOKUP(M54,'R52_Baum'!$D$3:$G$108,4,FALSE) -> 0
M55: =IF('R52_Baum'!I79='R52_Baum'!D80,'R52_Baum'!D81,'R52_Baum'!D80) -> Vorauer Helmut | N55: =VLOOKUP(M55,R_Quali!$C$10:$H$100,2,FALSE) -> HSV Absam Bogensport | O55: =VLOOKUP(M55,R_Quali!$C$10:$H$100,6,FALSE) -> 468 | P55: =VLOOKUP(M55,'R52_Baum'!$D$3:$G$108,4,FALSE) -> 0
M56: =IF('R52_Baum'!I86='R52_Baum'!D84,'R52_Baum'!D85,'R52_Baum'!D84) -> Bucher Martin | N56: =VLOOKUP(M56,R_Quali!$C$10:$H$100,2,FALSE) -> LH Graz | O56: =VLOOKUP(M56,R_Quali!$C$10:$H$100,6,FALSE) -> 526 | P56: =VLOOKUP(M56,'R52_Baum'!$D$3:$G$108,4,FALSE) -> 0
M57: =IF('R52_Baum'!I87='R52_Baum'!D88,'R52_Baum'!D89,'R52_Baum'!D88) -> Klemke Harald | N57: =VLOOKUP(M57,R_Quali!$C$10:$H$100,2,FALSE) -> BSV Mattersburg | O57: =VLOOKUP(M57,R_Quali!$C$10:$H$100,6,FALSE) -> 502 | P57: =VLOOKUP(M57,'R52_Baum'!$D$3:$G$108,4,FALSE) -> 0
M58: =IF('R52_Baum'!I94='R52_Baum'!D92,'R52_Baum'!D93,'R52_Baum'!D92) -> Kutmon Wilhelm | N58: =VLOOKUP(M58,R_Quali!$C$10:$H$100,2,FALSE) -> BS Ligist - Archery Freaks | O58: =VLOOKUP(M58,R_Quali!$C$10:$H$100,6,FALSE) -> 510 | P58: =VLOOKUP(M58,'R52_Baum'!$D$3:$G$108,4,FALSE) -> 0
M59: =IF('R52_Baum'!I95='R52_Baum'!D96,'R52_Baum'!D97,'R52_Baum'!D96) -> Feizlmair Andreas | N59: =VLOOKUP(M59,R_Quali!$C$10:$H$100,2,FALSE) -> Union Bogensport Haag | O59: =VLOOKUP(M59,R_Quali!$C$10:$H$100,6,FALSE) -> 474 | P59: =VLOOKUP(M59,'R52_Baum'!$D$3:$G$108,4,FALSE) -> 0
M60: =IF('R52_Baum'!I102='R52_Baum'!D100,'R52_Baum'!D101,'R52_Baum'!D100) -> Markl Mario | N60: =VLOOKUP(M60,R_Quali!$C$10:$H$100,2,FALSE) -> BSV Dakota | O60: =VLOOKUP(M60,R_Quali!$C$10:$H$100,6,FALSE) -> 518 | P60: =VLOOKUP(M60,'R52_Baum'!$D$3:$G$108,4,FALSE) -> 0
M61: =IF('R52_Baum'!I103='R52_Baum'!D104,'R52_Baum'!D105,'R52_Baum'!D104) -> Arfsten Sven | N61: =VLOOKUP(M61,R_Quali!$C$10:$H$100,2,FALSE) -> BC Golden Arrows | O61: =VLOOKUP(M61,R_Quali!$C$10:$H$100,6,FALSE) -> 483 | P61: =VLOOKUP(M61,'R52_Baum'!$D$3:$G$108,4,FALSE) -> 0

Sheet R16_Baum (hidden)
B2: Schb | C2: Name | D2: Erg. | K2: =Select!C12 -> Demoturnier
B3: =D55 -> 1A | C3: =R_Quali!C10 -> Url Günter
A4: 1 | C4: =R_Quali!D10 -> BSC-Wolfspfeil Raab-Holzer | D4: =R_Quali!H10 -> 532 | E4: Quali. | K4: =Select!C13 -> 1. April 2019
A5: 16 | B5: =D56 -> 1B | C5: =R_Quali!C25 -> Lackner Uwe | F5: Schb | G5: Name | H5: Erg.
C6: =R_Quali!D25 -> LH Graz | D6: =R_Quali!H25 -> 517 | E6: Quali. | F6: =H55 -> 6A | G6: =IF($D3>$D5,$C3,IF($D5>$D3,$C5,IF(RIGHT($D3,1)="*",$C3,IF(RIGHT($D5,1)="*",$C5,"")))) -> 
G7: =IF($D3>$D5,$C4,IF($D5>$D3,$C6,IF(RIGHT($D3,1)="*",$C4,IF(RIGHT($D5,1)="*",$C6,"")))) ->  | N7: 1. | O7: =IF($P$21>$P$23,$O$21,IF($P$23>$P$21,$O$23,IF(RIGHT($P$21,1)="*",$O$21,IF(RIGHT($P$23,1)="*",$O$23,"")))) -> 
F8: =H56 -> 6B | G8: =IF($D9>$D11,$C9,IF($D11>$D9,$C11,IF(RIGHT($D9,1)="*",$C9,IF(RIGHT($D11,1)="*",$C11,"")))) ->  | O8: =IF($P$21>$P$23,$O$22,IF($P$23>$P$21,$O$24,IF(RIGHT($P$21,1)="*",$O$22,IF(RIGHT($P$23,1)="*",$O$24,"")))) -> 
B9: =D57 -> 2A | C9: =R_Quali!C18 -> Traxler Helmuth | G9: =IF($D9>$D11,$C10,IF($D11>$D9,$C12,IF(RIGHT($D9,1)="*",$C10,IF(RIGHT($D11,1)="*",$C12,"")))) ->  | N9: 2. | O9: =IF($P$21<$P$23,$O$21,IF($P$23<$P$21,$O$23,IF(RIGHT($P$23,1)="*",$O$21,IF(RIGHT($P$21,1)="*",$O$23,"")))) -> 
A10: 9 | C10: =R_Quali!D18 -> UBC Diana NÖ | D10: =R_Quali!H18 -> 524 | E10: Quali. | O10: =IF($P$21<$P$23,$O$22,IF($P$23<$P$21,$O$24,IF(RIGHT($P$23,1)="*",$O$22,IF(RIGHT($P$21,1)="*",$O$24,"")))) -> 
A11: 8 | B11: =D58 -> 2B | C11: =R_Quali!C17 -> Robl Ronald | J11: Schb | K11: Name | L11: Erg. | N11: 3. | O11: =IF($P$27>$P$29,$O$27,IF($P$29>$P$27,$O$29,IF(RIGHT($P$27,1)="*",$O$27,IF(RIGHT($P$29,1)="*",$O$29,"")))) -> 
C12: =R_Quali!D17 -> Austrian Free Archer | D12: =R_Quali!H17 -> 525 | E12: Quali. | J12: =L55 -> 6 | K12: =IF($H6>$H8,$G6,IF($H8>$H6,$G8,IF(RIGHT($H6,1)="*",$G6,IF(RIGHT($H8,1)="*",$G8,"")))) ->  | O12: =IF($P$27>$P$29,$O$28,IF($P$29>$P$27,$O$30,IF(RIGHT($P$27,1)="*",$O$28,IF(RIGHT($P$29,1)="*",$O$30,"")))) -> 
K13: =IF($H6>$H8,$G7,IF($H8>$H6,$G9,IF(RIGHT($H6,1)="*",$G7,IF(RIGHT($H8,1)="*",$G9,"")))) -> 
J14: =L56 -> 7 | K14: =IF($H18>$H20,$G18,IF($H20>$H18,$G20,IF(RIGHT($H18,1)="*",$G18,IF(RIGHT($H20,1)="*",$G20,"")))) -> 
B15: =D59 -> 3A | C15: =R_Quali!C14 -> Höllwirth Andreas | K15: =IF($H18>$H20,$G19,IF($H20>$H18,$G21,IF(RIGHT($H18,1)="*",$G19,IF(RIGHT($H20,1)="*",$G21,"")))) -> 
A16: 5 | C16: =R_Quali!D14 -> ASKÖ-Luftenberg | D16: =R_Quali!H14 -> 528 | E16: Quali.
A17: 12 | B17: =D60 -> 3B | C17: =R_Quali!C21 -> Bauer Helfried
C18: =R_Quali!D21 -> Austrian Free Archer | D18: =R_Quali!H21 -> 521 | E18: Quali. | F18: =H57 -> 7A | G18: =IF($D15>$D17,$C15,IF($D17>$D15,$C17,IF(RIGHT($D15,1)="*",$C15,IF(RIGHT($D17,1)="*",$C17,"")))) -> 
G19: =IF($D15>$D17,$C16,IF($D17>$D15,$C18,IF(RIGHT($D15,1)="*",$C16,IF(RIGHT($D17,1)="*",$C18,"")))) -> 
F20: =H58 -> 7B | G20: =IF($D21>$D23,$C21,IF($D23>$D21,$C23,IF(RIGHT($D21,1)="*",$C21,IF(RIGHT($D23,1)="*",$C23,"")))) ->  | N20: Schb | O20: Name | P20: Erg.
B21: =D61 -> 4A | C21: =R_Quali!C22 -> Jandl Ernst | G21: =IF($D21>$D23,$C22,IF($D23>$D21,$C24,IF(RIGHT($D21,1)="*",$C22,IF(RIGHT($D23,1)="*",$C24,"")))) ->  | N21: =P55 -> 1 | O21: =IF($L12>$L14,$K12,IF($L14>$L12,$K14,IF(RIGHT($L12,1)="*",$K12,IF(RIGHT($L14,1)="*",$K14,"")))) -> 
A22: 13 | C22: =R_Quali!D22 -> PSV Burgenland - Sektion Bogen | D22: =R_Quali!H22 -> 520 | E22: Quali. | L22: Finale | O22: =IF($L12>$L14,$K13,IF($L14>$L12,$K15,IF(RIGHT($L12,1)="*",$K13,IF(RIGHT($L14,1)="*",$K15,"")))) -> 
A23: 4 | B23: =D62 -> 4B | C23: =R_Quali!C13 -> Krempl Werner | L23: 1. und 2. Platz | N23: =P56 -> 2 | O23: =IF($L36>$L38,$K36,IF($L38>$L36,$K38,IF(RIGHT($L36,1)="*",$K36,IF(RIGHT($L38,1)="*",$K38,"")))) -> 
C24: =R_Quali!D13 -> BSC Semriach | D24: =R_Quali!H13 -> 529 | E24: Quali. | O24: =IF($L36>$L38,$K37,IF($L38>$L36,$K39,IF(RIGHT($L36,1)="*",$K37,IF(RIGHT($L38,1)="*",$K39,"")))) -> 
B27: =D63 -> 5A | C27: =R_Quali!C12 -> Strohmaier Joachim | N27: =P57 -> 1 | O27: =IF($L12<$L14,$K12,IF($L14<$L12,$K14,IF(RIGHT($L12,1)="*",$K14,IF(RIGHT($L14,1)="*",$K12,"")))) -> 
A28: 3 | C28: =R_Quali!D12 -> BSC Kumberg | D28: =R_Quali!H12 -> 530 | E28: Quali. | L28: Finale | O28: =IF($L12<$L14,$K13,IF($L14<$L12,$K15,IF(RIGHT($L12,1)="*",$K12,IF(RIGHT($L14,1)="*",$K14,"")))) -> 
A29: 14 | B29: =D64 -> 5B | C29: =R_Quali!C23 -> Schramm Wolfgang | L29: 3. und 4. Platz | N29: =P58 -> 2 | O29: =IF($L36<$L38,$K36,IF($L38<$L36,$K38,IF(RIGHT($L36,1)="*",$K38,IF(RIGHT($L38,1)="*",$K36,"")))) -> 
C30: =R_Quali!D23 -> LINZ AG Sport - Sektion Bogen | D30: =R_Quali!H23 -> 519 | E30: Quali. | F30: =H59 -> 8A | G30: =IF($D27>$D29,$C27,IF($D29>$D27,$C29,IF(RIGHT($D27,1)="*",$C27,IF(RIGHT($D29,1)="*",$C29,"")))) ->  | O30: =IF($L36<$L38,$K37,IF($L38<$L36,$K39,IF(RIGHT($L36,1)="*",$K39,IF(RIGHT($L38,1)="*",$K37,"")))) -> 
G31: =IF($D27>$D29,$C28,IF($D29>$D27,$C30,IF(RIGHT($D27,1)="*",$C28,IF(RIGHT($D29,1)="*",$C30,"")))) -> 
F32: =H60 -> 8B | G32: =IF($D33>$D35,$C33,IF($D35>$D33,$C35,IF(RIGHT($D33,1)="*",$C33,IF(RIGHT($D35,1)="*",$C35,"")))) -> 
B33: =D65 -> 6A | C33: =R_Quali!C20 -> Reicher Ernst | G33: =IF($D33>$D35,$C34,IF($D35>$D33,$C36,IF(RIGHT($D33,1)="*",$C34,IF(RIGHT($D35,1)="*",$C36,"")))) -> 
A34: 11 | C34: =R_Quali!D20 -> BSC Wörthersee | D34: =R_Quali!H20 -> 522 | E34: Quali.
A35: 6 | B35: =D66 -> 6B | C35: =R_Quali!C15 -> Parschisek Alexander
C36: =R_Quali!D15 -> BC-Oberschützen | D36: =R_Quali!H15 -> 527 | E36: Quali. | J36: =L57 -> 8 | K36: =IF($H30>$H32,$G30,IF($H32>$H30,$G32,IF(RIGHT($H30,1)="*",$G30,IF(RIGHT($H32,1)="*",$G32,"")))) -> 
K37: =IF($H30>$H32,$G31,IF($H32>$H30,$G33,IF(RIGHT($H30,1)="*",$G31,IF(RIGHT($H32,1)="*",$G33,"")))) -> 
J38: =L58 -> 9 | K38: =IF($H42>$H44,$G42,IF($H44>$H42,$G44,IF(RIGHT($H42,1)="*",$G42,IF(RIGHT($H44,1)="*",$G44,"")))) -> 
B39: =D67 -> 7A | C39: =R_Quali!C16 -> Bucher Martin | K39: =IF($H42>$H44,$G43,IF($H44>$H42,$G45,IF(RIGHT($H42,1)="*",$G43,IF(RIGHT($H44,1)="*",$G45,"")))) ->  | O39: Finale
A40: 7 | C40: =R_Quali!D16 -> LH Graz | D40: =R_Quali!H16 -> 526 | E40: Quali.
A41: 10 | B41: =D68 -> 7B | C41: =R_Quali!C19 -> Navratil Christoph
C42: =R_Quali!D19 -> BSV Schönbrunn | D42: =R_Quali!H19 -> 523 | E42: Quali. | F42: =H61 -> 9A | G42: =IF($D39>$D41,$C39,IF($D41>$D39,$C41,IF(RIGHT($D39,1)="*",$C39,IF(RIGHT($D41,1)="*",$C41,"")))) ->  | K42: 1/2 Finale
G43: =IF($D39>$D41,$C40,IF($D41>$D39,$C42,IF(RIGHT($D39,1)="*",$C40,IF(RIGHT($D41,1)="*",$C42,"")))) -> 
F44: =H62 -> 9B | G44: =IF($D45>$D47,$C45,IF($D47>$D45,$C47,IF(RIGHT($D45,1)="*",$C45,IF(RIGHT($D47,1)="*",$C47,"")))) -> 
B45: =D69 -> 8A | C45: =R_Quali!C24 -> Markl Mario | G45: =IF($D45>$D47,$C46,IF($D47>$D45,$C48,IF(RIGHT($D45,1)="*",$C46,IF(RIGHT($D47,1)="*",$C48,"")))) -> 
A46: 15 | C46: =R_Quali!D24 -> BSV Dakota | D46: =R_Quali!H24 -> 518 | E46: Quali. | O46: =Select!C18 -> Recurve Herren
A47: 2 | B47: =D70 -> 8B | C47: =R_Quali!C11 -> Berger Hermann
C48: =R_Quali!D11 -> BSV Glemmerhof | D48: =R_Quali!H11 -> 531 | E48: Quali. | G48: 1/4 Finale
C50: 1/8 Elimination
C54: Scheibe:
B55: 1 | C55: =CONCATENATE($C$54," ",D55) -> Scheibe: 1A | D55: 1A | F55: 1 | G55: =CONCATENATE($C$54," ",H55) -> Scheibe: 6A | H55: 6A | J55: 1 | K55: =CONCATENATE($C$54," ",L55) -> Scheibe: 6 | L55: 6 | N55: 1 | O55: =CONCATENATE($C$54," ",P55) -> Scheibe: 1 | P55: 1
C56: Scheibe: 1B | D56: =IF(RIGHT(D55,1)="A",CONCATENATE(LEFT(D55,LEN(D55)-1),"B"),D55+1) -> 1B | G56: Scheibe: 6B | H56: =IF(RIGHT(H55,1)="A",CONCATENATE(LEFT(H55,LEN(H55)-1),"B"),H55+1) -> 6B | K56: =CONCATENATE($C$54," ",L56) -> Scheibe: 7 | L56: =IF(RIGHT(L55,1)="A",CONCATENATE(LEFT(L55,LEN(L55)-1),"B"),L55+1) -> 7 | O56: =CONCATENATE($C$54," ",P56) -> Scheibe: 2 | P56: =IF(RIGHT(P55,1)="A",CONCATENATE(LEFT(P55,LEN(P55)-1),"B"),P55+1) -> 2
B57: =B55+1 -> 2 | C57: Scheibe: 2A | D57: =IF(RIGHT(D56,1)="B",CONCATENATE(LEFT(D56,LEN(D56)-1)+1,"A"),D56+1) -> 2A | F57: =F55+1 -> 2 | G57: Scheibe: 7A | H57: =IF(RIGHT(H56,1)="B",CONCATENATE(LEFT(H56,LEN(H56)-1)+1,"A"),H56+1) -> 7A | J57: =J55+1 -> 2 | K57: =CONCATENATE($C$54," ",L57) -> Scheibe: 8 | L57: =IF(RIGHT(L56,1)="B",CONCATENATE(LEFT(L56,LEN(L56)-1)+1,"A"),L56+1) -> 8 | N57: =N55+1 -> 2 | O57: =CONCATENATE($C$54," ",P57) -> Scheibe: 1 | P57: 1
C58: Scheibe: 2B | D58: =IF(RIGHT(D57,1)="A",CONCATENATE(LEFT(D57,LEN(D57)-1),"B"),D57+1) -> 2B | G58: Scheibe: 7B | H58: =IF(RIGHT(H57,1)="A",CONCATENATE(LEFT(H57,LEN(H57)-1),"B"),H57+1) -> 7B | K58: =CONCATENATE($C$54," ",L58) -> Scheibe: 9 | L58: =IF(RIGHT(L57,1)="A",CONCATENATE(LEFT(L57,LEN(L57)-1),"B"),L57+1) -> 9 | O58: =CONCATENATE($C$54," ",P58) -> Scheibe: 2 | P58: =IF(RIGHT(P57,1)="A",CONCATENATE(LEFT(P57,LEN(P57)-1),"B"),P57+1) -> 2
B59: =B57+1 -> 3 | C59: Scheibe: 3A | D59: =IF(RIGHT(D58,1)="B",CONCATENATE(LEFT(D58,LEN(D58)-1)+1,"A"),D58+1) -> 3A | F59: =F57+1 -> 3 | G59: Scheibe: 8A | H59: =IF(RIGHT(H58,1)="B",CONCATENATE(LEFT(H58,LEN(H58)-1)+1,"A"),H58+1) -> 8A
C60: Scheibe: 3B | D60: =IF(RIGHT(D59,1)="A",CONCATENATE(LEFT(D59,LEN(D59)-1),"B"),D59+1) -> 3B | G60: Scheibe: 8B | H60: =IF(RIGHT(H59,1)="A",CONCATENATE(LEFT(H59,LEN(H59)-1),"B"),H59+1) -> 8B
B61: =B59+1 -> 4 | C61: Scheibe: 4A | D61: =IF(RIGHT(D60,1)="B",CONCATENATE(LEFT(D60,LEN(D60)-1)+1,"A"),D60+1) -> 4A | F61: =F59+1 -> 4 | G61: Scheibe: 9A | H61: =IF(RIGHT(H60,1)="B",CONCATENATE(LEFT(H60,LEN(H60)-1)+1,"A"),H60+1) -> 9A
C62: Scheibe: 4B | D62: =IF(RIGHT(D61,1)="A",CONCATENATE(LEFT(D61,LEN(D61)-1),"B"),D61+1) -> 4B | G62: Scheibe: 9B | H62: =IF(RIGHT(H61,1)="A",CONCATENATE(LEFT(H61,LEN(H61)-1),"B"),H61+1) -> 9B
B63: =B61+1 -> 5 | C63: Scheibe: 5A | D63: =IF(RIGHT(D62,1)="B",CONCATENATE(LEFT(D62,LEN(D62)-1)+1,"A"),D62+1) -> 5A
C64: Scheibe: 5B | D64: =IF(RIGHT(D63,1)="A",CONCATENATE(LEFT(D63,LEN(D63)-1),"B"),D63+1) -> 5B
B65: =B63+1 -> 6 | C65: Scheibe: 6A | D65: =IF(RIGHT(D64,1)="B",CONCATENATE(LEFT(D64,LEN(D64)-1)+1,"A"),D64+1) -> 6A
C66: Scheibe: 6B | D66: =IF(RIGHT(D65,1)="A",CONCATENATE(LEFT(D65,LEN(D65)-1),"B"),D65+1) -> 6B
B67: =B65+1 -> 7 | C67: Scheibe: 7A | D67: =IF(RIGHT(D66,1)="B",CONCATENATE(LEFT(D66,LEN(D66)-1)+1,"A"),D66+1) -> 7A
C68: Scheibe: 7B | D68: =IF(RIGHT(D67,1)="A",CONCATENATE(LEFT(D67,LEN(D67)-1),"B"),D67+1) -> 7B
B69: =B67+1 -> 8 | C69: Scheibe: 8A | D69: =IF(RIGHT(D68,1)="B",CONCATENATE(LEFT(D68,LEN(D68)-1)+1,"A"),D68+1) -> 8A
C70: Scheibe: 8B | D70: =IF(RIGHT(D69,1)="A",CONCATENATE(LEFT(D69,LEN(D69)-1),"B"),D69+1) -> 8B

Sheet R16 (hidden)
J2: 1/16 Elimination | S2: 1/8 Elimination | W2: ='R16_Baum'!C55 -> Scheibe: 1A
K3: 1 | L3: 2 | M3: 3 | N3: Summe | O3: Punkte | P3: Ges. | T3: 1 | U3: 2 | V3: 3 | W3: Summe | X3: Punkte | Y3: Ges.
A4: =Select!$C$12 -> Demoturnier | J4: Satz 1 | S4: Satz 1
A5: Veranstaltung | J5: Satz 2 | S5: Satz 2
A6: =Select!$C$13 -> 1. April 2019 | J6: Satz 3 | S6: Satz 3
A7: Datum | J7: wenn erforderlich | S7: wenn erforderlich
J8: Satz 4 | S8: Satz 4
J9: wenn erforderlich | S9: wenn erforderlich
A10: ='R16_Baum'!C3 -> Url Günter | J10: Satz 5 | S10: Satz 5
A11: Name | J11: wenn erforderlich | S11: wenn erforderlich
A12: ='R16_Baum'!C4 -> BSC-Wolfspfeil Raab-Holzer | J12: Stechen | S12: Stechen
A13: Verein | O13: gewonnen | X13: gewonnen
A14: =Select!$C$18 -> Recurve Herren | J14: Schütze: | O14: verloren | S14: Schütze: | X14: verloren
A15: Bogenklasse
J16: Gegner: | L16: Name: | S16: Gegner: | U16: Name: | V16: ='R16_Baum'!C5 -> Lackner Uwe
L17: Unterschrift: | U17: Unterschrift:
A20: 1/4 Finale | E20: ='R16_Baum'!G55 -> Scheibe: 6A | J20: 1/2 Finale | N20: ='R16_Baum'!K55 -> Scheibe: 6 | S20: 1./2. od. 3./4. Platz | W20: Scheibe:
B21: 1 | C21: 2 | D21: 3 | E21: Summe | F21: Punkte | G21: Ges. | K21: 1 | L21: 2 | M21: 3 | N21: Summe | O21: Punkte | P21: Ges. | T21: 1 | U21: 2 | V21: 3 | W21: Summe | X21: Punkte | Y21: Ges.
A22: Satz 1 | J22: Satz 1 | S22: Satz 1
A23: Satz 2 | J23: Satz 2 | S23: Satz 2
A24: Satz 3 | J24: Satz 3 | S24: Satz 3
A25: wenn erforderlich | J25: wenn erforderlich | S25: wenn erforderlich
A26: Satz 4 | J26: Satz 4 | S26: Satz 4
A27: wenn erforderlich | J27: wenn erforderlich | S27: wenn erforderlich
A28: Satz 5 | J28: Satz 5 | S28: Satz 5
A29: wenn erforderlich | J29: wenn erforderlich | S29: wenn erforderlich
A30: Stechen | J30: Stechen | S30: Stechen
F31: gewonnen | O31: gewonnen | X31: gewonnen
A32: Schütze: | F32: verloren | J32: Schütze: | O32: verloren | S32: Schütze: | X32: verloren
A34: Gegner: | C34: Name: | J34: Gegner: | L34: Name: | S34: Gegner: | U34: Name:
C35: Unterschrift: | L35: Unterschrift: | U35: Unterschrift:
J38: 1/16 Elimination | S38: 1/8 Elimination | W38: ='R16_Baum'!C56 -> Scheibe: 1B
K39: 1 | L39: 2 | M39: 3 | N39: Summe | O39: Punkte | P39: Ges. | T39: 1 | U39: 2 | V39: 3 | W39: Summe | X39: Punkte | Y39: Ges.
A40: =Select!$C$12 -> Demoturnier | J40: Satz 1 | S40: Satz 1
A41: Veranstaltung | J41: Satz 2 | S41: Satz 2
A42: =Select!$C$13 -> 1. April 2019 | J42: Satz 3 | S42: Satz 3
A43: Datum | J43: wenn erforderlich | S43: wenn erforderlich
J44: Satz 4 | S44: Satz 4
J45: wenn erforderlich | S45: wenn erforderlich
A46: ='R16_Baum'!C5 -> Lackner Uwe | J46: Satz 5 | S46: Satz 5
A47: Name | J47: wenn erforderlich | S47: wenn erforderlich
A48: ='R16_Baum'!C6 -> LH Graz | J48: Stechen | S48: Stechen
A49: Verein | O49: gewonnen | X49: gewonnen
A50: =Select!$C$18 -> Recurve Herren | J50: Schütze: | O50: verloren | S50: Schütze: | X50: verloren
A51: Bogenklasse
J52: Gegner: | L52: Name: | S52: Gegner: | U52: Name: | V52: ='R16_Baum'!C3 -> Url Günter
L53: Unterschrift: | U53: Unterschrift:
A56: 1/4 Finale | E56: ='R16_Baum'!G55 -> Scheibe: 6A | J56: 1/2 Finale | N56: ='R16_Baum'!K55 -> Scheibe: 6 | S56: 1./2. od. 3./4. Platz | W56: Scheibe:
B57: 1 | C57: 2 | D57: 3 | E57: Summe | F57: Punkte | G57: Ges. | K57: 1 | L57: 2 | M57: 3 | N57: Summe | O57: Punkte | P57: Ges. | T57: 1 | U57: 2 | V57: 3 | W57: Summe | X57: Punkte | Y57: Ges.
A58: Satz 1 | J58: Satz 1 | S58: Satz 1
A59: Satz 2 | J59: Satz 2 | S59: Satz 2
A60: Satz 3 | J60: Satz 3 | S60: Satz 3
A61: wenn erforderlich | J61: wenn erforderlich | S61: wenn erforderlich
A62: Satz 4 | J62: Satz 4 | S62: Satz 4
A63: wenn erforderlich | J63: wenn erforderlich | S63: wenn erforderlich
A64: Satz 5 | J64: Satz 5 | S64: Satz 5
A65: wenn erforderlich | J65: wenn erforderlich | S65: wenn erforderlich
A66: Stechen | J66: Stechen | S66: Stechen
F67: gewonnen | O67: gewonnen | X67: gewonnen
A68: Schütze: | F68: verloren | J68: Schütze: | O68: verloren | S68: Schütze: | X68: verloren
A70: Gegner: | C70: Name: | J70: Gegner: | L70: Name: | S70: Gegner: | U70: Name:
C71: Unterschrift: | L71: Unterschrift: | U71: Unterschrift:
J74: 1/16 Elimination | S74: 1/8 Elimination | W74: ='R16_Baum'!C57 -> Scheibe: 2A
K75: 1 | L75: 2 | M75: 3 | N75: Summe | O75: Punkte | P75: Ges. | T75: 1 | U75: 2 | V75: 3 | W75: Summe | X75: Punkte | Y75: Ges.
A76: =Select!$C$12 -> Demoturnier | J76: Satz 1 | S76: Satz 1
A77: Veranstaltung | J77: Satz 2 | S77: Satz 2
A78: =Select!$C$13 -> 1. April 2019 | J78: Satz 3 | S78: Satz 3
A79: Datum | J79: wenn erforderlich | S79: wenn erforderlich
J80: Satz 4 | S80: Satz 4
J81: wenn erforderlich | S81: wenn erforderlich
A82: ='R16_Baum'!C9 -> Traxler Helmuth | J82: Satz 5 | S82: Satz 5
A83: Name | J83: wenn erforderlich | S83: wenn erforderlich
A84: ='R16_Baum'!C10 -> UBC Diana NÖ | J84: Stechen | S84: Stechen
A85: Verein | O85: gewonnen | X85: gewonnen
A86: =Select!$C$18 -> Recurve Herren | J86: Schütze: | O86: verloren | S86: Schütze: | X86: verloren
A87: Bogenklasse
J88: Gegner: | L88: Name: | S88: Gegner: | U88: Name: | V88: ='R16_Baum'!C11 -> Robl Ronald
L89: Unterschrift: | U89: Unterschrift:
A92: 1/4 Finale | E92: ='R16_Baum'!G56 -> Scheibe: 6B | J92: 1/2 Finale | N92: ='R16_Baum'!K55 -> Scheibe: 6 | S92: 1./2. od. 3./4. Platz | W92: Scheibe:
B93: 1 | C93: 2 | D93: 3 | E93: Summe | F93: Punkte | G93: Ges. | K93: 1 | L93: 2 | M93: 3 | N93: Summe | O93: Punkte | P93: Ges. | T93: 1 | U93: 2 | V93: 3 | W93: Summe | X93: Punkte | Y93: Ges.
A94: Satz 1 | J94: Satz 1 | S94: Satz 1
A95: Satz 2 | J95: Satz 2 | S95: Satz 2
A96: Satz 3 | J96: Satz 3 | S96: Satz 3
A97: wenn erforderlich | J97: wenn erforderlich | S97: wenn erforderlich
A98: Satz 4 | J98: Satz 4 | S98: Satz 4
A99: wenn erforderlich | J99: wenn erforderlich | S99: wenn erforderlich
A100: Satz 5 | J100: Satz 5 | S100: Satz 5
A101: wenn erforderlich | J101: wenn erforderlich | S101: wenn erforderlich
A102: Stechen | J102: Stechen | S102: Stechen
F103: gewonnen | O103: gewonnen | X103: gewonnen
A104: Schütze: | F104: verloren | J104: Schütze: | O104: verloren | S104: Schütze: | X104: verloren
A106: Gegner: | C106: Name: | J106: Gegner: | L106: Name: | S106: Gegner: | U106: Name:
C107: Unterschrift: | L107: Unterschrift: | U107: Unterschrift:
J110: 1/16 Elimination | S110: 1/8 Elimination | W110: ='R16_Baum'!C58 -> Scheibe: 2B
K111: 1 | L111: 2 | M111: 3 | N111: Summe | O111: Punkte | P111: Ges. | T111: 1 | U111: 2 | V111: 3 | W111: Summe | X111: Punkte | Y111: Ges.
A112: =Select!$C$12 -> Demoturnier | J112: Satz 1 | S112: Satz 1
A113: Veranstaltung | J113: Satz 2 | S113: Satz 2
A114: =Select!$C$13 -> 1. April 2019 | J114: Satz 3 | S114: Satz 3
A115: Datum | J115: wenn erforderlich | S115: wenn erforderlich
J116: Satz 4 | S116: Satz 4
J117: wenn erforderlich | S117: wenn erforderlich
A118: ='R16_Baum'!C11 -> Robl Ronald | J118: Satz 5 | S118: Satz 5
A119: Name | J119: wenn erforderlich | S119: wenn erforderlich
A120: ='R16_Baum'!C12 -> Austrian Free Archer | J120: Stechen | S120: Stechen
A121: Verein | O121: gewonnen | X121: gewonnen
A122: =Select!$C$18 -> Recurve Herren | J122: Schütze: | O122: verloren | S122: Schütze: | X122: verloren
A123: Bogenklasse
J124: Gegner: | L124: Name: | S124: Gegner: | U124: Name: | V124: ='R16_Baum'!C9 -> Traxler Helmuth
L125: Unterschrift: | U125: Unterschrift:
A128: 1/4 Finale | E128: ='R16_Baum'!G56 -> Scheibe: 6B | J128: 1/2 Finale | N128: ='R16_Baum'!K55 -> Scheibe: 6 | S128: 1./2. od. 3./4. Platz | W128: Scheibe:
B129: 1 | C129: 2 | D129: 3 | E129: Summe | F129: Punkte | G129: Ges. | K129: 1 | L129: 2 | M129: 3 | N129: Summe | O129: Punkte | P129: Ges. | T129: 1 | U129: 2 | V129: 3 | W129: Summe | X129: Punkte | Y129: Ges.
A130: Satz 1 | J130: Satz 1 | S130: Satz 1
A131: Satz 2 | J131: Satz 2 | S131: Satz 2
A132: Satz 3 | J132: Satz 3 | S132: Satz 3
A133: wenn erforderlich | J133: wenn erforderlich | S133: wenn erforderlich
A134: Satz 4 | J134: Satz 4 | S134: Satz 4
A135: wenn erforderlich | J135: wenn erforderlich | S135: wenn erforderlich
A136: Satz 5 | J136: Satz 5 | S136: Satz 5
A137: wenn erforderlich | J137: wenn erforderlich | S137: wenn erforderlich
A138: Stechen | J138: Stechen | S138: Stechen
F139: gewonnen | O139: gewonnen | X139: gewonnen
A140: Schütze: | F140: verloren | J140: Schütze: | O140: verloren | S140: Schütze: | X140: verloren
A142: Gegner: | C142: Name: | J142: Gegner: | L142: Name: | S142: Gegner: | U142: Name:
C143: Unterschrift: | L143: Unterschrift: | U143: Unterschrift:
J146: 1/16 Elimination | S146: 1/8 Elimination | W146: ='R16_Baum'!C59 -> Scheibe: 3A
K147: 1 | L147: 2 | M147: 3 | N147: Summe | O147: Punkte | P147: Ges. | T147: 1 | U147: 2 | V147: 3 | W147: Summe | X147: Punkte | Y147: Ges.
A148: =Select!$C$12 -> Demoturnier | J148: Satz 1 | S148: Satz 1
A149: Veranstaltung | J149: Satz 2 | S149: Satz 2
A150: =Select!$C$13 -> 1. April 2019 | J150: Satz 3 | S150: Satz 3
A151: Datum | J151: wenn erforderlich | S151: wenn erforderlich
J152: Satz 4 | S152: Satz 4
J153: wenn erforderlich | S153: wenn erforderlich
A154: ='R16_Baum'!C15 -> Höllwirth Andreas | J154: Satz 5 | S154: Satz 5
A155: Name | J155: wenn erforderlich | S155: wenn erforderlich
A156: ='R16_Baum'!C16 -> ASKÖ-Luftenberg | J156: Stechen | S156: Stechen
A157: Verein | O157: gewonnen | X157: gewonnen
A158: =Select!$C$18 -> Recurve Herren | J158: Schütze: | O158: verloren | S158: Schütze: | X158: verloren
A159: Bogenklasse
J160: Gegner: | L160: Name: | S160: Gegner: | U160: Name: | V160: ='R16_Baum'!C17 -> Bauer Helfried
L161: Unterschrift: | U161: Unterschrift:
A164: 1/4 Finale | E164: ='R16_Baum'!G57 -> Scheibe: 7A | J164: 1/2 Finale | N164: ='R16_Baum'!K56 -> Scheibe: 7 | S164: 1./2. od. 3./4. Platz | W164: Scheibe:
B165: 1 | C165: 2 | D165: 3 | E165: Summe | F165: Punkte | G165: Ges. | K165: 1 | L165: 2 | M165: 3 | N165: Summe | O165: Punkte | P165: Ges. | T165: 1 | U165: 2 | V165: 3 | W165: Summe | X165: Punkte | Y165: Ges.
A166: Satz 1 | J166: Satz 1 | S166: Satz 1
A167: Satz 2 | J167: Satz 2 | S167: Satz 2
A168: Satz 3 | J168: Satz 3 | S168: Satz 3
A169: wenn erforderlich | J169: wenn erforderlich | S169: wenn erforderlich
A170: Satz 4 | J170: Satz 4 | S170: Satz 4
A171: wenn erforderlich | J171: wenn erforderlich | S171: wenn erforderlich
A172: Satz 5 | J172: Satz 5 | S172: Satz 5
A173: wenn erforderlich | J173: wenn erforderlich | S173: wenn erforderlich
A174: Stechen | J174: Stechen | S174: Stechen
F175: gewonnen | O175: gewonnen | X175: gewonnen
A176: Schütze: | F176: verloren | J176: Schütze: | O176: verloren | S176: Schütze: | X176: verloren
A178: Gegner: | C178: Name: | J178: Gegner: | L178: Name: | S178: Gegner: | U178: Name:
C179: Unterschrift: | L179: Unterschrift: | U179: Unterschrift:
J182: 1/16 Elimination | S182: 1/8 Elimination | W182: ='R16_Baum'!C60 -> Scheibe: 3B
K183: 1 | L183: 2 | M183: 3 | N183: Summe | O183: Punkte | P183: Ges. | T183: 1 | U183: 2 | V183: 3 | W183: Summe | X183: Punkte | Y183: Ges.
A184: =Select!$C$12 -> Demoturnier | J184: Satz 1 | S184: Satz 1
A185: Veranstaltung | J185: Satz 2 | S185: Satz 2
A186: =Select!$C$13 -> 1. April 2019 | J186: Satz 3 | S186: Satz 3
A187: Datum | J187: wenn erforderlich | S187: wenn erforderlich
J188: Satz 4 | S188: Satz 4
J189: wenn erforderlich | S189: wenn erforderlich
A190: ='R16_Baum'!C17 -> Bauer Helfried | J190: Satz 5 | S190: Satz 5
A191: Name | J191: wenn erforderlich | S191: wenn erforderlich
A192: ='R16_Baum'!C18 -> Austrian Free Archer | J192: Stechen | S192: Stechen
A193: Verein | O193: gewonnen | X193: gewonnen
A194: =Select!$C$18 -> Recurve Herren | J194: Schütze: | O194: verloren | S194: Schütze: | X194: verloren
A195: Bogenklasse
J196: Gegner: | L196: Name: | S196: Gegner: | U196: Name: | V196: ='R16_Baum'!C15 -> Höllwirth Andreas
L197: Unterschrift: | U197: Unterschrift:
A200: 1/4 Finale | E200: ='R16_Baum'!G57 -> Scheibe: 7A | J200: 1/2 Finale | N200: ='R16_Baum'!K56 -> Scheibe: 7 | S200: 1./2. od. 3./4. Platz | W200: Scheibe:
B201: 1 | C201: 2 | D201: 3 | E201: Summe | F201: Punkte | G201: Ges. | K201: 1 | L201: 2 | M201: 3 | N201: Summe | O201: Punkte | P201: Ges. | T201: 1 | U201: 2 | V201: 3 | W201: Summe | X201: Punkte | Y201: Ges.
A202: Satz 1 | J202: Satz 1 | S202: Satz 1
A203: Satz 2 | J203: Satz 2 | S203: Satz 2
A204: Satz 3 | J204: Satz 3 | S204: Satz 3
A205: wenn erforderlich | J205: wenn erforderlich | S205: wenn erforderlich
A206: Satz 4 | J206: Satz 4 | S206: Satz 4
A207: wenn erforderlich | J207: wenn erforderlich | S207: wenn erforderlich
A208: Satz 5 | J208: Satz 5 | S208: Satz 5
A209: wenn erforderlich | J209: wenn erforderlich | S209: wenn erforderlich
A210: Stechen | J210: Stechen | S210: Stechen
F211: gewonnen | O211: gewonnen | X211: gewonnen
A212: Schütze: | F212: verloren | J212: Schütze: | O212: verloren | S212: Schütze: | X212: verloren
A214: Gegner: | C214: Name: | J214: Gegner: | L214: Name: | S214: Gegner: | U214: Name:
C215: Unterschrift: | L215: Unterschrift: | U215: Unterschrift:
J218: 1/16 Elimination | S218: 1/8 Elimination | W218: ='R16_Baum'!C61 -> Scheibe: 4A
K219: 1 | L219: 2 | M219: 3 | N219: Summe | O219: Punkte | P219: Ges. | T219: 1 | U219: 2 | V219: 3 | W219: Summe | X219: Punkte | Y219: Ges.
A220: =Select!$C$12 -> Demoturnier | J220: Satz 1 | S220: Satz 1
A221: Veranstaltung | J221: Satz 2 | S221: Satz 2
A222: =Select!$C$13 -> 1. April 2019 | J222: Satz 3 | S222: Satz 3
A223: Datum | J223: wenn erforderlich | S223: wenn erforderlich
J224: Satz 4 | S224: Satz 4
J225: wenn erforderlich | S225: wenn erforderlich
A226: ='R16_Baum'!C21 -> Jandl Ernst | J226: Satz 5 | S226: Satz 5
A227: Name | J227: wenn erforderlich | S227: wenn erforderlich
A228: ='R16_Baum'!C22 -> PSV Burgenland - Sektion Bogen | J228: Stechen | S228: Stechen
A229: Verein | O229: gewonnen | X229: gewonnen
A230: =Select!$C$18 -> Recurve Herren | J230: Schütze: | O230: verloren | S230: Schütze: | X230: verloren
A231: Bogenklasse
... 296 more rows

Sheet R16_Ergebnis (hidden)
A2: =Select!$C$12 -> Demoturnier | E2: =Select!C14 -> WA-Outdoor
A3: =Select!C13 -> 1. April 2019
A5: Ergebnisliste
A7: =Select!C18 -> Recurve Herren | K7: !!!!!!!!!!!!!!!!!!!!!!!!!! SORTIERBEREICH - NICHT ENTFERNEN !!!!!!!!!!!!!!!!!!!!!!!!!!
A9: Pl. | C9: Name | D9: Verein | E9: Quali. | F9: 1/8 | G9: 1/4 | H9: 1/2 | I9: Finale | K9: SortName | L9: SortVerein | M9: SortQuali | N9: Sort1/8 | O9: Sort1/4 | P9: Sort1/2 | Q9: SortFinale
A10: =IF(C10<>"",1,"") ->  | K10: =IF('R16_Baum'!$P$21>'R16_Baum'!$P$23,'R16_Baum'!$O$21,IF('R16_Baum'!$P$23>'R16_Baum'!$P$21,'R16_Baum'!$O$23,IF(RIGHT('R16_Baum'!$P$21,1)="*",'R16_Baum'!$O$21,IF(RIGHT('R16_Baum'!$P$23,1)="*",'R16_Baum'!$O$23,"")))) ->  | L10: =IF('R16_Baum'!$P$21>'R16_Baum'!$P$23,'R16_Baum'!$O$22,IF('R16_Baum'!$P$23>'R16_Baum'!$P$21,'R16_Baum'!$O$24,IF(RIGHT('R16_Baum'!$P$21,1)="*",'R16_Baum'!$O$22,IF(RIGHT('R16_Baum'!$P$23,1)="*",'R16_Baum'!$O$24,"")))) ->  | M10: =VLOOKUP(K10,R_Quali!$C$10:$H$100,6,FALSE) ->  | N10: =VLOOKUP(K10,'R16_Baum'!$C$3:$D$48,2,FALSE) ->  | O10: =VLOOKUP(K10,'R16_Baum'!$G$6:$H$45,2,FALSE) -> 0 | P10: =VLOOKUP(K10,'R16_Baum'!$K$12:$L$39,2,FALSE) -> 0 | Q10: =VLOOKUP(K10,'R16_Baum'!$O$21:$P$30,2,FALSE) -> 0
A11: =IF(C11<>"",A10+1,"") ->  | K11: =IF('R16_Baum'!$P$21<'R16_Baum'!$P$23,'R16_Baum'!$O$21,IF('R16_Baum'!$P$23<'R16_Baum'!$P$21,'R16_Baum'!$O$23,IF(RIGHT('R16_Baum'!$P$21,1)="*",'R16_Baum'!$O$23,IF(RIGHT('R16_Baum'!$P$23,1)="*",'R16_Baum'!$O$21,"")))) ->  | L11: =IF('R16_Baum'!$P$21<'R16_Baum'!$P$23,'R16_Baum'!$O$22,IF('R16_Baum'!$P$23<'R16_Baum'!$P$21,'R16_Baum'!$O$24,IF(RIGHT('R16_Baum'!$P$21,1)="*",'R16_Baum'!$O$24,IF(RIGHT('R16_Baum'!$P$23,1)="*",'R16_Baum'!$O$22,"")))) ->  | M11: =VLOOKUP(K11,R_Quali!$C$10:$H$100,6,FALSE) ->  | N11: =VLOOKUP(K11,'R16_Baum'!$C$3:$D$48,2,FALSE) ->  | O11: =VLOOKUP(K11,'R16_Baum'!$G$6:$H$45,2,FALSE) -> 0 | P11: =VLOOKUP(K11,'R16_Baum'!$K$12:$L$39,2,FALSE) -> 0 | Q11: =VLOOKUP(K11,'R16_Baum'!$O$21:$P$30,2,FALSE) -> 0
K12: =IF('R16_Baum'!$P$27>'R16_Baum'!$P$29,'R16_Baum'!$O$27,IF('R16_Baum'!$P$29>'R16_Baum'!$P$27,'R16_Baum'!$O$29,IF(RIGHT('R16_Baum'!$P$27,1)="*",'R16_Baum'!$O$27,IF(RIGHT('R16_Baum'!$P$29,1)="*",'R16_Baum'!$O$29,"")))) ->  | L12: =IF('R16_Baum'!$P$27>'R16_Baum'!$P$29,'R16_Baum'!$O$28,IF('R16_Baum'!$P$29>'R16_Baum'!$P$27,'R16_Baum'!$O$30,IF(RIGHT('R16_Baum'!$P$27,1)="*",'R16_Baum'!$O$28,IF(RIGHT('R16_Baum'!$P$29,1)="*",'R16_Baum'!$O$30,"")))) ->  | M12: =VLOOKUP(K12,R_Quali!$C$10:$H$100,6,FALSE) ->  | N12: =VLOOKUP(K12,'R16_Baum'!$C$3:$D$48,2,FALSE) ->  | O12: =VLOOKUP(K12,'R16_Baum'!$G$6:$H$45,2,FALSE) -> 0 | P12: =VLOOKUP(K12,'R16_Baum'!$K$12:$L$39,2,FALSE) -> 0 | Q12: =VLOOKUP(K12,'R16_Baum'!$O$21:$P$30,2,FALSE) -> 0
K13: =IF('R16_Baum'!$P$27<'R16_Baum'!$P$29,'R16_Baum'!$O$27,IF('R16_Baum'!$P$29<'R16_Baum'!$P$27,'R16_Baum'!$O$29,IF(RIGHT('R16_Baum'!$P$27,1)="*",'R16_Baum'!$O$29,IF(RIGHT('R16_Baum'!$P$29,1)="*",'R16_Baum'!$O$27,"")))) ->  | L13: =IF('R16_Baum'!$P$27<'R16_Baum'!$P$29,'R16_Baum'!$O$28,IF('R16_Baum'!$P$29<'R16_Baum'!$P$27,'R16_Baum'!$O$30,IF(RIGHT('R16_Baum'!$P$27,1)="*",'R16_Baum'!$O$30,IF(RIGHT('R16_Baum'!$P$29,1)="*",'R16_Baum'!$O$28,"")))) ->  | M13: =VLOOKUP(K13,R_Quali!$C$10:$H$100,6,FALSE) ->  | N13: =VLOOKUP(K13,'R16_Baum'!$C$3:$D$48,2,FALSE) ->  | O13: =VLOOKUP(K13,'R16_Baum'!$G$6:$H$45,2,FALSE) -> 0 | P13: =VLOOKUP(K13,'R16_Baum'!$K$12:$L$39,2,FALSE) -> 0 | Q13: =VLOOKUP(K13,'R16_Baum'!$O$21:$P$30,2,FALSE) -> 0
K14: =IF('R16_Baum'!$H$6<'R16_Baum'!$H$8,'R16_Baum'!$G$6,IF('R16_Baum'!$H$8<'R16_Baum'!$H$6,'R16_Baum'!$G$8,IF(RIGHT('R16_Baum'!$H$6,1)="*",'R16_Baum'!$G$8,IF(RIGHT('R16_Baum'!$H$8,1)="*",'R16_Baum'!$G$6,"")))) ->  | L14: =IF('R16_Baum'!$H$6<'R16_Baum'!$H$8,'R16_Baum'!$G$7,IF('R16_Baum'!$H$8<'R16_Baum'!$H$6,'R16_Baum'!$G$9,IF(RIGHT('R16_Baum'!$H$6,1)="*",'R16_Baum'!$G$9,IF(RIGHT('R16_Baum'!$H$8,1)="*",'R16_Baum'!$G$7,"")))) ->  | M14: =VLOOKUP(K14,R_Quali!$C$10:$H$100,6,FALSE) ->  | N14: =VLOOKUP(K14,'R16_Baum'!$C$3:$D$48,2,FALSE) ->  | O14: =VLOOKUP(K14,'R16_Baum'!$G$6:$H$45,2,FALSE) -> 0
K15: =IF('R16_Baum'!$H$18<'R16_Baum'!$H$20,'R16_Baum'!$G$18,IF('R16_Baum'!$H$20<'R16_Baum'!$H$18,'R16_Baum'!$G$20,IF(RIGHT('R16_Baum'!$H$18,1)="*",'R16_Baum'!$G$20,IF(RIGHT('R16_Baum'!$H$20,1)="*",'R16_Baum'!$G$18,"")))) ->  | L15: =IF('R16_Baum'!$H$18<'R16_Baum'!$H$20,'R16_Baum'!$G$19,IF('R16_Baum'!$H$20<'R16_Baum'!$H$18,'R16_Baum'!$G$21,IF(RIGHT('R16_Baum'!$H$18,1)="*",'R16_Baum'!$G$21,IF(RIGHT('R16_Baum'!$H$20,1)="*",'R16_Baum'!$G$19,"")))) ->  | M15: =VLOOKUP(K15,R_Quali!$C$10:$H$100,6,FALSE) ->  | N15: =VLOOKUP(K15,'R16_Baum'!$C$3:$D$48,2,FALSE) ->  | O15: =VLOOKUP(K15,'R16_Baum'!$G$6:$H$45,2,FALSE) -> 0
K16: =IF('R16_Baum'!$H$30<'R16_Baum'!$H$32,'R16_Baum'!$G$30,IF('R16_Baum'!$H$32<'R16_Baum'!$H$30,'R16_Baum'!$G$32,IF(RIGHT('R16_Baum'!$H$30,1)="*",'R16_Baum'!$G$32,IF(RIGHT('R16_Baum'!$H$32,1)="*",'R16_Baum'!$G$30,"")))) ->  | L16: =IF('R16_Baum'!$H$30<'R16_Baum'!$H$32,'R16_Baum'!$G$31,IF('R16_Baum'!$H$32<'R16_Baum'!$H$30,'R16_Baum'!$G$33,IF(RIGHT('R16_Baum'!$H$30,1)="*",'R16_Baum'!$G$33,IF(RIGHT('R16_Baum'!$H$32,1)="*",'R16_Baum'!$G$31,"")))) ->  | M16: =VLOOKUP(K16,R_Quali!$C$10:$H$100,6,FALSE) ->  | N16: =VLOOKUP(K16,'R16_Baum'!$C$3:$D$48,2,FALSE) ->  | O16: =VLOOKUP(K16,'R16_Baum'!$G$6:$H$45,2,FALSE) -> 0
K17: =IF('R16_Baum'!$H$42<'R16_Baum'!$H$44,'R16_Baum'!$G$42,IF('R16_Baum'!$H$44<'R16_Baum'!$H$42,'R16_Baum'!$G$44,IF(RIGHT('R16_Baum'!$H$42,1)="*",'R16_Baum'!$G$44,IF(RIGHT('R16_Baum'!$H$44,1)="*",'R16_Baum'!$G$42,"")))) ->  | L17: =IF('R16_Baum'!$H$42<'R16_Baum'!$H$44,'R16_Baum'!$G$43,IF('R16_Baum'!$H$44<'R16_Baum'!$H$42,'R16_Baum'!$G$45,IF(RIGHT('R16_Baum'!$H$42,1)="*",'R16_Baum'!$G$45,IF(RIGHT('R16_Baum'!$H$44,1)="*",'R16_Baum'!$G$43,"")))) ->  | M17: =VLOOKUP(K17,R_Quali!$C$10:$H$100,6,FALSE) ->  | N17: =VLOOKUP(K17,'R16_Baum'!$C$3:$D$48,2,FALSE) ->  | O17: =VLOOKUP(K17,'R16_Baum'!$G$6:$H$45,2,FALSE) -> 0
K18: =IF('R16_Baum'!$D$3<'R16_Baum'!$D$5,'R16_Baum'!$C$3,IF('R16_Baum'!$D$5<'R16_Baum'!$D$3,'R16_Baum'!$C$5,IF(RIGHT('R16_Baum'!$D$3,1)="*",'R16_Baum'!$C$5,IF(RIGHT('R16_Baum'!$D$5,1)="*",'R16_Baum'!$C$3,"")))) ->  | L18: =IF('R16_Baum'!$D$3<'R16_Baum'!$D$5,'R16_Baum'!$C$4,IF('R16_Baum'!$D$5<'R16_Baum'!$D$3,'R16_Baum'!$C$6,IF(RIGHT('R16_Baum'!$D$3,1)="*",'R16_Baum'!$C$6,IF(RIGHT('R16_Baum'!$D$5,1)="*",'R16_Baum'!$C$4,"")))) ->  | M18: =VLOOKUP(K18,R_Quali!$C$10:$H$100,6,FALSE) ->  | N18: =VLOOKUP(K18,'R16_Baum'!$C$3:$D$48,2,FALSE) -> 
K19: =IF('R16_Baum'!$D$9<'R16_Baum'!$D$11,'R16_Baum'!$C$9,IF('R16_Baum'!$D$11<'R16_Baum'!$D$9,'R16_Baum'!$C$11,IF(RIGHT('R16_Baum'!$D$9,1)="*",'R16_Baum'!$C$11,IF(RIGHT('R16_Baum'!$D$11,1)="*",'R16_Baum'!$C$9,"")))) ->  | L19: =IF('R16_Baum'!$D$9<'R16_Baum'!$D$11,'R16_Baum'!$C$10,IF('R16_Baum'!$D$11<'R16_Baum'!$D$9,'R16_Baum'!$C$12,IF(RIGHT('R16_Baum'!$D$9,1)="*",'R16_Baum'!$C$12,IF(RIGHT('R16_Baum'!$D$11,1)="*",'R16_Baum'!$C$10,"")))) ->  | M19: =VLOOKUP(K19,R_Quali!$C$10:$H$100,6,FALSE) ->  | N19: =VLOOKUP(K19,'R16_Baum'!$C$3:$D$48,2,FALSE) -> 
K20: =IF('R16_Baum'!$D$15<'R16_Baum'!$D$17,'R16_Baum'!$C$15,IF('R16_Baum'!$D$17<'R16_Baum'!$D$15,'R16_Baum'!$C$17,IF(RIGHT('R16_Baum'!$D$15,1)="*",'R16_Baum'!$C$17,IF(RIGHT('R16_Baum'!$D$17,1)="*",'R16_Baum'!$C$15,"")))) ->  | L20: =IF('R16_Baum'!$D$15<'R16_Baum'!$D$17,'R16_Baum'!$C$16,IF('R16_Baum'!$D$17<'R16_Baum'!$D$15,'R16_Baum'!$C$18,IF(RIGHT('R16_Baum'!$D$15,1)="*",'R16_Baum'!$C$18,IF(RIGHT('R16_Baum'!$D$17,1)="*",'R16_Baum'!$C$16,"")))) ->  | M20: =VLOOKUP(K20,R_Quali!$C$10:$H$100,6,FALSE) ->  | N20: =VLOOKUP(K20,'R16_Baum'!$C$3:$D$48,2,FALSE) -> 
K21: =IF('R16_Baum'!$D$21<'R16_Baum'!$D$23,'R16_Baum'!$C$21,IF('R16_Baum'!$D$23<'R16_Baum'!$D$21,'R16_Baum'!$C$23,IF(RIGHT('R16_Baum'!$D$21,1)="*",'R16_Baum'!$C$23,IF(RIGHT('R16_Baum'!$D$23,1)="*",'R16_Baum'!$C$21,"")))) ->  | L21: =IF('R16_Baum'!$D$21<'R16_Baum'!$D$23,'R16_Baum'!$C$22,IF('R16_Baum'!$D$23<'R16_Baum'!$D$21,'R16_Baum'!$C$24,IF(RIGHT('R16_Baum'!$D$21,1)="*",'R16_Baum'!$C$24,IF(RIGHT('R16_Baum'!$D$23,1)="*",'R16_Baum'!$C$22,"")))) ->  | M21: =VLOOKUP(K21,R_Quali!$C$10:$H$100,6,FALSE) ->  | N21: =VLOOKUP(K21,'R16_Baum'!$C$3:$D$48,2,FALSE) -> 
K22: =IF('R16_Baum'!$D$27<'R16_Baum'!$D$29,'R16_Baum'!$C$27,IF('R16_Baum'!$D$29<'R16_Baum'!$D$27,'R16_Baum'!$C$29,IF(RIGHT('R16_Baum'!$D$27,1)="*",'R16_Baum'!$C$29,IF(RIGHT('R16_Baum'!$D$29,1)="*",'R16_Baum'!$C$27,"")))) ->  | L22: =IF('R16_Baum'!$D$27<'R16_Baum'!$D$29,'R16_Baum'!$C$28,IF('R16_Baum'!$D$29<'R16_Baum'!$D$27,'R16_Baum'!$C$30,IF(RIGHT('R16_Baum'!$D$27,1)="*",'R16_Baum'!$C$30,IF(RIGHT('R16_Baum'!$D$29,1)="*",'R16_Baum'!$C$28,"")))) ->  | M22: =VLOOKUP(K22,R_Quali!$C$10:$H$100,6,FALSE) ->  | N22: =VLOOKUP(K22,'R16_Baum'!$C$3:$D$48,2,FALSE) -> 
K23: =IF('R16_Baum'!$D$33<'R16_Baum'!$D$35,'R16_Baum'!$C$33,IF('R16_Baum'!$D$35<'R16_Baum'!$D$33,'R16_Baum'!$C$35,IF(RIGHT('R16_Baum'!$D$33,1)="*",'R16_Baum'!$C$35,IF(RIGHT('R16_Baum'!$D$35,1)="*",'R16_Baum'!$C$33,"")))) ->  | L23: =IF('R16_Baum'!$D$33<'R16_Baum'!$D$35,'R16_Baum'!$C$34,IF('R16_Baum'!$D$35<'R16_Baum'!$D$33,'R16_Baum'!$C$36,IF(RIGHT('R16_Baum'!$D$33,1)="*",'R16_Baum'!$C$36,IF(RIGHT('R16_Baum'!$D$35,1)="*",'R16_Baum'!$C$34,"")))) ->  | M23: =VLOOKUP(K23,R_Quali!$C$10:$H$100,6,FALSE) ->  | N23: =VLOOKUP(K23,'R16_Baum'!$C$3:$D$48,2,FALSE) -> 
K24: =IF('R16_Baum'!$D$39<'R16_Baum'!$D$41,'R16_Baum'!$C$39,IF('R16_Baum'!$D$41<'R16_Baum'!$D$39,'R16_Baum'!$C$41,IF(RIGHT('R16_Baum'!$D$39,1)="*",'R16_Baum'!$C$41,IF(RIGHT('R16_Baum'!$D$41,1)="*",'R16_Baum'!$C$39,"")))) ->  | L24: =IF('R16_Baum'!$D$39<'R16_Baum'!$D$41,'R16_Baum'!$C$40,IF('R16_Baum'!$D$41<'R16_Baum'!$D$39,'R16_Baum'!$C$42,IF(RIGHT('R16_Baum'!$D$39,1)="*",'R16_Baum'!$C$42,IF(RIGHT('R16_Baum'!$D$41,1)="*",'R16_Baum'!$C$40,"")))) ->  | M24: =VLOOKUP(K24,R_Quali!$C$10:$H$100,6,FALSE) ->  | N24: =VLOOKUP(K24,'R16_Baum'!$C$3:$D$48,2,FALSE) -> 
K25: =IF('R16_Baum'!$D$45<'R16_Baum'!$D$47,'R16_Baum'!$C$45,IF('R16_Baum'!$D$47<'R16_Baum'!$D$45,'R16_Baum'!$C$47,IF(RIGHT('R16_Baum'!$D$45,1)="*",'R16_Baum'!$C$47,IF(RIGHT('R16_Baum'!$D$47,1)="*",'R16_Baum'!$C$45,"")))) ->  | L25: =IF('R16_Baum'!$D$45<'R16_Baum'!$D$47,'R16_Baum'!$C$46,IF('R16_Baum'!$D$47<'R16_Baum'!$D$45,'R16_Baum'!$C$48,IF(RIGHT('R16_Baum'!$D$45,1)="*",'R16_Baum'!$C$48,IF(RIGHT('R16_Baum'!$D$47,1)="*",'R16_Baum'!$C$46,"")))) ->  | M25: =VLOOKUP(K25,R_Quali!$C$10:$H$100,6,FALSE) ->  | N25: =VLOOKUP(K25,'R16_Baum'!$C$3:$D$48,2,FALSE) -> 

Sheet R8_Baum (hidden)
G2: =Select!C12 -> Demoturnier
G4: =Select!C13 -> 1. April 2019
B5: Schb | C5: Name | D5: Erg.
B6: =D55 -> 5 | C6: =R_Quali!C10 -> Url Günter
A7: 1 | C7: =R_Quali!D10 -> BSC-Wolfspfeil Raab-Holzer | D7: =R_Quali!H10 -> 532 | E7: Quali. | J7: 1. | K7: =IF($L$21>$L$23,$K$21,IF($L$23>$L$21,$K$23,IF(RIGHT($L$21,1)="*",$K$21,IF(RIGHT($L$23,1)="*",$K$23,"")))) -> 
A8: 8 | B8: =D56 -> 6 | C8: =R_Quali!C17 -> Robl Ronald | K8: =IF($L$21>$L$23,$K$22,IF($L$23>$L$21,$K$24,IF(RIGHT($L$21,1)="*",$K$22,IF(RIGHT($L$23,1)="*",$K$24,"")))) -> 
C9: =R_Quali!D17 -> Austrian Free Archer | D9: =R_Quali!H17 -> 525 | E9: Quali. | J9: 2. | K9: =IF($L$21<$L$23,$K$21,IF($L$23<$L$21,$K$23,IF(RIGHT($L$23,1)="*",$K$21,IF(RIGHT($L$21,1)="*",$K$23,"")))) -> 
K10: =IF($L$21<$L$23,$K$22,IF($L$23<$L$21,$K$24,IF(RIGHT($L$23,1)="*",$K$22,IF(RIGHT($L$21,1)="*",$K$24,"")))) -> 
F11: Schb | G11: Name | H11: Erg. | J11: 3. | K11: =IF($L$27>$L$29,$K$27,IF($L$29>$L$27,$K$29,IF(RIGHT($L$27,1)="*",$K$27,IF(RIGHT($L$29,1)="*",$K$29,"")))) -> 
F12: =H55 -> 5 | G12: =IF($D6>$D8,$C6,IF($D8>$D6,$C8,IF(RIGHT($D6,1)="*",$C6,IF(RIGHT($D8,1)="*",$C8,"")))) ->  | K12: =IF($L$27>$L$29,$K$28,IF($L$29>$L$27,$K$30,IF(RIGHT($L$27,1)="*",$K$28,IF(RIGHT($L$29,1)="*",$K$30,"")))) -> 
G13: =IF($D6>$D8,$C7,IF($D8>$D6,$C9,IF(RIGHT($D6,1)="*",$C7,IF(RIGHT($D8,1)="*",$C9,"")))) -> 
F14: =H56 -> 6 | G14: =IF($D18>$D20,$C18,IF($D20>$D18,$C20,IF(RIGHT($D18,1)="*",$C18,IF(RIGHT($D20,1)="*",$C20,"")))) -> 
G15: =IF($D18>$D20,$C19,IF($D20>$D18,$C21,IF(RIGHT($D18,1)="*",$C19,IF(RIGHT($D20,1)="*",$C21,"")))) -> 
B18: =D57 -> 7 | C18: =R_Quali!C14 -> Höllwirth Andreas
A19: 5 | C19: =R_Quali!D14 -> ASKÖ-Luftenberg | D19: =R_Quali!H14 -> 528 | E19: Quali.
A20: 4 | B20: =D58 -> 8 | C20: =R_Quali!C13 -> Krempl Werner | J20: Schb | K20: Name | L20: Erg.
C21: =R_Quali!D13 -> BSC Semriach | D21: =R_Quali!H13 -> 529 | E21: Quali. | J21: =L55 -> 5 | K21: =IF($H12>$H14,$G12,IF($H14>$H12,$G14,IF(RIGHT($H12,1)="*",$G12,IF(RIGHT($H14,1)="*",$G14,"")))) -> 
H22: Finale | K22: =IF($H12>$H14,$G13,IF($H14>$H12,$G15,IF(RIGHT($H12,1)="*",$G13,IF(RIGHT($H14,1)="*",$G15,"")))) -> 
H23: 1. und 2. Platz | J23: =L56 -> 6 | K23: =IF($H36>$H38,$G36,IF($H38>$H36,$G38,IF(RIGHT($H36,1)="*",$G36,IF(RIGHT($H38,1)="*",$G38,"")))) -> 
K24: =IF($H36>$H38,$G37,IF($H38>$H36,$G39,IF(RIGHT($H36,1)="*",$G37,IF(RIGHT($H38,1)="*",$G39,"")))) -> 
J27: =L57 -> 5 | K27: =IF($H12<$H14,$G12,IF($H14<$H12,$G14,IF(RIGHT($H12,1)="*",$G14,IF(RIGHT($H14,1)="*",$G12,"")))) -> 
H28: Finale | K28: =IF($H12<$H14,$G13,IF($H14<$H12,$G15,IF(RIGHT($H12,1)="*",$G12,IF(RIGHT($H14,1)="*",$G14,"")))) -> 
H29: 3. und 4. Platz | J29: =L58 -> 6 | K29: =IF($H36<$H38,$G36,IF($H38<$H36,$G38,IF(RIGHT($H36,1)="*",$G38,IF(RIGHT($H38,1)="*",$G36,"")))) -> 
B30: =D59 -> 9 | C30: =R_Quali!C12 -> Strohmaier Joachim | K30: =IF($H36<$H38,$G37,IF($H38<$H36,$G39,IF(RIGHT($H36,1)="*",$G39,IF(RIGHT($H38,1)="*",$G37,"")))) -> 
A31: 3 | C31: =R_Quali!D12 -> BSC Kumberg | D31: =R_Quali!H12 -> 530 | E31: Quali.
A32: 6 | B32: =D60 -> 10 | C32: =R_Quali!C15 -> Parschisek Alexander
C33: =R_Quali!D15 -> BC-Oberschützen | D33: =R_Quali!H15 -> 527 | E33: Quali.
F36: =H57 -> 7 | G36: =IF($D30>$D32,$C30,IF($D32>$D30,$C32,IF(RIGHT($D30,1)="*",$C30,IF(RIGHT($D32,1)="*",$C32,"")))) -> 
G37: =IF($D30>$D32,$C31,IF($D32>$D30,$C33,IF(RIGHT($D30,1)="*",$C31,IF(RIGHT($D32,1)="*",$C33,"")))) -> 
F38: =H58 -> 8 | G38: =IF($D42>$D44,$C42,IF($D44>$D42,$C44,IF(RIGHT($D42,1)="*",$C42,IF(RIGHT($D44,1)="*",$C44,"")))) -> 
G39: =IF($D42>$D44,$C43,IF($D44>$D42,$C45,IF(RIGHT($D42,1)="*",$C43,IF(RIGHT($D44,1)="*",$C45,"")))) ->  | K39: Finale
B42: =D61 -> 11 | C42: =R_Quali!C16 -> Bucher Martin | G42: 1/2 Finale
A43: 7 | C43: =R_Quali!D16 -> LH Graz | D43: =R_Quali!H16 -> 526 | E43: Quali.
A44: 2 | B44: =D62 -> 12 | C44: =R_Quali!C11 -> Berger Hermann
C45: =R_Quali!D11 -> BSV Glemmerhof | D45: =R_Quali!H11 -> 531 | E45: Quali.
K46: =Select!C18 -> Recurve Herren
C48: 1/4 Finale
C54: Scheibe:
B55: 1 | C55: =CONCATENATE($C$54," ",D55) -> Scheibe: 5 | D55: 5 | F55: 1 | G55: =CONCATENATE($C$54," ",H55) -> Scheibe: 5 | H55: 5 | J55: 1 | K55: =CONCATENATE($C$54," ",L55) -> Scheibe: 5 | L55: 5
C56: Scheibe: 6 | D56: =IF(RIGHT(D55,1)="A",CONCATENATE(LEFT(D55,LEN(D55)-1),"B"),D55+1) -> 6 | G56: =CONCATENATE($C$54," ",H56) -> Scheibe: 6 | H56: =IF(RIGHT(H55,1)="A",CONCATENATE(LEFT(H55,LEN(H55)-1),"B"),H55+1) -> 6 | K56: =CONCATENATE($C$54," ",L56) -> Scheibe: 6 | L56: =IF(RIGHT(L55,1)="A",CONCATENATE(LEFT(L55,LEN(L55)-1),"B"),L55+1) -> 6
B57: =B55+1 -> 2 | C57: Scheibe: 7 | D57: =IF(RIGHT(D56,1)="B",CONCATENATE(LEFT(D56,LEN(D56)-1)+1,"A"),D56+1) -> 7 | F57: =F55+1 -> 2 | G57: =CONCATENATE($C$54," ",H57) -> Scheibe: 7 | H57: =IF(RIGHT(H56,1)="B",CONCATENATE(LEFT(H56,LEN(H56)-1)+1,"A"),H56+1) -> 7 | J57: =J55+1 -> 2 | K57: =CONCATENATE($C$54," ",L57) -> Scheibe: 5 | L57: 5
C58: Scheibe: 8 | D58: =IF(RIGHT(D57,1)="A",CONCATENATE(LEFT(D57,LEN(D57)-1),"B"),D57+1) -> 8 | G58: =CONCATENATE($C$54," ",H58) -> Scheibe: 8 | H58: =IF(RIGHT(H57,1)="A",CONCATENATE(LEFT(H57,LEN(H57)-1),"B"),H57+1) -> 8 | K58: =CONCATENATE($C$54," ",L58) -> Scheibe: 6 | L58: =IF(RIGHT(L57,1)="A",CONCATENATE(LEFT(L57,LEN(L57)-1),"B"),L57+1) -> 6
B59: =B57+1 -> 3 | C59: Scheibe: 9 | D59: =IF(RIGHT(D58,1)="B",CONCATENATE(LEFT(D58,LEN(D58)-1)+1,"A"),D58+1) -> 9
C60: Scheibe: 10 | D60: =IF(RIGHT(D59,1)="A",CONCATENATE(LEFT(D59,LEN(D59)-1),"B"),D59+1) -> 10
B61: =B59+1 -> 4 | C61: Scheibe: 11 | D61: =IF(RIGHT(D60,1)="B",CONCATENATE(LEFT(D60,LEN(D60)-1)+1,"A"),D60+1) -> 11
C62: Scheibe: 12 | D62: =IF(RIGHT(D61,1)="A",CONCATENATE(LEFT(D61,LEN(D61)-1),"B"),D61+1) -> 12

Sheet R8 (hidden)
J2: 1/16 Elimination | S2: 1/8 Elimination
K3: 1 | L3: 2 | M3: 3 | N3: Summe | O3: Punkte | P3: Ges. | T3: 1 | U3: 2 | V3: 3 | W3: Summe | X3: Punkte | Y3: Ges.
A4: =Select!$C$12 -> Demoturnier | J4: Satz 1 | S4: Satz 1
A5: Veranstaltung | J5: Satz 2 | S5: Satz 2
A6: =Select!$C$13 -> 1. April 2019 | J6: Satz 3 | S6: Satz 3
A7: Datum | J7: wenn erforderlich | S7: wenn erforderlich
J8: Satz 4 | S8: Satz 4
J9: wenn erforderlich | S9: wenn erforderlich
A10: ='R8_Baum'!$C$6 -> Url Günter | J10: Satz 5 | S10: Satz 5
A11: Name | J11: wenn erforderlich | S11: wenn erforderlich
A12: ='R8_Baum'!$C$7 -> BSC-Wolfspfeil Raab-Holzer | J12: Stechen | S12: Stechen
A13: Verein | O13: gewonnen | X13: gewonnen
A14: =Select!$C$18 -> Recurve Herren | J14: Schütze: | O14: verloren | S14: Schütze: | X14: verloren
A15: Bogenklasse
J16: Gegner: | L16: Name: | S16: Gegner: | U16: Name:
L17: Unterschrift: | U17: Unterschrift:
A20: 1/4 Finale | E20: ='R8_Baum'!$C$55 -> Scheibe: 5 | J20: 1/2 Finale | N20: ='R8_Baum'!$G$55 -> Scheibe: 5 | S20: 1./2. od. 3./4. Platz | W20: Scheibe:
B21: 1 | C21: 2 | D21: 3 | E21: Summe | F21: Punkte | G21: Ges. | K21: 1 | L21: 2 | M21: 3 | N21: Summe | O21: Punkte | P21: Ges. | T21: 1 | U21: 2 | V21: 3 | W21: Summe | X21: Punkte | Y21: Ges.
A22: Satz 1 | J22: Satz 1 | S22: Satz 1
A23: Satz 2 | J23: Satz 2 | S23: Satz 2
A24: Satz 3 | J24: Satz 3 | S24: Satz 3
A25: wenn erforderlich | J25: wenn erforderlich | S25: wenn erforderlich
A26: Satz 4 | J26: Satz 4 | S26: Satz 4
A27: wenn erforderlich | J27: wenn erforderlich | S27: wenn erforderlich
A28: Satz 5 | J28: Satz 5 | S28: Satz 5
A29: wenn erforderlich | J29: wenn erforderlich | S29: wenn erforderlich
A30: Stechen | J30: Stechen | S30: Stechen
F31: gewonnen | O31: gewonnen | X31: gewonnen
A32: Schütze: | F32: verloren | J32: Schütze: | O32: verloren | S32: Schütze: | X32: verloren
A34: Gegner: | C34: Name: | D34: ='R8_Baum'!C8 -> Robl Ronald | J34: Gegner: | L34: Name: | S34: Gegner: | U34: Name:
C35: Unterschrift: | L35: Unterschrift: | U35: Unterschrift:
J38: 1/16 Elimination | S38: 1/8 Elimination
K39: 1 | L39: 2 | M39: 3 | N39: Summe | O39: Punkte | P39: Ges. | T39: 1 | U39: 2 | V39: 3 | W39: Summe | X39: Punkte | Y39: Ges.
A40: =Select!$C$12 -> Demoturnier | J40: Satz 1 | S40: Satz 1
A41: Veranstaltung | J41: Satz 2 | S41: Satz 2
A42: =Select!$C$13 -> 1. April 2019 | J42: Satz 3 | S42: Satz 3
A43: Datum | J43: wenn erforderlich | S43: wenn erforderlich
J44: Satz 4 | S44: Satz 4
J45: wenn erforderlich | S45: wenn erforderlich
A46: ='R8_Baum'!$C$8 -> Robl Ronald | J46: Satz 5 | S46: Satz 5
A47: Name | J47: wenn erforderlich | S47: wenn erforderlich
A48: ='R8_Baum'!$C$9 -> Austrian Free Archer | J48: Stechen | S48: Stechen
A49: Verein | O49: gewonnen | X49: gewonnen
A50: =Select!$C$18 -> Recurve Herren | J50: Schütze: | O50: verloren | S50: Schütze: | X50: verloren
A51: Bogenklasse
J52: Gegner: | L52: Name: | S52: Gegner: | U52: Name:
L53: Unterschrift: | U53: Unterschrift:
A56: 1/4 Finale | E56: ='R8_Baum'!$C$56 -> Scheibe: 6 | J56: 1/2 Finale | N56: ='R8_Baum'!$G$55 -> Scheibe: 5 | S56: 1./2. od. 3./4. Platz | W56: Scheibe:
B57: 1 | C57: 2 | D57: 3 | E57: Summe | F57: Punkte | G57: Ges. | K57: 1 | L57: 2 | M57: 3 | N57: Summe | O57: Punkte | P57: Ges. | T57: 1 | U57: 2 | V57: 3 | W57: Summe | X57: Punkte | Y57: Ges.
A58: Satz 1 | J58: Satz 1 | S58: Satz 1
A59: Satz 2 | J59: Satz 2 | S59: Satz 2
A60: Satz 3 | J60: Satz 3 | S60: Satz 3
A61: wenn erforderlich | J61: wenn erforderlich | S61: wenn erforderlich
A62: Satz 4 | J62: Satz 4 | S62: Satz 4
A63: wenn erforderlich | J63: wenn erforderlich | S63: wenn erforderlich
A64: Satz 5 | J64: Satz 5 | S64: Satz 5
A65: wenn erforderlich | J65: wenn erforderlich | S65: wenn erforderlich
A66: Stechen | J66: Stechen | S66: Stechen
F67: gewonnen | O67: gewonnen | X67: gewonnen
A68: Schütze: | F68: verloren | J68: Schütze: | O68: verloren | S68: Schütze: | X68: verloren
A70: Gegner: | C70: Name: | D70: ='R8_Baum'!C6 -> Url Günter | J70: Gegner: | L70: Name: | S70: Gegner: | U70: Name:
C71: Unterschrift: | L71: Unterschrift: | U71: Unterschrift:
J74: 1/16 Elimination | S74: 1/8 Elimination
K75: 1 | L75: 2 | M75: 3 | N75: Summe | O75: Punkte | P75: Ges. | T75: 1 | U75: 2 | V75: 3 | W75: Summe | X75: Punkte | Y75: Ges.
A76: =Select!$C$12 -> Demoturnier | J76: Satz 1 | S76: Satz 1
A77: Veranstaltung | J77: Satz 2 | S77: Satz 2
A78: =Select!$C$13 -> 1. April 2019 | J78: Satz 3 | S78: Satz 3
A79: Datum | J79: wenn erforderlich | S79: wenn erforderlich
J80: Satz 4 | S80: Satz 4
J81: wenn erforderlich | S81: wenn erforderlich
A82: ='R8_Baum'!$C$18 -> Höllwirth Andreas | J82: Satz 5 | S82: Satz 5
A83: Name | J83: wenn erforderlich | S83: wenn erforderlich
A84: ='R8_Baum'!$C$19 -> ASKÖ-Luftenberg | J84: Stechen | S84: Stechen
A85: Verein | O85: gewonnen | X85: gewonnen
A86: =Select!$C$18 -> Recurve Herren | J86: Schütze: | O86: verloren | S86: Schütze: | X86: verloren
A87: Bogenklasse
J88: Gegner: | L88: Name: | S88: Gegner: | U88: Name:
L89: Unterschrift: | U89: Unterschrift:
A92: 1/4 Finale | E92: ='R8_Baum'!$C$57 -> Scheibe: 7 | J92: 1/2 Finale | N92: ='R8_Baum'!$G$56 -> Scheibe: 6 | S92: 1./2. od. 3./4. Platz | W92: Scheibe:
B93: 1 | C93: 2 | D93: 3 | E93: Summe | F93: Punkte | G93: Ges. | K93: 1 | L93: 2 | M93: 3 | N93: Summe | O93: Punkte | P93: Ges. | T93: 1 | U93: 2 | V93: 3 | W93: Summe | X93: Punkte | Y93: Ges.
A94: Satz 1 | J94: Satz 1 | S94: Satz 1
A95: Satz 2 | J95: Satz 2 | S95: Satz 2
A96: Satz 3 | J96: Satz 3 | S96: Satz 3
A97: wenn erforderlich | J97: wenn erforderlich | S97: wenn erforderlich
A98: Satz 4 | J98: Satz 4 | S98: Satz 4
A99: wenn erforderlich | J99: wenn erforderlich | S99: wenn erforderlich
A100: Satz 5 | J100: Satz 5 | S100: Satz 5
A101: wenn erforderlich | J101: wenn erforderlich | S101: wenn erforderlich
A102: Stechen | J102: Stechen | S102: Stechen
F103: gewonnen | O103: gewonnen | X103: gewonnen
A104: Schütze: | F104: verloren | J104: Schütze: | O104: verloren | S104: Schütze: | X104: verloren
A106: Gegner: | C106: Name: | D106: ='R8_Baum'!C20 -> Krempl Werner | J106: Gegner: | L106: Name: | S106: Gegner: | U106: Name:
C107: Unterschrift: | L107: Unterschrift: | U107: Unterschrift:
J110: 1/16 Elimination | S110: 1/8 Elimination
K111: 1 | L111: 2 | M111: 3 | N111: Summe | O111: Punkte | P111: Ges. | T111: 1 | U111: 2 | V111: 3 | W111: Summe | X111: Punkte | Y111: Ges.
A112: =Select!$C$12 -> Demoturnier | J112: Satz 1 | S112: Satz 1
A113: Veranstaltung | J113: Satz 2 | S113: Satz 2
A114: =Select!$C$13 -> 1. April 2019 | J114: Satz 3 | S114: Satz 3
A115: Datum | J115: wenn erforderlich | S115: wenn erforderlich
J116: Satz 4 | S116: Satz 4
J117: wenn erforderlich | S117: wenn erforderlich
A118: ='R8_Baum'!$C$20 -> Krempl Werner | J118: Satz 5 | S118: Satz 5
A119: Name | J119: wenn erforderlich | S119: wenn erforderlich
A120: ='R8_Baum'!$C$21 -> BSC Semriach | J120: Stechen | S120: Stechen
A121: Verein | O121: gewonnen | X121: gewonnen
A122: =Select!$C$18 -> Recurve Herren | J122: Schütze: | O122: verloren | S122: Schütze: | X122: verloren
A123: Bogenklasse
J124: Gegner: | L124: Name: | S124: Gegner: | U124: Name:
L125: Unterschrift: | U125: Unterschrift:
A128: 1/4 Finale | E128: ='R8_Baum'!$C$58 -> Scheibe: 8 | J128: 1/2 Finale | N128: ='R8_Baum'!$G$56 -> Scheibe: 6 | S128: 1./2. od. 3./4. Platz | W128: Scheibe:
B129: 1 | C129: 2 | D129: 3 | E129: Summe | F129: Punkte | G129: Ges. | K129: 1 | L129: 2 | M129: 3 | N129: Summe | O129: Punkte | P129: Ges. | T129: 1 | U129: 2 | V129: 3 | W129: Summe | X129: Punkte | Y129: Ges.
A130: Satz 1 | J130: Satz 1 | S130: Satz 1
A131: Satz 2 | J131: Satz 2 | S131: Satz 2
A132: Satz 3 | J132: Satz 3 | S132: Satz 3
A133: wenn erforderlich | J133: wenn erforderlich | S133: wenn erforderlich
A134: Satz 4 | J134: Satz 4 | S134: Satz 4
A135: wenn erforderlich | J135: wenn erforderlich | S135: wenn erforderlich
A136: Satz 5 | J136: Satz 5 | S136: Satz 5
A137: wenn erforderlich | J137: wenn erforderlich | S137: wenn erforderlich
A138: Stechen | J138: Stechen | S138: Stechen
F139: gewonnen | O139: gewonnen | X139: gewonnen
A140: Schütze: | F140: verloren | J140: Schütze: | O140: verloren | S140: Schütze: | X140: verloren
A142: Gegner: | C142: Name: | D142: ='R8_Baum'!C18 -> Höllwirth Andreas | J142: Gegner: | L142: Name: | S142: Gegner: | U142: Name:
C143: Unterschrift: | L143: Unterschrift: | U143: Unterschrift:
J146: 1/16 Elimination | S146: 1/8 Elimination
K147: 1 | L147: 2 | M147: 3 | N147: Summe | O147: Punkte | P147: Ges. | T147: 1 | U147: 2 | V147: 3 | W147: Summe | X147: Punkte | Y147: Ges.
A148: =Select!$C$12 -> Demoturnier | J148: Satz 1 | S148: Satz 1
A149: Veranstaltung | J149: Satz 2 | S149: Satz 2
A150: =Select!$C$13 -> 1. April 2019 | J150: Satz 3 | S150: Satz 3
A151: Datum | J151: wenn erforderlich | S151: wenn erforderlich
J152: Satz 4 | S152: Satz 4
J153: wenn erforderlich | S153: wenn erforderlich
A154: ='R8_Baum'!$C$30 -> Strohmaier Joachim | J154: Satz 5 | S154: Satz 5
A155: Name | J155: wenn erforderlich | S155: wenn erforderlich
A156: ='R8_Baum'!$C$31 -> BSC Kumberg | J156: Stechen | S156: Stechen
A157: Verein | O157: gewonnen | X157: gewonnen
A158: =Select!$C$18 -> Recurve Herren | J158: Schütze: | O158: verloren | S158: Schütze: | X158: verloren
A159: Bogenklasse
J160: Gegner: | L160: Name: | S160: Gegner: | U160: Name:
L161: Unterschrift: | U161: Unterschrift:
A164: 1/4 Finale | E164: ='R8_Baum'!$C$59 -> Scheibe: 9 | J164: 1/2 Finale | N164: ='R8_Baum'!$G$57 -> Scheibe: 7 | S164: 1./2. od. 3./4. Platz | W164: Scheibe:
B165: 1 | C165: 2 | D165: 3 | E165: Summe | F165: Punkte | G165: Ges. | K165: 1 | L165: 2 | M165: 3 | N165: Summe | O165: Punkte | P165: Ges. | T165: 1 | U165: 2 | V165: 3 | W165: Summe | X165: Punkte | Y165: Ges.
A166: Satz 1 | J166: Satz 1 | S166: Satz 1
A167: Satz 2 | J167: Satz 2 | S167: Satz 2
A168: Satz 3 | J168: Satz 3 | S168: Satz 3
A169: wenn erforderlich | J169: wenn erforderlich | S169: wenn erforderlich
A170: Satz 4 | J170: Satz 4 | S170: Satz 4
A171: wenn erforderlich | J171: wenn erforderlich | S171: wenn erforderlich
A172: Satz 5 | J172: Satz 5 | S172: Satz 5
A173: wenn erforderlich | J173: wenn erforderlich | S173: wenn erforderlich
A174: Stechen | J174: Stechen | S174: Stechen
F175: gewonnen | O175: gewonnen | X175: gewonnen
A176: Schütze: | F176: verloren | J176: Schütze: | O176: verloren | S176: Schütze: | X176: verloren
A178: Gegner: | C178: Name: | D178: ='R8_Baum'!C32 -> Parschisek Alexander | J178: Gegner: | L178: Name: | S178: Gegner: | U178: Name:
C179: Unterschrift: | L179: Unterschrift: | U179: Unterschrift:
J182: 1/16 Elimination | S182: 1/8 Elimination
K183: 1 | L183: 2 | M183: 3 | N183: Summe | O183: Punkte | P183: Ges. | T183: 1 | U183: 2 | V183: 3 | W183: Summe | X183: Punkte | Y183: Ges.
A184: =Select!$C$12 -> Demoturnier | J184: Satz 1 | S184: Satz 1
A185: Veranstaltung | J185: Satz 2 | S185: Satz 2
A186: =Select!$C$13 -> 1. April 2019 | J186: Satz 3 | S186: Satz 3
A187: Datum | J187: wenn erforderlich | S187: wenn erforderlich
J188: Satz 4 | S188: Satz 4
J189: wenn erforderlich | S189: wenn erforderlich
A190: ='R8_Baum'!$C$32 -> Parschisek Alexander | J190: Satz 5 | S190: Satz 5
A191: Name | J191: wenn erforderlich | S191: wenn erforderlich
A192: ='R8_Baum'!$C$33 -> BC-Oberschützen | J192: Stechen | S192: Stechen
A193: Verein | O193: gewonnen | X193: gewonnen
A194: =Select!$C$18 -> Recurve Herren | J194: Schütze: | O194: verloren | S194: Schütze: | X194: verloren
A195: Bogenklasse
J196: Gegner: | L196: Name: | S196: Gegner: | U196: Name:
L197: Unterschrift: | U197: Unterschrift:
A200: 1/4 Finale | E200: ='R8_Baum'!$C$60 -> Scheibe: 10 | J200: 1/2 Finale | N200: ='R8_Baum'!$G$57 -> Scheibe: 7 | S200: 1./2. od. 3./4. Platz | W200: Scheibe:
B201: 1 | C201: 2 | D201: 3 | E201: Summe | F201: Punkte | G201: Ges. | K201: 1 | L201: 2 | M201: 3 | N201: Summe | O201: Punkte | P201: Ges. | T201: 1 | U201: 2 | V201: 3 | W201: Summe | X201: Punkte | Y201: Ges.
A202: Satz 1 | J202: Satz 1 | S202: Satz 1
A203: Satz 2 | J203: Satz 2 | S203: Satz 2
A204: Satz 3 | J204: Satz 3 | S204: Satz 3
A205: wenn erforderlich | J205: wenn erforderlich | S205: wenn erforderlich
A206: Satz 4 | J206: Satz 4 | S206: Satz 4
A207: wenn erforderlich | J207: wenn erforderlich | S207: wenn erforderlich
A208: Satz 5 | J208: Satz 5 | S208: Satz 5
A209: wenn erforderlich | J209: wenn erforderlich | S209: wenn erforderlich
A210: Stechen | J210: Stechen | S210: Stechen
F211: gewonnen | O211: gewonnen | X211: gewonnen
A212: Schütze: | F212: verloren | J212: Schütze: | O212: verloren | S212: Schütze: | X212: verloren
A214: Gegner: | C214: Name: | D214: ='R8_Baum'!C30 -> Strohmaier Joachim | J214: Gegner: | L214: Name: | S214: Gegner: | U214: Name:
C215: Unterschrift: | L215: Unterschrift: | U215: Unterschrift:
J218: 1/16 Elimination | S218: 1/8 Elimination
K219: 1 | L219: 2 | M219: 3 | N219: Summe | O219: Punkte | P219: Ges. | T219: 1 | U219: 2 | V219: 3 | W219: Summe | X219: Punkte | Y219: Ges.
A220: =Select!$C$12 -> Demoturnier | J220: Satz 1 | S220: Satz 1
A221: Veranstaltung | J221: Satz 2 | S221: Satz 2
A222: =Select!$C$13 -> 1. April 2019 | J222: Satz 3 | S222: Satz 3
A223: Datum | J223: wenn erforderlich | S223: wenn erforderlich
J224: Satz 4 | S224: Satz 4
J225: wenn erforderlich | S225: wenn erforderlich
A226: ='R8_Baum'!$C$42 -> Bucher Martin | J226: Satz 5 | S226: Satz 5
A227: Name | J227: wenn erforderlich | S227: wenn erforderlich
A228: ='R8_Baum'!$C$43 -> LH Graz | J228: Stechen | S228: Stechen
A229: Verein | O229: gewonnen | X229: gewonnen
A230: =Select!$C$18 -> Recurve Herren | J230: Schütze: | O230: verloren | S230: Schütze: | X230: verloren
A231: Bogenklasse
... 48 more rows

Sheet R8_Ergebnis (hidden)
A2: =Select!$C$12 -> Demoturnier | E2: =Select!C14 -> WA-Outdoor
A3: =Select!C13 -> 1. April 2019
A5: Ergebnisliste
A7: =Select!C18 -> Recurve Herren | J7: !!!!!!!!!!!!!!!!!!!!!!!!!! SORTIERBEREICH - NICHT ENTFERNEN !!!!!!!!!!!!!!!!!!!!!!!!!!
A9: Pl. | C9: Name | D9: Verein | E9: Quali. | F9: 1/4 | G9: 1/2 | H9: Finale | J9: SortName | K9: SortVerein | L9: SortQuali | M9: Sort1/4 | N9: Sort1/2 | O9: SortFinale
A10: =IF(C10<>"",1,"") ->  | J10: =IF('R8_Baum'!$L$21>'R8_Baum'!$L$23,'R8_Baum'!$K$21,IF('R8_Baum'!$L$23>'R8_Baum'!$L$21,'R8_Baum'!$K$23,IF(RIGHT('R8_Baum'!$L$21,1)="*",'R8_Baum'!$K$21,IF(RIGHT('R8_Baum'!$L$23,1)="*",'R8_Baum'!$K$23,"")))) ->  | K10: =IF('R8_Baum'!$L$21>'R8_Baum'!$L$23,'R8_Baum'!$K$22,IF('R8_Baum'!$L$23>'R8_Baum'!$L$21,'R8_Baum'!$K$24,IF(RIGHT('R8_Baum'!$L$21,1)="*",'R8_Baum'!$K$22,IF(RIGHT('R8_Baum'!$L$23,1)="*",'R8_Baum'!$K$24,"")))) ->  | L10: =VLOOKUP(J10,R_Quali!$C$10:$H$100,6,FALSE) ->  | M10: =VLOOKUP(J10,'R8_Baum'!$C$6:$D$45,2,FALSE) ->  | N10: =VLOOKUP(J10,'R8_Baum'!$G$12:$H$39,2,FALSE) -> 0 | O10: =VLOOKUP(J10,'R8_Baum'!$K$21:$L$30,2,FALSE) -> 0
A11: =IF(C11<>"",A10+1,"") ->  | J11: =IF('R8_Baum'!$L$21<'R8_Baum'!$L$23,'R8_Baum'!$K$21,IF('R8_Baum'!$L$23<'R8_Baum'!$L$21,'R8_Baum'!$K$23,IF(RIGHT('R8_Baum'!$L$21,1)="*",'R8_Baum'!$K$23,IF(RIGHT('R8_Baum'!$L$23,1)="*",'R8_Baum'!$K$21,"")))) ->  | K11: =IF('R8_Baum'!$L$21<'R8_Baum'!$L$23,'R8_Baum'!$K$22,IF('R8_Baum'!$L$23<'R8_Baum'!$L$21,'R8_Baum'!$K$24,IF(RIGHT('R8_Baum'!$L$21,1)="*",'R8_Baum'!$K$24,IF(RIGHT('R8_Baum'!$L$23,1)="*",'R8_Baum'!$K$22,"")))) ->  | L11: =VLOOKUP(J11,R_Quali!$C$10:$H$100,6,FALSE) ->  | M11: =VLOOKUP(J11,'R8_Baum'!$C$6:$D$45,2,FALSE) ->  | N11: =VLOOKUP(J11,'R8_Baum'!$G$12:$H$39,2,FALSE) -> 0 | O11: =VLOOKUP(J11,'R8_Baum'!$K$21:$L$30,2,FALSE) -> 0
J12: =IF('R8_Baum'!$L$27>'R8_Baum'!$L$29,'R8_Baum'!$K$27,IF('R8_Baum'!$L$29>'R8_Baum'!$L$27,'R8_Baum'!$K$29,IF(RIGHT('R8_Baum'!$L$27,1)="*",'R8_Baum'!$K$27,IF(RIGHT('R8_Baum'!$L$29,1)="*",'R8_Baum'!$K$29,"")))) ->  | K12: =IF('R8_Baum'!$L$27>'R8_Baum'!$L$29,'R8_Baum'!$K$28,IF('R8_Baum'!$L$29>'R8_Baum'!$L$27,'R8_Baum'!$K$30,IF(RIGHT('R8_Baum'!$L$27,1)="*",'R8_Baum'!$K$28,IF(RIGHT('R8_Baum'!$L$29,1)="*",'R8_Baum'!$K$30,"")))) ->  | L12: =VLOOKUP(J12,R_Quali!$C$10:$H$100,6,FALSE) ->  | M12: =VLOOKUP(J12,'R8_Baum'!$C$6:$D$45,2,FALSE) ->  | N12: =VLOOKUP(J12,'R8_Baum'!$G$12:$H$39,2,FALSE) -> 0 | O12: =VLOOKUP(J12,'R8_Baum'!$K$21:$L$30,2,FALSE) -> 0
J13: =IF('R8_Baum'!$L$27<'R8_Baum'!$L$29,'R8_Baum'!$K$27,IF('R8_Baum'!$L$29<'R8_Baum'!$L$27,'R8_Baum'!$K$29,IF(RIGHT('R8_Baum'!$L$27,1)="*",'R8_Baum'!$K$29,IF(RIGHT('R8_Baum'!$L$29,1)="*",'R8_Baum'!$K$27,"")))) ->  | K13: =IF('R8_Baum'!$L$27<'R8_Baum'!$L$29,'R8_Baum'!$K$28,IF('R8_Baum'!$L$29<'R8_Baum'!$L$27,'R8_Baum'!$K$30,IF(RIGHT('R8_Baum'!$L$27,1)="*",'R8_Baum'!$K$30,IF(RIGHT('R8_Baum'!$L$29,1)="*",'R8_Baum'!$K$28,"")))) ->  | L13: =VLOOKUP(J13,R_Quali!$C$10:$H$100,6,FALSE) ->  | M13: =VLOOKUP(J13,'R8_Baum'!$C$6:$D$45,2,FALSE) ->  | N13: =VLOOKUP(J13,'R8_Baum'!$G$12:$H$39,2,FALSE) -> 0 | O13: =VLOOKUP(J13,'R8_Baum'!$K$21:$L$30,2,FALSE) -> 0
J14: =IF('R8_Baum'!$D$6<'R8_Baum'!$D$8,'R8_Baum'!$C$6,IF('R8_Baum'!$D$8<'R8_Baum'!$D$6,'R8_Baum'!$C$8,IF(RIGHT('R8_Baum'!$D$6,1)="*",'R8_Baum'!$C$8,IF(RIGHT('R8_Baum'!$D$8,1)="*",'R8_Baum'!$C$6,"")))) ->  | K14: =IF('R8_Baum'!$D$6<'R8_Baum'!$D$8,'R8_Baum'!$C$7,IF('R8_Baum'!$D$8<'R8_Baum'!$D$6,'R8_Baum'!$C$9,IF(RIGHT('R8_Baum'!$D$6,1)="*",'R8_Baum'!$C$9,IF(RIGHT('R8_Baum'!$D$8,1)="*",'R8_Baum'!$C$7,"")))) ->  | L14: =VLOOKUP(J14,R_Quali!$C$10:$H$100,6,FALSE) ->  | M14: =VLOOKUP(J14,'R8_Baum'!$C$6:$D$45,2,FALSE) -> 
J15: =IF('R8_Baum'!$D$18<'R8_Baum'!$D$20,'R8_Baum'!$C$18,IF('R8_Baum'!$D$20<'R8_Baum'!$D$18,'R8_Baum'!$C$20,IF(RIGHT('R8_Baum'!$D$18,1)="*",'R8_Baum'!$C$20,IF(RIGHT('R8_Baum'!$D$20,1)="*",'R8_Baum'!$C$18,"")))) ->  | K15: =IF('R8_Baum'!$D$18<'R8_Baum'!$D$20,'R8_Baum'!$C$19,IF('R8_Baum'!$D$20<'R8_Baum'!$D$18,'R8_Baum'!$C$21,IF(RIGHT('R8_Baum'!$D$18,1)="*",'R8_Baum'!$C$21,IF(RIGHT('R8_Baum'!$D$20,1)="*",'R8_Baum'!$C$19,"")))) ->  | L15: =VLOOKUP(J15,R_Quali!$C$10:$H$100,6,FALSE) ->  | M15: =VLOOKUP(J15,'R8_Baum'!$C$6:$D$45,2,FALSE) -> 
J16: =IF('R8_Baum'!$D$30<'R8_Baum'!$D$32,'R8_Baum'!$C$30,IF('R8_Baum'!$D$32<'R8_Baum'!$D$30,'R8_Baum'!$C$32,IF(RIGHT('R8_Baum'!$D$30,1)="*",'R8_Baum'!$C$32,IF(RIGHT('R8_Baum'!$D$32,1)="*",'R8_Baum'!$C$30,"")))) ->  | K16: =IF('R8_Baum'!$D$30<'R8_Baum'!$D$32,'R8_Baum'!$C$31,IF('R8_Baum'!$D$32<'R8_Baum'!$D$30,'R8_Baum'!$C$33,IF(RIGHT('R8_Baum'!$D$30,1)="*",'R8_Baum'!$C$33,IF(RIGHT('R8_Baum'!$D$32,1)="*",'R8_Baum'!$C$31,"")))) ->  | L16: =VLOOKUP(J16,R_Quali!$C$10:$H$100,6,FALSE) ->  | M16: =VLOOKUP(J16,'R8_Baum'!$C$6:$D$45,2,FALSE) -> 
J17: =IF('R8_Baum'!$D$42<'R8_Baum'!$D$44,'R8_Baum'!$C$42,IF('R8_Baum'!$D$44<'R8_Baum'!$D$42,'R8_Baum'!$C$44,IF(RIGHT('R8_Baum'!$D$42,1)="*",'R8_Baum'!$C$44,IF(RIGHT('R8_Baum'!$D$44,1)="*",'R8_Baum'!$C$42,"")))) ->  | K17: =IF('R8_Baum'!$D$42<'R8_Baum'!$D$44,'R8_Baum'!$C$43,IF('R8_Baum'!$D$44<'R8_Baum'!$D$42,'R8_Baum'!$C$45,IF(RIGHT('R8_Baum'!$D$42,1)="*",'R8_Baum'!$C$45,IF(RIGHT('R8_Baum'!$D$44,1)="*",'R8_Baum'!$C$43,"")))) ->  | L17: =VLOOKUP(J17,R_Quali!$C$10:$H$100,6,FALSE) ->  | M17: =VLOOKUP(J17,'R8_Baum'!$C$6:$D$45,2,FALSE) -> 

Sheet C_Quali (hidden)
A2: =Select!$C$12 -> Demoturnier
A3: =Select!C13 -> 1. April 2019
N4: Spalte SO (Shoot Off) Bitte dringend die Anleitung dazu lesen!!! (Punkt 3.)
A5: Qualifikationsrunde
A7: =Select!C20 -> Compound Herren
A9: Pl. | B9: Start-Nr. | C9: Name | D9: Verein | E9: Land | F9: =Select!C22 -> 10er | G9: =R_Quali!G9 -> X | H9: Quali. | I9: SO
A10: =IF(C10>" ",1," ") -> 1 | B10: 12B | C10: Steinwender Alois | D10: Bogensport Lungau | E10: S | F10: 12 | G10: 27 | H10: 532
A11: =IF(C11>" ",A10+1," ") -> 2 | B11: 14C | C11: Kanduth Wolfgang | D11: BC Wildon Weitendorf | E11: ST | F11: 11 | G11: 21 | H11: 531
A12: =IF(C12>" ",A11+1," ") -> 3 | B12: 18C | C12: Hubmann Gerhard | D12: EAT-Bogensport | E12: ST | F12: 13 | G12: 21 | H12: 530
A13: 4 | B13: 12D | C13: Wippel Wolfgang | D13: BC Union Graz Seiersberg | E13: ST | F13: 10 | G13: 23 | H13: 529
A14: 5 | B14: 12A | C14: Traxler Helmuth | D14: UBC Diana NÖ | E14: NÖ | F14: 9 | G14: 22 | H14: 528
A15: 6 | B15: 16B | C15: Schneider Wolfgang | D15: WBZ Union Zwettl | E15: NÖ | F15: 11 | G15: 8 | H15: 527
A16: 7 | B16: 19A | C16: Koisegg Johann | D16: BSC Sparkasse Jenbach | E16: T | F16: 9 | G16: 15 | H16: 526
A17: 8 | B17: 14A | C17: Richter Oscar | D17: BC Golden Arrows | E17: S | F17: 8 | G17: 13 | H17: 525
A18: 9 | B18: 11A | C18: Helmer Gerhard | D18: UBC Diana NÖ | E18: NÖ | F18: 10 | G18: 13 | H18: 524
A19: 10 | B19: 16A | C19: Linhart Christian | D19: BSV Stöttera | E19: B | F19: 10 | G19: 18 | H19: 523
A20: 11 | B20: 16D | C20: Burda Erwin | D20: BC Golden Arrows | E20: S | F20: 10 | G20: 10 | H20: 522
A21: 12 | B21: 23B | C21: Willingshofer August | D21: BSC Velden | E21: K | F21: 9 | G21: 11 | H21: 521
A22: 13 | B22: 15B | C22: Zezula Erwin | D22: WBZ Union Zwettl | E22: NÖ | F22: 5 | G22: 17 | H22: 520
A23: 14 | B23: 23C | C23: Wühl Martin | D23: BSC Fischamend | E23: NÖ | F23: 4 | G23: 18 | H23: 519
A24: 15 | B24: 22A | C24: Url Marsell | D24: UBSC Artemis Steiermark | E24: ST | F24: 5 | G24: 16 | H24: 518
A25: 16 | B25: 19D | C25: Bucher Martin | D25: LH Graz | E25: ST | F25: 8 | G25: 13 | H25: 517
A26: 17 | B26: 18B | C26: Kolm Martin | D26: WBZ Union Zwettl | E26: NÖ | F26: 5 | G26: 14 | H26: 516
A27: 18 | B27: 20B | C27: Postl Markus | D27: BC Union Graz Seiersberg | E27: ST | F27: 8 | G27: 14 | H27: 515
A28: 19 | B28: 16C | C28: Zimmerbeutel Axel | D28: 3D Bogenplatz Riedersbach | E28: OÖ | F28: 7 | G28: 12 | H28: 514
A29: 20 | B29: 21B | C29: RAINER Andreas | D29: BSC Semriach | E29: ST | F29: 9 | G29: 9 | H29: 513
A30: 21 | B30: 22C | C30: Lehner Heinz | D30: Salzkammergut Bogensport Club | E30: OÖ | F30: 6 | G30: 14 | H30: 512
A31: 22 | B31: 18D | C31: Daum Stefan | D31: BSC Sparkasse Jenbach | E31: T | F31: 8 | G31: 13 | H31: 511
A32: 23 | B32: 11C | C32: Gruber Werner | D32: Atus Zeltweg Sektion Bogen | E32: ST | F32: 6 | G32: 12 | H32: 510
A33: 24 | B33: 19B | C33: Schaden Harald | D33: BSC Gaal | E33: ST | F33: 1 | G33: 14 | H33: 509
A34: 25 | B34: 23A | C34: Quinz Harald | D34: Atus Zeltweg Sektion Bogen | E34: ST | F34: 6 | G34: 13 | H34: 508
A35: 26 | B35: 15C | C35: Steininger Helmut | D35: UBSC Artemis Wien | E35: W | F35: 2 | G35: 15 | H35: 507
A36: 27 | B36: 21C | C36: Schlechter Hans-Jürgen | D36: BSV Brixlegg - NAVAJOS | E36: T | F36: 6 | G36: 10 | H36: 506
A37: 28 | B37: 21A | C37: Irnsperger Gerald | D37: 3D Bogenplatz Riedersbach | E37: OÖ | F37: 6 | G37: 11 | H37: 505
A38: 29 | B38: 13A | C38: Holzer Gerhard | D38: UBC Diana NÖ | E38: NÖ | F38: 5 | G38: 9 | H38: 504
A39: 30 | B39: 12C | C39: Nadrai Herbert | D39: BSC Arcus | E39: NÖ | F39: 9 | G39: 9 | H39: 503
A40: 31 | B40: 14D | C40: Kuhn Jürgen Hans | D40: UBC Diana NÖ | E40: NÖ | F40: 5 | G40: 9 | H40: 502
A41: 32 | B41: 20C | C41: Trausmiller Hannes | D41: BS Ligist - Archery Freaks | E41: ST | F41: 6 | G41: 10 | H41: 501
A42: 33 | B42: 11D | C42: Trenda Werner | D42: SV Wallern | E42: OÖ | F42: 3 | G42: 14 | H42: 500
A43: 34 | B43: 19C | C43: Hlous Michael | D43: SEV UNION Isovolta | E43: NÖ | F43: 5 | G43: 13 | H43: 424
A44: 35 | B44: 15D | C44: Kossek Heinz | D44: BC Wildon Weitendorf | E44: ST | F44: 3 | G44: 14 | H44: 422
A45: 36 | B45: 13D | C45: Gritsch Klaus | D45: BSC Fischamend | E45: NÖ | F45: 1 | G45: 14 | H45: 421
A46: 37 | B46: 20D | C46: Kappl Markus | D46: WBZ Union Zwettl | E46: NÖ | F46: 4 | G46: 9 | H46: 404
A47: 38 | B47: 14B | C47: Kaltenberger Franz | D47: BSV Stoneface - Archery | E47: OÖ | F47: 4 | G47: 8 | H47: 404
A48: 39 | B48: 10C | C48: Drapela Norbert | D48: BSC Stockerau | E48: NÖ | F48: 3 | G48: 9 | H48: 395
A49: 40 | B49: 10A | C49: Brandtner Helmut | D49: UBC Diana NÖ | E49: NÖ | F49: 5 | G49: 7 | H49: 392
A50: 41 | B50: 9A | C50: Neumann Markus | D50: BSC Fischamend | E50: NÖ | F50: 6 | G50: 8 | H50: 390
A51: 42 | B51: 9D | C51: Molnar Jonas | D51: BSC Fischamend | E51: NÖ | F51: 0 | G51: 10 | H51: 385
A52: 43 | B52: 10B | C52: Kremser Alfred | D52: Bogensport Lungau | E52: S | F52: 5 | G52: 7 | H52: 384
A53: 44 | B53: 20A | C53: Kropiunig Alexander | D53: BSC Sparkasse Jenbach | E53: T | F53: 5 | G53: 9 | H53: 381
A54: 45 | B54: 15A | C54: Bruijns Peter | D54: BC Golden Arrows | E54: S | F54: 5 | G54: 8 | H54: 381
A55: 46 | B55: 10D | C55: Dehner Roland | D55: SV Wallern | E55: OÖ | F55: 2 | G55: 7 | H55: 376
A56: 47 | B56: 18A | C56: Gschwentner Armin | D56: BSC Sparkasse Jenbach | E56: T | F56: 2 | G56: 11 | H56: 358
A57: 48 | B57: 13B | C57: Baumgartner Günter | D57: ASKÖ Linz Froschberg | E57: OÖ | F57: 1 | G57: 6 | H57: 315
A58: 49 | B58: 24B | C58: Käser Federico | D58: BSV Schönbrunn | E58: W | F58: 0 | G58: 6 | H58: 304
A59: 50 | B59: 9B | C59: Schweiger Peter | D59: BSC Sparkasse Jenbach | E59: T | F59: 3 | G59: 5 | H59: 294
A60: 51 | B60: 24C | C60: Richter Felix | D60: BC Golden Arrows | E60: S | F60: 1 | G60: 2 | H60: 290
A61: 52 | B61: 9C | C61: Thullner Sven | D61: BSV - Lassee | E61: NÖ | F61: 1 | G61: 3 | H61: 281
A76: =IF(C76>" ",A75+1," ") -> 
A100: =IF(C100>" ",A99+1," ") -> 

Sheet C52_Baum (hidden)
B2: Schb. | C2: Qual. | D2: Name | E2: Land | F2: Verein | G2: Erg. | R2: =Select!C12 -> Demoturnier
A3: 1 | C3: =C_Quali!H10 -> 532 | D3: =C_Quali!C10 -> Steinwender Alois | E3: =C_Quali!E10 -> S | F3: =C_Quali!D10 -> Bogensport Lungau | H3: Schb. | I3: Name | J3: Land | K3: Erg.
I4: =D3 -> Steinwender Alois | J4: =E3 -> S
L5: Schb | M5: Name | N5: Land | O5: Erg. | R5: =Select!C13 -> 1. April 2019
A6: 17 | B6: =E116 -> 33A | C6: =C_Quali!H26 -> 516 | D6: =C_Quali!C26 -> Kolm Martin | E6: =C_Quali!E26 -> NÖ | F6: =C_Quali!D26 -> WBZ Union Zwettl | L6: =N116 -> 33 | M6: =I4 -> Steinwender Alois | N6: =J4 -> S
A7: 40 | B7: =E117 -> 33B | C7: =C_Quali!H49 -> 392 | D7: =C_Quali!C49 -> Brandtner Helmut | E7: =C_Quali!E49 -> NÖ | F7: =C_Quali!D49 -> UBC Diana NÖ | L7: =N117 -> 34 | M7: =IF($K8>$K9,$I8,IF($K9>$K8,$I9,IF(RIGHT($K8,1)="*",$I8,IF(RIGHT($K9,1)="*",$I9,"")))) ->  | N7: =IF($K8>$K9,$J8,IF($K9>$K8,$J9,IF(RIGHT($K8,1)="*",$J8,IF(RIGHT($K9,1)="*",$J9,"")))) -> 
H8: =J116 -> 33A | I8: =IF($G6>$G7,$D6,IF($G7>$G6,$D7,IF(RIGHT($G6,1)="*",$D6,IF(RIGHT($G7,1)="*",$D7,"")))) ->  | J8: =IF($G6>$G7,$E6,IF($G7>$G6,$E7,IF(RIGHT($G6,1)="*",$E6,IF(RIGHT($G7,1)="*",$E7,"")))) ->  | X8: 1. | Y8: =IF($AA$44>$AA$45,$Y$44,IF($AA$45>$AA$44,$Y$45,IF(RIGHT($AA$44,1)="*",$Y$44,IF(RIGHT($AA$45,1)="*",$Y$45,"")))) ->  | AA8: =IF($AA$44>$AA$45,$Z$44,IF($AA$45>$AA$44,$Z$45,IF(RIGHT($AA$44,1)="*",$Z$44,IF(RIGHT($AA$45,1)="*",$Z$45,"")))) -> 
H9: =J117 -> 33B | I9: =IF($G10>$G11,$D10,IF($G11>$G10,$D11,IF(RIGHT($G10,1)="*",$D10,IF(RIGHT($G11,1)="*",$D11,"")))) ->  | J9: =IF($G10>$G11,$E10,IF($G11>$G10,$E11,IF(RIGHT($G10,1)="*",$E10,IF(RIGHT($G11,1)="*",$E11,"")))) -> 
A10: 41 | B10: =E118 -> 34A | C10: =C_Quali!H50 -> 390 | D10: =C_Quali!C50 -> Neumann Markus | E10: =C_Quali!E50 -> NÖ | F10: =C_Quali!D50 -> BSC Fischamend | X10: 2. | Y10: =IF($AA$44<$AA$45,$Y$44,IF($AA$45<$AA$44,$Y$45,IF(RIGHT($AA$45,1)="*",$Y$44,IF(RIGHT($AA$44,1)="*",$Y$45,"")))) ->  | AA10: =IF($AA$44<$AA$45,$Z$44,IF($AA$45<$AA$44,$Z$45,IF(RIGHT($AA$45,1)="*",$Z$44,IF(RIGHT($AA$44,1)="*",$Z$45,"")))) -> 
A11: 16 | B11: =E119 -> 34B | C11: =C_Quali!H25 -> 517 | D11: =C_Quali!C25 -> Bucher Martin | E11: =C_Quali!E25 -> ST | F11: =C_Quali!D25 -> LH Graz | P11: Schb | Q11: Name | R11: Land | S11: Erg.
P12: =R116 -> 35 | Q12: =IF($O6>$O7,$M6,IF($O7>$O6,$M7,IF(RIGHT($O6,1)="*",$M6,IF(RIGHT($O7,1)="*",$M7,"")))) ->  | R12: =IF($O6>$O7,$N6,IF($O7>$O6,$N7,IF(RIGHT($O6,1)="*",$N6,IF(RIGHT($O7,1)="*",$N7,"")))) ->  | X12: 3. | Y12: =IF($AA$66>$AA$67,$Y$66,IF($AA$67>$AA$66,$Y$67,IF(RIGHT($AA$66,1)="*",$Y$66,IF(RIGHT($AA$67,1)="*",$Y$67,"")))) ->  | AA12: =IF($AA$66>$AA$67,$Z$66,IF($AA$67>$AA$66,$Z$67,IF(RIGHT($AA$66,1)="*",$Z$66,IF(RIGHT($AA$67,1)="*",$Z$67,"")))) -> 
P13: =R117 -> 36 | Q13: =IF($O20>$O21,$M20,IF($O21>$O20,$M21,IF(RIGHT($O20,1)="*",$M20,IF(RIGHT($O21,1)="*",$M21,"")))) ->  | R13: =IF($O20>$O21,$N20,IF($O21>$O20,$N21,IF(RIGHT($O20,1)="*",$N20,IF(RIGHT($O21,1)="*",$N21,"")))) -> 
A14: 9 | B14: =E120 -> 35A | C14: =C_Quali!H18 -> 524 | D14: =C_Quali!C18 -> Helmer Gerhard | E14: =C_Quali!E18 -> NÖ | F14: =C_Quali!D18 -> UBC Diana NÖ
A15: 48 | B15: =E121 -> 35B | C15: =C_Quali!H57 -> 315 | D15: =C_Quali!C57 -> Baumgartner Günter | E15: =C_Quali!E57 -> OÖ | F15: =C_Quali!D57 -> ASKÖ Linz Froschberg
H16: =J118 -> 34A | I16: =IF($G14>$G15,$D14,IF($G15>$G14,$D15,IF(RIGHT($G14,1)="*",$D14,IF(RIGHT($G15,1)="*",$D15,"")))) ->  | J16: =IF($G14>$G15,$E14,IF($G15>$G14,$E15,IF(RIGHT($G14,1)="*",$E14,IF(RIGHT($G15,1)="*",$E15,"")))) -> 
H17: =J119 -> 34B | I17: =IF($G18>$G19,$D18,IF($G19>$G18,$D19,IF(RIGHT($G18,1)="*",$D18,IF(RIGHT($G19,1)="*",$D19,"")))) ->  | J17: =IF($G18>$G19,$E18,IF($G19>$G18,$E19,IF(RIGHT($G18,1)="*",$E18,IF(RIGHT($G19,1)="*",$E19,"")))) -> 
A18: 33 | B18: =E122 -> 36A | C18: =C_Quali!H42 -> 500 | D18: =C_Quali!C42 -> Trenda Werner | E18: =C_Quali!E42 -> OÖ | F18: =C_Quali!D42 -> SV Wallern
A19: 24 | B19: =E123 -> 36B | C19: =C_Quali!H33 -> 509 | D19: =C_Quali!C33 -> Schaden Harald | E19: =C_Quali!E33 -> ST | F19: =C_Quali!D33 -> BSC Gaal
L20: =N118 -> 35 | M20: =IF($K16>$K17,$I16,IF($K17>$K16,$I17,IF(RIGHT($K16,1)="*",$I16,IF(RIGHT($K17,1)="*",$I17,"")))) ->  | N20: =IF($K16>$K17,$J16,IF($K17>$K16,$J17,IF(RIGHT($K16,1)="*",$J16,IF(RIGHT($K17,1)="*",$J17,"")))) -> 
L21: =N119 -> 36 | M21: =IF($K24>$K25,$I24,IF($K25>$K24,$I25,IF(RIGHT($K24,1)="*",$I24,IF(RIGHT($K25,1)="*",$I25,"")))) ->  | N21: =IF($K24>$K25,$J24,IF($K25>$K24,$J25,IF(RIGHT($K24,1)="*",$J24,IF(RIGHT($K25,1)="*",$J25,"")))) -> 
A22: 25 | B22: =E124 -> 37A | C22: =C_Quali!H34 -> 508 | D22: =C_Quali!C34 -> Quinz Harald | E22: =C_Quali!E34 -> ST | F22: =C_Quali!D34 -> Atus Zeltweg Sektion Bogen
A23: 32 | B23: =E125 -> 37B | C23: =C_Quali!H41 -> 501 | D23: =C_Quali!C41 -> Trausmiller Hannes | E23: =C_Quali!E41 -> ST | F23: =C_Quali!D41 -> BS Ligist - Archery Freaks
H24: =J120 -> 35A | I24: =IF($G22>$G23,$D22,IF($G23>$G22,$D23,IF(RIGHT($G22,1)="*",$D22,IF(RIGHT($G23,1)="*",$D23,"")))) ->  | J24: =IF($G22>$G23,$E22,IF($G23>$G22,$E23,IF(RIGHT($G22,1)="*",$E22,IF(RIGHT($G23,1)="*",$E23,"")))) -> 
H25: =J121 -> 35B | I25: =IF($G26>$G27,$D26,IF($G27>$G26,$D27,IF(RIGHT($G26,1)="*",$D26,IF(RIGHT($G27,1)="*",$D27,"")))) ->  | J25: =IF($G26>$G27,$E26,IF($G27>$G26,$E27,IF(RIGHT($G26,1)="*",$E26,IF(RIGHT($G27,1)="*",$E27,"")))) -> 
A26: 49 | B26: =E126 -> 38A | C26: =C_Quali!H58 -> 304 | D26: =C_Quali!C58 -> Käser Federico | E26: =C_Quali!E58 -> W | F26: =C_Quali!D58 -> BSV Schönbrunn
A27: 8 | B27: =E127 -> 38B | C27: =C_Quali!H17 -> 525 | D27: =C_Quali!C17 -> Richter Oscar | E27: =C_Quali!E17 -> S | F27: =C_Quali!D17 -> BC Golden Arrows
T29: Schb | U29: Name | V29: Land | W29: Erg.
A30: 5 | B30: =E128 -> 39A | C30: =C_Quali!H14 -> 528 | D30: =C_Quali!C14 -> Traxler Helmuth | E30: =C_Quali!E14 -> NÖ | F30: =C_Quali!D14 -> UBC Diana NÖ | T30: =V116 -> 35 | U30: =IF($S12>$S13,$Q12,IF($S13>$S12,$Q13,IF(RIGHT($S12,1)="*",$Q12,IF(RIGHT($S13,1)="*",$Q13,"")))) ->  | V30: =IF($S12>$S13,$R12,IF($S13>$S12,$R13,IF(RIGHT($S12,1)="*",$R12,IF(RIGHT($S13,1)="*",$R13,"")))) -> 
A31: 52 | B31: =E129 -> 39B | C31: =C_Quali!H61 -> 281 | D31: =C_Quali!C61 -> Thullner Sven | E31: =C_Quali!E61 -> NÖ | F31: =C_Quali!D61 -> BSV - Lassee | T31: =V117 -> 36 | U31: =IF($S44>$S45,$Q44,IF($S45>$S44,$Q45,IF(RIGHT($S44,1)="*",$Q44,IF(RIGHT($S45,1)="*",$Q45,"")))) ->  | V31: =IF($S44>$S45,$R44,IF($S45>$S44,$R45,IF(RIGHT($S44,1)="*",$R44,IF(RIGHT($S45,1)="*",$R45,"")))) -> 
H32: =J122 -> 36A | I32: =IF($G30>$G31,$D30,IF($G31>$G30,$D31,IF(RIGHT($G30,1)="*",$D30,IF(RIGHT($G31,1)="*",$D31,"")))) ->  | J32: =IF($G30>$G31,$E30,IF($G31>$G30,$E31,IF(RIGHT($G30,1)="*",$E30,IF(RIGHT($G31,1)="*",$E31,"")))) -> 
H33: =J123 -> 36B | I33: =IF($G34>$G35,$D34,IF($G35>$G34,$D35,IF(RIGHT($G34,1)="*",$D34,IF(RIGHT($G35,1)="*",$D35,"")))) ->  | J33: =IF($G34>$G35,$E34,IF($G35>$G34,$E35,IF(RIGHT($G34,1)="*",$E34,IF(RIGHT($G35,1)="*",$E35,"")))) -> 
A34: 29 | B34: =E130 -> 40A | C34: =C_Quali!H38 -> 504 | D34: =C_Quali!C38 -> Holzer Gerhard | E34: =C_Quali!E38 -> NÖ | F34: =C_Quali!D38 -> UBC Diana NÖ
A35: 28 | B35: =E131 -> 40B | C35: =C_Quali!H37 -> 505 | D35: =C_Quali!C37 -> Irnsperger Gerald | E35: =C_Quali!E37 -> OÖ | F35: =C_Quali!D37 -> 3D Bogenplatz Riedersbach
L36: =N120 -> 37 | M36: =IF($K32>$K33,$I32,IF($K33>$K32,$I33,IF(RIGHT($K32,1)="*",$I32,IF(RIGHT($K33,1)="*",$I33,"")))) ->  | N36: =IF($K32>$K33,$J32,IF($K33>$K32,$J33,IF(RIGHT($K32,1)="*",$J32,IF(RIGHT($K33,1)="*",$J33,"")))) -> 
L37: =N121 -> 38 | M37: =IF($K40>$K41,$I40,IF($K41>$K40,$I41,IF(RIGHT($K40,1)="*",$I40,IF(RIGHT($K41,1)="*",$I41,"")))) ->  | N37: =IF($K40>$K41,$J40,IF($K41>$K40,$J41,IF(RIGHT($K40,1)="*",$J40,IF(RIGHT($K41,1)="*",$J41,"")))) -> 
A38: 21 | B38: =E132 -> 41A | C38: =C_Quali!H30 -> 512 | D38: =C_Quali!C30 -> Lehner Heinz | E38: =C_Quali!E30 -> OÖ | F38: =C_Quali!D30 -> Salzkammergut Bogensport Club
A39: 36 | B39: =E133 -> 41B | C39: =C_Quali!H45 -> 421 | D39: =C_Quali!C45 -> Gritsch Klaus | E39: =C_Quali!E45 -> NÖ | F39: =C_Quali!D45 -> BSC Fischamend
H40: =J124 -> 37A | I40: =IF($G38>$G39,$D38,IF($G39>$G38,$D39,IF(RIGHT($G38,1)="*",$D38,IF(RIGHT($G39,1)="*",$D39,"")))) ->  | J40: =IF($G38>$G39,$E38,IF($G39>$G38,$E39,IF(RIGHT($G38,1)="*",$E38,IF(RIGHT($G39,1)="*",$E39,"")))) -> 
H41: =J125 -> 37B | I41: =IF($G42>$G43,$D42,IF($G43>$G42,$D43,IF(RIGHT($G42,1)="*",$D42,IF(RIGHT($G43,1)="*",$D43,"")))) ->  | J41: =IF($G42>$G43,$E42,IF($G43>$G42,$E43,IF(RIGHT($G42,1)="*",$E42,IF(RIGHT($G43,1)="*",$E43,"")))) ->  | AE41: =IF($W30>$W31,$U30,IF($W31>$W30,$U31,IF(RIGHT($W30,1)="*",$U30,IF(RIGHT($W31,1)="*",$U31,"")))) ->  | AF41: =IF($W30>$W31,$V30,IF($W31>$W30,$V31,IF(RIGHT($W30,1)="*",$V30,IF(RIGHT($W31,1)="*",$V31,"")))) -> 
A42: 45 | B42: =E134 -> 42A | C42: =C_Quali!H54 -> 381 | D42: =C_Quali!C54 -> Bruijns Peter | E42: =C_Quali!E54 -> S | F42: =C_Quali!D54 -> BC Golden Arrows
A43: 12 | B43: =E135 -> 42B | C43: =C_Quali!H21 -> 521 | D43: =C_Quali!C21 -> Willingshofer August | E43: =C_Quali!E21 -> K | F43: =C_Quali!D21 -> BSC Velden | U43: Finale | X43: Schb | Y43: Name | Z43: Land | AA43: Erg.
P44: =R118 -> 37 | Q44: =IF($O36>$O37,$M36,IF($O37>$O36,$M37,IF(RIGHT($O36,1)="*",$M36,IF(RIGHT($O37,1)="*",$M37,"")))) ->  | R44: =IF($O36>$O37,$N36,IF($O37>$O36,$N37,IF(RIGHT($O36,1)="*",$N36,IF(RIGHT($O37,1)="*",$N37,"")))) ->  | X44: =Z116 -> 1 | Y44: =IF($W30>$W31,$U30,IF($W31>$W30,$U31,IF(RIGHT($W30,1)="*",$U30,IF(RIGHT($W31,1)="*",$U31,"")))) ->  | Z44: =IF($W30>$W31,$V30,IF($W31>$W30,$V31,IF(RIGHT($W30,1)="*",$V30,IF(RIGHT($W31,1)="*",$V31,"")))) ->  | AE44: =IF($W82>$W83,$U82,IF($W83>$W82,$U83,IF(RIGHT($W82,1)="*",$U82,IF(RIGHT($W83,1)="*",$U83,"")))) ->  | AF44: =IF($W82>$W83,$V82,IF($W83>$W82,$V83,IF(RIGHT($W82,1)="*",$V82,IF(RIGHT($W83,1)="*",$V83,"")))) -> 
P45: =R119 -> 38 | Q45: =IF($O50>$O51,$M50,IF($O51>$O50,$M51,IF(RIGHT($O50,1)="*",$M50,IF(RIGHT($O51,1)="*",$M51,"")))) ->  | R45: =IF($O50>$O51,$N50,IF($O51>$O50,$N51,IF(RIGHT($O50,1)="*",$N50,IF(RIGHT($O51,1)="*",$N51,"")))) ->  | U45: 1. und 2. Platz | X45: =Z117 -> 2 | Y45: =IF($W82>$W83,$U82,IF($W83>$W82,$U83,IF(RIGHT($W82,1)="*",$U82,IF(RIGHT($W83,1)="*",$U83,"")))) ->  | Z45: =IF($W82>$W83,$V82,IF($W83>$W82,$V83,IF(RIGHT($W82,1)="*",$V82,IF(RIGHT($W83,1)="*",$V83,"")))) -> 
A46: 13 | B46: =E136 -> 43A | C46: =C_Quali!H22 -> 520 | D46: =C_Quali!C22 -> Zezula Erwin | E46: =C_Quali!E22 -> NÖ | F46: =C_Quali!D22 -> WBZ Union Zwettl
A47: 44 | B47: =E137 -> 43B | C47: =C_Quali!H53 -> 381 | D47: =C_Quali!C53 -> Kropiunig Alexander | E47: =C_Quali!E53 -> T | F47: =C_Quali!D53 -> BSC Sparkasse Jenbach
H48: =J126 -> 38A | I48: =IF($G46>$G47,$D46,IF($G47>$G46,$D47,IF(RIGHT($G46,1)="*",$D46,IF(RIGHT($G47,1)="*",$D47,"")))) ->  | J48: =IF($G46>$G47,$E46,IF($G47>$G46,$E47,IF(RIGHT($G46,1)="*",$E46,IF(RIGHT($G47,1)="*",$E47,"")))) -> 
H49: =J127 -> 38B | I49: =IF($G50>$G51,$D50,IF($G51>$G50,$D51,IF(RIGHT($G50,1)="*",$D50,IF(RIGHT($G51,1)="*",$D51,"")))) ->  | J49: =IF($G50>$G51,$E50,IF($G51>$G50,$E51,IF(RIGHT($G50,1)="*",$E50,IF(RIGHT($G51,1)="*",$E51,"")))) -> 
A50: 37 | B50: =E138 -> 44A | C50: =C_Quali!H46 -> 404 | D50: =C_Quali!C46 -> Kappl Markus | E50: =C_Quali!E46 -> NÖ | F50: =C_Quali!D46 -> WBZ Union Zwettl | L50: =N122 -> 39 | M50: =IF($K48>$K49,$I48,IF($K49>$K48,$I49,IF(RIGHT($K48,1)="*",$I48,IF(RIGHT($K49,1)="*",$I49,"")))) ->  | N50: =IF($K48>$K49,$J48,IF($K49>$K48,$J49,IF(RIGHT($K48,1)="*",$J48,IF(RIGHT($K49,1)="*",$J49,"")))) -> 
A51: 20 | B51: =E139 -> 44B | C51: =C_Quali!H29 -> 513 | D51: =C_Quali!C29 -> RAINER Andreas | E51: =C_Quali!E29 -> ST | F51: =C_Quali!D29 -> BSC Semriach | L51: =N123 -> 40 | M51: =I53 -> Wippel Wolfgang | N51: =J53 -> ST
I53: =D54 -> Wippel Wolfgang | J53: =E54 -> ST
A54: 4 | C54: =C_Quali!H13 -> 529 | D54: =C_Quali!C13 -> Wippel Wolfgang | E54: =C_Quali!E13 -> ST | F54: =C_Quali!D13 -> BC Union Graz Seiersberg
A57: 3 | C57: =C_Quali!H12 -> 530 | D57: =C_Quali!C12 -> Hubmann Gerhard | E57: =C_Quali!E12 -> ST | F57: =C_Quali!D12 -> EAT-Bogensport
I58: =D57 -> Hubmann Gerhard | J58: =E57 -> ST
A60: 19 | B60: =E140 -> 45A | C60: =C_Quali!H28 -> 514 | D60: =C_Quali!C28 -> Zimmerbeutel Axel | E60: =C_Quali!E28 -> OÖ | F60: =C_Quali!D28 -> 3D Bogenplatz Riedersbach | L60: =N124 -> 41 | M60: =I58 -> Hubmann Gerhard | N60: =J58 -> ST
A61: 38 | B61: =E141 -> 45B | C61: =C_Quali!H47 -> 404 | D61: =C_Quali!C47 -> Kaltenberger Franz | E61: =C_Quali!E47 -> OÖ | F61: =C_Quali!D47 -> BSV Stoneface - Archery | L61: =N125 -> 42 | M61: =IF($K62>$K63,$I62,IF($K63>$K62,$I63,IF(RIGHT($K62,1)="*",$I62,IF(RIGHT($K63,1)="*",$I63,"")))) ->  | N61: =IF($K62>$K63,$J62,IF($K63>$K62,$J63,IF(RIGHT($K62,1)="*",$J62,IF(RIGHT($K63,1)="*",$J63,"")))) -> 
H62: =J128 -> 39A | I62: =IF($G60>$G61,$D60,IF($G61>$G60,$D61,IF(RIGHT($G60,1)="*",$D60,IF(RIGHT($G61,1)="*",$D61,"")))) ->  | J62: =IF($G60>$G61,$E60,IF($G61>$G60,$E61,IF(RIGHT($G60,1)="*",$E60,IF(RIGHT($G61,1)="*",$E61,"")))) -> 
H63: =J129 -> 39B | I63: =IF($G64>$G65,$D64,IF($G65>$G64,$D65,IF(RIGHT($G64,1)="*",$D64,IF(RIGHT($G65,1)="*",$D65,"")))) ->  | J63: =IF($G64>$G65,$E64,IF($G65>$G64,$E65,IF(RIGHT($G64,1)="*",$E64,IF(RIGHT($G65,1)="*",$E65,"")))) -> 
A64: 43 | B64: =E142 -> 46A | C64: =C_Quali!H52 -> 384 | D64: =C_Quali!C52 -> Kremser Alfred | E64: =C_Quali!E52 -> S | F64: =C_Quali!D52 -> Bogensport Lungau
A65: 14 | B65: =E143 -> 46B | C65: =C_Quali!H23 -> 519 | D65: =C_Quali!C23 -> Wühl Martin | E65: =C_Quali!E23 -> NÖ | F65: =C_Quali!D23 -> BSC Fischamend | U65: Finale
P66: =R120 -> 39 | Q66: =IF($O60>$O61,$M60,IF($O61>$O60,$M61,IF(RIGHT($O60,1)="*",$M60,IF(RIGHT($O61,1)="*",$M61,"")))) ->  | R66: =IF($O60>$O61,$N60,IF($O61>$O60,$N61,IF(RIGHT($O60,1)="*",$N60,IF(RIGHT($O61,1)="*",$N61,"")))) ->  | X66: =Z118 -> 1 | Y66: =IF($W30>$W31,$U31,IF($W31>$W30,$U30,IF(RIGHT($W30,1)="*",$U31,IF(RIGHT($W31,1)="*",$U30,"")))) ->  | Z66: =IF($W30>$W31,$V31,IF($W31>$W30,$V30,IF(RIGHT($W30,1)="*",$V31,IF(RIGHT($W31,1)="*",$V30,"")))) ->  | AE66: =IF($W30>$W31,$U31,IF($W31>$W30,$U30,IF(RIGHT($W30,1)="*",$U31,IF(RIGHT($W31,1)="*",$U30,"")))) ->  | AF66: =IF($W30>$W31,$V31,IF($W31>$W30,$V30,IF(RIGHT($W30,1)="*",$V31,IF(RIGHT($W31,1)="*",$V30,"")))) -> 
P67: =R121 -> 40 | Q67: =IF($O74>$O75,$M74,IF($O75>$O74,$M75,IF(RIGHT($O74,1)="*",$M74,IF(RIGHT($O75,1)="*",$M75,"")))) ->  | R67: =IF($O74>$O75,$N74,IF($O75>$O74,$N75,IF(RIGHT($O74,1)="*",$N74,IF(RIGHT($O75,1)="*",$N75,"")))) ->  | U67: 3. und 4. Platz | X67: =Z119 -> 2 | Y67: =IF($W82>$W83,$U83,IF($W83>$W82,$U82,IF(RIGHT($W82,1)="*",$U83,IF(RIGHT($W83,1)="*",$U82,"")))) ->  | Z67: =IF($W82>$W83,$V83,IF($W83>$W82,$V82,IF(RIGHT($W82,1)="*",$V83,IF(RIGHT($W83,1)="*",$V82,"")))) ->  | AE67: =IF($W82>$W83,$U83,IF($W83>$W82,$U82,IF(RIGHT($W82,1)="*",$U83,IF(RIGHT($W83,1)="*",$U82,"")))) ->  | AF67: =IF($W82>$W83,$V83,IF($W83>$W82,$V82,IF(RIGHT($W82,1)="*",$V83,IF(RIGHT($W83,1)="*",$V82,"")))) -> 
A68: 11 | B68: =E144 -> 47A | C68: =C_Quali!H20 -> 522 | D68: =C_Quali!C20 -> Burda Erwin | E68: =C_Quali!E20 -> S | F68: =C_Quali!D20 -> BC Golden Arrows
A69: 46 | B69: =E145 -> 47B | C69: =C_Quali!H55 -> 376 | D69: =C_Quali!C55 -> Dehner Roland | E69: =C_Quali!E55 -> OÖ | F69: =C_Quali!D55 -> SV Wallern
H70: =J130 -> 40A | I70: =IF($G68>$G69,$D68,IF($G69>$G68,$D69,IF(RIGHT($G68,1)="*",$D68,IF(RIGHT($G69,1)="*",$D69,"")))) ->  | J70: =IF($G68>$G69,$E68,IF($G69>$G68,$E69,IF(RIGHT($G68,1)="*",$E68,IF(RIGHT($G69,1)="*",$E69,"")))) -> 
H71: =J131 -> 40B | I71: =IF($G72>$G73,$D72,IF($G73>$G72,$D73,IF(RIGHT($G72,1)="*",$D72,IF(RIGHT($G73,1)="*",$D73,"")))) ->  | J71: =IF($G72>$G73,$E72,IF($G73>$G72,$E73,IF(RIGHT($G72,1)="*",$E72,IF(RIGHT($G73,1)="*",$E73,"")))) -> 
A72: 35 | B72: =E146 -> 48A | C72: =C_Quali!H44 -> 422 | D72: =C_Quali!C44 -> Kossek Heinz | E72: =C_Quali!E44 -> ST | F72: =C_Quali!D44 -> BC Wildon Weitendorf
A73: 22 | B73: =E147 -> 48B | C73: =C_Quali!H31 -> 511 | D73: =C_Quali!C31 -> Daum Stefan | E73: =C_Quali!E31 -> T | F73: =C_Quali!D31 -> BSC Sparkasse Jenbach
L74: =N126 -> 43 | M74: =IF($K70>$K71,$I70,IF($K71>$K70,$I71,IF(RIGHT($K70,1)="*",$I70,IF(RIGHT($K71,1)="*",$I71,"")))) ->  | N74: =IF($K70>$K71,$J70,IF($K71>$K70,$J71,IF(RIGHT($K70,1)="*",$J70,IF(RIGHT($K71,1)="*",$J71,"")))) -> 
L75: =N127 -> 44 | M75: =IF($K78>$K79,$I78,IF($K79>$K78,$I79,IF(RIGHT($K78,1)="*",$I78,IF(RIGHT($K79,1)="*",$I79,"")))) ->  | N75: =IF($K78>$K79,$J78,IF($K79>$K78,$J79,IF(RIGHT($K78,1)="*",$J78,IF(RIGHT($K79,1)="*",$J79,"")))) -> 
A76: 27 | B76: =E148 -> 49A | C76: =C_Quali!H36 -> 506 | D76: =C_Quali!C36 -> Schlechter Hans-Jürgen | E76: =C_Quali!E36 -> T | F76: =C_Quali!D36 -> BSV Brixlegg - NAVAJOS
A77: 30 | B77: =E149 -> 49B | C77: =C_Quali!H39 -> 503 | D77: =C_Quali!C39 -> Nadrai Herbert | E77: =C_Quali!E39 -> NÖ | F77: =C_Quali!D39 -> BSC Arcus
H78: =J132 -> 41A | I78: =IF($G76>$G77,$D76,IF($G77>$G76,$D77,IF(RIGHT($G76,1)="*",$D76,IF(RIGHT($G77,1)="*",$D77,"")))) ->  | J78: =IF($G76>$G77,$E76,IF($G77>$G76,$E77,IF(RIGHT($G76,1)="*",$E76,IF(RIGHT($G77,1)="*",$E77,"")))) -> 
H79: =J133 -> 41B | I79: =IF($G80>$G81,$D80,IF($G81>$G80,$D81,IF(RIGHT($G80,1)="*",$D80,IF(RIGHT($G81,1)="*",$D81,"")))) ->  | J79: =IF($G80>$G81,$E80,IF($G81>$G80,$E81,IF(RIGHT($G80,1)="*",$E80,IF(RIGHT($G81,1)="*",$E81,"")))) -> 
A80: 51 | B80: =E150 -> 50A | C80: =C_Quali!H60 -> 290 | D80: =C_Quali!C60 -> Richter Felix | E80: =C_Quali!E60 -> S | F80: =C_Quali!D60 -> BC Golden Arrows
A81: 6 | B81: =E151 -> 50B | C81: =C_Quali!H15 -> 527 | D81: =C_Quali!C15 -> Schneider Wolfgang | E81: =C_Quali!E15 -> NÖ | F81: =C_Quali!D15 -> WBZ Union Zwettl
T82: =V118 -> 37 | U82: =IF($S66>$S67,$Q66,IF($S67>$S66,$Q67,IF(RIGHT($S66,1)="*",$Q66,IF(RIGHT($S67,1)="*",$Q67,"")))) ->  | V82: =IF($S66>$S67,$R66,IF($S67>$S66,$R67,IF(RIGHT($S66,1)="*",$R66,IF(RIGHT($S67,1)="*",$R67,"")))) -> 
T83: =V119 -> 38 | U83: =IF($S98>$S99,$Q98,IF($S99>$S98,$Q99,IF(RIGHT($S98,1)="*",$Q98,IF(RIGHT($S99,1)="*",$Q99,"")))) ->  | V83: =IF($S98>$S99,$R98,IF($S99>$S98,$R99,IF(RIGHT($S98,1)="*",$R98,IF(RIGHT($S99,1)="*",$R99,"")))) -> 
A84: 7 | B84: =E152 -> 51A | C84: =C_Quali!H16 -> 526 | D84: =C_Quali!C16 -> Koisegg Johann | E84: =C_Quali!E16 -> T | F84: =C_Quali!D16 -> BSC Sparkasse Jenbach
A85: 50 | B85: =E153 -> 51B | C85: =C_Quali!H59 -> 294 | D85: =C_Quali!C59 -> Schweiger Peter | E85: =C_Quali!E59 -> T | F85: =C_Quali!D59 -> BSC Sparkasse Jenbach
H86: =J134 -> 42A | I86: =IF($G84>$G85,$D84,IF($G85>$G84,$D85,IF(RIGHT($G84,1)="*",$D84,IF(RIGHT($G85,1)="*",$D85,"")))) ->  | J86: =IF($G84>$G85,$E84,IF($G85>$G84,$E85,IF(RIGHT($G84,1)="*",$E84,IF(RIGHT($G85,1)="*",$E85,"")))) -> 
H87: =J135 -> 42B | I87: =IF($G88>$G89,$D88,IF($G89>$G88,$D89,IF(RIGHT($G88,1)="*",$D88,IF(RIGHT($G89,1)="*",$D89,"")))) ->  | J87: =IF($G88>$G89,$E88,IF($G89>$G88,$E89,IF(RIGHT($G88,1)="*",$E88,IF(RIGHT($G89,1)="*",$E89,"")))) -> 
A88: 31 | B88: =E154 -> 52A | C88: =C_Quali!H40 -> 502 | D88: =C_Quali!C40 -> Kuhn Jürgen Hans | E88: =C_Quali!E40 -> NÖ | F88: =C_Quali!D40 -> UBC Diana NÖ
A89: 26 | B89: =E155 -> 52B | C89: =C_Quali!H35 -> 507 | D89: =C_Quali!C35 -> Steininger Helmut | E89: =C_Quali!E35 -> W | F89: =C_Quali!D35 -> UBSC Artemis Wien
L90: =N128 -> 45 | M90: =IF($K86>$K87,$I86,IF($K87>$K86,$I87,IF(RIGHT($K86,1)="*",$I86,IF(RIGHT($K87,1)="*",$I87,"")))) ->  | N90: =IF($K86>$K87,$J86,IF($K87>$K86,$J87,IF(RIGHT($K86,1)="*",$J86,IF(RIGHT($K87,1)="*",$J87,"")))) ->  | Y90: Finale
L91: =N129 -> 46 | M91: =IF($K94>$K95,$I94,IF($K95>$K94,$I95,IF(RIGHT($K94,1)="*",$I94,IF(RIGHT($K95,1)="*",$I95,"")))) ->  | N91: =IF($K94>$K95,$J94,IF($K95>$K94,$J95,IF(RIGHT($K94,1)="*",$J94,IF(RIGHT($K95,1)="*",$J95,"")))) ->  | U91: 1/2 Finale
A92: 23 | B92: =E156 -> 53A | C92: =C_Quali!H32 -> 510 | D92: =C_Quali!C32 -> Gruber Werner | E92: =C_Quali!E32 -> ST | F92: =C_Quali!D32 -> Atus Zeltweg Sektion Bogen
A93: 34 | B93: =E157 -> 53B | C93: =C_Quali!H43 -> 424 | D93: =C_Quali!C43 -> Hlous Michael | E93: =C_Quali!E43 -> NÖ | F93: =C_Quali!D43 -> SEV UNION Isovolta
H94: =J136 -> 43A | I94: =IF($G92>$G93,$D92,IF($G93>$G92,$D93,IF(RIGHT($G92,1)="*",$D92,IF(RIGHT($G93,1)="*",$D93,"")))) ->  | J94: =IF($G92>$G93,$E92,IF($G93>$G92,$E93,IF(RIGHT($G92,1)="*",$E92,IF(RIGHT($G93,1)="*",$E93,"")))) -> 
H95: =J137 -> 43B | I95: =IF($G96>$G97,$D96,IF($G97>$G96,$D97,IF(RIGHT($G96,1)="*",$D96,IF(RIGHT($G97,1)="*",$D97,"")))) ->  | J95: =IF($G96>$G97,$E96,IF($G97>$G96,$E97,IF(RIGHT($G96,1)="*",$E96,IF(RIGHT($G97,1)="*",$E97,"")))) -> 
A96: 47 | B96: =E158 -> 54A | C96: =C_Quali!H56 -> 358 | D96: =C_Quali!C56 -> Gschwentner Armin | E96: =C_Quali!E56 -> T | F96: =C_Quali!D56 -> BSC Sparkasse Jenbach
A97: 10 | B97: =E159 -> 54B | C97: =C_Quali!H19 -> 523 | D97: =C_Quali!C19 -> Linhart Christian | E97: =C_Quali!E19 -> B | F97: =C_Quali!D19 -> BSV Stöttera
P98: =R122 -> 41 | Q98: =IF($O90>$O91,$M90,IF($O91>$O90,$M91,IF(RIGHT($O90,1)="*",$M90,IF(RIGHT($O91,1)="*",$M91,"")))) ->  | R98: =IF($O90>$O91,$N90,IF($O91>$O90,$N91,IF(RIGHT($O90,1)="*",$N90,IF(RIGHT($O91,1)="*",$N91,"")))) -> 
P99: =R123 -> 42 | Q99: =IF($O104>$O105,$M104,IF($O105>$O104,$M105,IF(RIGHT($O104,1)="*",$M104,IF(RIGHT($O105,1)="*",$M105,"")))) ->  | R99: =IF($O104>$O105,$N104,IF($O105>$O104,$N105,IF(RIGHT($O104,1)="*",$N104,IF(RIGHT($O105,1)="*",$N105,"")))) -> 
A100: 15 | B100: =E160 -> 55A | C100: =C_Quali!H24 -> 518 | D100: =C_Quali!C24 -> Url Marsell | E100: =C_Quali!E24 -> ST | F100: =C_Quali!D24 -> UBSC Artemis Steiermark
A101: 42 | B101: =E161 -> 55B | C101: =C_Quali!H51 -> 385 | D101: =C_Quali!C51 -> Molnar Jonas | E101: =C_Quali!E51 -> NÖ | F101: =C_Quali!D51 -> BSC Fischamend
H102: =J138 -> 44A | I102: =IF($G100>$G101,$D100,IF($G101>$G100,$D101,IF(RIGHT($G100,1)="*",$D100,IF(RIGHT($G101,1)="*",$D101,"")))) ->  | J102: =IF($G100>$G101,$E100,IF($G101>$G100,$E101,IF(RIGHT($G100,1)="*",$E100,IF(RIGHT($G101,1)="*",$E101,"")))) -> 
H103: =J139 -> 44B | I103: =IF($G104>$G105,$D104,IF($G105>$G104,$D105,IF(RIGHT($G104,1)="*",$D104,IF(RIGHT($G105,1)="*",$D105,"")))) ->  | J103: =IF($G104>$G105,$E104,IF($G105>$G104,$E105,IF(RIGHT($G104,1)="*",$E104,IF(RIGHT($G105,1)="*",$E105,"")))) -> 
A104: 39 | B104: =E162 -> 56A | C104: =C_Quali!H48 -> 395 | D104: =C_Quali!C48 -> Drapela Norbert | E104: =C_Quali!E48 -> NÖ | F104: =C_Quali!D48 -> BSC Stockerau | L104: =N130 -> 47 | M104: =IF($K102>$K103,$I102,IF($K103>$K102,$I103,IF(RIGHT($K102,1)="*",$I102,IF(RIGHT($K103,1)="*",$I103,"")))) ->  | N104: =IF($K102>$K103,$J102,IF($K103>$K102,$J103,IF(RIGHT($K102,1)="*",$J102,IF(RIGHT($K103,1)="*",$J103,"")))) ->  | Q104: 1/4 Finale
A105: 18 | B105: =E163 -> 56B | C105: =C_Quali!H27 -> 515 | D105: =C_Quali!C27 -> Postl Markus | E105: =C_Quali!E27 -> ST | F105: =C_Quali!D27 -> BC Union Graz Seiersberg | L105: =N131 -> 48 | M105: =I107 -> Kanduth Wolfgang | N105: =J107 -> ST
I107: =D108 -> Kanduth Wolfgang | J107: =E108 -> ST
A108: 2 | C108: =C_Quali!H11 -> 531 | D108: =C_Quali!C11 -> Kanduth Wolfgang | E108: =C_Quali!E11 -> ST | F108: =C_Quali!D11 -> BC Wildon Weitendorf
M109: 1/8 Elimination | Q109: =Select!C18 -> Recurve Herren
C110: 1/24 Elimination | I110: 1/12 Elimination
D115: Scheibe: | I115: Scheibe:
C116: 1 | D116: =CONCATENATE($I$115," ",E116) -> Scheibe: 33A | E116: 33A | H116: 1 | I116: =CONCATENATE($I$115," ",J116) -> Scheibe: 33A | J116: 33A | L116: 1 | M116: =CONCATENATE($I$115," ",N116) -> Scheibe: 33 | N116: 33 | P116: 1 | Q116: =CONCATENATE($I$115," ",R116) -> Scheibe: 35 | R116: 35 | T116: 1 | U116: =CONCATENATE($I$115," ",V116) -> Scheibe: 35 | V116: 35 | X116: 1 | Y116: =CONCATENATE($I$115," ",Z116) -> Scheibe: 1 | Z116: 1
D117: Scheibe: 33B | E117: =IF(RIGHT(E116,1)="A",CONCATENATE(LEFT(E116,LEN(E116)-1),"B"),E116+1) -> 33B | I117: Scheibe: 33B | J117: =IF(RIGHT(J116,1)="A",CONCATENATE(LEFT(J116,LEN(J116)-1),"B"),J116+1) -> 33B | M117: Scheibe: 34 | N117: =IF(RIGHT(N116,1)="A",CONCATENATE(LEFT(N116,LEN(N116)-1),"B"),N116+1) -> 34 | Q117: Scheibe: 36 | R117: =IF(RIGHT(R116,1)="A",CONCATENATE(LEFT(R116,LEN(R116)-1),"B"),R116+1) -> 36 | U117: =CONCATENATE($I$115," ",V117) -> Scheibe: 36 | V117: =IF(RIGHT(V116,1)="A",CONCATENATE(LEFT(V116,LEN(V116)-1),"B"),V116+1) -> 36 | Y117: =CONCATENATE($I$115," ",Z117) -> Scheibe: 2 | Z117: =IF(RIGHT(Z116,1)="A",CONCATENATE(LEFT(Z116,LEN(Z116)-1),"B"),Z116+1) -> 2
C118: =C116+1 -> 2 | D118: Scheibe: 34A | E118: =IF(RIGHT(E117,1)="B",CONCATENATE(LEFT(E117,LEN(E117)-1)+1,"A"),E117+1) -> 34A | H118: =H116+1 -> 2 | I118: Scheibe: 34A | J118: =IF(RIGHT(J117,1)="B",CONCATENATE(LEFT(J117,LEN(J117)-1)+1,"A"),J117+1) -> 34A | L118: =L116+1 -> 2 | M118: Scheibe: 35 | N118: =IF(RIGHT(N117,1)="B",CONCATENATE(LEFT(N117,LEN(N117)-1)+1,"A"),N117+1) -> 35 | P118: =P116+1 -> 2 | Q118: Scheibe: 37 | R118: =IF(RIGHT(R117,1)="B",CONCATENATE(LEFT(R117,LEN(R117)-1)+1,"A"),R117+1) -> 37 | T118: =T116+1 -> 2 | U118: =CONCATENATE($I$115," ",V118) -> Scheibe: 37 | V118: =IF(RIGHT(V117,1)="B",CONCATENATE(LEFT(V117,LEN(V117)-1)+1,"A"),V117+1) -> 37 | X118: =X116+1 -> 2 | Y118: =CONCATENATE($I$115," ",Z118) -> Scheibe: 1 | Z118: 1
D119: Scheibe: 34B | E119: =IF(RIGHT(E118,1)="A",CONCATENATE(LEFT(E118,LEN(E118)-1),"B"),E118+1) -> 34B | I119: Scheibe: 34B | J119: =IF(RIGHT(J118,1)="A",CONCATENATE(LEFT(J118,LEN(J118)-1),"B"),J118+1) -> 34B | M119: Scheibe: 36 | N119: =IF(RIGHT(N118,1)="A",CONCATENATE(LEFT(N118,LEN(N118)-1),"B"),N118+1) -> 36 | Q119: Scheibe: 38 | R119: =IF(RIGHT(R118,1)="A",CONCATENATE(LEFT(R118,LEN(R118)-1),"B"),R118+1) -> 38 | U119: =CONCATENATE($I$115," ",V119) -> Scheibe: 38 | V119: =IF(RIGHT(V118,1)="A",CONCATENATE(LEFT(V118,LEN(V118)-1),"B"),V118+1) -> 38 | Y119: =CONCATENATE($I$115," ",Z119) -> Scheibe: 2 | Z119: =IF(RIGHT(Z118,1)="A",CONCATENATE(LEFT(Z118,LEN(Z118)-1),"B"),Z118+1) -> 2
C120: =C118+1 -> 3 | D120: Scheibe: 35A | E120: =IF(RIGHT(E119,1)="B",CONCATENATE(LEFT(E119,LEN(E119)-1)+1,"A"),E119+1) -> 35A | H120: =H118+1 -> 3 | I120: Scheibe: 35A | J120: =IF(RIGHT(J119,1)="B",CONCATENATE(LEFT(J119,LEN(J119)-1)+1,"A"),J119+1) -> 35A | L120: =L118+1 -> 3 | M120: Scheibe: 37 | N120: =IF(RIGHT(N119,1)="B",CONCATENATE(LEFT(N119,LEN(N119)-1)+1,"A"),N119+1) -> 37 | P120: =P118+1 -> 3 | Q120: Scheibe: 39 | R120: =IF(RIGHT(R119,1)="B",CONCATENATE(LEFT(R119,LEN(R119)-1)+1,"A"),R119+1) -> 39
D121: Scheibe: 35B | E121: =IF(RIGHT(E120,1)="A",CONCATENATE(LEFT(E120,LEN(E120)-1),"B"),E120+1) -> 35B | I121: Scheibe: 35B | J121: =IF(RIGHT(J120,1)="A",CONCATENATE(LEFT(J120,LEN(J120)-1),"B"),J120+1) -> 35B | M121: Scheibe: 38 | N121: =IF(RIGHT(N120,1)="A",CONCATENATE(LEFT(N120,LEN(N120)-1),"B"),N120+1) -> 38 | Q121: Scheibe: 40 | R121: =IF(RIGHT(R120,1)="A",CONCATENATE(LEFT(R120,LEN(R120)-1),"B"),R120+1) -> 40
C122: =C120+1 -> 4 | D122: Scheibe: 36A | E122: =IF(RIGHT(E121,1)="B",CONCATENATE(LEFT(E121,LEN(E121)-1)+1,"A"),E121+1) -> 36A | H122: =H120+1 -> 4 | I122: Scheibe: 36A | J122: =IF(RIGHT(J121,1)="B",CONCATENATE(LEFT(J121,LEN(J121)-1)+1,"A"),J121+1) -> 36A | L122: =L120+1 -> 4 | M122: Scheibe: 39 | N122: =IF(RIGHT(N121,1)="B",CONCATENATE(LEFT(N121,LEN(N121)-1)+1,"A"),N121+1) -> 39 | P122: =P120+1 -> 4 | Q122: Scheibe: 41 | R122: =IF(RIGHT(R121,1)="B",CONCATENATE(LEFT(R121,LEN(R121)-1)+1,"A"),R121+1) -> 41
D123: Scheibe: 36B | E123: =IF(RIGHT(E122,1)="A",CONCATENATE(LEFT(E122,LEN(E122)-1),"B"),E122+1) -> 36B | I123: Scheibe: 36B | J123: =IF(RIGHT(J122,1)="A",CONCATENATE(LEFT(J122,LEN(J122)-1),"B"),J122+1) -> 36B | M123: Scheibe: 40 | N123: =IF(RIGHT(N122,1)="A",CONCATENATE(LEFT(N122,LEN(N122)-1),"B"),N122+1) -> 40 | Q123: Scheibe: 42 | R123: =IF(RIGHT(R122,1)="A",CONCATENATE(LEFT(R122,LEN(R122)-1),"B"),R122+1) -> 42
C124: =C122+1 -> 5 | D124: Scheibe: 37A | E124: =IF(RIGHT(E123,1)="B",CONCATENATE(LEFT(E123,LEN(E123)-1)+1,"A"),E123+1) -> 37A | H124: =H122+1 -> 5 | I124: Scheibe: 37A | J124: =IF(RIGHT(J123,1)="B",CONCATENATE(LEFT(J123,LEN(J123)-1)+1,"A"),J123+1) -> 37A | L124: =L122+1 -> 5 | M124: Scheibe: 41 | N124: =IF(RIGHT(N123,1)="B",CONCATENATE(LEFT(N123,LEN(N123)-1)+1,"A"),N123+1) -> 41
D125: Scheibe: 37B | E125: =IF(RIGHT(E124,1)="A",CONCATENATE(LEFT(E124,LEN(E124)-1),"B"),E124+1) -> 37B | I125: Scheibe: 37B | J125: =IF(RIGHT(J124,1)="A",CONCATENATE(LEFT(J124,LEN(J124)-1),"B"),J124+1) -> 37B | M125: Scheibe: 42 | N125: =IF(RIGHT(N124,1)="A",CONCATENATE(LEFT(N124,LEN(N124)-1),"B"),N124+1) -> 42
C126: =C124+1 -> 6 | D126: Scheibe: 38A | E126: =IF(RIGHT(E125,1)="B",CONCATENATE(LEFT(E125,LEN(E125)-1)+1,"A"),E125+1) -> 38A | H126: =H124+1 -> 6 | I126: Scheibe: 38A | J126: =IF(RIGHT(J125,1)="B",CONCATENATE(LEFT(J125,LEN(J125)-1)+1,"A"),J125+1) -> 38A | L126: =L124+1 -> 6 | M126: Scheibe: 43 | N126: =IF(RIGHT(N125,1)="B",CONCATENATE(LEFT(N125,LEN(N125)-1)+1,"A"),N125+1) -> 43
D127: Scheibe: 38B | E127: =IF(RIGHT(E126,1)="A",CONCATENATE(LEFT(E126,LEN(E126)-1),"B"),E126+1) -> 38B | I127: Scheibe: 38B | J127: =IF(RIGHT(J126,1)="A",CONCATENATE(LEFT(J126,LEN(J126)-1),"B"),J126+1) -> 38B | M127: Scheibe: 44 | N127: =IF(RIGHT(N126,1)="A",CONCATENATE(LEFT(N126,LEN(N126)-1),"B"),N126+1) -> 44
C128: =C126+1 -> 7 | D128: Scheibe: 39A | E128: =IF(RIGHT(E127,1)="B",CONCATENATE(LEFT(E127,LEN(E127)-1)+1,"A"),E127+1) -> 39A | H128: =H126+1 -> 7 | I128: Scheibe: 39A | J128: =IF(RIGHT(J127,1)="B",CONCATENATE(LEFT(J127,LEN(J127)-1)+1,"A"),J127+1) -> 39A | L128: =L126+1 -> 7 | M128: Scheibe: 45 | N128: =IF(RIGHT(N127,1)="B",CONCATENATE(LEFT(N127,LEN(N127)-1)+1,"A"),N127+1) -> 45
D129: Scheibe: 39B | E129: =IF(RIGHT(E128,1)="A",CONCATENATE(LEFT(E128,LEN(E128)-1),"B"),E128+1) -> 39B | I129: Scheibe: 39B | J129: =IF(RIGHT(J128,1)="A",CONCATENATE(LEFT(J128,LEN(J128)-1),"B"),J128+1) -> 39B | M129: Scheibe: 46 | N129: =IF(RIGHT(N128,1)="A",CONCATENATE(LEFT(N128,LEN(N128)-1),"B"),N128+1) -> 46
C130: =C128+1 -> 8 | D130: Scheibe: 40A | E130: =IF(RIGHT(E129,1)="B",CONCATENATE(LEFT(E129,LEN(E129)-1)+1,"A"),E129+1) -> 40A | H130: =H128+1 -> 8 | I130: Scheibe: 40A | J130: =IF(RIGHT(J129,1)="B",CONCATENATE(LEFT(J129,LEN(J129)-1)+1,"A"),J129+1) -> 40A | L130: =L128+1 -> 8 | M130: Scheibe: 47 | N130: =IF(RIGHT(N129,1)="B",CONCATENATE(LEFT(N129,LEN(N129)-1)+1,"A"),N129+1) -> 47
D131: Scheibe: 40B | E131: =IF(RIGHT(E130,1)="A",CONCATENATE(LEFT(E130,LEN(E130)-1),"B"),E130+1) -> 40B | I131: Scheibe: 40B | J131: =IF(RIGHT(J130,1)="A",CONCATENATE(LEFT(J130,LEN(J130)-1),"B"),J130+1) -> 40B | M131: Scheibe: 48 | N131: =IF(RIGHT(N130,1)="A",CONCATENATE(LEFT(N130,LEN(N130)-1),"B"),N130+1) -> 48
C132: =C130+1 -> 9 | D132: Scheibe: 41A | E132: =IF(RIGHT(E131,1)="B",CONCATENATE(LEFT(E131,LEN(E131)-1)+1,"A"),E131+1) -> 41A | H132: =H130+1 -> 9 | I132: Scheibe: 41A | J132: =IF(RIGHT(J131,1)="B",CONCATENATE(LEFT(J131,LEN(J131)-1)+1,"A"),J131+1) -> 41A
D133: Scheibe: 41B | E133: =IF(RIGHT(E132,1)="A",CONCATENATE(LEFT(E132,LEN(E132)-1),"B"),E132+1) -> 41B | I133: Scheibe: 41B | J133: =IF(RIGHT(J132,1)="A",CONCATENATE(LEFT(J132,LEN(J132)-1),"B"),J132+1) -> 41B
C134: =C132+1 -> 10 | D134: Scheibe: 42A | E134: =IF(RIGHT(E133,1)="B",CONCATENATE(LEFT(E133,LEN(E133)-1)+1,"A"),E133+1) -> 42A | H134: =H132+1 -> 10 | I134: Scheibe: 42A | J134: =IF(RIGHT(J133,1)="B",CONCATENATE(LEFT(J133,LEN(J133)-1)+1,"A"),J133+1) -> 42A
D135: Scheibe: 42B | E135: =IF(RIGHT(E134,1)="A",CONCATENATE(LEFT(E134,LEN(E134)-1),"B"),E134+1) -> 42B | I135: Scheibe: 42B | J135: =IF(RIGHT(J134,1)="A",CONCATENATE(LEFT(J134,LEN(J134)-1),"B"),J134+1) -> 42B
C136: =C134+1 -> 11 | D136: Scheibe: 43A | E136: =IF(RIGHT(E135,1)="B",CONCATENATE(LEFT(E135,LEN(E135)-1)+1,"A"),E135+1) -> 43A | H136: =H134+1 -> 11 | I136: Scheibe: 43A | J136: =IF(RIGHT(J135,1)="B",CONCATENATE(LEFT(J135,LEN(J135)-1)+1,"A"),J135+1) -> 43A
D137: Scheibe: 43B | E137: =IF(RIGHT(E136,1)="A",CONCATENATE(LEFT(E136,LEN(E136)-1),"B"),E136+1) -> 43B | I137: Scheibe: 43B | J137: =IF(RIGHT(J136,1)="A",CONCATENATE(LEFT(J136,LEN(J136)-1),"B"),J136+1) -> 43B
C138: =C136+1 -> 12 | D138: Scheibe: 44A | E138: =IF(RIGHT(E137,1)="B",CONCATENATE(LEFT(E137,LEN(E137)-1)+1,"A"),E137+1) -> 44A | H138: =H136+1 -> 12 | I138: Scheibe: 44A | J138: =IF(RIGHT(J137,1)="B",CONCATENATE(LEFT(J137,LEN(J137)-1)+1,"A"),J137+1) -> 44A
D139: Scheibe: 44B | E139: =IF(RIGHT(E138,1)="A",CONCATENATE(LEFT(E138,LEN(E138)-1),"B"),E138+1) -> 44B | I139: Scheibe: 44B | J139: =IF(RIGHT(J138,1)="A",CONCATENATE(LEFT(J138,LEN(J138)-1),"B"),J138+1) -> 44B
C140: =C138+1 -> 13 | D140: Scheibe: 45A | E140: =IF(RIGHT(E139,1)="B",CONCATENATE(LEFT(E139,LEN(E139)-1)+1,"A"),E139+1) -> 45A | H140: =H138+1 -> 13 | I140: Scheibe: 45A | J140: =IF(RIGHT(J139,1)="B",CONCATENATE(LEFT(J139,LEN(J139)-1)+1,"A"),J139+1) -> 45A
D141: Scheibe: 45B | E141: =IF(RIGHT(E140,1)="A",CONCATENATE(LEFT(E140,LEN(E140)-1),"B"),E140+1) -> 45B | I141: Scheibe: 45B | J141: =IF(RIGHT(J140,1)="A",CONCATENATE(LEFT(J140,LEN(J140)-1),"B"),J140+1) -> 45B
C142: =C140+1 -> 14 | D142: Scheibe: 46A | E142: =IF(RIGHT(E141,1)="B",CONCATENATE(LEFT(E141,LEN(E141)-1)+1,"A"),E141+1) -> 46A | H142: =H140+1 -> 14 | I142: Scheibe: 46A | J142: =IF(RIGHT(J141,1)="B",CONCATENATE(LEFT(J141,LEN(J141)-1)+1,"A"),J141+1) -> 46A
D143: Scheibe: 46B | E143: =IF(RIGHT(E142,1)="A",CONCATENATE(LEFT(E142,LEN(E142)-1),"B"),E142+1) -> 46B | I143: Scheibe: 46B | J143: =IF(RIGHT(J142,1)="A",CONCATENATE(LEFT(J142,LEN(J142)-1),"B"),J142+1) -> 46B
C144: =C142+1 -> 15 | D144: Scheibe: 47A | E144: =IF(RIGHT(E143,1)="B",CONCATENATE(LEFT(E143,LEN(E143)-1)+1,"A"),E143+1) -> 47A | H144: =H142+1 -> 15 | I144: Scheibe: 47A | J144: =IF(RIGHT(J143,1)="B",CONCATENATE(LEFT(J143,LEN(J143)-1)+1,"A"),J143+1) -> 47A
D145: Scheibe: 47B | E145: =IF(RIGHT(E144,1)="A",CONCATENATE(LEFT(E144,LEN(E144)-1),"B"),E144+1) -> 47B | I145: Scheibe: 47B | J145: =IF(RIGHT(J144,1)="A",CONCATENATE(LEFT(J144,LEN(J144)-1),"B"),J144+1) -> 47B
C146: =C144+1 -> 16 | D146: Scheibe: 48A | E146: =IF(RIGHT(E145,1)="B",CONCATENATE(LEFT(E145,LEN(E145)-1)+1,"A"),E145+1) -> 48A | H146: =H144+1 -> 16 | I146: Scheibe: 48A | J146: =IF(RIGHT(J145,1)="B",CONCATENATE(LEFT(J145,LEN(J145)-1)+1,"A"),J145+1) -> 48A
D147: Scheibe: 48B | E147: =IF(RIGHT(E146,1)="A",CONCATENATE(LEFT(E146,LEN(E146)-1),"B"),E146+1) -> 48B | I147: Scheibe: 48B | J147: =IF(RIGHT(J146,1)="A",CONCATENATE(LEFT(J146,LEN(J146)-1),"B"),J146+1) -> 48B
C148: =C146+1 -> 17 | D148: Scheibe: 49A | E148: =IF(RIGHT(E147,1)="B",CONCATENATE(LEFT(E147,LEN(E147)-1)+1,"A"),E147+1) -> 49A
D149: Scheibe: 49B | E149: =IF(RIGHT(E148,1)="A",CONCATENATE(LEFT(E148,LEN(E148)-1),"B"),E148+1) -> 49B
C150: =C148+1 -> 18 | D150: Scheibe: 50A | E150: =IF(RIGHT(E149,1)="B",CONCATENATE(LEFT(E149,LEN(E149)-1)+1,"A"),E149+1) -> 50A
D151: Scheibe: 50B | E151: =IF(RIGHT(E150,1)="A",CONCATENATE(LEFT(E150,LEN(E150)-1),"B"),E150+1) -> 50B
C152: =C150+1 -> 19 | D152: Scheibe: 51A | E152: =IF(RIGHT(E151,1)="B",CONCATENATE(LEFT(E151,LEN(E151)-1)+1,"A"),E151+1) -> 51A
D153: Scheibe: 51B | E153: =IF(RIGHT(E152,1)="A",CONCATENATE(LEFT(E152,LEN(E152)-1),"B"),E152+1) -> 51B
C154: =C152+1 -> 20 | D154: Scheibe: 52A | E154: =IF(RIGHT(E153,1)="B",CONCATENATE(LEFT(E153,LEN(E153)-1)+1,"A"),E153+1) -> 52A
D155: Scheibe: 52B | E155: =IF(RIGHT(E154,1)="A",CONCATENATE(LEFT(E154,LEN(E154)-1),"B"),E154+1) -> 52B
C156: =C154+1 -> 21 | D156: Scheibe: 53A | E156: =IF(RIGHT(E155,1)="B",CONCATENATE(LEFT(E155,LEN(E155)-1)+1,"A"),E155+1) -> 53A
D157: Scheibe: 53B | E157: =IF(RIGHT(E156,1)="A",CONCATENATE(LEFT(E156,LEN(E156)-1),"B"),E156+1) -> 53B
C158: =C156+1 -> 22 | D158: Scheibe: 54A | E158: =IF(RIGHT(E157,1)="B",CONCATENATE(LEFT(E157,LEN(E157)-1)+1,"A"),E157+1) -> 54A
D159: Scheibe: 54B | E159: =IF(RIGHT(E158,1)="A",CONCATENATE(LEFT(E158,LEN(E158)-1),"B"),E158+1) -> 54B
C160: =C158+1 -> 23 | D160: Scheibe: 55A | E160: =IF(RIGHT(E159,1)="B",CONCATENATE(LEFT(E159,LEN(E159)-1)+1,"A"),E159+1) -> 55A
D161: Scheibe: 55B | E161: =IF(RIGHT(E160,1)="A",CONCATENATE(LEFT(E160,LEN(E160)-1),"B"),E160+1) -> 55B
C162: =C160+1 -> 24 | D162: Scheibe: 56A | E162: =IF(RIGHT(E161,1)="B",CONCATENATE(LEFT(E161,LEN(E161)-1)+1,"A"),E161+1) -> 56A
D163: Scheibe: 56B | E163: =IF(RIGHT(E162,1)="A",CONCATENATE(LEFT(E162,LEN(E162)-1),"B"),E162+1) -> 56B

Sheet C52 (hidden)
I2: 1/24 Elimination | M2: Freilos | Q2: 1/12 Elimination | U2: Freilos
J3: 1 | K3: 2 | L3: 3 | M3: Summe | N3: Ges. | R3: 1 | S3: 2 | T3: 3 | U3: Summe | V3: Ges.
A4: =Select!$C$12 -> Demoturnier | I4: 1 | Q4: 1
A5: Veranstaltung | I5: 2 | Q5: 2
A6: =Select!$C$13 -> 1. April 2019 | I6: 3 | Q6: 3
A7: Datum | I7: 4 | Q7: 4
A8: ='C52_Baum'!$D$3 -> Steinwender Alois | I8: 5 | Q8: 5
A9: Name | I9: wenn erforderlich | Q9: wenn erforderlich
A10: ='C52_Baum'!$F$3 -> Bogensport Lungau | I10: Stechen | Q10: Stechen
A11: Verein | N11: gewonnen | V11: gewonnen
A12: =Select!$C$20 -> Compound Herren | I12: Schütze: | N12: verloren | Q12: Schütze: | V12: verloren
A13: Bogenklasse
I14: Gegner: | K14: Name: | Q14: Gegner: | S14: Name:
K15: Unterschrift: | S15: Unterschrift:
A18: 1/8 Elimination | E18: ='C52_Baum'!$M$116 -> Scheibe: 33 | I18: 1/4 Finale | M18: ='C52_Baum'!$Q$116 -> Scheibe: 35 | Q18: 1/2 Finale | U18: ='C52_Baum'!$U$116 -> Scheibe: 35
B19: 1 | C19: 2 | D19: 3 | E19: Summe | F19: Ges. | J19: 1 | K19: 2 | L19: 3 | M19: Summe | N19: Ges. | R19: 1 | S19: 2 | T19: 3 | U19: Summe | V19: Ges.
A20: 1 | I20: 1 | Q20: 1
A21: 2 | I21: 2 | Q21: 2
A22: 3 | I22: 3 | Q22: 3
A23: 4 | I23: 4 | Q23: 4
A24: 5 | I24: 5 | Q24: 5
A25: wenn erforderlich | I25: wenn erforderlich | Q25: wenn erforderlich
A26: Stechen | I26: Stechen | Q26: Stechen
F27: gewonnen | N27: gewonnen | V27: gewonnen
A28: Schütze: | F28: verloren | I28: Schütze: | N28: verloren | Q28: Schütze: | V28: verloren
A30: Gegner: | C30: Name: | I30: Gegner: | K30: Name: | Q30: Gegner: | S30: Name:
C31: Unterschrift: | K31: Unterschrift: | S31: Unterschrift:
I34: 1/24 Elimination | M34: ='C52_Baum'!$D$116 -> Scheibe: 33A | Q34: 1/12 Elimination | U34: ='C52_Baum'!$I$116 -> Scheibe: 33A
J35: 1 | K35: 2 | L35: 3 | M35: Summe | N35: Ges. | R35: 1 | S35: 2 | T35: 3 | U35: Summe | V35: Ges.
A36: =Select!$C$12 -> Demoturnier | I36: 1 | Q36: 1
A37: Veranstaltung | I37: 2 | Q37: 2
A38: =Select!$C$13 -> 1. April 2019 | I38: 3 | Q38: 3
A39: Datum | I39: 4 | Q39: 4
A40: ='C52_Baum'!$D$6 -> Kolm Martin | I40: 5 | Q40: 5
A41: Name | I41: wenn erforderlich | Q41: wenn erforderlich
A42: ='C52_Baum'!$F$6 -> WBZ Union Zwettl | I42: Stechen | Q42: Stechen
A43: Verein | N43: gewonnen | V43: gewonnen
A44: =Select!$C$20 -> Compound Herren | I44: Schütze: | N44: verloren | Q44: Schütze: | V44: verloren
A45: Bogenklasse
I46: Gegner: | K46: Name: | Q46: Gegner: | S46: Name:
K47: Unterschrift: | S47: Unterschrift:
A50: 1/8 Elimination | E50: ='C52_Baum'!$M$117 -> Scheibe: 34 | I50: 1/4 Finale | M50: ='C52_Baum'!$Q$116 -> Scheibe: 35 | Q50: 1/2 Finale | U50: ='C52_Baum'!$U$116 -> Scheibe: 35
B51: 1 | C51: 2 | D51: 3 | E51: Summe | F51: Ges. | J51: 1 | K51: 2 | L51: 3 | M51: Summe | N51: Ges. | R51: 1 | S51: 2 | T51: 3 | U51: Summe | V51: Ges.
A52: 1 | I52: 1 | Q52: 1
A53: 2 | I53: 2 | Q53: 2
A54: 3 | I54: 3 | Q54: 3
A55: 4 | I55: 4 | Q55: 4
A56: 5 | I56: 5 | Q56: 5
A57: wenn erforderlich | I57: wenn erforderlich | Q57: wenn erforderlich
A58: Stechen | I58: Stechen | Q58: Stechen
F59: gewonnen | N59: gewonnen | V59: gewonnen
A60: Schütze: | F60: verloren | I60: Schütze: | N60: verloren | Q60: Schütze: | V60: verloren
A62: Gegner: | C62: Name: | I62: Gegner: | K62: Name: | Q62: Gegner: | S62: Name:
C63: Unterschrift: | K63: Unterschrift: | S63: Unterschrift:
I66: 1/24 Elimination | M66: ='C52_Baum'!$D$117 -> Scheibe: 33B | Q66: 1/12 Elimination | U66: ='C52_Baum'!$I$116 -> Scheibe: 33A
J67: 1 | K67: 2 | L67: 3 | M67: Summe | N67: Ges. | R67: 1 | S67: 2 | T67: 3 | U67: Summe | V67: Ges.
A68: =Select!$C$12 -> Demoturnier | I68: 1 | Q68: 1
A69: Veranstaltung | I69: 2 | Q69: 2
A70: =Select!$C$13 -> 1. April 2019 | I70: 3 | Q70: 3
A71: Datum | I71: 4 | Q71: 4
A72: ='C52_Baum'!$D$7 -> Brandtner Helmut | I72: 5 | Q72: 5
A73: Name | I73: wenn erforderlich | Q73: wenn erforderlich
A74: ='C52_Baum'!$F$7 -> UBC Diana NÖ | I74: Stechen | Q74: Stechen
A75: Verein | N75: gewonnen | V75: gewonnen
A76: =Select!$C$20 -> Compound Herren | I76: Schütze: | N76: verloren | Q76: Schütze: | V76: verloren
A77: Bogenklasse
I78: Gegner: | K78: Name: | Q78: Gegner: | S78: Name:
K79: Unterschrift: | S79: Unterschrift:
A82: 1/8 Elimination | E82: ='C52_Baum'!$M$117 -> Scheibe: 34 | I82: 1/4 Finale | M82: ='C52_Baum'!$Q$116 -> Scheibe: 35 | Q82: 1/2 Finale | U82: ='C52_Baum'!$U$116 -> Scheibe: 35
B83: 1 | C83: 2 | D83: 3 | E83: Summe | F83: Ges. | J83: 1 | K83: 2 | L83: 3 | M83: Summe | N83: Ges. | R83: 1 | S83: 2 | T83: 3 | U83: Summe | V83: Ges.
A84: 1 | I84: 1 | Q84: 1
A85: 2 | I85: 2 | Q85: 2
A86: 3 | I86: 3 | Q86: 3
A87: 4 | I87: 4 | Q87: 4
A88: 5 | I88: 5 | Q88: 5
A89: wenn erforderlich | I89: wenn erforderlich | Q89: wenn erforderlich
A90: Stechen | I90: Stechen | Q90: Stechen
F91: gewonnen | N91: gewonnen | V91: gewonnen
A92: Schütze: | F92: verloren | I92: Schütze: | N92: verloren | Q92: Schütze: | V92: verloren
A94: Gegner: | C94: Name: | I94: Gegner: | K94: Name: | Q94: Gegner: | S94: Name:
C95: Unterschrift: | K95: Unterschrift: | S95: Unterschrift:
I98: 1/24 Elimination | M98: ='C52_Baum'!$D$118 -> Scheibe: 34A | Q98: 1/12 Elimination | U98: ='C52_Baum'!$I$117 -> Scheibe: 33B
J99: 1 | K99: 2 | L99: 3 | M99: Summe | N99: Ges. | R99: 1 | S99: 2 | T99: 3 | U99: Summe | V99: Ges.
A100: =Select!$C$12 -> Demoturnier | I100: 1 | Q100: 1
A101: Veranstaltung | I101: 2 | Q101: 2
A102: =Select!$C$13 -> 1. April 2019 | I102: 3 | Q102: 3
A103: Datum | I103: 4 | Q103: 4
A104: ='C52_Baum'!$D$10 -> Neumann Markus | I104: 5 | Q104: 5
A105: Name | I105: wenn erforderlich | Q105: wenn erforderlich
A106: ='C52_Baum'!$F$10 -> BSC Fischamend | I106: Stechen | Q106: Stechen
A107: Verein | N107: gewonnen | V107: gewonnen
A108: =Select!$C$20 -> Compound Herren | I108: Schütze: | N108: verloren | Q108: Schütze: | V108: verloren
A109: Bogenklasse
I110: Gegner: | K110: Name: | Q110: Gegner: | S110: Name:
K111: Unterschrift: | S111: Unterschrift:
A114: 1/8 Elimination | E114: ='C52_Baum'!$M$117 -> Scheibe: 34 | I114: 1/4 Finale | M114: ='C52_Baum'!$Q$116 -> Scheibe: 35 | Q114: 1/2 Finale | U114: ='C52_Baum'!$U$116 -> Scheibe: 35
B115: 1 | C115: 2 | D115: 3 | E115: Summe | F115: Ges. | J115: 1 | K115: 2 | L115: 3 | M115: Summe | N115: Ges. | R115: 1 | S115: 2 | T115: 3 | U115: Summe | V115: Ges.
A116: 1 | I116: 1 | Q116: 1
A117: 2 | I117: 2 | Q117: 2
A118: 3 | I118: 3 | Q118: 3
A119: 4 | I119: 4 | Q119: 4
A120: 5 | I120: 5 | Q120: 5
A121: wenn erforderlich | I121: wenn erforderlich | Q121: wenn erforderlich
A122: Stechen | I122: Stechen | Q122: Stechen
F123: gewonnen | N123: gewonnen | V123: gewonnen
A124: Schütze: | F124: verloren | I124: Schütze: | N124: verloren | Q124: Schütze: | V124: verloren
A126: Gegner: | C126: Name: | I126: Gegner: | K126: Name: | Q126: Gegner: | S126: Name:
C127: Unterschrift: | K127: Unterschrift: | S127: Unterschrift:
I130: 1/24 Elimination | M130: ='C52_Baum'!$D$119 -> Scheibe: 34B | Q130: 1/12 Elimination | U130: ='C52_Baum'!$I$117 -> Scheibe: 33B
J131: 1 | K131: 2 | L131: 3 | M131: Summe | N131: Ges. | R131: 1 | S131: 2 | T131: 3 | U131: Summe | V131: Ges.
A132: =Select!$C$12 -> Demoturnier | I132: 1 | Q132: 1
A133: Veranstaltung | I133: 2 | Q133: 2
A134: =Select!$C$13 -> 1. April 2019 | I134: 3 | Q134: 3
A135: Datum | I135: 4 | Q135: 4
A136: ='C52_Baum'!$D$11 -> Bucher Martin | I136: 5 | Q136: 5
A137: Name | I137: wenn erforderlich | Q137: wenn erforderlich
A138: ='C52_Baum'!$F$11 -> LH Graz | I138: Stechen | Q138: Stechen
A139: Verein | N139: gewonnen | V139: gewonnen
A140: =Select!$C$20 -> Compound Herren | I140: Schütze: | N140: verloren | Q140: Schütze: | V140: verloren
A141: Bogenklasse
I142: Gegner: | K142: Name: | Q142: Gegner: | S142: Name:
K143: Unterschrift: | S143: Unterschrift:
A146: 1/8 Elimination | E146: ='C52_Baum'!$M$117 -> Scheibe: 34 | I146: 1/4 Finale | M146: ='C52_Baum'!$Q$116 -> Scheibe: 35 | Q146: 1/2 Finale | U146: ='C52_Baum'!$U$116 -> Scheibe: 35
B147: 1 | C147: 2 | D147: 3 | E147: Summe | F147: Ges. | J147: 1 | K147: 2 | L147: 3 | M147: Summe | N147: Ges. | R147: 1 | S147: 2 | T147: 3 | U147: Summe | V147: Ges.
A148: 1 | I148: 1 | Q148: 1
A149: 2 | I149: 2 | Q149: 2
A150: 3 | I150: 3 | Q150: 3
A151: 4 | I151: 4 | Q151: 4
A152: 5 | I152: 5 | Q152: 5
A153: wenn erforderlich | I153: wenn erforderlich | Q153: wenn erforderlich
A154: Stechen | I154: Stechen | Q154: Stechen
F155: gewonnen | N155: gewonnen | V155: gewonnen
A156: Schütze: | F156: verloren | I156: Schütze: | N156: verloren | Q156: Schütze: | V156: verloren
A158: Gegner: | C158: Name: | I158: Gegner: | K158: Name: | Q158: Gegner: | S158: Name:
C159: Unterschrift: | K159: Unterschrift: | S159: Unterschrift:
I162: 1/24 Elimination | M162: ='C52_Baum'!$D$120 -> Scheibe: 35A | Q162: 1/12 Elimination | U162: ='C52_Baum'!$I$118 -> Scheibe: 34A
J163: 1 | K163: 2 | L163: 3 | M163: Summe | N163: Ges. | R163: 1 | S163: 2 | T163: 3 | U163: Summe | V163: Ges.
A164: =Select!$C$12 -> Demoturnier | I164: 1 | Q164: 1
A165: Veranstaltung | I165: 2 | Q165: 2
A166: =Select!$C$13 -> 1. April 2019 | I166: 3 | Q166: 3
A167: Datum | I167: 4 | Q167: 4
A168: ='C52_Baum'!$D$14 -> Helmer Gerhard | I168: 5 | Q168: 5
A169: Name | I169: wenn erforderlich | Q169: wenn erforderlich
A170: ='C52_Baum'!$F$14 -> UBC Diana NÖ | I170: Stechen | Q170: Stechen
A171: Verein | N171: gewonnen | V171: gewonnen
A172: =Select!$C$20 -> Compound Herren | I172: Schütze: | N172: verloren | Q172: Schütze: | V172: verloren
A173: Bogenklasse
I174: Gegner: | K174: Name: | Q174: Gegner: | S174: Name:
K175: Unterschrift: | S175: Unterschrift:
A178: 1/8 Elimination | E178: ='C52_Baum'!$M$118 -> Scheibe: 35 | I178: 1/4 Finale | M178: ='C52_Baum'!$Q$117 -> Scheibe: 36 | Q178: 1/2 Finale | U178: ='C52_Baum'!$U$116 -> Scheibe: 35
B179: 1 | C179: 2 | D179: 3 | E179: Summe | F179: Ges. | J179: 1 | K179: 2 | L179: 3 | M179: Summe | N179: Ges. | R179: 1 | S179: 2 | T179: 3 | U179: Summe | V179: Ges.
A180: 1 | I180: 1 | Q180: 1
A181: 2 | I181: 2 | Q181: 2
A182: 3 | I182: 3 | Q182: 3
A183: 4 | I183: 4 | Q183: 4
A184: 5 | I184: 5 | Q184: 5
A185: wenn erforderlich | I185: wenn erforderlich | Q185: wenn erforderlich
A186: Stechen | I186: Stechen | Q186: Stechen
F187: gewonnen | N187: gewonnen | V187: gewonnen
A188: Schütze: | F188: verloren | I188: Schütze: | N188: verloren | Q188: Schütze: | V188: verloren
A190: Gegner: | C190: Name: | I190: Gegner: | K190: Name: | Q190: Gegner: | S190: Name:
C191: Unterschrift: | K191: Unterschrift: | S191: Unterschrift:
I194: 1/24 Elimination | M194: ='C52_Baum'!$D$121 -> Scheibe: 35B | Q194: 1/12 Elimination | U194: ='C52_Baum'!$I$118 -> Scheibe: 34A
J195: 1 | K195: 2 | L195: 3 | M195: Summe | N195: Ges. | R195: 1 | S195: 2 | T195: 3 | U195: Summe | V195: Ges.
A196: =Select!$C$12 -> Demoturnier | I196: 1 | Q196: 1
A197: Veranstaltung | I197: 2 | Q197: 2
A198: =Select!$C$13 -> 1. April 2019 | I198: 3 | Q198: 3
A199: Datum | I199: 4 | Q199: 4
A200: ='C52_Baum'!$D$15 -> Baumgartner Günter | I200: 5 | Q200: 5
A201: Name | I201: wenn erforderlich | Q201: wenn erforderlich
A202: ='C52_Baum'!$F$15 -> ASKÖ Linz Froschberg | I202: Stechen | Q202: Stechen
A203: Verein | N203: gewonnen | V203: gewonnen
A204: =Select!$C$20 -> Compound Herren | I204: Schütze: | N204: verloren | Q204: Schütze: | V204: verloren
A205: Bogenklasse
I206: Gegner: | K206: Name: | Q206: Gegner: | S206: Name:
K207: Unterschrift: | S207: Unterschrift:
A210: 1/8 Elimination | E210: ='C52_Baum'!$M$118 -> Scheibe: 35 | I210: 1/4 Finale | M210: ='C52_Baum'!$Q$117 -> Scheibe: 36 | Q210: 1/2 Finale | U210: ='C52_Baum'!$U$116 -> Scheibe: 35
B211: 1 | C211: 2 | D211: 3 | E211: Summe | F211: Ges. | J211: 1 | K211: 2 | L211: 3 | M211: Summe | N211: Ges. | R211: 1 | S211: 2 | T211: 3 | U211: Summe | V211: Ges.
A212: 1 | I212: 1 | Q212: 1
A213: 2 | I213: 2 | Q213: 2
A214: 3 | I214: 3 | Q214: 3
A215: 4 | I215: 4 | Q215: 4
A216: 5 | I216: 5 | Q216: 5
A217: wenn erforderlich | I217: wenn erforderlich | Q217: wenn erforderlich
A218: Stechen | I218: Stechen | Q218: Stechen
F219: gewonnen | N219: gewonnen | V219: gewonnen
A220: Schütze: | F220: verloren | I220: Schütze: | N220: verloren | Q220: Schütze: | V220: verloren
A222: Gegner: | C222: Name: | I222: Gegner: | K222: Name: | Q222: Gegner: | S222: Name:
C223: Unterschrift: | K223: Unterschrift: | S223: Unterschrift:
I226: 1/24 Elimination | M226: ='C52_Baum'!$D$122 -> Scheibe: 36A | Q226: 1/12 Elimination | U226: ='C52_Baum'!$I$119 -> Scheibe: 34B
J227: 1 | K227: 2 | L227: 3 | M227: Summe | N227: Ges. | R227: 1 | S227: 2 | T227: 3 | U227: Summe | V227: Ges.
A228: =Select!$C$12 -> Demoturnier | I228: 1 | Q228: 1
A229: Veranstaltung | I229: 2 | Q229: 2
A230: =Select!$C$13 -> 1. April 2019 | I230: 3 | Q230: 3
A231: Datum | I231: 4 | Q231: 4
A232: ='C52_Baum'!$D$18 -> Trenda Werner | I232: 5 | Q232: 5
A233: Name | I233: wenn erforderlich | Q233: wenn erforderlich
A234: ='C52_Baum'!$F$18 -> SV Wallern | I234: Stechen | Q234: Stechen
A235: Verein | N235: gewonnen | V235: gewonnen
A236: =Select!$C$20 -> Compound Herren | I236: Schütze: | N236: verloren | Q236: Schütze: | V236: verloren
... 1204 more rows

Sheet C52_Ergebnis (hidden)
A2: =Select!$C$12 -> Demoturnier | E2: =Select!C14 -> WA-Outdoor
A3: =Select!C13 -> 1. April 2019
A5: Ergebnisliste
A7: =Select!C18 -> Recurve Herren | M7: !!!!!!!!!!!!!!!!!!!!!!!!!! SORTIERBEREICH - NICHT ENTFERNEN !!!!!!!!!!!!!!!!!!!!!!!!!!
A9: Pl. | C9: Name | D9: Verein | E9: Quali. | F9: 1/24 | G9: 1/12 | H9: 1/8 | I9: 1/4 | J9: 1/2 | K9: Finale | M9: SortName | N9: SortVerein | O9: SortQuali | P9: Sort 1/24 | Q9: Sort 1/12 | R9: Sort1/8 | S9: Sort1/4 | T9: Sort1/2 | U9: SortFinale
A10: =IF(C10<>"",1,"") ->  | M10: ='C52_Baum'!Y8 ->  | N10: =VLOOKUP(M10,C_Quali!$C$10:$H$100,2,FALSE) ->  | O10: =VLOOKUP(M10,C_Quali!$C$10:$H$100,6,FALSE) ->  | P10: =VLOOKUP(M10,'C52_Baum'!$D$3:$G$108,4,FALSE) ->  | Q10: =VLOOKUP(M10,'C52_Baum'!$I$3:$K$108,3,FALSE) -> 0 | R10: =VLOOKUP(M10,'C52_Baum'!$M$3:$O$108,3,FALSE) -> 0 | S10: =VLOOKUP(M10,'C52_Baum'!$Q$9:$S$100,3,FALSE) -> 0 | T10: =VLOOKUP(M10,'C52_Baum'!$U$17:$W$84,3,FALSE) -> 0 | U10: =VLOOKUP(M10,'C52_Baum'!$Y$24:$AA$68,3,FALSE) -> 0
A11: =IF(C11<>"",A10+1,"") ->  | M11: ='C52_Baum'!Y10 ->  | N11: =VLOOKUP(M11,C_Quali!$C$10:$H$100,2,FALSE) ->  | O11: =VLOOKUP(M11,C_Quali!$C$10:$H$100,6,FALSE) ->  | P11: =VLOOKUP(M11,'C52_Baum'!$D$3:$G$108,4,FALSE) ->  | Q11: =VLOOKUP(M11,'C52_Baum'!$I$3:$K$108,3,FALSE) -> 0 | R11: =VLOOKUP(M11,'C52_Baum'!$M$3:$O$108,3,FALSE) -> 0 | S11: =VLOOKUP(M11,'C52_Baum'!$Q$9:$S$100,3,FALSE) -> 0 | T11: =VLOOKUP(M11,'C52_Baum'!$U$17:$W$84,3,FALSE) -> 0 | U11: =VLOOKUP(M11,'C52_Baum'!$Y$24:$AA$68,3,FALSE) -> 0
M12: ='C52_Baum'!Y12 ->  | N12: =VLOOKUP(M12,C_Quali!$C$10:$H$100,2,FALSE) ->  | O12: =VLOOKUP(M12,C_Quali!$C$10:$H$100,6,FALSE) ->  | P12: =VLOOKUP(M12,'C52_Baum'!$D$3:$G$108,4,FALSE) ->  | Q12: =VLOOKUP(M12,'C52_Baum'!$I$3:$K$108,3,FALSE) -> 0 | R12: =VLOOKUP(M12,'C52_Baum'!$M$3:$O$108,3,FALSE) -> 0 | S12: =VLOOKUP(M12,'C52_Baum'!$Q$9:$S$100,3,FALSE) -> 0 | T12: =VLOOKUP(M12,'C52_Baum'!$U$17:$W$84,3,FALSE) -> 0 | U12: =VLOOKUP(M12,'C52_Baum'!$Y$24:$AA$68,3,FALSE) -> 0
M13: =IF('C52_Baum'!Y12='C52_Baum'!Y66,'R28_Baum'!Y67,'C52_Baum'!Y66) -> 0 | N13: =VLOOKUP(M13,C_Quali!$C$10:$H$100,2,FALSE) ->  | O13: =VLOOKUP(M13,C_Quali!$C$10:$H$100,6,FALSE) ->  | P13: =VLOOKUP(M13,'C52_Baum'!$D$3:$G$108,4,FALSE) ->  | Q13: =VLOOKUP(M13,'C52_Baum'!$I$3:$K$108,3,FALSE) ->  | R13: =VLOOKUP(M13,'C52_Baum'!$M$3:$O$108,3,FALSE) ->  | S13: =VLOOKUP(M13,'C52_Baum'!$Q$9:$S$100,3,FALSE) ->  | T13: =VLOOKUP(M13,'C52_Baum'!$U$17:$W$84,3,FALSE) ->  | U13: =VLOOKUP(M13,'C52_Baum'!$Y$24:$AA$68,3,FALSE) -> 
M14: =IF('C52_Baum'!U30='C52_Baum'!Q12,'C52_Baum'!Q13,'C52_Baum'!Q12) ->  | N14: =VLOOKUP(M14,C_Quali!$C$10:$H$100,2,FALSE) ->  | O14: =VLOOKUP(M14,C_Quali!$C$10:$H$100,6,FALSE) ->  | P14: =VLOOKUP(M14,'C52_Baum'!$D$3:$G$108,4,FALSE) ->  | Q14: =VLOOKUP(M14,'C52_Baum'!$I$3:$K$108,3,FALSE) -> 0 | R14: =VLOOKUP(M14,'C52_Baum'!$M$3:$O$108,3,FALSE) -> 0 | S14: =VLOOKUP(M14,'C52_Baum'!$Q$9:$S$100,3,FALSE) -> 0
M15: =IF('C52_Baum'!U31='C52_Baum'!Q44,'C52_Baum'!Q45,'C52_Baum'!Q44) ->  | N15: =VLOOKUP(M15,C_Quali!$C$10:$H$100,2,FALSE) ->  | O15: =VLOOKUP(M15,C_Quali!$C$10:$H$100,6,FALSE) ->  | P15: =VLOOKUP(M15,'C52_Baum'!$D$3:$G$108,4,FALSE) ->  | Q15: =VLOOKUP(M15,'C52_Baum'!$I$3:$K$108,3,FALSE) -> 0 | R15: =VLOOKUP(M15,'C52_Baum'!$M$3:$O$108,3,FALSE) -> 0 | S15: =VLOOKUP(M15,'C52_Baum'!$Q$9:$S$100,3,FALSE) -> 0
M16: =IF('C52_Baum'!U82='C52_Baum'!Q66,'C52_Baum'!Q67,'C52_Baum'!Q66) ->  | N16: =VLOOKUP(M16,C_Quali!$C$10:$H$100,2,FALSE) ->  | O16: =VLOOKUP(M16,C_Quali!$C$10:$H$100,6,FALSE) ->  | P16: =VLOOKUP(M16,'C52_Baum'!$D$3:$G$108,4,FALSE) ->  | Q16: =VLOOKUP(M16,'C52_Baum'!$I$3:$K$108,3,FALSE) -> 0 | R16: =VLOOKUP(M16,'C52_Baum'!$M$3:$O$108,3,FALSE) -> 0 | S16: =VLOOKUP(M16,'C52_Baum'!$Q$9:$S$100,3,FALSE) -> 0
M17: =IF('C52_Baum'!U83='C52_Baum'!Q98,'C52_Baum'!Q99,'C52_Baum'!Q98) ->  | N17: =VLOOKUP(M17,C_Quali!$C$10:$H$100,2,FALSE) ->  | O17: =VLOOKUP(M17,C_Quali!$C$10:$H$100,6,FALSE) ->  | P17: =VLOOKUP(M17,'C52_Baum'!$D$3:$G$108,4,FALSE) ->  | Q17: =VLOOKUP(M17,'C52_Baum'!$I$3:$K$108,3,FALSE) -> 0 | R17: =VLOOKUP(M17,'C52_Baum'!$M$3:$O$108,3,FALSE) -> 0 | S17: =VLOOKUP(M17,'C52_Baum'!$Q$9:$S$100,3,FALSE) -> 0
M18: =IF('C52_Baum'!Q12='C52_Baum'!M6,'C52_Baum'!M7,'C52_Baum'!M6) -> Steinwender Alois | N18: =VLOOKUP(M18,C_Quali!$C$10:$H$100,2,FALSE) -> Bogensport Lungau | O18: =VLOOKUP(M18,C_Quali!$C$10:$H$100,6,FALSE) -> 532 | P18: =VLOOKUP(M18,'C52_Baum'!$D$3:$G$108,4,FALSE) -> 0 | Q18: =VLOOKUP(M18,'C52_Baum'!$I$3:$K$108,3,FALSE) -> 0 | R18: =VLOOKUP(M18,'C52_Baum'!$M$3:$O$108,3,FALSE) -> 0
M19: =IF('C52_Baum'!Q13='C52_Baum'!M20,'C52_Baum'!M21,'C52_Baum'!M20) ->  | N19: =VLOOKUP(M19,C_Quali!$C$10:$H$100,2,FALSE) ->  | O19: =VLOOKUP(M19,C_Quali!$C$10:$H$100,6,FALSE) ->  | P19: =VLOOKUP(M19,'C52_Baum'!$D$3:$G$108,4,FALSE) ->  | Q19: =VLOOKUP(M19,'C52_Baum'!$I$3:$K$108,3,FALSE) -> 0 | R19: =VLOOKUP(M19,'C52_Baum'!$M$3:$O$108,3,FALSE) -> 0
M20: =IF('C52_Baum'!Q44='C52_Baum'!M36,'C52_Baum'!M37,'C52_Baum'!M36) ->  | N20: =VLOOKUP(M20,C_Quali!$C$10:$H$100,2,FALSE) ->  | O20: =VLOOKUP(M20,C_Quali!$C$10:$H$100,6,FALSE) ->  | P20: =VLOOKUP(M20,'C52_Baum'!$D$3:$G$108,4,FALSE) ->  | Q20: =VLOOKUP(M20,'C52_Baum'!$I$3:$K$108,3,FALSE) -> 0 | R20: =VLOOKUP(M20,'C52_Baum'!$M$3:$O$108,3,FALSE) -> 0
M21: =IF('C52_Baum'!Q45='C52_Baum'!M50,'C52_Baum'!M51,'C52_Baum'!M50) -> Wippel Wolfgang | N21: =VLOOKUP(M21,C_Quali!$C$10:$H$100,2,FALSE) -> BC Union Graz Seiersberg | O21: =VLOOKUP(M21,C_Quali!$C$10:$H$100,6,FALSE) -> 529 | P21: =VLOOKUP(M21,'C52_Baum'!$D$3:$G$108,4,FALSE) -> 0 | Q21: =VLOOKUP(M21,'C52_Baum'!$I$3:$K$108,3,FALSE) -> 0 | R21: =VLOOKUP(M21,'C52_Baum'!$M$3:$O$108,3,FALSE) -> 0
M22: =IF('C52_Baum'!Q66='C52_Baum'!M60,'C52_Baum'!M61,'C52_Baum'!M60) -> Hubmann Gerhard | N22: =VLOOKUP(M22,C_Quali!$C$10:$H$100,2,FALSE) -> EAT-Bogensport | O22: =VLOOKUP(M22,C_Quali!$C$10:$H$100,6,FALSE) -> 530 | P22: =VLOOKUP(M22,'C52_Baum'!$D$3:$G$108,4,FALSE) -> 0 | Q22: =VLOOKUP(M22,'C52_Baum'!$I$3:$K$108,3,FALSE) -> 0 | R22: =VLOOKUP(M22,'C52_Baum'!$M$3:$O$108,3,FALSE) -> 0
M23: =IF('C52_Baum'!Q67='C52_Baum'!M74,'C52_Baum'!M75,'C52_Baum'!M74) ->  | N23: =VLOOKUP(M23,C_Quali!$C$10:$H$100,2,FALSE) ->  | O23: =VLOOKUP(M23,C_Quali!$C$10:$H$100,6,FALSE) ->  | P23: =VLOOKUP(M23,'C52_Baum'!$D$3:$G$108,4,FALSE) ->  | Q23: =VLOOKUP(M23,'C52_Baum'!$I$3:$K$108,3,FALSE) -> 0 | R23: =VLOOKUP(M23,'C52_Baum'!$M$3:$O$108,3,FALSE) -> 0
M24: =IF('C52_Baum'!Q98='C52_Baum'!M90,'C52_Baum'!M91,'C52_Baum'!M90) ->  | N24: =VLOOKUP(M24,C_Quali!$C$10:$H$100,2,FALSE) ->  | O24: =VLOOKUP(M24,C_Quali!$C$10:$H$100,6,FALSE) ->  | P24: =VLOOKUP(M24,'C52_Baum'!$D$3:$G$108,4,FALSE) ->  | Q24: =VLOOKUP(M24,'C52_Baum'!$I$3:$K$108,3,FALSE) -> 0 | R24: =VLOOKUP(M24,'C52_Baum'!$M$3:$O$108,3,FALSE) -> 0
M25: =IF('C52_Baum'!Q99='C52_Baum'!M104,'C52_Baum'!M105,'C52_Baum'!M104) -> Kanduth Wolfgang | N25: =VLOOKUP(M25,C_Quali!$C$10:$H$100,2,FALSE) -> BC Wildon Weitendorf | O25: =VLOOKUP(M25,C_Quali!$C$10:$H$100,6,FALSE) -> 531 | P25: =VLOOKUP(M25,'C52_Baum'!$D$3:$G$108,4,FALSE) -> 0 | Q25: =VLOOKUP(M25,'C52_Baum'!$I$3:$K$108,3,FALSE) -> 0 | R25: =VLOOKUP(M25,'C52_Baum'!$M$3:$O$108,3,FALSE) -> 0
M26: =IF('C52_Baum'!M7='C52_Baum'!I8,'C52_Baum'!I9,'C52_Baum'!I8) ->  | N26: =VLOOKUP(M26,C_Quali!$C$10:$H$100,2,FALSE) ->  | O26: =VLOOKUP(M26,C_Quali!$C$10:$H$100,6,FALSE) ->  | P26: =VLOOKUP(M26,'C52_Baum'!$D$3:$G$108,4,FALSE) ->  | Q26: =VLOOKUP(M26,'C52_Baum'!$I$3:$K$108,3,FALSE) -> 0
M27: =IF('C52_Baum'!M20='C52_Baum'!I16,'C52_Baum'!I17,'C52_Baum'!I16) ->  | N27: =VLOOKUP(M27,C_Quali!$C$10:$H$100,2,FALSE) ->  | O27: =VLOOKUP(M27,C_Quali!$C$10:$H$100,6,FALSE) ->  | P27: =VLOOKUP(M27,'C52_Baum'!$D$3:$G$108,4,FALSE) ->  | Q27: =VLOOKUP(M27,'C52_Baum'!$I$3:$K$108,3,FALSE) -> 0
M28: =IF('C52_Baum'!M21='C52_Baum'!I24,'C52_Baum'!I25,'C52_Baum'!I24) ->  | N28: =VLOOKUP(M28,C_Quali!$C$10:$H$100,2,FALSE) ->  | O28: =VLOOKUP(M28,C_Quali!$C$10:$H$100,6,FALSE) ->  | P28: =VLOOKUP(M28,'C52_Baum'!$D$3:$G$108,4,FALSE) ->  | Q28: =VLOOKUP(M28,'C52_Baum'!$I$3:$K$108,3,FALSE) -> 0
M29: =IF('C52_Baum'!M36='C52_Baum'!I32,'C52_Baum'!I33,'C52_Baum'!I32) ->  | N29: =VLOOKUP(M29,C_Quali!$C$10:$H$100,2,FALSE) ->  | O29: =VLOOKUP(M29,C_Quali!$C$10:$H$100,6,FALSE) ->  | P29: =VLOOKUP(M29,'C52_Baum'!$D$3:$G$108,4,FALSE) ->  | Q29: =VLOOKUP(M29,'C52_Baum'!$I$3:$K$108,3,FALSE) -> 0
M30: =IF('C52_Baum'!M37='C52_Baum'!I40,'C52_Baum'!I41,'C52_Baum'!I40) ->  | N30: =VLOOKUP(M30,C_Quali!$C$10:$H$100,2,FALSE) ->  | O30: =VLOOKUP(M30,C_Quali!$C$10:$H$100,6,FALSE) ->  | P30: =VLOOKUP(M30,'C52_Baum'!$D$3:$G$108,4,FALSE) ->  | Q30: =VLOOKUP(M30,'C52_Baum'!$I$3:$K$108,3,FALSE) -> 0
M31: =IF('C52_Baum'!M50='C52_Baum'!I48,'C52_Baum'!I49,'C52_Baum'!I48) ->  | N31: =VLOOKUP(M31,C_Quali!$C$10:$H$100,2,FALSE) ->  | O31: =VLOOKUP(M31,C_Quali!$C$10:$H$100,6,FALSE) ->  | P31: =VLOOKUP(M31,'C52_Baum'!$D$3:$G$108,4,FALSE) ->  | Q31: =VLOOKUP(M31,'C52_Baum'!$I$3:$K$108,3,FALSE) -> 0
M32: =IF('C52_Baum'!M61='C52_Baum'!I62,'C52_Baum'!I63,'C52_Baum'!I62) ->  | N32: =VLOOKUP(M32,C_Quali!$C$10:$H$100,2,FALSE) ->  | O32: =VLOOKUP(M32,C_Quali!$C$10:$H$100,6,FALSE) ->  | P32: =VLOOKUP(M32,'C52_Baum'!$D$3:$G$108,4,FALSE) ->  | Q32: =VLOOKUP(M32,'C52_Baum'!$I$3:$K$108,3,FALSE) -> 0
M33: =IF('C52_Baum'!M74='C52_Baum'!I70,'C52_Baum'!I71,'C52_Baum'!I70) ->  | N33: =VLOOKUP(M33,C_Quali!$C$10:$H$100,2,FALSE) ->  | O33: =VLOOKUP(M33,C_Quali!$C$10:$H$100,6,FALSE) ->  | P33: =VLOOKUP(M33,'C52_Baum'!$D$3:$G$108,4,FALSE) ->  | Q33: =VLOOKUP(M33,'C52_Baum'!$I$3:$K$108,3,FALSE) -> 0
M34: =IF('C52_Baum'!M75='C52_Baum'!I78,'C52_Baum'!I79,'C52_Baum'!I78) ->  | N34: =VLOOKUP(M34,C_Quali!$C$10:$H$100,2,FALSE) ->  | O34: =VLOOKUP(M34,C_Quali!$C$10:$H$100,6,FALSE) ->  | P34: =VLOOKUP(M34,'C52_Baum'!$D$3:$G$108,4,FALSE) ->  | Q34: =VLOOKUP(M34,'C52_Baum'!$I$3:$K$108,3,FALSE) -> 0
M35: =IF('C52_Baum'!M90='C52_Baum'!I86,'C52_Baum'!I87,'C52_Baum'!I86) ->  | N35: =VLOOKUP(M35,C_Quali!$C$10:$H$100,2,FALSE) ->  | O35: =VLOOKUP(M35,C_Quali!$C$10:$H$100,6,FALSE) ->  | P35: =VLOOKUP(M35,'C52_Baum'!$D$3:$G$108,4,FALSE) ->  | Q35: =VLOOKUP(M35,'C52_Baum'!$I$3:$K$108,3,FALSE) -> 0
M36: =IF('C52_Baum'!M91='C52_Baum'!I94,'C52_Baum'!I95,'C52_Baum'!I94) ->  | N36: =VLOOKUP(M36,C_Quali!$C$10:$H$100,2,FALSE) ->  | O36: =VLOOKUP(M36,C_Quali!$C$10:$H$100,6,FALSE) ->  | P36: =VLOOKUP(M36,'C52_Baum'!$D$3:$G$108,4,FALSE) ->  | Q36: =VLOOKUP(M36,'C52_Baum'!$I$3:$K$108,3,FALSE) -> 0
M37: =IF('C52_Baum'!M104='C52_Baum'!I102,'C52_Baum'!I103,'C52_Baum'!I102) ->  | N37: =VLOOKUP(M37,C_Quali!$C$10:$H$100,2,FALSE) ->  | O37: =VLOOKUP(M37,C_Quali!$C$10:$H$100,6,FALSE) ->  | P37: =VLOOKUP(M37,'C52_Baum'!$D$3:$G$108,4,FALSE) ->  | Q37: =VLOOKUP(M37,'C52_Baum'!$I$3:$K$108,3,FALSE) -> 0
M38: =IF('C52_Baum'!I8='C52_Baum'!D6,'C52_Baum'!D7,'C52_Baum'!D6) -> Kolm Martin | N38: =VLOOKUP(M38,C_Quali!$C$10:$H$100,2,FALSE) -> WBZ Union Zwettl | O38: =VLOOKUP(M38,C_Quali!$C$10:$H$100,6,FALSE) -> 516 | P38: =VLOOKUP(M38,'C52_Baum'!$D$3:$G$108,4,FALSE) -> 0
M39: =IF('C52_Baum'!I9='C52_Baum'!D10,'C52_Baum'!D11,'C52_Baum'!D10) -> Neumann Markus | N39: =VLOOKUP(M39,C_Quali!$C$10:$H$100,2,FALSE) -> BSC Fischamend | O39: =VLOOKUP(M39,C_Quali!$C$10:$H$100,6,FALSE) -> 390 | P39: =VLOOKUP(M39,'C52_Baum'!$D$3:$G$108,4,FALSE) -> 0
M40: =IF('C52_Baum'!I16='C52_Baum'!D14,'C52_Baum'!D15,'C52_Baum'!D14) -> Helmer Gerhard | N40: =VLOOKUP(M40,C_Quali!$C$10:$H$100,2,FALSE) -> UBC Diana NÖ | O40: =VLOOKUP(M40,C_Quali!$C$10:$H$100,6,FALSE) -> 524 | P40: =VLOOKUP(M40,'C52_Baum'!$D$3:$G$108,4,FALSE) -> 0
M41: =IF('C52_Baum'!I17='C52_Baum'!D18,'C52_Baum'!D19,'C52_Baum'!D18) -> Trenda Werner | N41: =VLOOKUP(M41,C_Quali!$C$10:$H$100,2,FALSE) -> SV Wallern | O41: =VLOOKUP(M41,C_Quali!$C$10:$H$100,6,FALSE) -> 500 | P41: =VLOOKUP(M41,'C52_Baum'!$D$3:$G$108,4,FALSE) -> 0
M42: =IF('C52_Baum'!I24='C52_Baum'!D22,'C52_Baum'!D23,'C52_Baum'!D22) -> Quinz Harald | N42: =VLOOKUP(M42,C_Quali!$C$10:$H$100,2,FALSE) -> Atus Zeltweg Sektion Bogen | O42: =VLOOKUP(M42,C_Quali!$C$10:$H$100,6,FALSE) -> 508 | P42: =VLOOKUP(M42,'C52_Baum'!$D$3:$G$108,4,FALSE) -> 0
M43: =IF('C52_Baum'!I25='C52_Baum'!D26,'C52_Baum'!D27,'C52_Baum'!D26) -> Käser Federico | N43: =VLOOKUP(M43,C_Quali!$C$10:$H$100,2,FALSE) -> BSV Schönbrunn | O43: =VLOOKUP(M43,C_Quali!$C$10:$H$100,6,FALSE) -> 304 | P43: =VLOOKUP(M43,'C52_Baum'!$D$3:$G$108,4,FALSE) -> 0
M44: =IF('C52_Baum'!I32='C52_Baum'!D30,'C52_Baum'!D31,'C52_Baum'!D30) -> Traxler Helmuth | N44: =VLOOKUP(M44,C_Quali!$C$10:$H$100,2,FALSE) -> UBC Diana NÖ | O44: =VLOOKUP(M44,C_Quali!$C$10:$H$100,6,FALSE) -> 528 | P44: =VLOOKUP(M44,'C52_Baum'!$D$3:$G$108,4,FALSE) -> 0
M45: =IF('C52_Baum'!I33='C52_Baum'!D34,'C52_Baum'!D35,'C52_Baum'!D34) -> Holzer Gerhard | N45: =VLOOKUP(M45,C_Quali!$C$10:$H$100,2,FALSE) -> UBC Diana NÖ | O45: =VLOOKUP(M45,C_Quali!$C$10:$H$100,6,FALSE) -> 504 | P45: =VLOOKUP(M45,'C52_Baum'!$D$3:$G$108,4,FALSE) -> 0
M46: =IF('C52_Baum'!I40='C52_Baum'!D38,'C52_Baum'!D39,'C52_Baum'!D38) -> Lehner Heinz | N46: =VLOOKUP(M46,C_Quali!$C$10:$H$100,2,FALSE) -> Salzkammergut Bogensport Club | O46: =VLOOKUP(M46,C_Quali!$C$10:$H$100,6,FALSE) -> 512 | P46: =VLOOKUP(M46,'C52_Baum'!$D$3:$G$108,4,FALSE) -> 0
M47: =IF('C52_Baum'!I41='C52_Baum'!D42,'C52_Baum'!D43,'C52_Baum'!D42) -> Bruijns Peter | N47: =VLOOKUP(M47,C_Quali!$C$10:$H$100,2,FALSE) -> BC Golden Arrows | O47: =VLOOKUP(M47,C_Quali!$C$10:$H$100,6,FALSE) -> 381 | P47: =VLOOKUP(M47,'C52_Baum'!$D$3:$G$108,4,FALSE) -> 0
M48: =IF('C52_Baum'!I48='C52_Baum'!D46,'C52_Baum'!D47,'C52_Baum'!D46) -> Zezula Erwin | N48: =VLOOKUP(M48,C_Quali!$C$10:$H$100,2,FALSE) -> WBZ Union Zwettl | O48: =VLOOKUP(M48,C_Quali!$C$10:$H$100,6,FALSE) -> 520 | P48: =VLOOKUP(M48,'C52_Baum'!$D$3:$G$108,4,FALSE) -> 0
